{"text_format":"2","workbook":"xlsx","n_sheets":3,"sheets":["Sheet1","Sheet2","Sheet3"],"not_rendered":{"charts":0,"images":0,"macros":0,"external_links":0,"defined_names":3,"comments":0,"pivot_tables":0},"unopened":[],"bounds":{"document_bytes":16777216,"sheet_cells":100000,"run_cost":"one","rows_first":2000,"rows_last":500,"rows_between":2000,"halvings":0,"cell_chars":16384,"cell_head_chars":4096},"cells_cut":0,"cells_raw":0,"read":"whole","date_system":"1900"}

{"sheet":"Sheet1","index":0,"n_rows":1370,"n_cols":14,"rows_kept":1370,"cut":false,"hidden":false,"merged":[]}
[]
[]
[null,null,null,"2022-03-17T09:54:00"]
[]
[null,null,null,"1363 objects"]
[]
[null,null,null,"BOM Line","Item Name","Item Id","Revision","Quantity","Find No.","LOCATOR","REMARKS","Item Revision Definition Configuration Used","Level","Category"]
[null,null,null,"00JP89ZZ/00.03;1-KTM DUKE 400 ABS (Design)","KTM DUKE 400 ABS","00JP89ZZ",0.03,{"$nulls":5},0,"AS (Assembly,Sub-Assy)"]
[null,null,null,"JP113855/00.00;1-ASSEMBLY SCHEME FRAME (Design) x 1","ASSEMBLY SCHEME FRAME","JP113855",0,1,10,null,null,null,1,"AS (Assembly,Sub-Assy)"]
[null,null,null,"JP111189/00.00;1-ASSEMBLY FRAME (Design) x 1","ASSEMBLY FRAME","JP111189",0,1,10,null,null,null,2,"AS (Assembly,Sub-Assy)"]
[null,null,null,"JP111113/00.07;1-FRAME ASSEMBLY FRONT (Design) x 1","FRAME ASSEMBLY FRONT","JP111113",7.0000000000000007E-2,1,10,null,null,null,3,"SM (Sheet Metal & Fabricated Parts)"]
[null,null,null,"JP111131/00.00;1-TUBE HEAD (Design) x 1","TUBE HEAD","JP111131",0,1,10,"CHASSIS-FRAME",null,null,4,"TU (Tubes)"]
[null,null,null,"DK161146/02;1-PIPE FRAME HEAD x 1","PIPE FRAME HEAD","DK161146",2,1,10,"CHASSIS-FRAME",null,null,5,"SM (Sheet Metal & Fabricated Parts)"]
[null,null,null,"JP111144/00.00;1-STOPPER STEERING x 1","STOPPER STEERING","JP111144",0,1,20,"CHASSIS-FRAME",null,null,5,"SM (Sheet Metal & Fabricated Parts)"]
[null,null,null,"JP111166/00.00;1-BRACKET IMMOBILISER x 1","BRACKET COVER FRAME FRONT","JP111166",0,1,30,"CHASSIS-FRAME",null,null,5,"SM (Sheet Metal & Fabricated Parts)"]
[null,null,null,"JP111132/00.01;1-TUBE UPPER LH x 1","TUBE UPPER LH","JP111132",0.01,1,20,"CHASSIS-FRAME",null,null,4,"TU (Tubes)"]
[null,null,null,"JP111133/00.00;1-TUBE UPPER RH x 1","TUBE UPPER RH","JP111133",0,1,30,"CHASSIS-FRAME",null,null,4,"TU (Tubes)"]
[null,null,null,"JP111134/00.01;1-TUBE LOWER LH x 1","TUBE LOWER LH","JP111134",0.01,1,40,"CHASSIS-FRAME",null,null,4,"TU (Tubes)"]
[null,null,null,"JP111135/00.02;1-TUBE LOWER RH x 1","TUBE LOWER RH","JP111135",0.02,1,50,"CHASSIS-FRAME",null,null,4,"TU (Tubes)"]
[null,null,null,"JP111136/00.00;1-TUBE CROSS FRONT LH I x 1","TUBE CROSS FRONT LH I","JP111136",0,1,70,"CHASSIS-FRAME",null,null,4,"TU (Tubes)"]
[null,null,null,"JP111137/00.00;1-TUBE CROSS FRONT RH I x 1","TUBE CROSS FRONT RH I","JP111137",0,1,80,"CHASSIS-FRAME",null,null,4,"TU (Tubes)"]
[null,null,null,"JP111138/00.00;1-TUBE CROSS FRONT LH II x 1","TUBE CROSS FRONT LH II","JP111138",0,1,90,"CHASSIS-FRAME",null,null,4,"TU (Tubes)"]
[null,null,null,"JP111139/00.00;1-TUBE CROSS FRONT RH II x 1","TUBE CROSS FRONT RH II","JP111139",0,1,100,"CHASSIS-FRAME",null,null,4,"TU (Tubes)"]
[null,null,null,"JP111140/00.00;1-TUBE CROSS FRONT LH III x 1","TUBE CROSS FRONT LH III","JP111140",0,1,110,"CHASSIS-FRAME",null,null,4,"TU (Tubes)"]
[null,null,null,"JP111141/00.00;1-TUBE CROSS FRONT RH III x 1","TUBE CROSS FRONT RH III","JP111141",0,1,120,"CHASSIS-FRAME",null,null,4,"TU (Tubes)"]
[null,null,null,"JP111142/00.00;1-TUBE CROSS FRONT LH IV x 1","TUBE CROSS FRONT LH IV","JP111142",0,1,130,"CHASSIS-FRAME",null,null,4,"TU (Tubes)"]
[null,null,null,"JP111143/00.00;1-TUBE CROSS FRONT RH IV x 1","TUBE CROSS FRONT RH IV","JP111143",0,1,140,"CHASSIS-FRAME",null,null,4,"TU (Tubes)"]
[null,null,null,"JP111145/00.00;1-TUBE CROSS UPPER x 1","TUBE CROSS UPPER","JP111145",0,1,150,"CHASSIS-FRAME",null,null,4,"TU (Tubes)"]
[null,null,null,"JP111146/00.00;1-GUSSET TUBE HEAD UPPER (Design) x 1","GUSSET TUBE HEAD UPPER","JP111146",0,1,160,"CHASSIS-FRAME",null,null,4,"SM (Sheet Metal & Fabricated Parts)"]
[null,null,null,"KCMB0605/01;1-NUT WELD SQUARE x 1","NUT WELD SQUARE","KCMB0605",1,1,10,"CHASSIS-FRAME",null,null,5,"HW (Hardware includes nuts,washers)"]
[null,null,null,"JP111147/00.01;1-GUSSET TUBE HEAD LOWER (Design) x 1","GUSSET TUBE HEAD LOWER","JP111147",0.01,1,170,"CHASSIS-FRAME",null,null,4,"SM (Sheet Metal & Fabricated Parts)"]
[null,null,null,"JP111148/00;1-BRACKET RADIATOR TOP (UGDesignView) x 1","BRACKET RADIATOR TOP","JP111148",0,1,10,"CHASSIS-FRAME",null,null,5,"SM (Sheet Metal & Fabricated Parts)"]
[null,null,null,"JP111149/00.02;1-BRACKET TANK FRONT (Design) x 1","BRACKET TANK FRONT","JP111149",0.02,1,180,"CHASSIS-FRAME",null,null,4,"SM (Sheet Metal & Fabricated Parts)"]
[null,null,null,"JP111183/00;1-COLLAR x 2","COLLAR","JP111183",0,2,10,"CHASSIS-FRAME",null,null,5,"BA (Bar or Turned components)"]
[null,null,null,"KCMB0605/01;1-NUT WELD SQUARE x 2","NUT WELD SQUARE","KCMB0605",1,2,20,"CHASSIS-FRAME",null,null,5,"HW (Hardware includes nuts,washers)"]
[null,null,null,"JP111178/00.00;1-BRACKET PIPE DUCT INTAKE FR LH x 1","BRACKET DUCT INTAKE FR LH","JP111178",0,1,190,"CHASSIS-FRAME",null,null,4,"SM (Sheet Metal & Fabricated Parts)"]
[null,null,null,"JP111150/00.01;1-BRACKET HARNESS x 1","BRACKET HARNESS","JP111150",0.01,1,200,"CHASSIS-FRAME",null,null,4,"SM (Sheet Metal & Fabricated Parts)"]
[null,null,null,"JP111151/00.00;1-BRACKET UNIT REGULATOR (Design) x 1","BRACKET UNIT REGULATOR","JP111151",0,1,210,"CHASSIS-FRAME",null,null,4,"SM (Sheet Metal & Fabricated Parts)"]
[null,null,null,"KCMB0605/01;1-NUT WELD SQUARE x 2","NUT WELD SQUARE","KCMB0605",1,2,10,"CHASSIS-FRAME",null,null,5,"HW (Hardware includes nuts,washers)"]
[null,null,null,"JG111085/02;1-BRACKET EARTHING LATCH (Design) x 1","BRACKET EARTHING LATCH","JG111085",2,1,230,"CHASSIS-FRAME",null,null,4,"SM (Sheet Metal & Fabricated Parts)"]
[null,null,null,"KCMB0605/01;1-NUT WELD SQUARE x 1","NUT WELD SQUARE","KCMB0605",1,1,10,"CHASSIS-FRAME",null,null,5,"HW (Hardware includes nuts,washers)"]
[null,null,null,"JP111153/00.00;1-BRACKET HANGER ENGINE LH (Design) x 1","BRACKET HANGER ENGINE LH","JP111153",0,1,240,"CHASSIS-FRAME",null,null,4,"SM (Sheet Metal & Fabricated Parts)"]
[null,null,null,"KCMB0806/01;1-NUT WELD SQUARE x 2","NUT WELD SQUARE","KCMB0806",1,2,10,"CHASSIS-FRAME",null,null,5,"HW (Hardware includes nuts,washers)"]
[null,null,null,"JP111154/00.00;1-BRACKET HANGER ENGINE RH (Design) x 1","BRACKET HANGER ENGINE RH","JP111154",0,1,250,"CHASSIS-FRAME",null,null,4,"SM (Sheet Metal & Fabricated Parts)"]
[null,null,null,"KCMB0806/01;1-NUT WELD SQUARE x 2","NUT WELD SQUARE","KCMB0806",1,2,10,"CHASSIS-FRAME",null,null,5,"HW (Hardware includes nuts,washers)"]
[null,null,null,"JP111179/00.00;1-BRACKET PIPE DUCT INTAKE x 1","BRACKET DUCT INTAKE","JP111179",0,1,260,"CHASSIS-FRAME",null,null,4,"SM (Sheet Metal & Fabricated Parts)"]
[null,null,null,"JP111155/00.01;1-BRACKET COIL IGNITION (Design) x 1","BRACKET COIL IGNITION","JP111155",0.01,1,270,"CHASSIS-FRAME",null,null,4,"SM (Sheet Metal & Fabricated Parts)"]
[null,null,null,"KCMB0605/01;1-NUT WELD SQUARE x 2","NUT WELD SQUARE","KCMB0605",1,2,10,"CHASSIS-FRAME",null,null,5,"HW (Hardware includes nuts,washers)"]
[null,null,null,"JP111174/00.01;1-BRACKET FRAME TOP LH (Design) x 1","BRACKET FRAME TOP LH","JP111174",0.01,1,280,"CHASSIS-FRAME",null,null,4,"SM (Sheet Metal & Fabricated Parts)"]
[null,null,null,"JP113808/01;1-BUSH FORGE M8 X 1.25 X 4.5L x 1","BUSH FORGE M8 X 1.25 X 4.5L","JP113808",1,1,10,"CHASSIS-FRAME",null,null,5,"FO (Forging Route)"]
[null,null,null,"JP111175/00.00;1-BRACKET FRAME TOP RH x 1","BRACKET FRAME TOP RH","JP111175",0,1,290,"CHASSIS-FRAME",null,null,4,"SM (Sheet Metal & Fabricated Parts)"]
[null,null,null,"JP111176/00.01;1-BRACKET FRAME BOTTOM LH (Design) x 1","BRACKET FRAME BOTTOM LH","JP111176",0.01,1,300,"CHASSIS-FRAME",null,null,4,"SM (Sheet Metal & Fabricated Parts)"]
[null,null,null,"JY591160/01;1-BUSH (Design) x 1","BUSH","JY591160",1,1,10,"CHASSIS-FRAME",null,null,5,"SM (Sheet Metal & Fabricated Parts)"]
[null,null,null,"JP111177/00.00;1-BRACKET FRAME BOTTOM RH (Design) x 1","BRACKET FRAME BOTTOM RH","JP111177",0,1,310,"CHASSIS-FRAME",null,null,4,"SM (Sheet Metal & Fabricated Parts)"]
[null,null,null,"JY591160/01;1-BUSH (Design) x 1","BUSH","JY591160",1,1,10,"CHASSIS-FRAME",null,null,5,"SM (Sheet Metal & Fabricated Parts)"]
[null,null,null,"KCMB1008/01;1-NUT WELD SQUARE x 1","NUT WELD SQUARE","KCMB1008",1,1,20,"CHASSIS-FRAME",null,null,5,"HW (Hardware includes nuts,washers)"]
[null,null,null,"JP111180/00.00;1-BRACKET PIPE DUCT INTAKE REAR x 1","BRACKET DUCT INTAKE REAR","JP111180",0,1,320,"CHASSIS-FRAME",null,null,4,"SM (Sheet Metal & Fabricated Parts)"]
[null,null,null,"JP111156/00.00;1-BRACKET SHOCKABSORBER (Design) x 1","BRACKET SHOCKABSORBER","JP111156",0,1,330,"CHASSIS-FRAME",null,null,4,"SM (Sheet Metal & Fabricated Parts)"]
[null,null,null,"JP111184/00.00;1-BUSH x 1","BUSH","JP111184",0,1,10,"CHASSIS-FRAME",null,null,5,"BA (Bar or Turned components)"]
[null,null,null,"JP111158/00.01;1-BRACKET COVER SIDE RH x 1","BRACKET COVER SIDE RH","JP111158",0.01,1,340,"CHASSIS-FRAME",null,null,4,"SM (Sheet Metal & Fabricated Parts)"]
[null,null,null,"JP113860/00;1-CONNECTOR FRAME LH x 1","CONNECTOR FRAME LH","JP113860",0,1,360,"CHASSIS-FRAME",null,null,4,"FO (Forging Route)"]
[null,null,null,"JP113861/00;1-CONNECTOR FRAME RH x 1","CONNECTOR FRAME RH","JP113861",0,1,370,"CHASSIS-FRAME",null,null,4,"FO (Forging Route)"]
[null,null,null,"JP111169/00.00;1-BRACKET ENGINE TOP REAR LH x 1","BRACKET ENGINE TOP REAR LH","JP111169",0,1,380,"CHASSIS-FRAME",null,null,4,"SM (Sheet Metal & Fabricated Parts)"]
[null,null,null,"JP111185/00.00;1-BRACKET ENGINE TOP REAR RH (Design) x 1","BRACKET ENGINE TOP REAR RH","JP111185",0,1,390,"CHASSIS-FRAME",null,null,4,"SM (Sheet Metal & Fabricated Parts)"]
[null,null,null,"KCMB1008/01;1-NUT WELD SQUARE x 1","NUT WELD SQUARE","KCMB1008",1,1,10,"CHASSIS-FRAME",null,null,5,"HW (Hardware includes nuts,washers)"]
[null,null,null,"JP111162/00.00;1-BRACKET ENGINE BOTTOM REAR LH (Design) x 1","BRACKET ENGINE BOTTOM REAR LH","JP111162",0,1,400,"CHASSIS-FRAME",null,null,4,"SM (Sheet Metal & Fabricated Parts)"]
[null,null,null,"KCMB1008/01;1-NUT WELD SQUARE x 1","NUT WELD SQUARE","KCMB1008",1,1,10,"CHASSIS-FRAME",null,null,5,"HW (Hardware includes nuts,washers)"]
[null,null,null,"JP111187/00.00;1-BUSH x 1","BUSH","JP111187",0,1,20,"CHASSIS-FRAME",null,null,5,"BA (Bar or Turned components)"]
[null,null,null,"JP111163/00.00;1-BRACKET ENGINE BOTTOM REAR RH x 1","BRACKET ENGINE BOTTOM REAR RH","JP111163",0,1,410,"CHASSIS-FRAME",null,null,4,"SM (Sheet Metal & Fabricated Parts)"]
[null,null,null,"JP111161/00.00;1-TUBE ARM SWING x 1","TUBE","JP111161",0,1,420,"CHASSIS-FRAME",null,null,4,"TU (Tubes)"]
[null,null,null,"JP113223/00.00;1-PLATE STAND SIDE (Design) x 1","PLATE STAND SIDE","JP113223",0,1,430,"CHASSIS-FRAME",null,null,4,"SM (Sheet Metal & Fabricated Parts)"]
[null,null,null,"JL113223/00;4-BUSH-ANCHOR PIN x 1","BUSH-ANCHOR PIN","JL113223",0,1,10,"CHASSIS-FRAME",null,null,5,"PL (Plastic Components)"]
[null,null,null,"JP111181/00.00;1-TUBE CROSS MIDDLE x 1","TUBE CROSS MIDDLE","JP111181",0,1,440,"CHASSIS-FRAME",null,null,4,"TU (Tubes)"]
[null,null,null,"JP111159/00.00;1-TUBE CROSS LOWER LH x 1","TUBE CROSS LOWER LH","JP111159",0,1,450,"CHASSIS-FRAME",null,null,4,"SM (Sheet Metal & Fabricated Parts)"]
[null,null,null,"JP111160/00.00;1-TUBE CROSS LOWER RH x 1","TUBE CROSS LOWER RH","JP111160",0,1,460,"CHASSIS-FRAME",null,null,4,"TU (Tubes)"]
[null,null,null,"JP111172/00.00;1-GUSSET REINFORCEMENT LOWER I x 1","GUSSET REINFORCEMENT LOWER I","JP111172",0,1,470,"CHASSIS-FRAME",null,null,4,"SM (Sheet Metal & Fabricated Parts)"]
[null,null,null,"JP111173/00.00;1-GUSSET REINFORCEMENT LOWER II x 1","GUSSET REINFORCEMENT LOWER II","JP111173",0,1,480,"CHASSIS-FRAME",null,null,4,"SM (Sheet Metal & Fabricated Parts)"]
[null,null,null,"JP111186/00.00;1-GUSSET REINFORCEMENT STAND SIDE x 1","GUSSET REINFORCEMENT STAND SIDE","JP111186",0,1,490,"CHASSIS-FRAME",null,null,4,"SM (Sheet Metal & Fabricated Parts)"]
[null,null,null,"JP111164/00.01;1-BRACKET RESERVOIR (Design) x 1","BRACKET RESERVOIR","JP111164",0.01,1,500,"CHASSIS-FRAME",null,null,4,"SM (Sheet Metal & Fabricated Parts)"]
[null,null,null,"KCMB0605/01;1-NUT WELD SQUARE x 1","NUT WELD SQUARE","KCMB0605",1,1,10,"CHASSIS-FRAME",null,null,5,"HW (Hardware includes nuts,washers)"]
[null,null,null,"JP111171/00.00;1-GUSSET REINFORCEMENT II x 1","GUSSET REINFORCEMENT II","JP111171",0,1,510,"CHASSIS-FRAME",null,null,4,"SM (Sheet Metal & Fabricated Parts)"]
[null,null,null,"JP111188/00.01;1-PLATE x 1","PLATE","JP111188",0.01,1,520,"CHASSIS-FRAME",null,null,4,"SM (Sheet Metal & Fabricated Parts)"]
[null,null,null,"KQBA0520/00;1-STUD WELDING PS-M5X0.8XL20XS10C x 1","STUD WELDING PS-M5X0.8XL20XS10C","KQBA0520",0,1,530,"CHASSIS-FRAME",null,null,4,"HW (Hardware includes nuts,washers)"]
[null,null,null,"JP111114/00.03;1-FRAME ASSEMBLY REAR (Design) x 1","FRAME ASSEMBLY REAR","JP111114",0.03,1,20,null,null,null,3,"SM (Sheet Metal & Fabricated Parts)"]
[null,null,null,"JP111121/00.04;1-FRAME REAR LH (Design) x 1","FRAME REAR LH","JP111121",0.04,1,10,"CHASSIS-FRAME FITTINGS",null,null,4,"CA + M/C (Casting and Machined)"]
[null,null,null,"JP111122/00.04;1-FRAME REAR RH (Design) x 1","FRAME REAR RH","JP111122",0.04,1,20,"CHASSIS-FRAME FITTINGS",null,null,4,"CA + M/C (Casting and Machined)"]
[null,null,null,"JP111165/00.00;1-BRACKET TANK REAR (Design) x 1","BRACKET TANK REAR","JP111165",0,1,30,"CHASSIS-FRAME FITTINGS",null,null,4,"SM (Sheet Metal & Fabricated Parts)"]
[null,null,null,"JP111182/00;1-SLEEVE x 1","SLEEVE","JP111182",0,1,10,"CHASSIS-FRAME",null,null,5,"BA (Bar or Turned components)"]
[null,null,null,"LBU00057/00;1-SCREW BUTTON HEAD-M6X1XL 20XBRT x 4","SCREW BUTTON HEAD M6X1","LBU00057",0,4,40,"CHASSIS-FRAME FITTINGS",null,null,4,"HW (Hardware includes nuts,washers)"]
[null,null,null,"TA171037/00.01;1-GROMMET x 2","GROMMET","TA171037",0.01,2,50,"CHASSIS-FRAME FITTINGS",null,null,4,"RU (Rubber Components)"]
[null,null,null,"JP171129/00.00;1-SLEEVE x 1","SLEEVE","JP171129",0,1,60,"CHASSIS-FRAME FITTINGS",null,null,4,"BA (Bar or Turned components)"]
[null,null,null,"JP111129/00.01;1-BRACKET MIDDLE (Design) x 1","BRACKET MIDDLE","JP111129",0.01,1,70,"CHASSIS-FRAME FITTINGS",null,null,4,"SM (Sheet Metal & Fabricated Parts)"]
[null,null,null,"KCMB0806/01;1-NUT WELD SQUARE x 6","NUT WELD SQUARE","KCMB0806",1,6,10,"CHASSIS-FRAME",null,null,5,"HW (Hardware includes nuts,washers)"]
[null,null,null,"KCMB0605/01;1-NUT WELD SQUARE x 2","NUT WELD SQUARE","KCMB0605",1,2,20,"CHASSIS-FRAME",null,null,5,"HW (Hardware includes nuts,washers)"]
[null,null,null,"DH161512/00;1-BUSH TANK MTG x 2","BUSH TANK MTG","DH161512",0,2,30,"CHASSIS-FRAME",null,null,5,"SM (Sheet Metal & Fabricated Parts)"]
[null,null,null,"JP111128/00.01;1-BRACKET REAR (Design) x 1","BRACKET REAR","JP111128",0.01,1,80,"CHASSIS-FRAME FITTINGS",null,null,4,"SM (Sheet Metal & Fabricated Parts)"]
[null,null,null,"39244811/00;1-PLAIN WASHER x 4","PLAIN WASHER",39244811,0,4,90,"CHASSIS-FRAME FITTINGS",null,null,4,"HW (Hardware includes nuts,washers)"]
[null,null,null,"KACA0818/01;1-Bolt-Socket-KAC ST-A Dia-08 L-18 x 8","BOLT SOCKET M8X1.25","KACA0818",1,8,100,"CHASSIS-FRAME FITTINGS",null,null,4,"HW (Hardware includes nuts,washers)"]
[null,null,null,"KAED0835/01;1-BOLT FLANGED M8X1.25 x 1","BOLT FLANGED M8X1.25","KAED0835",1,1,120,"CHASSIS-FRAME FITTINGS",null,null,4,"HW (Hardware includes nuts,washers)"]
[null,null,null,"KADA1030/01;1-BOLT FLANGED M10X1.25 x 2","BOLT FLANGED M10X1.25","KADA1030",1,2,30,"CHASSIS-FRAME FITTINGS",null,null,3,"HW (Hardware includes nuts,washers)"]
[null,null,null,"LAC00172/00;1-BOLT SOCKET M10X1.25 x 1","BOLT SOCKET M10X1.25","LAC00172",0,1,40,"CHASSIS-FRAME FITTINGS",null,null,3,"HW (Hardware includes nuts,washers)"]
[null,null,null,"KDBA1022/01;1-WASHER PLAIN x 1","WASHER_PLAIN","KDBA1022",1,1,50,"CHASSIS-FRAME FITTINGS",null,null,3,"HW (Hardware includes nuts,washers)"]
[null,null,null,"JP113877/00.00;1-BRACKET SENSOR LEAN ANGLE (UGDesignView) x 1","BRACKET SENSOR LEAN ANGLE","JP113877",0,1,60,null,null,null,3,"SM (Sheet Metal & Fabricated Parts)"]
[null,null,null,"KCMB0605/01;1-NUT WELD SQUARE","NUT WELD SQUARE","KCMB0605",1,null,10,null,null,null,4,"HW (Hardware includes nuts,washers)"]
[null,null,null,"KCMB0605/01;1-NUT WELD SQUARE","NUT WELD SQUARE","KCMB0605",1,null,20,null,null,null,4,"HW (Hardware includes nuts,washers)"]
[null,null,null,"KCMB0605/01;1-NUT WELD SQUARE","NUT WELD SQUARE","KCMB0605",1,null,30,null,null,null,4,"HW (Hardware includes nuts,washers)"]
[null,null,null,"KCMB0605/01;1-NUT WELD SQUARE","NUT WELD SQUARE","KCMB0605",1,null,40,null,null,null,4,"HW (Hardware includes nuts,washers)"]
[null,null,null,"KCMB0605/01;1-NUT WELD SQUARE","NUT WELD SQUARE","KCMB0605",1,null,50,null,null,null,4,"HW (Hardware includes nuts,washers)"]
[null,null,null,"JD113814/00;1-GROMMET SAI UNIT x 1","GROMMET SAI UNIT","JD113814",0,1,70,"CHASSIS-FRAME FITTINGS",null,null,3,"RU (Rubber Components)"]
[null,null,null,"DT181002/01;1-SLEEVE BATTERY CASE x 1","SLEEVE BATTERY CASE","DT181002",1,1,80,"CHASSIS-FRAME FITTINGS",null,null,3,"FO (Forging Route)"]
[null,null,null,"JP181291/01;1-GROMMET NUMBER PLATE MTG x 2","GROMMET NUMBER PLATE MTG","JP181291",1,2,90,"CHASSIS-FRAME FITTINGS",null,null,3,"RU (Rubber Components)"]
[null,null,null,"JP181280/00;1-COLLAR HEAD LAMP HOLDER MTG x 2","COLLAR HEAD LAMP HOLDER MTG","JP181280",0,2,100,"CHASSIS-FRAME FITTINGS",null,null,3,"BA (Bar or Turned components)"]
[null,null,null,"KADF0618/00;1-BOLT FLANGED M6X1 x 3","BOLT FLANGED M6X1","KADF0618",0,3,110,"CHASSIS-FRAME FITTINGS",null,null,3,"HW (Hardware includes nuts,washers)"]
[null,null,null,"JP113876/00.00;1-BRACKET HORN (Design) x 1","BRACKET HORN","JP113876",0,1,120,null,null,null,3,"SM (Sheet Metal & Fabricated Parts)"]
[null,null,null,"KCMB0806/01;1-NUT WELD SQUARE","NUT WELD SQUARE","KCMB0806",1,null,10,null,null,null,4,"HW (Hardware includes nuts,washers)"]
[null,null,null,"KADA0612/01;1-BOLT FLANGED M6X1 x 1","BOLT FLANGED M6X1","KADA0612",1,1,130,"CHASSIS-FRAME FITTINGS",null,null,3,"HW (Hardware includes nuts,washers)"]
[null,null,null,"JP111168/00.01;1-BRACKET COVER SIDE BOTTOM LH x 1","BRACKET COVER SIDE BOTTOM LH","JP111168",0.01,1,140,"CHASSIS-FRAME FITTINGS",null,null,3,"SM (Sheet Metal & Fabricated Parts)"]
[null,null,null,"LBU00056/00;1-SCREW BUTTON HEAD-M6X1XL 10XBRT x 1","SCREW BUTTON HEAD-M6X1XL 10XBRT","LBU00056",0,1,150,"CHASSIS-FRAME FITTINGS",null,null,3,"HW (Hardware includes nuts,washers)"]
[null,null,null,"JP113226/00.02;1-BRACKET HOLDER SWITCH STAND SIDE x 1","BRACKET HOLDER SWITCH STAND SIDE","JP113226",0.02,1,160,null,null,null,3,"SM (Sheet Metal & Fabricated Parts)"]
[null,null,null,"KACF0612/01;1-BOLT SOCKET M6X1 x 2","BOLT SOCKET M6X1","KACF0612",1,2,170,null,null,null,3,"HW (Hardware includes nuts,washers)"]
[null,null,null,"LZE00009/00;1-SEALANT -LOCTITE 620 (Design) x 2","SEALANT -LOCTITE 620","LZE00009",0,2,180,null,null,null,3,"HW1 (Oil,Grease,Coolant,Sealant)"]
[null,null,null,"JP113412/00.02;1-INSTALL MOUNT ENGINE (Design) x 1","INSTALL MOUNT ENGINE","JP113412",0.02,1,20,null,null,null,2,"AS (Assembly,Sub-Assy)"]
[null,null,null,"JP113409/00.05;1-STAY HANGER LH x 1","STAY HANGER LH","JP113409",0.05,1,10,"CHASSIS-ENGINE MOUNTING",null,null,3,"CA + M/C (Casting and Machined)"]
[null,null,null,"JP113410/00.04;1-STAY HANGER RH x 1","STAY HANGER RH","JP113410",0.04,1,20,"CHASSIS-ENGINE MOUNTING",null,null,3,"CA + M/C (Casting and Machined)"]
[null,null,null,"JP113413/00.00;1-BRACKET ENGINE FRONT LH (UGDesignView) x 1","BRACKET ENGINE FRONT LH","JP113413",0,1,30,"CHASSIS-ENGINE MOUNTING",null,null,3,"SM (Sheet Metal & Fabricated Parts)"]
[null,null,null,"KCMB0806/01;1-NUT WELD SQUARE","NUT WELD SQUARE","KCMB0806",1,null,10,null,null,null,4,"HW (Hardware includes nuts,washers)"]
[null,null,null,"KCMB0806/01;1-NUT WELD SQUARE","NUT WELD SQUARE","KCMB0806",1,null,20,null,null,null,4,"HW (Hardware includes nuts,washers)"]
[null,null,null,"<> x 1",null,null,null,1,40,"CHASSIS-ENGINE MOUNTING",null,null,3]
[null,null,null,"KACA0820/01;1-Bolt-Socket-KAC ST-A Dia-08 L-20 x 4","BOLT SOCKET M8X1.25","KACA0820",1,4,50,"CHASSIS-ENGINE MOUNTING",null,null,3,"HW (Hardware includes nuts,washers)"]
[null,null,null,"JP113865/00.02;1-BRACKET ASSEMBLY RADIATOR LH x 1","BRACKET ASSEMBLY RADIATOR LH","JP113865",0.02,1,60,"CHASSIS-ENGINE MOUNTING",null,null,3,"AS (Assembly,Sub-Assy)"]
[null,null,null,"JP113866/00.02;1-BRACKET ASSEMBLY RADIATOR RH x 1","BRACKET ASSEMBLY RADIATOR RH","JP113866",0.02,1,70,"CHASSIS-ENGINE MOUNTING",null,null,3,"AS (Assembly,Sub-Assy)"]
[null,null,null,"KACA0614/01;1-BOLT SOCKET x 4","BOLT SOCKET M6X1","KACA0614",1,4,80,"CHASSIS-ENGINE MOUNTING",null,null,3,"HW (Hardware includes nuts,washers)"]
[null,null,null,"KACA0825/01;1-Bolt-Socket-KAC ST-A Dia-08 L-25 x 4","BOLT SOCKET M8X1.25","KACA0825",1,4,90,"CHASSIS-ENGINE MOUNTING",null,null,3,"HW (Hardware includes nuts,washers)"]
[null,null,null,"LAD00246/02;1-BOLT FLANGED M10X1.25 x 1","BOLT FLANGED M10X1.25","LAD00246",2,1,100,"CHASSIS-ENGINE MOUNTING",null,null,3,"HW (Hardware includes nuts,washers)"]
[null,null,null,"KCGD1010/01;1-NUT HEX FLANGED x 1","NUT HEX FLANGED","KCGD1010",1,1,110,"CHASSIS-ENGINE MOUNTING",null,null,3,"HW (Hardware includes nuts,washers)"]
[null,null,null,"LAD00006/01;1-BOLT FL-M10X1.25XL110XCL10.9XBRIGHT x 2","BOLT FL-M10X1.25XL110XCL10.9XBRIGHT","LAD00006",1,2,120,"CHASSIS-ENGINE MOUNTING",null,null,3,"HW (Hardware includes nuts,washers)"]
[null,null,null,"JP171089/00.01;1-ASSEMBLY SCHEME SYSTEM FUEL (Design) x 1","ASSEMBLY SCHEME SYSTEM FUEL","JP171089",0.01,1,20,null,null,null,1,"AS (Assembly,Sub-Assy)"]
[null,null,null,"JP171090/00.01;1-INSTALL TANK FUEL (Design) x 1","INSTALL TANK FUEL","JP171090",0.01,1,10,"VEHICLE-SCHEME DRAWING",null,null,2,"AS (Assembly,Sub-Assy)"]
[null,null,null,"JP171091/00.08;1-TANK ASSEMBLY FUEL (Design) x 1","TANK ASSEMBLY FUEL","JP171091",0.08,1,10,"FUEL SYSTEM-FUEL TANK",null,null,3,"SM (Sheet Metal & Fabricated Parts)"]
[null,null,null,"JP171092/00.13;1-TANK UPPER LH (Design) x 1","TANK UPPER LH","JP171092",0.13,1,10,"FUEL SYSTEM-FUEL TANK",null,null,4,"SM (Sheet Metal & Fabricated Parts)"]
[null,null,null,"JP171093/00.05;1-TANK UPPER RH x 1","TANK UPPER RH","JP171093",0.05,1,20,"FUEL SYSTEM-FUEL TANK",null,null,4,"SM (Sheet Metal & Fabricated Parts)"]
[null,null,null,"JP171094/00.10;1-TANK LOWER (Design) x 1","TANK LOWER","JP171094",0.1,1,30,"FUEL SYSTEM-FUEL TANK",null,null,4,"SM (Sheet Metal & Fabricated Parts)"]
[null,null,null,"JP171105/00.00;1-CUP ASSEMBLY (Design) x 1","CUP ASSEMBLY","JP171105",0,1,40,"FUEL SYSTEM-FUEL TANK",null,null,4,"SM (Sheet Metal & Fabricated Parts)"]
[null,null,null,"JP171107/00.00;1-BAFFLE x 1","BAFFLE","JP171107",0,1,10,null,null,null,5,"SM (Sheet Metal & Fabricated Parts)"]
[null,null,null,"JP171106/00.00;1-CUP (Design) x 1","CUP","JP171106",0,1,20,null,null,null,5,"SM (Sheet Metal & Fabricated Parts)"]
[null,null,null,"JY171181/00;1-NUT WELD M5X0.8 x 4","NUT WELD M5X0.8","JY171181",0,4,10,"FUEL SYSTEM-FUEL TANK",null,null,6,"HW (Hardware includes nuts,washers)"]
[null,null,null,"JP171061/03;1-BUSH CUP CAP EVAP x 1","BUSH CUP CAP EVAP","JP171061",3,1,20,"FUEL SYSTEM-FUEL TANK",null,null,6,"BA (Bar or Turned components)"]
[null,null,null,"JP171125/00.00;1-PIPE EVAP x 1","PIPE FUEL","JP171125",0,1,30,null,null,null,5,"TU (Tubes)"]
[null,null,null,"JP171124/00.00;1-PIPE DRAIN (UGDesignView) x 1","PIPE DRAIN","JP171124",0,1,40,null,null,null,5,"TU (Tubes)"]
[null,null,null,"JP171108/00.00;1-REINFORCEMENT BRACKET TANK FRONT x 1","REINFORCEMENT BRACKET TANK FRONT","JP171108",0,1,50,"FUEL SYSTEM-FUEL TANK",null,null,4,"SM (Sheet Metal & Fabricated Parts)"]
[null,null,null,"JP171110/00.01;1-BRACKET TANK FRONT (UGDesignView) x 1","BRACKET TANK FRONT","JP171110",0.01,1,60,"FUEL SYSTEM-FUEL TANK",null,null,4,"SM (Sheet Metal & Fabricated Parts)"]
[null,null,null,"JP171109/00.00;1-PLATE BRACKET SPOILER TANK FR LH (UGDesignView) x 1","PLATE BRACKET SPOILER TANK FR LH","JP171109",0,1,70,"FUEL SYSTEM-FUEL TANK",null,null,4,"SM (Sheet Metal & Fabricated Parts)"]
[null,null,null,"JP171117/00.00;1-BRACKET SPOILER TANK FRONT RH (Design) x 1","BRACKET SPOILER TANK FRONT LH","JP171117",0,1,80,"FUEL SYSTEM-FUEL TANK",null,null,4,"SM (Sheet Metal & Fabricated Parts)"]
[null,null,null,"KCMB0605/01;1-NUT WELD SQUARE x 2","NUT WELD SQUARE","KCMB0605",1,2,10,"CHASSIS-FRAME",null,null,5,"HW (Hardware includes nuts,washers)"]
[null,null,null,"JP171111/00.00;1-PLATE BRACKET SPOILER TANK FR RH x 1","PLATE BRACKET SPOILER TANK FR RH","JP171111",0,1,90,"FUEL SYSTEM-FUEL TANK",null,null,4,"SM (Sheet Metal & Fabricated Parts)"]
[null,null,null,"JP171118/00.00;1-BRACKET SPOILER TANK FRONT LH (UGDesignView) x 1","BRACKET SPOILER TANK FRONT LH","JP171118",0,1,100,"FUEL SYSTEM-FUEL TANK",null,null,4,"SM (Sheet Metal & Fabricated Parts)"]
[null,null,null,"KCMB0605/01;1-NUT WELD SQUARE","NUT WELD SQUARE","KCMB0605",1,null,10,null,null,null,5,"HW (Hardware includes nuts,washers)"]
[null,null,null,"KCMB0605/01;1-NUT WELD SQUARE","NUT WELD SQUARE","KCMB0605",1,null,20,null,null,null,5,"HW (Hardware includes nuts,washers)"]
[null,null,null,"JP171112/00.01;1-PLATE SPOILER TANK LOWER FR LH x 1","PLATE SPOILER TANK LOWER FR LH","JP171112",0.01,1,110,"FUEL SYSTEM-FUEL TANK",null,null,4,"SM (Sheet Metal & Fabricated Parts)"]
[null,null,null,"JP171119/00.00;1-BRACKET SPOILER TANK LOWER FR LH (Design) x 1","BRACKET SPOILER TANK LOWER FR LH","JP171119",0,1,120,"FUEL SYSTEM-FUEL TANK",null,null,4,"SM (Sheet Metal & Fabricated Parts)"]
[null,null,null,"KCMB0605/01;1-NUT WELD SQUARE x 1","NUT WELD SQUARE","KCMB0605",1,1,10,"FUEL SYSTEM-FUEL TANK",null,null,5,"HW (Hardware includes nuts,washers)"]
[null,null,null,"JP171131/00.00;1-BRACKET DAMPER LH x 1","BRACKET DAMPER LH","JP171131",0,1,130,"FUEL SYSTEM-FUEL TANK",null,null,4,"SM (Sheet Metal & Fabricated Parts)"]
[null,null,null,"JP171113/00.01;1-PLATE SPOILER TANK LOWER FR RH x 1","PLATE SPOILER TANK LOWER FR RH","JP171113",0.01,1,140,"FUEL SYSTEM-FUEL TANK",null,null,4,"SM (Sheet Metal & Fabricated Parts)"]
[null,null,null,"JP171120/00.00;1-BRACKET SPOILER TANK LOWER FR RH (UGDesignView) x 1","BRACKET SPOILER TANK LOWER FR RH","JP171120",0,1,150,"FUEL SYSTEM-FUEL TANK",null,null,4,"SM (Sheet Metal & Fabricated Parts)"]
[null,null,null,"KCMB0605/01;1-NUT WELD SQUARE","NUT WELD SQUARE","KCMB0605",1,null,10,null,null,null,5,"HW (Hardware includes nuts,washers)"]
[null,null,null,"JP171132/00.00;1-BRACKET DAMPER RH x 1","BRACKET DAMPER RH","JP171132",0,1,160,"FUEL SYSTEM-FUEL TANK",null,null,4,"SM (Sheet Metal & Fabricated Parts)"]
[null,null,null,"JP171115/00.00;1-PLATE REINFORCEMENT LOWER REAR x 1","PLATE REINFORCEMENT LOWER REAR","JP171115",0,1,170,"FUEL SYSTEM-FUEL TANK",null,null,4,"SM (Sheet Metal & Fabricated Parts)"]
[null,null,null,"JP171121/00.01;1-BRACKET SPOILER TANK LOWER RR LH (Design) x 1","BRACKET SPOILER TANK LOWER RR LH","JP171121",0.01,1,180,"FUEL SYSTEM-FUEL TANK",null,null,4,"SM (Sheet Metal & Fabricated Parts)"]
[null,null,null,"KCMB0605/01;1-NUT WELD SQUARE x 1","NUT WELD SQUARE","KCMB0605",1,1,10,"CHASSIS-FRAME",null,null,5,"HW (Hardware includes nuts,washers)"]
[null,null,null,"JP171122/00.01;1-BRACKET SPOILER TANK LOWER RR RH (Design) x 1","BRACKET SPOILER TANK LOWER RR RH","JP171122",0.01,1,190,"FUEL SYSTEM-FUEL TANK",null,null,4,"SM (Sheet Metal & Fabricated Parts)"]
[null,null,null,"KCMB0605/01;1-NUT WELD SQUARE x 1","NUT WELD SQUARE","KCMB0605",1,1,10,"CHASSIS-FRAME",null,null,5,"HW (Hardware includes nuts,washers)"]
[null,null,null,"JP171116/00.00;1-BRACKET TANK REAR (Design) x 1","BRACKET TANK REAR","JP171116",0,1,200,"FUEL SYSTEM-FUEL TANK",null,null,4,"SM (Sheet Metal & Fabricated Parts)"]
[null,null,null,"KCMB0605/01;1-NUT WELD SQUARE x 1","NUT WELD SQUARE","KCMB0605",1,1,10,"CHASSIS-FRAME",null,null,5,"HW (Hardware includes nuts,washers)"]
[null,null,null,"JP171123/00.00;1-LATCH SPOILER TANK (UGDesignView) x 4","LATCH SPOILER TANK","JP171123",0,4,210,"FUEL SYSTEM-FUEL TANK",null,null,4,"SM (Sheet Metal & Fabricated Parts)"]
[null,null,null,"JP171128/00.01;1-REINFORCEMENT BRACKET CANISTER (Design) x 1","REINFORCEMENT BRACKET CANISTER","JP171128",0.01,1,220,"FUEL SYSTEM-FUEL TANK",null,null,4,"SM (Sheet Metal & Fabricated Parts)"]
[null,null,null,"JP171114/00.03;1-BRACKET CANISTER (Design) x 1","BRACKET CANISTER","JP171114",0.03,1,230,"FUEL SYSTEM-FUEL TANK",null,null,4,"SM (Sheet Metal & Fabricated Parts)"]
[null,null,null,"JZ171128/01;1-NUT DOMED CAP FLANGED WELD M6X1 x 6","NUT DOMED CAP FLANGED WELD M6X1","JZ171128",1,6,240,"FUEL SYSTEM-FUEL TANK",null,null,4,"HW (Hardware includes nuts,washers)"]
[null,null,null,"JY171179/01;1-REINFORCEMENT PUMP FUEL x 1","REINFORCEMENT PUMP FUEL","JY171179",1,1,250,"FUEL SYSTEM-FUEL TANK",null,null,4,"SM (Sheet Metal & Fabricated Parts)"]
[null,null,null,"JP171819/00.03;1-PUMP FUEL x 1","PUMP FUEL","JP171819",0.03,1,20,"FUEL SYSTEM-FUEL TANK",null,null,3,"EE (Electrical, Electronics)"]
[null,null,null,"JP171820/00.01;1-PLATE PUMP FUEL x 1","PLATE PUMP FUEL","JP171820",0.01,1,30,"FUEL SYSTEM-FUEL TANK",null,null,3,"SM (Sheet Metal & Fabricated Parts)"]
[null,null,null,"LAD00154/02;1-BOLT FLANGE-M6X1XL 12.8XBRTXSTEP x 6","BOLT FLANGE-M6X1XL 12.8XBRTXSTEP","LAD00154",2,6,40,"FUEL SYSTEM-FUEL TANK",null,null,3,"HW (Hardware includes nuts,washers)"]
[null,null,null,"JU171048/01;1-CONNECTOR QUICK x 1","CONNECTOR QUICK","JU171048",1,1,50,"FUEL SYSTEM-FUEL TANK",null,null,3,"PL (Plastic Components)"]
[null,null,null,"JP171030/00;1-GROMMET LATCH MTG BKT x 4","GROMMET LATCH MTG BKT","JP171030",0,4,60,"FUEL SYSTEM-FUEL TANK",null,null,3,"RU (Rubber Components)"]
[null,null,null,"JP171618/00.01;1-PIPE FUEL x 1","PIPE FUEL","JP171618",0.01,1,70,"FUEL SYSTEM-FUEL TANK",null,null,3,"RU (Rubber Components)"]
[null,null,null,"JP171102/00.01;1-PIPE DRAIN x 1","PIPE DRAIN","JP171102",0.01,1,80,"FUEL SYSTEM-FUEL TANK",null,null,3,"RU (Rubber Components)"]
[null,null,null,"DT171822/00;2-CLAMP QUICK CONNECTOR END PERMANENT x 1","CLAMP QUICK CONNECTOR END PERMANENT","DT171822",0,1,90,"FUEL SYSTEM-FUEL TANK",null,null,3,"HW2 (Band Clamp,Screw Clamp)"]
[null,null,null,"JY171090/01;2-SPRING BAND CLAMP 13X12 (Design) x 1","CLAMP","JY171090",1,1,100,"FUEL SYSTEM-FUEL TANK",null,null,3,"HW (Hardware includes nuts,washers)"]
[null,null,null,"JP181766/00.00;1-PIN QUICK RELEASE x 2","PIN QUICK RELEASE","JP181766",0,2,110,"FUEL SYSTEM-FUEL TANK",null,null,3,"BA (Bar or Turned components)"]
[null,null,null,"KADD0690/00;1-BOLT FLANGED M6X1 x 1","BOLT FLANGED M6X1","KADD0690",0,1,120,"FUEL SYSTEM-FUEL TANK",null,null,3,"HW (Hardware includes nuts,washers)"]
[null,null,null,"JP171126/00.01;1-BRACKET COVER TANK FRONT LH (UGDesignView) x 1","BRACKET COVER TANK FRONT LH","JP171126",0.01,1,130,"FUEL SYSTEM-FUEL TANK",null,null,3,"SM (Sheet Metal & Fabricated Parts)"]
[null,null,null,"KCMB0605/01;1-NUT WELD SQUARE","NUT WELD SQUARE","KCMB0605",1,null,30,null,null,null,4,"HW (Hardware includes nuts,washers)"]
[null,null,null,"KCMB0605/01;1-NUT WELD SQUARE","NUT WELD SQUARE","KCMB0605",1,null,40,null,null,null,4,"HW (Hardware includes nuts,washers)"]
[null,null,null,"JP171127/00.01;1-BRACKET COVER TANK FRONT RH (UGDesignView) x 1","BRACKET COVER TANK FRONT RH","JP171127",0.01,1,140,"FUEL SYSTEM-FUEL TANK",null,null,3,"SM (Sheet Metal & Fabricated Parts)"]
[null,null,null,"KCMB0605/01;1-NUT WELD SQUARE","NUT WELD SQUARE","KCMB0605",1,null,10,null,null,null,4,"HW (Hardware includes nuts,washers)"]
[null,null,null,"KCMB0605/01;1-NUT WELD SQUARE","NUT WELD SQUARE","KCMB0605",1,null,20,null,null,null,4,"HW (Hardware includes nuts,washers)"]
[null,null,null,"KADA0612/01;1-BOLT FLANGED M6X1 x 4","BOLT FLANGED M6X1","KADA0612",1,4,150,"FUEL SYSTEM-FUEL TANK",null,null,3,"HW (Hardware includes nuts,washers)"]
[null,null,null,"JP171053/01;1-SLEEVE EXPANSION TANK MTG x 2","SLEEVE EXPANSION TANK MTG","JP171053",1,2,160,"FUEL SYSTEM-FUEL TANK",null,null,3,"BA (Bar or Turned components)"]
[null,null,null,"JP171133/00.00;1-GROMMET x 2","GROMMET","JP171133",0,2,170,null,null,null,3,"RU (Rubber Components)"]
[null,null,null,"JP191007/01;1-SEAT DAMPER REAR (Design) x 2","DAMPER","JP191007",1,2,180,null,null,null,3,"RU (Rubber Components)"]
[null,null,null,"JL171038/01;1-BEADING TANK LH x 2","BEADING TANK LH","JL171038",1,2,190,"FUEL SYSTEM-FUEL TANK",null,null,3,"RU (Rubber Components)"]
[null,null,null,"AP161074/00;1-BEADING LOWER GRILL CENTRAL x 1","BEADING LOWER GRILL CENTRAL","AP161074",0,1,200,"FUEL SYSTEM-FUEL TANK",null,null,3,"RU (Rubber Components)"]
[null,null,null,"JR113803/00.00;1-BOLT SPECIAL M5 X 14L x 4","SCREW BUTTON HEAD STEP M5X0.8","JR113803",0,4,210,null,null,null,3,"HW (Hardware includes nuts,washers)"]
[null,null,null,"JP171617/00.01;1-INSTALL SYSTEM EVAP (Design) x 1","INSTALL SYSTEM EVAP","JP171617",0.01,1,20,"VEHICLE-SCHEME DRAWING",null,null,2,"AS (Assembly,Sub-Assy)"]
[null,null,null,"JY171077/04;1-CANISTER x 1","CANISTER","JY171077",4,1,10,"FUEL SYSTEM-FUEL CAP & EVAPORATION CONTROL",null,null,3,"PR (Proprietary Components)"]
[null,null,null,"JP171619/00.02;1-PIPE EVAP x 1","PIPE FUEL","JP171619",0.02,1,30,"FUEL SYSTEM-FUEL CAP & EVAPORATION CONTROL",null,null,3,"RU (Rubber Components)"]
[null,null,null,"JY113842/01;1-CONNECTOR Y SHAPE x 1","JOINT","JY113842",1,1,40,"FUEL SYSTEM-FUEL CAP & EVAPORATION CONTROL",null,null,3,"PL (Plastic Components)"]
[null,null,null,"JY171824/09;1-PIPE CONNECTOR-PLUG x 1","PIPE CONNECTOR-PLUG","JY171824",9,1,50,"FUEL SYSTEM-FUEL CAP & EVAPORATION CONTROL",null,null,3,"RU (Rubber Components)"]
[null,null,null,"JY171825/02;1-PLUG FUEL DRAIN x 1","PLUG FUEL DRAIN","JY171825",2,1,60,"FUEL SYSTEM-FUEL CAP & EVAPORATION CONTROL",null,null,3,"PL (Plastic Components)"]
[null,null,null,"JP171622/00.00;1-PIPE EVAP x 1","PIPE FUEL","JP171622",0,1,70,"FUEL SYSTEM-FUEL CAP & EVAPORATION CONTROL",null,null,3,"RU (Rubber Components)"]
[null,null,null,"JP171620/00.02;1-PIPE EVAP x 1","PIPE FUEL","JP171620",0.02,1,80,"FUEL SYSTEM-FUEL CAP & EVAPORATION CONTROL",null,null,3,"RU (Rubber Components)"]
[null,null,null,"JP171621/00.01;1-PIPE DRAIN x 1","PIPE DRAIN","JP171621",0.01,1,90,"FUEL SYSTEM-FUEL CAP & EVAPORATION CONTROL",null,null,3,"RU (Rubber Components)"]
[null,null,null,"JG171086/00;2-CONNECTOR TUBE EVAP x 1","CONNECTOR TUBE EVAP","JG171086",0,1,100,"FUEL SYSTEM-FUEL CAP & EVAPORATION CONTROL",null,null,3,"PL (Plastic Components)"]
[null,null,null,"JP171623/00.00;1-PIPE EVAP x 1","PIPE FUEL","JP171623",0,1,110,"FUEL SYSTEM-FUEL CAP & EVAPORATION CONTROL",null,null,3,"RU (Rubber Components)"]
[null,null,null,"JU171606/01;1-VALVE PURGE x 1","VALVE PURGE","JU171606",1,1,120,"FUEL SYSTEM-FUEL CAP & EVAPORATION CONTROL",null,null,3,"EE (Electrical, Electronics)"]
[null,null,null,"JP171103/00.02;1-PIPE FUEL x 1","PIPE FUEL","JP171103",0.02,1,130,"FUEL SYSTEM-FUEL CAP & EVAPORATION CONTROL",null,null,3,"RU (Rubber Components)"]
[null,null,null,"JY171069/01;2-SPRING BAND CLAMP 15X10 (Design) x 1","SPRING BAND CLAMP 15X10","JY171069",1,1,140,"FUEL SYSTEM-FUEL CAP & EVAPORATION CONTROL",null,null,3,"HW (Hardware includes nuts,washers)"]
[null,null,null,"JY171090/01;2-SPRING BAND CLAMP 13X12 (Design) x 5","CLAMP","JY171090",1,5,150,"FUEL SYSTEM-FUEL CAP & EVAPORATION CONTROL",null,null,3,"HW (Hardware includes nuts,washers)"]
[null,null,null,"JG171029/01;1-CLAMP x 3","CLAMP","JG171029",1,3,160,"FUEL SYSTEM-FUEL CAP & EVAPORATION CONTROL",null,null,3,"HW2 (Band Clamp,Screw Clamp)"]
[null,null,null,"JL171101/02;1-CLAMP BAND SPRING x 4","CLAMP BAND SPRING","JL171101",2,4,170,"FUEL SYSTEM-FUEL CAP & EVAPORATION CONTROL",null,null,3,"HW2 (Band Clamp,Screw Clamp)"]
[null,null,null,"JP113880/00.00;1-STRAP CANISTER BOTTOM x 1","STRAP CANISTER BOTTOM","JP113880",0,1,180,"FUEL SYSTEM-FUEL TANK",null,null,3,"RU (Rubber Components)"]
[null,null,null,"JP113879/00.00;1-STRAP CANISTER TOP (Design) x 1","STRAP CANISTER TOP","JP113879",0,1,190,null,null,null,3,"RU (Rubber Components)"]
[null,null,null,"JP181723/00.01;1-ASSEMBLY SCHEME TRIM (Design) x 1","ASSEMBLY SCHEME TRIM","JP181723",0.01,1,30,null,null,null,1,"AS (Assembly,Sub-Assy)"]
[null,null,null,"JP181726/00.01;1-INSTALL FAIRING FRONT (Design) x 1","INSTALL FAIRING FRONT","JP181726",0.01,1,10,"PANEL AND TRIM-PANEL",null,null,2,"AS (Assembly,Sub-Assy)"]
[null,null,null,"JP401042/00.02;1-LAMP HEAD x 1","LAMP HEAD","JP401042",0.02,1,10,"PANEL AND TRIM-COVER",null,null,3,"EE (Electrical, Electronics)"]
[null,null,null,"JP401045/00.02;1-LAMP POSITION LH x 1","LAMP POSITION LH","JP401045",0.02,1,20,"PANEL AND TRIM-COVER",null,null,3,"EE (Electrical, Electronics)"]
[null,null,null,"JP401048/00.01;1-LAMP POSITION RH x 1","LAMP POSITION RH","JP401048",0.01,1,30,"PANEL AND TRIM-COVER",null,null,3,"EE (Electrical, Electronics)"]
[null,null,null,"JP181739/00.01;1-HOLDER LAMP HEAD (Design) x 1","HOLDER LAMP HEAD","JP181739",0.01,1,40,"PANEL AND TRIM-COVER",null,null,3,"PL (Plastic Components)"]
[null,null,null,"JG171014/03;1-INSERT (Design) x 2","INSERT","JG171014",3,2,10,"PANEL AND TRIM-PANEL",null,null,4,"BA (Bar or Turned components)"]
[null,null,null,"JP181280/00;1-COLLAR HEAD LAMP HOLDER MTG x 6","COLLAR HEAD LAMP HOLDER MTG","JP181280",0,6,50,"PANEL AND TRIM-COVER",null,null,3,"BA (Bar or Turned components)"]
[null,null,null,"JP181279/01;1-GROMMET FRONT FAIRING ASSY x 6","GROMMET FRONT FAIRING ASSY","JP181279",1,6,60,"PANEL AND TRIM-COVER",null,null,3,"RU (Rubber Components)"]
[null,null,null,"KBBA0510/00;1-SCREW PAN CROSS M5X0.8 x 4","SCREW PAN CROSS M5X0.8","KBBA0510",0,4,70,"PANEL AND TRIM-COVER",null,null,3,"HW (Hardware includes nuts,washers)"]
[null,null,null,"39275511/00;1-WASHER PLAIN x 4","WASHER PLAIN",39275511,0,4,80,"PANEL AND TRIM-COVER",null,null,3]
[null,null,null,"JP181765/00.00;1-PLATE HOLDER LAMP HEAD (UGDesignView) x 1","PLATE HOLDER LAMP HEAD","JP181765",0,1,90,"PANEL AND TRIM-PANEL",null,null,3,"PL (Plastic Components)"]
[null,null,null,"KCEA0605/01;2-NUT DOME CAP SINGLE PIECE-M6 X 1 x 1","NUT DOME CAP SINGLE PIECE-M6 X 1","KCEA0605",1,1,100,"PANEL AND TRIM-COVER",null,null,3,"HW (Hardware includes nuts,washers)"]
[null,null,null,"LBU00113/00;1-SCREW BUTTON HEAD STEP M5X0.8 (Design) x 2","SCREW BUTTON HEAD STEP M5X0.8","LBU00113",0,2,110,"PANEL AND TRIM-PANEL",null,null,3,"HW (Hardware includes nuts,washers)"]
[null,null,null,"LBU00134/03;1-SCREW BUTTON HEAD M6X1 (Design) x 6","SCREW BUTTON HEAD M6X1","LBU00134",3,6,120,"PANEL AND TRIM-COVER",null,null,3,"HW (Hardware includes nuts,washers)"]
[null,null,null,"JP181728/00.01;1-INSTALL COVER TANK (Design) x 1","INSTALL COVER TANK","JP181728",0.01,1,20,"PANEL AND TRIM-PANEL",null,null,2,"AS (Assembly,Sub-Assy)"]
[null,null,null,"JP181701/00;1-TANK SPOILER INNER LH (Design) x 1","TANK SPOILER INNER LH","JP181701",0,1,10,"PANEL AND TRIM-COVER",null,null,3,"PL (Plastic Components)"]
[null,null,null,"JP181700/00;1-TANK SPOILER INNER RH (UGDesignView) x 1","TANK SPOILER INNER RH","JP181700",0,1,20,"PANEL AND TRIM-COVER",null,null,3,"PL (Plastic Components)"]
[null,null,null,"JP181731/00;1-SPOILER TANK LH (Design) x 1","SPOILER TANK LH","JP181731",0,1,30,"PANEL AND TRIM-COVER",null,null,3,"PL (Plastic Components)"]
[null,null,null,"JP181732/00;1-SPOILER TANK RH (Design) x 1","SPOILER TANK RH","JP181732",0,1,40,"PANEL AND TRIM-COVER",null,null,3,"PL (Plastic Components)"]
[null,null,null,"JP181743/00;1-COVER CAP (Design) x 1","COVER CAP","JP181743",0,1,50,"PANEL AND TRIM-COVER",null,null,3,"PL (Plastic Components)"]
[null,null,null,"JP181741/00;1-TANK SPOILER BOTTOM LH (Design) x 1","TANK SPOILER BOTTOM LH","JP181741",0,1,60,"PANEL AND TRIM-COVER",null,null,3,"PL (Plastic Components)"]
[null,null,null,"JP181742/00;1-TANK SPOILER BOTTOM RH (Design) x 1","TANK SPOILER BOTTOM RH","JP181742",0,1,70,"PANEL AND TRIM-COVER",null,null,3,"PL (Plastic Components)"]
[null,null,null,"JY113821/04;1-SCREW BUTTON HEAD-M6X1XL12XBLACK x 6","SCREW BUTTON HEAD-M6X1XL12XBLACK","JY113821",4,6,80,"PANEL AND TRIM-COVER",null,null,3,"HW (Hardware includes nuts,washers)"]
[null,null,null,"DJ181065/03;1-CLIP NUT M6 (Design) x 8","CLIP NUT M6","DJ181065",3,8,90,"PANEL AND TRIM-COVER",null,null,3,"EE (Electrical, Electronics)"]
[null,null,null,"KCNB0605/00;1-NUT WELD HEX x 1","NUT WELD HEX","KCNB0605",0,1,10,"PANEL AND TRIM-COVER",null,null,4,"HW (Hardware includes nuts,washers)"]
[null,null,null,"JP181279/01;1-GROMMET FRONT FAIRING ASSY x 8","GROMMET FRONT FAIRING ASSY","JP181279",1,8,120,"PANEL AND TRIM-COVER",null,null,3,"RU (Rubber Components)"]
[null,null,null,"LAC00008/03;1-SCREW BUTTON HEAD-M6X1XL20XBLACK x 8","SCREW BUTTON HEAD-M6X1","LAC00008",3,8,130,"PANEL AND TRIM-COVER",null,null,3,"HW (Hardware includes nuts,washers)"]
[null,null,null,"JG171031/01;1-CLIP NUT M5 x 6","NUT CLIP M5","JG171031",1,6,140,"PANEL AND TRIM-COVER",null,null,3,"SM (Sheet Metal & Fabricated Parts)"]
[null,null,null,"JL171025/01;1-SLEEVE STRUCTURE MTG x 2","SLEEVE STRUCTURE MTG","JL171025",1,2,150,"PANEL AND TRIM-COVER",null,null,3,"PR (Proprietary Components)"]
[null,null,null,"LBU00091/01;1-SCREW BUTN HD-M5X0.8XL10XBLKXSTEP (Design) x 2","SCREW BUTN HD-M5X0.8XL10XBLKXSTEP","LBU00091",1,2,160,"PANEL AND TRIM-COVER",null,null,3,"HW (Hardware includes nuts,washers)"]
[null,null,null,"LAC00188/00;1-BOLT SOCKET STEP M6X1 (Design) x 2","BOLT SOCKET STEP M6X1","LAC00188",0,2,170,"PANEL AND TRIM-COVER",null,null,3,"HW (Hardware includes nuts,washers)"]
[null,null,null,"JY113926/00;1-GROMMET x 2","GROMMET","JY113926",0,2,180,"PANEL AND TRIM-COVER",null,null,3,"RU (Rubber Components)"]
[null,null,null,"JR181717/02;1-BEADING x 4","BEADING","JR181717",2,4,190,null,null,null,3,"RU (Rubber Components)"]
[null,null,null,"JP181280/00;1-COLLAR HEAD LAMP HOLDER MTG x 8","COLLAR HEAD LAMP HOLDER MTG","JP181280",0,8,200,null,null,null,3,"BA (Bar or Turned components)"]
[null,null,null,"LBU00015/00;1-SCREW -TRUSS-M5X0.8XL30XTAPEREND x 2","SCREW -TRUSS-M5X0.8XL30XTAPEREND","LBU00015",0,2,210,null,null,null,3,"HW (Hardware includes nuts,washers)"]
[null,null,null,"LDB00074/00;1-WASHER PLAIN-ID5.5XOD14XT0.8XBLK x 2","WASHER PLAIN","LDB00074",0,2,220,null,null,null,3,"HW (Hardware includes nuts,washers)"]
[null,null,null,"LBU00065/00;1-SCREW TRUSS-M5X0.8XL14XCL4.8XBLK x 2","SCREW TRUSS-M5X0.8XL14XCL4.8XBLK","LBU00065",0,2,230,null,null,null,3,"HW (Hardware includes nuts,washers)"]
[null,null,null,"JP181767/00;1-BRACKET UNIT CONNECTIVITY (UGDesignView) x 1","BRACKET UNIT CONNECTIVITY","JP181767",0,1,240,null,null,null,3,"PL (Plastic Components)"]
[null,null,null,"JP232836/00.01;1-INSTALL PLATE NUMBER REAR (Design) x 1","INSTALL PLATE NUMBER REAR","JP232836",0.01,1,30,"PANEL AND TRIM-PANEL",null,null,2,"AS (Assembly,Sub-Assy)"]
[null,null,null,"JP232840/00.01;1-ASSEMBLY STRUCTURE PLATE NUMBER (Design) x 1","ASSEMBLY STRUCTURE PLATE NUMBER","JP232840",0.01,1,10,"PANEL AND TRIM-FENDER & FLAP",null,null,3,"AS (Assembly,Sub-Assy)"]
[null,null,null,"JP232837/00.05;1-COVER STRUCTURE LH (Design) x 1","STRUCTURE LH","JP232837",0.05,1,10,"PANEL AND TRIM-FENDER & FLAP",null,null,4,"PL (Plastic Components)"]
[null,null,null,"JG171014/03;1-INSERT (Design) x 2","INSERT","JG171014",3,2,10,null,null,null,5,"BA (Bar or Turned components)"]
[null,null,null,"JR171005/02;1-INSERT M6 (Design) x 4","INSERT M6","JR171005",2,4,20,null,null,null,5,"PR (Proprietary Components)"]
[null,null,null,"LBU00050/02;1-SCREW BUTTON HEAD-M6X1XL9XPRECOAT (Design) x 2","SCREW BUTTON HEAD STEP M6X1","LBU00050",2,2,20,"PANEL AND TRIM-FENDER & FLAP",null,null,4,"HW (Hardware includes nuts,washers)"]
[null,null,null,"JP232839/00.05;1-EXTENSION COVER STRUCTURE LH (Design) x 1","EXTENSION COVER STRUCTURE","JP232839",0.05,1,30,"PANEL AND TRIM-FENDER & FLAP",null,null,4,"PL (Plastic Components)"]
[null,null,null,"KBUC0510/01;1-SCREW TRUSS M5X0.8 x 4","SCREW TRUSS M5X0.8","KBUC0510",1,4,40,"PANEL AND TRIM-FENDER & FLAP",null,null,4,"HW (Hardware includes nuts,washers)"]
[null,null,null,"KDFB1018/01;1-WASHER TOOTHED INTERNAL x 2","WASHER TOOTHED INTERNAL","KDFB1018",1,2,50,"ELECTRICAL/ELECTRONICS VEHICLE-LIGHTS",null,null,4,"HW (Hardware includes nuts,washers)"]
[null,null,null,"KDAA1018/01;1-WASHER PLAIN x 2","WASHER_PLAIN_SMALL","KDAA1018",1,2,60,"ELECTRICAL/ELECTRONICS VEHICLE-LIGHTS",null,null,4,"HW (Hardware includes nuts,washers)"]
[null,null,null,"KCAD1008/01;1-NUT HEX M10X1.25 x 2","NUT HEX M10X1.25","KCAD1008",1,2,70,"ELECTRICAL/ELECTRONICS VEHICLE-LIGHTS",null,null,4,"HW (Hardware includes nuts,washers)"]
[null,null,null,"JY401024/02;1-INDICATOR REAR LH x 1","INDICATOR REAR LH","JY401024",2,1,80,"ELECTRICAL/ELECTRONICS VEHICLE-LIGHTS",null,null,4,"EE (Electrical, Electronics)"]
[null,null,null,"JY401025/02;1-INDICATOR REAR RH x 1","INDICATOR REAR RH","JY401025",2,1,90,"ELECTRICAL/ELECTRONICS VEHICLE-LIGHTS",null,null,4,"EE (Electrical, Electronics)"]
[null,null,null,"JR113836/00;1-GROMMET x 1","GROMMET","JR113836",0,1,100,"PANEL AND TRIM-FENDER & FLAP",null,null,4,"RU (Rubber Components)"]
[null,null,null,"JP232838/00.05;1-COVER STRUCTURE RH (Design) x 1","STRUCTURE RH","JP232838",0.05,1,110,"PANEL AND TRIM-FENDER & FLAP",null,null,4,"PL (Plastic Components)"]
[null,null,null,"JR171005/02;1-INSERT M6 (Design) x 6","INSERT M6","JR171005",2,6,10,"PANEL AND TRIM-COVER",null,null,5,"PR (Proprietary Components)"]
[null,null,null,"JG171014/03;1-INSERT (Design) x 2","INSERT","JG171014",3,2,20,null,null,null,5,"BA (Bar or Turned components)"]
[null,null,null,"JP181434/00.01;1-PLATE (Design) x 1","PLATE","JP181434",0.01,1,120,"PANEL AND TRIM-FENDER & FLAP",null,null,4,"PL (Plastic Components)"]
[null,null,null,"KBRD4213/00;1-SCREW TAPPING PAN CROSS DIA 4.2 x 2","SCREW TAPPING PAN CROSS DIA 4.2","KBRD4213",0,2,130,"ELECTRICAL/ELECTRONICS VEHICLE-LIGHTS",null,null,4,"HW (Hardware includes nuts,washers)"]
[null,null,null,"JG401006/04;1-NUMBER PLATE ILLUMINATION LAMP x 1","NUMBER PLATE ILLUMINATION LAMP","JG401006",4,1,140,"ELECTRICAL/ELECTRONICS VEHICLE-LIGHTS",null,null,4,"EE (Electrical, Electronics)"]
[null,null,null,"JP232841/00.04;1-BRACKET PLATE NUMBER REAR (Design) x 1","EXTENSION STRUCTURE PLATE NUMBER","JP232841",0.04,1,150,"PANEL AND TRIM-FENDER & FLAP",null,null,4,"PL (Plastic Components)"]
[null,null,null,"KBUA0612/00;1-SCREW TRUSS M6X1 x 4","SCREW TRUSS M6X1","KBUA0612",0,4,160,"PANEL AND TRIM-FENDER & FLAP",null,null,4,"HW (Hardware includes nuts,washers)"]
[null,null,null,"JG401036/02;1-REFLECTOR REFLEX (Design) x 1","REFLECTOR REFLEX","JG401036",2,1,170,"PANEL AND TRIM-FENDER & FLAP",null,null,4,"EE (Electrical, Electronics)"]
[null,null,null,"KCGC0505/01;1-NUT HEX FLANGED x 1","NUT HEX FLANGED","KCGC0505",1,1,180,"PANEL AND TRIM-FENDER & FLAP",null,null,4,"HW (Hardware includes nuts,washers)"]
[null,null,null,"JP232830/01;1-BRACKET PLATE NUMBER REAR (Design) x 1","BRACKET PLATE NUMBER REAR","JP232830",1,1,190,"PANEL AND TRIM-FENDER & FLAP",null,null,4,"SM (Sheet Metal & Fabricated Parts)"]
[null,null,null,"KANA0616/01;1-BOLT WELD M6X1 x 2","BOLT WELD M6X1","KANA0616",1,2,10,"ACCESSORIES-NUMBER PLATE",null,null,5,"HW (Hardware includes nuts,washers)"]
[null,null,null,"KCGA0606/01;1-NUT HEX FLANGED M6X1 x 2","NUT HEX FLANGED M6X1","KCGA0606",1,2,200,"PANEL AND TRIM-FENDER & FLAP",null,null,4,"HW (Hardware includes nuts,washers)"]
[null,null,null,"PA990401/01;1-PLATE NUMBER (Design) x 1","PLATE NUMBER","PA990401",1,1,210,"PANEL AND TRIM-FENDER & FLAP",null,null,4,"SM (Sheet Metal & Fabricated Parts)"]
[null,null,null,"KADA0614/01;1-BOLT FLANGED M6X1 x 4","BOLT FLANGED M6X1","KADA0614",1,4,20,"PANEL AND TRIM-FENDER & FLAP",null,null,3,"HW (Hardware includes nuts,washers)"]
[null,null,null,"JP231610/00.01;1-INSTALL MIRROR (Design) x 1","INSTALL MIRROR","JP231610",0.01,1,40,"PANEL AND TRIM-PANEL",null,null,2,"AS (Assembly,Sub-Assy)"]
[null,null,null,"JP231607/00;1-MIRROR LH (UGDesignView) x 1","MIRROR LH","JP231607",0,1,10,"ACCESSORIES-MIRROR",null,null,3,"GL (Glass,Mirror)"]
[null,null,null,"JP231608/00;1-MIRROR RH x 1","MIRROR RH","JP231608",0,1,20,"ACCESSORIES-MIRROR",null,null,3,"GL (Glass,Mirror)"]
[null,null,null,"JP181725/00.01;1-INSTALL TRAY UNDER (Design) x 1","INSTALL TRAY UNDER","JP181725",0.01,1,50,"PANEL AND TRIM-PANEL",null,null,2,"AS (Assembly,Sub-Assy)"]
[null,null,null,"JP181730/00;1-TRAY UNDER (Design) x 1","TRAY UNDER","JP181730",0,1,10,"PANEL AND TRIM-FENDER & FLAP",null,null,3,"PL (Plastic Components)"]
[null,null,null,"LBU00050/02;1-SCREW BUTTON HEAD-M6X1XL9XPRECOAT (Design) x 6","SCREW BUTTON HEAD STEP M6X1","LBU00050",2,6,20,"PANEL AND TRIM-FENDER & FLAP",null,null,3,"HW (Hardware includes nuts,washers)"]
[null,null,null,"DJ181065/03;1-CLIP NUT M6 (Design) x 2","CLIP NUT M6","DJ181065",3,2,30,"PANEL AND TRIM-FENDER & FLAP",null,null,3,"EE (Electrical, Electronics)"]
[null,null,null,"KCNB0605/00;1-NUT WELD HEX x 1","NUT WELD HEX","KCNB0605",0,1,10,"PANEL AND TRIM-COVER",null,null,4,"HW (Hardware includes nuts,washers)"]
[null,null,null,"39264023/00;1-GROMMET-BLIND x 2","GROMMET-BLIND",39264023,0,2,40,"PANEL AND TRIM-PANEL",null,null,3]
[null,null,null,"JP191039/00.01;1-INSTALL SEAT (Design) x 1","INSTALL SEAT","JP191039",0.01,1,60,"PANEL AND TRIM-PANEL",null,null,2,"AS (Assembly,Sub-Assy)"]
[null,null,null,"JP191050/00;1-ASSEMBLY SEAT RIDER (Design) x 1","ASSEMBLY SEAT RIDER","JP191050",0,1,10,"SEATS-SEATS",null,null,3,"AS (Assembly,Sub-Assy)"]
[null,null,null,"JP191040/00;1-SEAT ASSEMBLY RIDER (Design) x 1","SEAT ASSEMBLY RIDER","JP191040",0,1,10,"SEATS-SEATS",null,null,4,"AS (Assembly,Sub-Assy)"]
[null,null,null,"JP191042/00;1-FOAM SEAT RIDER (Design) x 1","FOAM SEAT RIDER","JP191042",0,1,10,"SEATS-SEATS",null,null,5,"PL (Plastic Components)"]
[null,null,null,"JP191041/00;1-BASE SEAT RIDER (Design) x 1","BASE SEAT RIDER","JP191041",0,1,20,"SEATS-SEATS",null,null,5,"PL (Plastic Components)"]
[null,null,null,"JU181011/01;1-INSERT (Design) x 2","INSERT","JU181011",1,2,10,"SEATS-SEATS",null,null,6,"BA (Bar or Turned components)"]
[null,null,null,"JP191007/01;1-SEAT DAMPER REAR x 6","DAMPER","JP191007",1,6,30,"SEATS-SEATS",null,null,5,"RU (Rubber Components)"]
[null,null,null,"LBU00050/02;1-SCREW BUTTON HEAD-M6X1XL9XPRECOAT (Design) x 2","SCREW BUTTON HEAD STEP M6X1","LBU00050",2,2,20,"SEATS-SEATS",null,null,4,"HW (Hardware includes nuts,washers)"]
[null,null,null,"JP181761/00;1-COWL SEAT MIDDLE (Design) x 1","COWL SEAT MIDDLE","JP181761",0,1,30,"PANEL AND TRIM-PANEL",null,null,4,"PL (Plastic Components)"]
[null,null,null,"JP191038/00;1-GROMMET (Design) x 2","GROMMET","JP191038",0,2,50,"PANEL AND TRIM-PANEL",null,null,4,"RU (Rubber Components)"]
[null,null,null,"JP191032/00;1-SEAT ASSEMBLY PILLION (Design) x 1","SEAT ASSEMBLY PILLION","JP191032",0,1,20,"SEATS-SEATS",null,null,3,"AS (Assembly,Sub-Assy)"]
[null,null,null,"JP191036/00;1-BASE SEAT PILLION (Design) x 1","BASE SEAT PILLION","JP191036",0,1,10,"SEATS-SEATS",null,null,4,"PL (Plastic Components)"]
[null,null,null,"JU191007/03;1-PIN LOCK SEAT (Design) x 1","PIN LOCK SEAT","JU191007",3,1,10,"PANEL AND TRIM-PANEL",null,null,5,"BA (Bar or Turned components)"]
[null,null,null,"JD191006/03;1-DAMPER ROUND x 4","DAMPER ROUND","JD191006",3,4,20,"SEATS-SEATS",null,null,4,"RU (Rubber Components)"]
[null,null,null,"JP191037/00;1-FOAM SEAT PILLION (Design) x 1","FOAM SEAT PILLION","JP191037",0,1,30,"SEATS-SEATS",null,null,4,"PL (Plastic Components)"]
[null,null,null,"JP401051/00.01;1-INSTALL LAMP TAIL (Design) x 1","INSTALL LAMP TAIL","JP401051",0.01,1,70,"PANEL AND TRIM-PANEL",null,null,2,"AS (Assembly,Sub-Assy)"]
[null,null,null,"KADA0512/01;1-BOLT FLANGED M5X0.8 x 4","BOLT FLANGED M5X0.8","KADA0512",1,4,20,"ELECTRICAL/ELECTRONICS VEHICLE-LIGHTS",null,null,3,"HW (Hardware includes nuts,washers)"]
[null,null,null,"JP181279/01;1-GROMMET FRONT FAIRING ASSY x 4","GROMMET FRONT FAIRING ASSY","JP181279",1,4,30,"ELECTRICAL/ELECTRONICS VEHICLE-LIGHTS",null,null,3,"RU (Rubber Components)"]
[null,null,null,"JP401044/00.02;1-LAMP TAIL x 1","LAMP TAIL","JP401044",0.02,1,40,"ELECTRICAL/ELECTRONICS VEHICLE-LIGHTS",null,null,3,"EE (Electrical, Electronics)"]
[null,null,null,"JP181729/00.01;1-INSTALL COVER IGNITION (Design) x 1","INSTALL COVER IGNITION","JP181729",0.01,1,80,"PANEL AND TRIM-PANEL",null,null,2,"AS (Assembly,Sub-Assy)"]
[null,null,null,"JP181733/00;1-COVER SWITCH IGNITION (Design) x 1","COVER SWITCH IGNITION","JP181733",0,1,10,"PANEL AND TRIM-COVER",null,null,3,"PL (Plastic Components)"]
[null,null,null,"JP181229/02;1-GROMMET IGNITION SWITCH COVER x 2","GROMMET IGNITION SWITCH COVER","JP181229",2,2,20,"PANEL AND TRIM-COVER",null,null,3,"RU (Rubber Components)"]
[null,null,null,"JP181428/00.02;1-INSTALL FENDER FRONT (Design) x 1","INSTALL FENDER FRONT","JP181428",0.02,1,90,"PANEL AND TRIM-PANEL",null,null,2,"AS (Assembly,Sub-Assy)"]
[null,null,null,"JP181431/00;1-FENDER ASSEMBLY FRONT (Design) x 1","FENDER ASSEMBLY FRONT","JP181431",0,1,10,"PANEL AND TRIM-FENDER & FLAP",null,null,3,"PL (Plastic Components)"]
[null,null,null,"JP181430/00;1-FENDER FRONT REAR (Design) x 1","FENDER FRONT REAR","JP181430",0,1,10,"PANEL AND TRIM-FENDER & FLAP",null,null,4,"PL (Plastic Components)"]
[null,null,null,"JP181429/01;1-FENDER FRONT (Design) x 1","FENDER FRONT","JP181429",1,1,20,"PANEL AND TRIM-FENDER & FLAP",null,null,4,"PL (Plastic Components)"]
[null,null,null,"JZ171021/05;1-WASHER VAPOUR SEALING x 6","WASHER VAPOUR SEALING","JZ171021",5,6,70,null,null,null,3,"PL (Plastic Components)"]
[null,null,null,"LBU00059/01;1-SCREW BUTTON HD-M6X1XL13XSTEPPED x 4","SCREW BUTTON HD-M6X1XL13XSTEPPED","LBU00059",1,4,80,null,null,null,3,"HW (Hardware includes nuts,washers)"]
[null,null,null,"JY401042/03;1-REFLECTOR REFLEX x 2","REFLECTOR REFLEX","JY401042",3,2,90,null,null,null,3,"EE (Electrical, Electronics)"]
[null,null,null,"LAA00073/02;1-BOLT STEP M6X1 x 2","BOLT STEP M6X1","LAA00073",2,2,100,null,null,null,3,"HW (Hardware includes nuts,washers)"]
[null,null,null,"KCAC0605/01;1-NUT HEX M6X1 x 2","NUT HEX M6X1","KCAC0605",1,2,110,null,null,null,3,"HW (Hardware includes nuts,washers)"]
[null,null,null,"JP181432/00;1-PROTECTOR FORK LH x 1","PROTECTOR FORK LH","JP181432",0,1,120,null,null,null,3,"PL (Plastic Components)"]
[null,null,null,"JP181433/00;1-PROTECTOR FORK RH x 1","PROTECTOR FORK RH","JP181433",0,1,130,null,null,null,3,"PL (Plastic Components)"]
[null,null,null,"JP181736/00.01;1-INSTALL COVER SIDE (Design) x 1","INSTALL COVER SIDE","JP181736",0.01,1,110,"WHEEL & BRAKE-WHEEL ASSEMBLY SPARE",null,null,2,"AS (Assembly,Sub-Assy)"]
[null,null,null,"JP181737/00.02;1-COVER SIDE LH (Design) x 1","COVER SIDE LH","JP181737",0.02,1,10,"PANEL AND TRIM-COVER",null,null,3,"PL (Plastic Components)"]
[null,null,null,"JP181738/00.02;1-COVER SIDE RH (Design) x 1","COVER SIDE RH","JP181738",0.02,1,20,"PANEL AND TRIM-COVER",null,null,3,"PL (Plastic Components)"]
[null,null,null,"JH181426/01;1-GROMMET UNDER TRAY x 3","GROMMET UNDER TRAY","JH181426",1,3,30,"PANEL AND TRIM-COVER",null,null,3,"RU (Rubber Components)"]
[null,null,null,"DT181265/00;1-GROMMET SIDE COVER x 3","GROMMET","DT181265",0,3,40,"PANEL AND TRIM-COVER",null,null,3,"PL (Plastic Components)"]
[null,null,null,"KAEA0616/01;1-BOLT FLANGED M6X1 x 2","BOLT FLANGED M6X1","KAEA0616",1,2,50,"PANEL AND TRIM-COVER",null,null,3,"HW (Hardware includes nuts,washers)"]
[null,null,null,"DJ181065/03;1-CLIP NUT M6 (Design) x 2","CLIP NUT M6","DJ181065",3,2,60,"PANEL AND TRIM-COVER",null,null,3,"EE (Electrical, Electronics)"]
[null,null,null,"KCNB0605/00;1-NUT WELD HEX x 1","NUT WELD HEX","KCNB0605",0,1,10,"PANEL AND TRIM-COVER",null,null,4,"HW (Hardware includes nuts,washers)"]
[null,null,null,"JP181769/00.00;1-PIN QUICK RELEASE (UGDesignView) x 1","PIN QUICK RELEASE","JP181769",0,1,70,"PANEL AND TRIM-COVER",null,null,3,"BA (Bar or Turned components)"]
[null,null,null,"JP181724/00.02;1-INSTALL COWL RADIATOR (Design) x 1","INSTALL COWL RADIATOR","JP181724",0.02,1,120,null,null,null,2,"AS (Assembly,Sub-Assy)"]
[null,null,null,"JP181734/00.05;1-COVER RADIATOR LH (UGDesignView) x 1","COVER RADIATOR LH","JP181734",0.05,1,10,"COOLING SYSTEM-RADIATOR",null,null,3,"PL (Plastic Components)"]
[null,null,null,"JP181735/00.05;1-COVER RADIATOR RH (UGDesignView) x 1","COVER RADIATOR RH","JP181735",0.05,1,20,"COOLING SYSTEM-RADIATOR",null,null,3,"PL (Plastic Components)"]
[null,null,null,"JP181747/00.05;1-COVER RADIATOR INNER LH (UGDesignView) x 1","COVER RADIATOR INNER LH","JP181747",0.05,1,30,"COOLING SYSTEM-RADIATOR",null,null,3,"PL (Plastic Components)"]
[null,null,null,"JP181748/00.05;1-COVER RADIATOR INNER RH (Design) x 1","COVER RADIATOR INNER RH","JP181748",0.05,1,40,"COOLING SYSTEM-RADIATOR",null,null,3,"PL (Plastic Components)"]
[null,null,null,"PA181352/01;1-SLEEVE x 4","SLEEVE","PA181352",1,4,50,"COOLING SYSTEM-RADIATOR",null,null,3,"BA (Bar or Turned components)"]
[null,null,null,"LAC00054/04;1-BOLT SOCKET-M6X1XL16XBLKXFL.HEAD x 4","BOLT SOCKET-M6X1XL16XBLKXFL.HEAD","LAC00054",4,4,60,"COOLING SYSTEM-RADIATOR",null,null,3,"HW (Hardware includes nuts,washers)"]
[null,null,null,"JH181426/01;1-GROMMET UNDER TRAY x 2","GROMMET UNDER TRAY","JH181426",1,2,70,"COOLING SYSTEM-RADIATOR",null,null,3,"RU (Rubber Components)"]
[null,null,null,"DT181265/00;1-GROMMET SIDE COVER x 2","GROMMET","DT181265",0,2,80,"COOLING SYSTEM-RADIATOR",null,null,3,"PL (Plastic Components)"]
[null,null,null,"JP113868/00.01;1-INSTALL CASE BATTERY (Design) x 1","INSTALL CASE BATTERY","JP113868",0.01,1,130,null,null,null,2,"AS (Assembly,Sub-Assy)"]
[null,null,null,"JP113869/00.03;1-CASE BATTERY (UGDesignView) x 1","CASE BATTERY","JP113869",0.03,1,10,"CHASSIS-FRAME FITTINGS",null,null,3,"PL (Plastic Components)"]
[null,null,null,"JP113871/00.01;1-DAMPER BATTERY x 1","DAMPER BATTERY","JP113871",0.01,1,20,"CHASSIS-FRAME FITTINGS",null,null,3,"RU (Rubber Components)"]
[null,null,null,"JP113870/00.03;1-COVER CASE BATTERY x 1","COVER CASE BATTERY","JP113870",0.03,1,30,"CHASSIS-FRAME FITTINGS",null,null,3,"PL (Plastic Components)"]
[null,null,null,"LBU00155/00;1-SCREW BUTTON HEAD STEP M6X1 (Design) x 4","SCREW BUTTON HEAD STEP M6X1","LBU00155",0,4,40,"CHASSIS-FRAME FITTINGS",null,null,3,"HW (Hardware includes nuts,washers)"]
[null,null,null,"JP181768/00.00;1-PROTECTOR HARNESS (UGDesignView) x 1","PROTECTOR HARNESS","JP181768",0,1,50,"CHASSIS-FRAME FITTINGS",null,null,3,"PL (Plastic Components)"]
[null,null,null,"JP351482/00.00;1-HOLDER ECU x 1","HOLDER ECU","JP351482",0,1,60,"CHASSIS-FRAME FITTINGS",null,null,3,"PL (Plastic Components)"]
[null,null,null,"LBR00010/00;1-SCREW TPNG PAN CRS-DIA3.5XL10XBL (Design) x 1","SCREW TPNG PAN CRS-DIA3.5XL10XBL","LBR00010",0,1,70,"CHASSIS-FRAME FITTINGS",null,null,3,"HW (Hardware includes nuts,washers)"]
[null,null,null,"JG401808/00;1-FOAM BATTERY BKT 35X15X3 x 2","FOAM BATTERY BKT 35X15X3","JG401808",0,2,80,"CHASSIS-FRAME FITTINGS",null,null,3,"PL (Plastic Components)"]
[null,null,null,"JP232844/00.00;1-INSTALL PLATE NUMBER FRONT (Design) x 1","INSTALL PLATE NUMBER FRONT","JP232844",0,1,140,null,null,null,2,"AS (Assembly,Sub-Assy)"]
[null,null,null,"JP181764/00.01;1-COVER HOLDER HANDLE LOWER x 1","COVER HOLDER HANDLE LOWER","JP181764",0.01,1,10,null,null,null,3,"PL (Plastic Components)"]
[null,null,null,"JP232842/00.00;1-BRACKET PLATE NUMBER FRONT (UGDesignView) x 1","BRACKET PLATE NUMBER FRONT","JP232842",0,1,20,null,null,null,3,"PL (Plastic Components)"]
[null,null,null,"JP113831/01;1-SLEEVE -NUMBER PLATE x 2","SLEEVE -NUMBER PLATE","JP113831",1,2,30,null,null,null,3,"BA (Bar or Turned components)"]
[null,null,null,"LAC00011/03;1-BOLT SOCKET M5X0.8 x 2","BOLT SOCKET M5X0.8","LAC00011",3,2,40,null,null,null,3,"HW (Hardware includes nuts,washers)"]
[null,null,null,"JP231015/00.01;1-ASSEMBLY SCHEME MISCELLANEOUS (Design) x 1","ASSEMBLY SCHEME MISCELLANEOUS","JP231015",0.01,1,40,null,null,null,1,"AS (Assembly,Sub-Assy)"]
[null,null,null,"JP232611/00.01;1-INSTALL SET LOCK (UGDesignView) x 1","INSTALL SET LOCK","JP232611",0.01,1,10,"ACCESSORIES-LOCKS",null,null,2,"AS (Assembly,Sub-Assy)"]
[null,null,null,"LAA00030/00;1-BOLT -M6X1XL30XCL8.8XBLXSHEAR HD x 1","BOLT -M6X1XL30XCL8.8XBLXSHEAR HD","LAA00030",0,1,30,"ACCESSORIES-LOCKS",null,null,3,"HW (Hardware includes nuts,washers)"]
[null,null,null,"LAA00030/00;1-BOLT -M6X1XL30XCL8.8XBLXSHEAR HD x 1","BOLT -M6X1XL30XCL8.8XBLXSHEAR HD","LAA00030",0,1,70,"ACCESSORIES-LOCKS",null,null,3,"HW (Hardware includes nuts,washers)"]
[null,null,null,"JP232610/00.02;1-SET LOCK (UGDesignView) x 1","SET LOCK","JP232610",0.02,1,150,"ACCESSORIES-LOCKS",null,null,3,"PR (Proprietary Components)"]
[null,null,null,"JP401431/00.01;1-SWITCH IGNITION (UGDesignView) x 1","SWITCH IGNITION","JP401431",0.01,1,20,"ACCESSORIES-LOCKS",null,null,4,"PR (Proprietary Components)"]
[null,null,null,"JP171100/00.03;1-CAP TANK FUEL x 1","CAP TANK FUEL","JP171100",0.03,1,30,"FUEL SYSTEM-FUEL TANK",null,null,4,"PR (Proprietary Components)"]
[null,null,null,"JP232616/00.01;1-SET KEY (UGDesignView) x 1","SET KEY","JP232616",0.01,1,40,"ACCESSORIES-LOCKS",null,null,4,"PR (Proprietary Components)"]
[null,null,null,"DK141070/00;1-ROTOR CAP TANK x 1","ROTOR CAP TANK","DK141070",0,1,50,"FUEL SYSTEM-FUEL TANK",null,null,4,"PR (Proprietary Components)"]
[null,null,null,"JR232606/00;1-LOCK SEAT (UGDesignView) x 1","LOCK SEAT","JR232606",0,1,80,"ACCESSORIES-LOCKS",null,null,4,"PR (Proprietary Components)"]
[null,null,null,"JX403200/00;1-UNIT IMMOBILIZER x 1","UNIT IMMOBILIZER","JX403200",0,1,90,null,null,null,4,"EE (Electrical, Electronics)"]
[null,null,null,"JR113803/00.00;1-BOLT SPECIAL M5 X 14L x 1","SCREW BUTTON HEAD STEP M5X0.8","JR113803",0,1,160,"ACCESSORIES-LOCKS",null,null,3,"HW (Hardware includes nuts,washers)"]
[null,null,null,"JR113803/00.00;1-BOLT SPECIAL M5 X 14L x 1","SCREW BUTTON HEAD STEP M5X0.8","JR113803",0,1,170,"ACCESSORIES-LOCKS",null,null,3,"HW (Hardware includes nuts,washers)"]
[null,null,null,"JR113803/00.00;1-BOLT SPECIAL M5 X 14L x 1","SCREW BUTTON HEAD STEP M5X0.8","JR113803",0,1,180,"ACCESSORIES-LOCKS",null,null,3,"HW (Hardware includes nuts,washers)"]
[null,null,null,"JR113803/00.00;1-BOLT SPECIAL M5 X 14L x 1","SCREW BUTTON HEAD STEP M5X0.8","JR113803",0,1,190,"ACCESSORIES-LOCKS",null,null,3,"HW (Hardware includes nuts,washers)"]
[null,null,null,"JP231016/00.00;1-INSTALL TOOLKIT (Design) x 1","INSTALL TOOLKIT","JP231016",0,1,50,"ACCESSORIES-TOOL KIT & JACK",null,null,2,"AS (Assembly,Sub-Assy)"]
[null,null,null,"JY231000/03;1-TOOLKIT (Design) x 1","TOOLKIT","JY231000",3,1,10,"ACCESSORIES-TOOL KIT & JACK",null,null,3,"PR (Proprietary Components)"]
[null,null,null,"JG231002/03;1-BAG TOOL x 1","BAG TOOL","JG231002",3,1,10,"ACCESSORIES-TOOL KIT & JACK",null,null,4,"PR (Proprietary Components)"]
[null,null,null,"JG231006/02;1-SCREWDRIVER x 1","SCREWDRIVER","JG231006",2,1,20,"ACCESSORIES-TOOL KIT & JACK",null,null,4,"PR (Proprietary Components)"]
[null,null,null,"JG231014/01;1-TOOL WRENCH 22 x 1","TOOL WRENCH 22","JG231014",1,1,30,"ACCESSORIES-TOOL KIT & JACK",null,null,4,"PR (Proprietary Components)"]
[null,null,null,"JG231003/04;1-SPANNER BOX x 1","SPANNER BOX","JG231003",4,1,40,"ACCESSORIES-TOOL KIT & JACK",null,null,4,"PR (Proprietary Components)"]
[null,null,null,"JG231008/01;1-TOOL BAR x 1","TOOL BAR","JG231008",1,1,50,"ACCESSORIES-TOOL KIT & JACK",null,null,4,"PR (Proprietary Components)"]
[null,null,null,"JG231010/01;1-SPANNER FLAT 8X10 x 1","SPANNER FLAT 8X10","JG231010",1,1,70,"ACCESSORIES-TOOL KIT & JACK",null,null,4,"PR (Proprietary Components)"]
[null,null,null,"JY231001/00;1-TOOL ALLEN KEY 4MM x 1","KEY ALLEN 4","JY231001",0,1,80,"ACCESSORIES-TOOL KIT & JACK",null,null,4,"PR (Proprietary Components)"]
[null,null,null,"JG231011/01;1-KEY ALLEN -5 MM x 1","KEY ALLEN 5","JG231011",1,1,90,"ACCESSORIES-TOOL KIT & JACK",null,null,4,"PR (Proprietary Components)"]
[null,null,null,"JG231012/01;1-KEY ALLEN 6 x 1","KEY ALLEN 6","JG231012",1,1,100,"ACCESSORIES-TOOL KIT & JACK",null,null,4,"PR (Proprietary Components)"]
[null,null,null,"JG231013/01;1-KEY ALLEN 10 x 1","KEY ALLEN 10","JG231013",1,1,110,"ACCESSORIES-TOOL KIT & JACK",null,null,4,"PR (Proprietary Components)"]
[null,null,null,"JY231002/01;1-TOOL SPRING ADJUSTER x 1","TOOL SPRING ADJUSTER","JY231002",1,1,120,"ACCESSORIES-TOOL KIT & JACK",null,null,4,"PR (Proprietary Components)"]
[null,null,null,"DK221024/00;1-BAND TOOL KIT x 2","BAND TOOL KIT","DK221024",0,2,130,"ACCESSORIES-TOOL KIT & JACK",null,null,4,"PR (Proprietary Components)"]
[null,null,null,"JG231026/01;1-SPANNER FLAT 14X17 x 1","SPANNER FLAT 14X17","JG231026",1,1,140,"ACCESSORIES-TOOL KIT & JACK",null,null,4,"PR (Proprietary Components)"]
[null,null,null,"JP231014/00;1-SPANNER FLAT 12X13 x 1","SPANNER FLAT 12X13","JP231014",0,1,150,"ACCESSORIES-TOOL KIT & JACK",null,null,4,"PR (Proprietary Components)"]
[null,null,null,"JP113221/00.01;1-INSTALL STAND SIDE (Design) x 1","INSTALL STAND SIDE","JP113221",0.01,1,60,"CHASSIS-STAND",null,null,2,"AS (Assembly,Sub-Assy)"]
[null,null,null,"JP113222/00;2-STAND SIDE (UGDesignView) x 1","STAND SIDE","JP113222",0,1,10,"CHASSIS-STAND",null,null,3,"SM (Sheet Metal & Fabricated Parts)"]
[null,null,null,"LQB00004/00;1-STUD WELDING-DIA. 8XL 12 x 1","STUD WELDING DIA 8","LQB00004",0,1,10,"CHASSIS-STAND",null,null,4,"BA (Bar or Turned components)"]
[null,null,null,"JP113234/00;1-TUBE STAND SIDE (UGDesignView) x 1","TUBE STAND SIDE","JP113234",0,1,30,"CHASSIS-STAND",null,null,4,"TU (Tubes)"]
[null,null,null,"JP113235/00;1-BRACKET STAND SIDE (UGDesignView) x 1","BRACKET STAND SIDE","JP113235",0,1,40,"CHASSIS-STAND",null,null,4,"SM (Sheet Metal & Fabricated Parts)"]
[null,null,null,"JP113236/00;1-STAY (UGDesignView) x 1","STAY","JP113236",0,1,50,"CHASSIS-STAND",null,null,4,"SM (Sheet Metal & Fabricated Parts)"]
[null,null,null,"JG113224/00;1-PAD x 1","PAD","JG113224",0,1,60,null,null,null,4,"SM (Sheet Metal & Fabricated Parts)"]
[null,null,null,"JG401411/02;1-MAGNET HOLDER x 1","HOLDER MAGNET","JG401411",2,1,30,"CHASSIS-STAND",null,null,3,"EE (Electrical, Electronics)"]
[null,null,null,"JG113207/01;1-BOLT x 1","BOLT","JG113207",1,1,40,"CHASSIS-STAND",null,null,3,"HW (Hardware includes nuts,washers)"]
[null,null,null,"LCH00001/01;1-NUT NYLOC-M10X1.25XHT.11XCL6XBRT x 1","NUT NYLOC-M10X1.25XHT.11XCL6XBRT","LCH00001",1,1,50,"CHASSIS-STAND",null,null,3,"HW (Hardware includes nuts,washers)"]
[null,null,null,"DG161219/01;1-SPRING x 1","SPRING TENSION","DG161219",1,1,90,"CHASSIS-STAND",null,null,3,"SP (Springs)"]
[null,null,null,"LZB00009/00;1-GREASE -LIMAPLEX HTX 3 x 3","GREASE -LIMAPLEX HTX 3","LZB00009",0,3,110,"CHASSIS-STAND",null,null,3,"HW1 (Oil,Grease,Coolant,Sealant)"]
[null,null,null,"DH161146/00;1-COVER SPRING S-STAND x 1","COVER SPRING S-STAND","DH161146",0,1,120,"CHASSIS-STAND",null,null,3,"PL (Plastic Components)"]
[null,null,null,"JY401408/02;1-SWITCH SIDE STAND MY16 x 1","SWITCH STAND SIDE","JY401408",2,1,130,"CHASSIS-STAND",null,null,3,"EE (Electrical, Electronics)"]
[null,null,null,"LBU00042/01;1-SCREW BUTTON HEAD-M6X1XL10XBLACK x 2","SCREW BUTTON HEAD-M6X1XL10XBLACK","LBU00042",1,2,140,"CHASSIS-STAND",null,null,3,"HW (Hardware includes nuts,washers)"]
[null,null,null,"JP231219/00.00;1-INSTALL GUARD SAREE (Design) x 1","INSTALL GUARD SAREE","JP231219",0,1,80,"ACCESSORIES-GUARD",null,null,2,"AS (Assembly,Sub-Assy)"]
[null,null,null,"KADF0845/00;1-BOLT FLANGED M8X1.25 x 1","BOLT FLANGED M8X1.25","KADF0845",0,1,10,"ACCESSORIES-GUARD",null,null,3,"HW (Hardware includes nuts,washers)"]
[null,null,null,"JP231223/00.00;1-GUARD SAREE (UGDesignView) x 1","GUARD SAREE","JP231223",0,1,20,"ACCESSORIES-GUARD",null,null,3,"SM (Sheet Metal & Fabricated Parts)"]
[null,null,null,"DK101386/03;1-BOLT SOCKET M8X1 (Design) x 1","BOLT SOCKET M8X1","DK101386",3,1,30,"ACCESSORIES-GUARD",null,null,3,"HW (Hardware includes nuts,washers)"]
[null,null,null,"JP231414/00.00;1-INSTALL GRAB (Design) x 1","INSTALL GRAB","JP231414",0,1,90,"ACCESSORIES-CARRIER & HAND HOLD",null,null,2,"AS (Assembly,Sub-Assy)"]
[null,null,null,"JP231415/00;1-GRAB HANDLE LH (Design) x 1","GRAB HANDLE LH","JP231415",0,1,10,"ACCESSORIES-CARRIER & HAND HOLD",null,null,3,"CA + M/C (Casting and Machined)"]
[null,null,null,"JP231416/00;1-GRAB HANDLE RH x 1","GRAB HANDLE RH","JP231416",0,1,20,"ACCESSORIES-CARRIER & HAND HOLD",null,null,3,"CA + M/C (Casting and Machined)"]
[null,null,null,"LAC00035/01;1-BOLT SOCKET M8X1.25 (Design) x 4","BOLT SOCKET M8X1.25","LAC00035",1,4,30,"ACCESSORIES-CARRIER & HAND HOLD",null,null,3,"HW (Hardware includes nuts,washers)"]
[null,null,null,"JP231220/00.00;1-INSTALL GUARD LEG (Design) x 1","INSTALL GUARD LEG","JP231220",0,1,100,"ACCESSORIES-GUARD",null,null,2,"AS (Assembly,Sub-Assy)"]
[null,null,null,"JP231221/00.02;1-GUARD LEG LH (UGDesignView) x 1","GUARD LEG LH","JP231221",0.02,1,10,"ACCESSORIES-GUARD",null,null,3,"SM (Sheet Metal & Fabricated Parts)"]
[null,null,null,"JP231224/00.01;1-BRACKET GUARD LEG UPPER x 1","BRACKET GUARD LEG UPPER","JP231224",0.01,1,10,null,null,null,4,"FO (Forging Route)"]
[null,null,null,"JP231226/00.01;1-TUBE GUARD LEG LH x 1","TUBE GUARD LEG LH","JP231226",0.01,1,20,null,null,null,4,"TU (Tubes)"]
[null,null,null,"JP231225/00.01;1-BRACKET GUARD LEG LOWER (UGDesignView) x 1","BRACKET GUARD LEG LOWER","JP231225",0.01,1,30,null,null,null,4,"SM (Sheet Metal & Fabricated Parts)"]
[null,null,null,"KDBA1022/01;1-WASHER PLAIN x 1","WASHER_PLAIN","KDBA1022",1,1,10,null,null,null,5,"HW (Hardware includes nuts,washers)"]
[null,null,null,"JP231222/00.02;1-GUARD LEG RH (UGDesignView) x 1","GUARD LEG RH","JP231222",0.02,1,20,"ACCESSORIES-GUARD",null,null,3,"SM (Sheet Metal & Fabricated Parts)"]
[null,null,null,"JP231227/00.01;1-TUBE GUARD LEG RH x 1","TUBE GUARD LEG RH","JP231227",0.01,1,80,null,null,null,4,"TU (Tubes)"]
[null,null,null,"JP231224/00.01;1-BRACKET GUARD LEG UPPER x 1","BRACKET GUARD LEG UPPER","JP231224",0.01,1,90,null,null,null,4,"FO (Forging Route)"]
[null,null,null,"JP231225/00.01;1-BRACKET GUARD LEG LOWER (UGDesignView) x 1","BRACKET GUARD LEG LOWER","JP231225",0.01,1,100,null,null,null,4,"SM (Sheet Metal & Fabricated Parts)"]
[null,null,null,"KDBA1022/01;1-WASHER PLAIN x 1","WASHER_PLAIN","KDBA1022",1,1,10,null,null,null,5,"HW (Hardware includes nuts,washers)"]
[null,null,null,"JU231207/01;1-NUT NYLOC M8X1.25 x 2","NUT NYLOC M8X1.25","JU231207",1,2,30,"ACCESSORIES-GUARD",null,null,3,"HW (Hardware includes nuts,washers)"]
[null,null,null,"LCL00007/00;1-NUT U FLANGED-M8X1.25XHT 8.5XBLK (Design) x 4","NUT U FLANGED-M8X1.25XHT 8.5XBLK","LCL00007",0,4,40,"ACCESSORIES-GUARD",null,null,3,"HW (Hardware includes nuts,washers)"]
[null,null,null,"JP131077/00.00;1-ASSEMBLY SCHEME WHEEL-BRAKE (Design) x 1","ASSEMBLY SCHEME WHEEL-BRAKE","JP131077",0,1,50,null,null,null,1,"AS (Assembly,Sub-Assy)"]
[null,null,null,"JP131074/00;1-INSTALL WHEEL FRONT (Design) x 1","INSTALL WHEEL FRONT","JP131074",0,1,10,"VEHICLE-SCHEME DRAWING",null,null,2,"AS (Assembly,Sub-Assy)"]
[null,null,null,"JP131075/00;1-WHEEL ASSEMBLY FRONT (Design) x 1","WHEEL ASSEMBLY FRONT","JP131075",0,1,10,"WHEEL & BRAKE-WHEEL ASSEMBLY FRONT",null,null,3,"AS (Assembly,Sub-Assy)"]
[null,null,null,"JP131078/00;1-WHEEL FRONT MT 3.00X17 (Design) x 1","WHEEL FRONT MT 3.00X17","JP131078",0,1,10,"WHEEL & BRAKE-WHEEL ASSEMBLY FRONT",null,null,4,"CA + M/C (Casting and Machined)"]
[null,null,null,"JG131028/02;1-SPACER x 1","SPACER","JG131028",2,1,20,"WHEEL & BRAKE-WHEEL ASSEMBLY FRONT",null,null,4,"FO (Forging Route)"]
[null,null,null,"BF131722/02;1-BEARING 30X55X13 x 2","BEARING 30X55X13","BF131722",2,2,30,"WHEEL & BRAKE-WHEEL ASSEMBLY FRONT",null,null,4,"BR (Bearings)"]
[null,null,null,"JY131030/01;1-SEAL OIL x 2","SEAL OIL","JY131030",1,2,40,"WHEEL & BRAKE-WHEEL ASSEMBLY FRONT",null,null,4,"OS + OR (Oil Seals and O Rings)"]
[null,null,null,"JY131880/02;1-DISC BRAKE DIA 320 x 1","DISC BRAKE DIA 320","JY131880",2,1,50,"WHEEL & BRAKE-WHEEL ASSEMBLY FRONT",null,null,4,"PR (Proprietary Components)"]
[null,null,null,"JY131025/06;1-DISC SENSOR SPEED FRONT x 1","DISC SENSOR SPEED FRONT","JY131025",6,1,60,"WHEEL & BRAKE-WHEEL ASSEMBLY FRONT",null,null,4,"SM (Sheet Metal & Fabricated Parts)"]
[null,null,null,"LAC00179/00;1-BOLT SOCKET M8X1.25 x 5","BOLT SOCKET M8X1.25","LAC00179",0,5,70,"WHEEL & BRAKE-WHEEL ASSEMBLY FRONT",null,null,4,"HW (Hardware includes nuts,washers)"]
[null,null,null,"KACA0508/02;1-BOLT SOCKET M5X0.8 x 5","BOLT SOCKET M5X0.8","KACA0508",2,5,80,"WHEEL & BRAKE-WHEEL ASSEMBLY FRONT",null,null,4,"HW (Hardware includes nuts,washers)"]
[null,null,null,"DK151026/01;1-VALVE TYRE TUBELESS x 1","VALVE TYRE TUBELESS","DK151026",1,1,90,"WHEEL & BRAKE-WHEEL ASSEMBLY FRONT",null,null,4,"PR (Proprietary Components)"]
[null,null,null,"JG131008/04;1-TYRE FRONT 110/70R17 TL x 1","TYRE FRONT 110/70R17 TL","JG131008",4,1,100,"WHEEL & BRAKE-WHEEL ASSEMBLY FRONT",null,null,4,"PR (Proprietary Components)"]
[null,null,null,"KEBA5520/01;1-CIRCLIP INTERNAL x 1","CIRCLIP INTERNAL","KEBA5520",1,1,110,"WHEEL & BRAKE-WHEEL ASSEMBLY FRONT",null,null,4,"HW (Hardware includes nuts,washers)"]
[null,null,null,"LZB00009/00;1-GREASE -LIMAPLEX HTX 3 x 3","GREASE -LIMAPLEX HTX 3","LZB00009",0,3,120,"WHEEL & BRAKE-WHEEL ASSEMBLY FRONT",null,null,4,"HW1 (Oil,Grease,Coolant,Sealant)"]
[null,null,null,"JG131029/04;1-COLLAR x 2","COLLAR","JG131029",4,2,20,"WHEEL & BRAKE-WHEEL ASSEMBLY FRONT",null,null,3,"FO (Forging Route)"]
[null,null,null,"JG131030/03;1-AXLE (Design) x 1","AXLE","JG131030",3,1,30,"WHEEL & BRAKE-WHEEL ASSEMBLY FRONT",null,null,3,"BA (Bar or Turned components)"]
[null,null,null,"JG131031/06;1-BOLT FLANGED M24X1.5 x 1","BOLT FLANGED M24X1.5","JG131031",6,1,40,"WHEEL & BRAKE-WHEEL ASSEMBLY FRONT",null,null,3,"FO (Forging Route)"]
[null,null,null,"JP131233/00;1-INSTALL WHEEL REAR (Design) x 1","INSTALL WHEEL REAR","JP131233",0,1,20,"VEHICLE-SCHEME DRAWING",null,null,2,"AS (Assembly,Sub-Assy)"]
[null,null,null,"JP131234/00;1-WHEEL ASSEMBLY REAR (Design) x 1","WHEEL ASSEMBLY REAR","JP131234",0,1,10,"WHEEL & BRAKE-WHEEL ASSEMBLY REAR",null,null,3,"AS (Assembly,Sub-Assy)"]
[null,null,null,"JP131224/00;1-WHEEL REAR MT 4.00X17 (Design) x 1","WHEEL REAR MT 4.00X17","JP131224",0,1,10,"WHEEL & BRAKE-WHEEL ASSEMBLY REAR",null,null,4,"CA + M/C (Casting and Machined)"]
[null,null,null,"JP131240/00;1-COLLAR x 1","COLLAR","JP131240",0,1,20,"WHEEL & BRAKE-WHEEL ASSEMBLY REAR",null,null,4,"BA (Bar or Turned components)"]
[null,null,null,"KPBC6203/01;1-BEARING BALL x 1","BEARING BALL","KPBC6203",1,1,30,"WHEEL & BRAKE-WHEEL ASSEMBLY REAR",null,null,4,"BR (Bearings)"]
[null,null,null,"DK151012/00;1-SEAL OIL x 1","SEAL OIL","DK151012",0,1,40,"WHEEL & BRAKE-WHEEL ASSEMBLY REAR",null,null,4,"OS + OR (Oil Seals and O Rings)"]
[null,null,null,"DK151026/01;1-VALVE TYRE TUBELESS x 1","VALVE TYRE TUBELESS","DK151026",1,1,50,"WHEEL & BRAKE-WHEEL ASSEMBLY REAR",null,null,4,"PR (Proprietary Components)"]
[null,null,null,"JG131221/04;1-TYRE REAR 150/60R17 TL x 1","TYRE REAR 150/60R17 TL","JG131221",4,1,60,"WHEEL & BRAKE-WHEEL ASSEMBLY REAR",null,null,4,"PR (Proprietary Components)"]
[null,null,null,"JD131811/03;1-SCREW SOCKET STEP M8X1.25 x 5","SCREW SOCKET STEP M8X1.25","JD131811",3,5,70,"WHEEL & BRAKE-WHEEL ASSEMBLY REAR",null,null,4,"HW (Hardware includes nuts,washers)"]
[null,null,null,"JY131201/00;1-DAMPER 6 RUBBER x 6","DAMPER 6 RUBBER","JY131201",0,6,80,"WHEEL & BRAKE-WHEEL ASSEMBLY REAR",null,null,4,"RU (Rubber Components)"]
[null,null,null,"KEBB4717/01;1-CIRCLIP 47X17 x 1","CIRCLIP 47x17","KEBB4717",1,1,90,"WHEEL & BRAKE-WHEEL ASSEMBLY REAR",null,null,4,"HW (Hardware includes nuts,washers)"]
[null,null,null,"LZB00009/00;1-GREASE -LIMAPLEX HTX 3 x 3","GREASE -LIMAPLEX HTX 3","LZB00009",0,3,100,"WHEEL & BRAKE-WHEEL ASSEMBLY REAR",null,null,4,"HW1 (Oil,Grease,Coolant,Sealant)"]
[null,null,null,"KACA0508/02;1-BOLT SOCKET M5X0.8 x 5","BOLT SOCKET M5X0.8","KACA0508",2,5,110,"WHEEL & BRAKE-WHEEL ASSEMBLY REAR",null,null,4,"HW (Hardware includes nuts,washers)"]
[null,null,null,"JY131025/06;1-DISC SENSOR SPEED FRONT x 1","DISC SENSOR SPEED FRONT","JY131025",6,1,120,"WHEEL & BRAKE-WHEEL ASSEMBLY REAR",null,null,4,"SM (Sheet Metal & Fabricated Parts)"]
[null,null,null,"KPBC6303/00;1-BEARING-BALL-C3 CLEARANCE x 1","BEARING BALL ID17XOD47XT14XC3","KPBC6303",0,1,130,"WHEEL & BRAKE-WHEEL ASSEMBLY REAR",null,null,4,"BR (Bearings)"]
[null,null,null,"JY131881/02;1-DISC BRAKE DIA 230 x 1","DISC BRAKE DIA 230","JY131881",2,1,140,"WHEEL & BRAKE-WHEEL ASSEMBLY REAR",null,null,4,"PR (Proprietary Components)"]
[null,null,null,"JP131226/00;1-COUPLING ASSEMBLY (Design) x 1","COUPLING ASSEMBLY","JP131226",0,1,20,"WHEEL & BRAKE-WHEEL ASSEMBLY REAR",null,null,3,"AS (Assembly,Sub-Assy)"]
[null,null,null,"DT131213/02;1-COUPLING 6 LUG (Design) x 1","COUPLING 6 LUG","DT131213",2,1,10,"WHEEL & BRAKE-WHEEL ASSEMBLY REAR",null,null,4,"CA + M/C (Casting and Machined)"]
[null,null,null,"DT131214/00;1-SEAL OIL 52 DIA x 1","SEAL OIL","DT131214",0,1,20,"WHEEL & BRAKE-WHEEL ASSEMBLY REAR",null,null,4,"OS + OR (Oil Seals and O Rings)"]
[null,null,null,"KPAC6205/00;1-BEARING BALL ORDINARY CLEARANCE x 1","BEARING BALL ORDINARY CLEARANCE","KPAC6205",0,1,30,"WHEEL & BRAKE-WHEEL ASSEMBLY REAR",null,null,4,"BR (Bearings)"]
[null,null,null,"JY141001/01;1-SPROCKET x 1","SPROCKET","JY141001",1,1,40,"WHEEL & BRAKE-WHEEL ASSEMBLY REAR",null,null,4,"PR (Proprietary Components)"]
[null,null,null,"JG131228/05;2-BOLT D-M8X1.25XL48XCL 10.9XBLACK x 6","BOLT D-M8X1.25XL48XCL 10.9XBLACK","JG131228",5,6,50,"WHEEL & BRAKE-WHEEL ASSEMBLY REAR",null,null,4,"HW (Hardware includes nuts,washers)"]
[null,null,null,"LCL00004/02;1-NUT U FLANGE-M8X1.25XHT8.5XBRT x 6","NUT U FLANGE-M8X1.25XHT8.5XBRT","LCL00004",2,6,60,"WHEEL & BRAKE-WHEEL ASSEMBLY REAR",null,null,4,"HW (Hardware includes nuts,washers)"]
[null,null,null,"LZB00009/00;1-GREASE -LIMAPLEX HTX 3 x 3","GREASE -LIMAPLEX HTX 3","LZB00009",0,3,70,"WHEEL & BRAKE-WHEEL ASSEMBLY REAR",null,null,4,"HW1 (Oil,Grease,Coolant,Sealant)"]
[null,null,null,"JP131084/00;1-COLLAR x 1","COLLAR","JP131084",0,1,30,"WHEEL & BRAKE-WHEEL ASSEMBLY REAR",null,null,3,"BA (Bar or Turned components)"]
[null,null,null,"JP131230/00;1-COLLAR x 1","COLLAR","JP131230",0,1,40,"WHEEL & BRAKE-WHEEL ASSEMBLY REAR",null,null,3,"BA (Bar or Turned components)"]
[null,null,null,"JP131239/00;1-COLLAR x 1","COLLAR","JP131239",0,1,50,"WHEEL & BRAKE-WHEEL ASSEMBLY REAR",null,null,3,"BA (Bar or Turned components)"]
[null,null,null,"TA131214/00;1-AXLE x 1","AXLE","TA131214",0,1,60,"WHEEL & BRAKE-WHEEL ASSEMBLY REAR",null,null,3,"HW (Hardware includes nuts,washers)"]
[null,null,null,"KDAA1630/01;1-WASHER PLAIN SMALL x 1","WASHER_PLAIN_SMALL","KDAA1630",1,1,70,"WHEEL & BRAKE-WHEEL ASSEMBLY REAR",null,null,3,"HW (Hardware includes nuts,washers)"]
[null,null,null,"LCL00005/02;1-NUT U FLANGED-M16X1.5XHT. 16XGRN x 1","NUT U FLANGED-M16X1.5XHT. 16XGRN","LCL00005",2,1,80,"WHEEL & BRAKE-WHEEL ASSEMBLY REAR",null,null,3,"HW (Hardware includes nuts,washers)"]
[null,null,null,"<> x 1",null,null,null,1,30,"VEHICLE-SCHEME DRAWING",null,null,2]
[null,null,null,"JP161209/00.01;1-INSTALL CABLE CONTROL (Design) x 1","INSTALL CABLE CONTROL","JP161209",0.01,1,60,null,null,null,1,"AS (Assembly,Sub-Assy)"]
[null,null,null,"JU161203/02;1-CABLE CLUTCH (Design) x 1","CABLE CLUTCH","JU161203",2,1,10,"CONTROLS-CABLES",null,null,2,"PR (Proprietary Components)"]
[null,null,null,"JY161023/03;1-BOOT CLUTCH LEVER_ADJUSTABLE (Design) x 1","BOOT CLUTCH LEVER_ADJUSTABLE","JY161023",3,1,10,"CONTROLS-CABLES",null,null,3,"PL (Plastic Components)"]
[null,null,null,"JR232611/01;1-BRACKET LOCK SEAT (Design) x 1","BRACKET LOCK SEAT","JR232611",1,1,20,"SEATS-SEATS",null,null,2,"SM (Sheet Metal & Fabricated Parts)"]
[null,null,null,"JU232609/02;1-LATCH SEAT (Design) x 1","LATCH SEAT","JU232609",2,1,30,"SEATS-SEATS",null,null,2,"PR (Proprietary Components)"]
[null,null,null,"JR232613/01;1-CABLE LATCH SEAT (Design) x 1","CABLE LATCH SEAT","JR232613",1,1,40,"SEATS-SEATS",null,null,2,"PR (Proprietary Components)"]
[null,null,null,"LAC00008/03;1-SCREW BUTTON HEAD-M6X1XL20XBLACK x 2","SCREW BUTTON HEAD-M6X1","LAC00008",3,2,50,"SEATS-SEATS",null,null,2,"HW (Hardware includes nuts,washers)"]
[null,null,null,"JP231412/00.01;1-INSTALL HOLDER STEP (Design) x 1","INSTALL HOLDER STEP","JP231412",0.01,1,70,null,null,null,1,"AS (Assembly,Sub-Assy)"]
[null,null,null,"JP113077/00;1-HOLDER ASSEMBLY STEP RIDER LH (Design) x 1","HOLDER ASSEMBLY STEP RIDER LH","JP113077",0,1,10,null,null,null,2,"AS (Assembly,Sub-Assy)"]
[null,null,null,"JP113075/00;1-HOLDER STEP RIDER LH (Design) x 1","HOLDER STEP RIDER LH","JP113075",0,1,10,"CHASSIS-FOOTREST",null,null,3,"FO (Forging Route)"]
[null,null,null,"JP113081/00;1-GUARD HEEL LH x 1","GUARD HEEL LH","JP113081",0,1,20,"CHASSIS-FOOTREST",null,null,3,"PL (Plastic Components)"]
[null,null,null,"JY113025/00;1-BOLT CHANGE LEVER (Design) x 1","BOLT CHANGE LEVER","JY113025",0,1,30,"CHASSIS-FOOTREST",null,null,3,"HW (Hardware includes nuts,washers)"]
[null,null,null,"JY113015/00;1-WASHER CHANGE LEVER x 2","WASHER CHANGE LEVER","JY113015",0,2,40,"CHASSIS-FOOTREST",null,null,3,"HW (Hardware includes nuts,washers)"]
[null,null,null,"JU113037/02;1-PIN (Design) x 1","PIN","JU113037",2,1,50,"CHASSIS-FOOTREST",null,null,3,"BA (Bar or Turned components)"]
[null,null,null,"JP113035/02;1-SPRING TORSION (Design) x 1","SPRING TORSION","JP113035",2,1,60,"CHASSIS-FOOTREST",null,null,3,"SP (Springs)"]
[null,null,null,"30141031/04;1-RING O x 1","RING O",30141031,4,1,70,"CHASSIS-FOOTREST",null,null,3,"OS + OR (Oil Seals and O Rings)"]
[null,null,null,"KHAC2518/01;1-PIN COTTER-DIA. 2.5XL 18 x 1","PIN COTTER-DIA. 2.5XL 18","KHAC2518",1,1,80,"CHASSIS-FOOTREST",null,null,3,"HW (Hardware includes nuts,washers)"]
[null,null,null,"KDAA0816/01;1-WASHER-KDA-OD/ID/THK-16/8.5/1.2 x 1","WASHER_PLAIN_SMALL","KDAA0816",1,1,90,"CHASSIS-FOOTREST",null,null,3,"HW (Hardware includes nuts,washers)"]
[null,null,null,"JP113027/05;1-STEP ASSEMBLY RIDER LH (Design) x 1","STEP ASSEMBLY RIDER LH","JP113027",5,1,100,"CHASSIS-FOOTREST",null,null,3,"AS (Assembly,Sub-Assy)"]
[null,null,null,"JP113020/03;1-STEP RIDER LH (Design) x 1","STEP RIDER LH","JP113020",3,1,10,"CHASSIS-FOOTREST",null,null,4,"CA + M/C (Casting and Machined)"]
[null,null,null,"JP113025/03;1-PAD STEP (Design) x 1","PAD STEP","JP113025",3,1,20,"CHASSIS-FOOTREST",null,null,4,"RU (Rubber Components)"]
[null,null,null,"JP113024/04;1-PLATE (Design) x 1","PLATE","JP113024",4,1,10,"CHASSIS-FOOTREST",null,null,5,"SM (Sheet Metal & Fabricated Parts)"]
[null,null,null,"JP113026/02;1-HOLDER x 1","HOLDER","JP113026",2,1,10,"CHASSIS-FOOTREST",null,null,6,"BA (Bar or Turned components)"]
[null,null,null,"KDAA0611/01;1-WASHER_PLAIN_SMALL x 1","WASHER_PLAIN_SMALL","KDAA0611",1,1,30,"CHASSIS-FOOTREST",null,null,4,"HW (Hardware includes nuts,washers)"]
[null,null,null,"JG113052/01;1-BOLT M6X1 x 1","BOLT M6X1","JG113052",1,1,40,"CHASSIS-FOOTREST",null,null,4,"HW (Hardware includes nuts,washers)"]
[null,null,null,"LAC00115/01;1-BOLT SOCKET-M6X1XL18XBLKXPRECOAT x 2","BOLT SOCKET-M6X1XL18XBLKXPRECOAT","LAC00115",1,2,110,"CHASSIS-FOOTREST",null,null,3,"HW (Hardware includes nuts,washers)"]
[null,null,null,"JP561407/00;1-ASSEMBLY LEVER GEAR CHANGE (Design) x 1","ASSEMBLY LEVER GEAR CHANGE","JP561407",0,1,120,"CHASSIS-FOOTREST",null,null,3,"AS (Assembly,Sub-Assy)"]
[null,null,null,"JP561405/00;1-LEVER ASSEMBLY CHANGE (Design) x 1","LEVER ASSEMBLY CHANGE","JP561405",0,1,10,"GEAR SHIFT MECHANISM-LEVER GEAR SHIFT",null,null,4,"AS (Assembly,Sub-Assy)"]
[null,null,null,"JP561220/00;1-LEVER CHANGE x 1","LEVER CHANGE","JP561220",0,1,10,"GEAR SHIFT MECHANISM-LEVER GEAR SHIFT",null,null,5,"FO (Forging Route)"]
[null,null,null,"JU161005/03;1-PIN BRAKE LEVER (Design) x 1","PIN BRAKE LEVER","JU161005",3,1,20,"GEAR SHIFT MECHANISM-LEVER GEAR SHIFT",null,null,5,"BA (Bar or Turned components)"]
[null,null,null,"JG113061/01;1-BEARING CHANGE LEVER x 2","BEARING CHANGE LEVER","JG113061",1,2,30,"GEAR SHIFT MECHANISM-LEVER GEAR SHIFT",null,null,5,"BR (Bearings)"]
[null,null,null,"JG113010/03;1-DAMPER CHANGE LEVER x 1","DAMPER CHANGE LEVER","JG113010",3,1,40,"GEAR SHIFT MECHANISM-LEVER GEAR SHIFT",null,null,5,"RU (Rubber Components)"]
[null,null,null,"JP561406/00;1-ROD ASSEMBLY TIE (Design) x 1","ROD ASSEMBLY TIE","JP561406",0,1,20,"GEAR SHIFT MECHANISM-LEVER GEAR SHIFT",null,null,4,"AS (Assembly,Sub-Assy)"]
[null,null,null,"JP561408/00;1-ROD TIE x 1","ROD TIE","JP561408",0,1,10,"GEAR SHIFT MECHANISM-LEVER GEAR SHIFT",null,null,5,"FO (Forging Route)"]
[null,null,null,"LCA00026/00;1-NUT HEX M6X1 LH x 1","NUT HEX M6X1 LH","LCA00026",0,1,20,"GEAR SHIFT MECHANISM-LEVER GEAR SHIFT",null,null,5,"HW (Hardware includes nuts,washers)"]
[null,null,null,"KCAK0605/00;1-NUT HEX THICK-M6X1XHT 5XBLACK x 1","NUT HEX THICK-M6X1XHT 5XBLACK","KCAK0605",0,1,30,"GEAR SHIFT MECHANISM-LEVER GEAR SHIFT",null,null,5,"HW (Hardware includes nuts,washers)"]
[null,null,null,"JG113048/07;1-JOINT BALL LH (Design) x 1","JOINT BALL LH","JG113048",7,1,40,"GEAR SHIFT MECHANISM-LEVER GEAR SHIFT",null,null,5,"AS (Assembly,Sub-Assy)"]
[null,null,null,"JG113078/00;1-COVER DUST TIE ROD x 1","COVER DUST TIE ROD","JG113078",0,1,10,"GEAR SHIFT MECHANISM-LEVER GEAR SHIFT",null,null,6,"RU (Rubber Components)"]
[null,null,null,"JG113049/07;1-JOINT BALL RH (Design) x 1","JOINT BALL RH","JG113049",7,1,50,"GEAR SHIFT MECHANISM-LEVER GEAR SHIFT",null,null,5,"AS (Assembly,Sub-Assy)"]
[null,null,null,"JG113078/00;1-COVER DUST TIE ROD x 1","COVER DUST TIE ROD","JG113078",0,1,10,"GEAR SHIFT MECHANISM-LEVER GEAR SHIFT",null,null,6,"RU (Rubber Components)"]
[null,null,null,"JP561400/03;1-ARM CHANGE x 1","ARM CHANGE","JP561400",3,1,30,"GEAR SHIFT MECHANISM-LEVER GEAR SHIFT",null,null,4,"FO (Forging Route)"]
[null,null,null,"JH181262/01;1-COLLAR x 2","COLLAR","JH181262",1,2,130,"CHASSIS-FOOTREST",null,null,3,"BA (Bar or Turned components)"]
[null,null,null,"JP113078/00;1-HOLDER ASSEMBLY STEP RIDER RH (Design) x 1","HOLDER ASSEMBLY STEP RIDER RH","JP113078",0,1,20,null,null,null,2,"AS (Assembly,Sub-Assy)"]
[null,null,null,"JP113063/00;1-HOLDER STEP RIDER RH (Design) x 1","HOLDER STEP RIDER RH","JP113063",0,1,10,"CHASSIS-FOOTREST",null,null,3,"FO (Forging Route)"]
[null,null,null,"JP113028/05;1-STEP ASSEMBLY RIDER RH (Design) x 1","STEP ASSEMBLY RIDER RH","JP113028",5,1,20,"CHASSIS-FOOTREST",null,null,3,"AS (Assembly,Sub-Assy)"]
[null,null,null,"JP113021/03;1-STEP RIDER RH (Design) x 1","STEP RIDER RH","JP113021",3,1,10,"CHASSIS-FOOTREST",null,null,4,"CA + M/C (Casting and Machined)"]
[null,null,null,"JP113025/03;1-PAD STEP (Design) x 1","PAD STEP","JP113025",3,1,20,"CHASSIS-FOOTREST",null,null,4,"RU (Rubber Components)"]
[null,null,null,"JP113024/04;1-PLATE (Design) x 1","PLATE","JP113024",4,1,10,"CHASSIS-FOOTREST",null,null,5,"SM (Sheet Metal & Fabricated Parts)"]
[null,null,null,"JP113026/02;1-HOLDER x 1","HOLDER","JP113026",2,1,10,"CHASSIS-FOOTREST",null,null,6,"BA (Bar or Turned components)"]
[null,null,null,"KDAA0611/01;1-WASHER_PLAIN_SMALL x 1","WASHER_PLAIN_SMALL","KDAA0611",1,1,30,"CHASSIS-FOOTREST",null,null,4,"HW (Hardware includes nuts,washers)"]
[null,null,null,"JG113052/01;1-BOLT M6X1 x 1","BOLT M6X1","JG113052",1,1,40,"CHASSIS-FOOTREST",null,null,4,"HW (Hardware includes nuts,washers)"]
[null,null,null,"JP113035/02;1-SPRING TORSION (Design) x 1","SPRING TORSION","JP113035",2,1,30,"CHASSIS-FOOTREST",null,null,3,"SP (Springs)"]
[null,null,null,"JU113037/02;1-PIN (Design) x 1","PIN","JU113037",2,1,40,"CHASSIS-FOOTREST",null,null,3,"BA (Bar or Turned components)"]
[null,null,null,"30141031/04;1-RING O x 1","RING O",30141031,4,1,50,"CHASSIS-FOOTREST",null,null,3,"OS + OR (Oil Seals and O Rings)"]
[null,null,null,"KDAA0816/01;1-WASHER-KDA-OD/ID/THK-16/8.5/1.2 x 1","WASHER_PLAIN_SMALL","KDAA0816",1,1,60,"CHASSIS-FOOTREST",null,null,3,"HW (Hardware includes nuts,washers)"]
[null,null,null,"KHAC2518/01;1-PIN COTTER-DIA. 2.5XL 18 x 1","PIN COTTER-DIA. 2.5XL 18","KHAC2518",1,1,70,"CHASSIS-FOOTREST",null,null,3,"HW (Hardware includes nuts,washers)"]
[null,null,null,"JY113015/00;1-WASHER CHANGE LEVER x 2","WASHER CHANGE LEVER","JY113015",0,2,80,"CHASSIS-FOOTREST",null,null,3,"HW (Hardware includes nuts,washers)"]
[null,null,null,"JY113025/00;1-BOLT CHANGE LEVER (Design) x 1","BOLT CHANGE LEVER","JY113025",0,1,90,"CHASSIS-FOOTREST",null,null,3,"HW (Hardware includes nuts,washers)"]
[null,null,null,"JP113082/00;1-GUARD HEEL RH x 1","GUARD HEEL RH","JP113082",0,1,100,"CHASSIS-FOOTREST",null,null,3,"PL (Plastic Components)"]
[null,null,null,"JH181262/01;1-COLLAR x 2","COLLAR","JH181262",1,2,110,"CHASSIS-FOOTREST",null,null,3,"BA (Bar or Turned components)"]
[null,null,null,"LAC00115/01;1-BOLT SOCKET-M6X1XL18XBLKXPRECOAT x 1","BOLT SOCKET-M6X1XL18XBLKXPRECOAT","LAC00115",1,1,120,"CHASSIS-FOOTREST",null,null,3,"HW (Hardware includes nuts,washers)"]
[null,null,null,"KACA0625/02;1-BOLT SOCKET M6X1 x 1","BOLT SOCKET M6X1","KACA0625",2,1,130,"CHASSIS-FOOTREST",null,null,3,"HW (Hardware includes nuts,washers)"]
[null,null,null,"JP161014/00;1-LEVER ASSEMBLY BRAKE (Design) x 1","LEVER ASSEMBLY BRAKE","JP161014",0,1,160,"CHASSIS-FOOTREST",null,null,3,"AS (Assembly,Sub-Assy)"]
[null,null,null,"JP161012/00;1-LEVER BRAKE x 1","LEVER BRAKE","JP161012",0,1,10,"CHASSIS-FOOTREST",null,null,4,"FO (Forging Route)"]
[null,null,null,"JG113010/03;1-DAMPER CHANGE LEVER x 1","DAMPER CHANGE LEVER","JG113010",3,1,20,"CHASSIS-FOOTREST",null,null,4,"RU (Rubber Components)"]
[null,null,null,"JU161005/03;1-PIN BRAKE LEVER (Design) x 1","PIN BRAKE LEVER","JU161005",3,1,30,"CHASSIS-FOOTREST",null,null,4,"BA (Bar or Turned components)"]
[null,null,null,"JG113061/01;1-BEARING CHANGE LEVER x 2","BEARING CHANGE LEVER","JG113061",1,2,40,"CHASSIS-FOOTREST",null,null,4,"BR (Bearings)"]
[null,null,null,"JG161001/07;1-SPRING TENSION x 1","SPRING TENSION","JG161001",7,1,170,"CHASSIS-FOOTREST",null,null,3,"SP (Springs)"]
[null,null,null,"JP113079/00;1-HOLDER ASSEMBLY STEP PILLION LH (Design) x 1","HOLDER ASSEMBLY STEP PILLION LH","JP113079",0,1,30,null,null,null,2,"AS (Assembly,Sub-Assy)"]
[null,null,null,"JP113065/02;1-HOLDER STEP PILLION LH (Design) x 1","HOLDER STEP PILLION LH","JP113065",2,1,10,"CHASSIS-FOOTREST",null,null,3,"FO (Forging Route)"]
[null,null,null,"JP113029/05;1-STEP ASSEMBLY PILLION LH (Design) x 1","STEP ASSEMBLY PILLION LH","JP113029",5,1,20,"CHASSIS-FOOTREST",null,null,3,"AS (Assembly,Sub-Assy)"]
[null,null,null,"JP113022/03;1-STEP PILLION LH (Design) x 1","STEP PILLION LH","JP113022",3,1,10,"CHASSIS-FOOTREST",null,null,4,"CA + M/C (Casting and Machined)"]
[null,null,null,"JP113025/03;1-PAD STEP (Design) x 1","PAD STEP","JP113025",3,1,20,"CHASSIS-FOOTREST",null,null,4,"RU (Rubber Components)"]
[null,null,null,"JP113024/04;1-PLATE (Design) x 1","PLATE","JP113024",4,1,10,"CHASSIS-FOOTREST",null,null,5,"SM (Sheet Metal & Fabricated Parts)"]
[null,null,null,"JP113026/02;1-HOLDER x 1","HOLDER","JP113026",2,1,10,"CHASSIS-FOOTREST",null,null,6,"BA (Bar or Turned components)"]
[null,null,null,"KDAA0611/01;1-WASHER_PLAIN_SMALL x 1","WASHER_PLAIN_SMALL","KDAA0611",1,1,30,"CHASSIS-FOOTREST",null,null,4,"HW (Hardware includes nuts,washers)"]
[null,null,null,"JG113052/01;1-BOLT M6X1 x 1","BOLT M6X1","JG113052",1,1,40,"CHASSIS-FOOTREST",null,null,4,"HW (Hardware includes nuts,washers)"]
[null,null,null,"JD113014/01;1-BALL & SPRING ASSY x 1","BALL & SPRING ASSY","JD113014",1,1,50,"CHASSIS-FOOTREST",null,null,4,"AS (Assembly,Sub-Assy)"]
[null,null,null,"JU113037/02;1-PIN (Design) x 1","PIN","JU113037",2,1,30,"CHASSIS-FOOTREST",null,null,3,"BA (Bar or Turned components)"]
[null,null,null,"JU113045/01;1-PLATE LOCK LOWER x 1","PLATE LOCK LOWER","JU113045",1,1,40,"CHASSIS-FOOTREST",null,null,3,"PL (Plastic Components)"]
[null,null,null,"JU113044/01;1-PLATE LOCK UPPER x 1","PLATE LOCK UPPER","JU113044",1,1,50,"CHASSIS-FOOTREST",null,null,3,"PL (Plastic Components)"]
[null,null,null,"30141031/04;1-RING O x 1","RING O",30141031,4,1,60,"CHASSIS-FOOTREST",null,null,3,"OS + OR (Oil Seals and O Rings)"]
[null,null,null,"LDB00065/00;1-WASHER PLAIN-ID8.5XOD 18XTHK 1.6 x 1","WASHER PLAIN-ID8.5XOD 18XTHK 1.6","LDB00065",0,1,70,"CHASSIS-FOOTREST",null,null,3,"HW (Hardware includes nuts,washers)"]
[null,null,null,"KHAC2518/01;1-PIN COTTER-DIA. 2.5XL 18 x 1","PIN COTTER-DIA. 2.5XL 18","KHAC2518",1,1,80,"CHASSIS-FOOTREST",null,null,3,"HW (Hardware includes nuts,washers)"]
[null,null,null,"JP113089/00;1-GUARD HEEL PILLION LH x 1","GUARD HEEL PILLION LH","JP113089",0,1,90,"CHASSIS-FOOTREST",null,null,3,"PL (Plastic Components)"]
[null,null,null,"LAC00115/01;1-BOLT SOCKET-M6X1XL18XBLKXPRECOAT x 2","BOLT SOCKET-M6X1XL18XBLKXPRECOAT","LAC00115",1,2,100,"CHASSIS-FOOTREST",null,null,3,"HW (Hardware includes nuts,washers)"]
[null,null,null,"JH181262/01;1-COLLAR x 2","COLLAR","JH181262",1,2,110,"CHASSIS-FOOTREST",null,null,3,"BA (Bar or Turned components)"]
[null,null,null,"JP113080/00;1-HOLDER ASSEMBLY STEP PILLION RH (Design) x 1","HOLDER ASSEMBLY STEP PILLION RH","JP113080",0,1,40,null,null,null,2,"AS (Assembly,Sub-Assy)"]
[null,null,null,"JP113066/01;1-HOLDER STEP PILLION RH (Design) x 1","HOLDER STEP PILLION RH","JP113066",1,1,10,"CHASSIS-FOOTREST",null,null,3,"FO (Forging Route)"]
[null,null,null,"JP113030/05;1-STEP ASSEMBLY PILLION RH (Design) x 1","STEP ASSEMBLY PILLION RH","JP113030",5,1,20,"CHASSIS-FOOTREST",null,null,3,"AS (Assembly,Sub-Assy)"]
[null,null,null,"JP113023/03;1-STEP PILLION RH (Design) x 1","STEP PILLION RH","JP113023",3,1,10,"CHASSIS-FOOTREST",null,null,4,"CA + M/C (Casting and Machined)"]
[null,null,null,"JP113025/03;1-PAD STEP (Design) x 1","PAD STEP","JP113025",3,1,20,"CHASSIS-FOOTREST",null,null,4,"RU (Rubber Components)"]
[null,null,null,"JP113024/04;1-PLATE (Design) x 1","PLATE","JP113024",4,1,10,"CHASSIS-FOOTREST",null,null,5,"SM (Sheet Metal & Fabricated Parts)"]
[null,null,null,"JP113026/02;1-HOLDER x 1","HOLDER","JP113026",2,1,10,"CHASSIS-FOOTREST",null,null,6,"BA (Bar or Turned components)"]
[null,null,null,"KDAA0611/01;1-WASHER_PLAIN_SMALL x 1","WASHER_PLAIN_SMALL","KDAA0611",1,1,30,"CHASSIS-FOOTREST",null,null,4,"HW (Hardware includes nuts,washers)"]
[null,null,null,"JG113052/01;1-BOLT M6X1 x 1","BOLT M6X1","JG113052",1,1,40,"CHASSIS-FOOTREST",null,null,4,"HW (Hardware includes nuts,washers)"]
[null,null,null,"JD113014/01;1-BALL & SPRING ASSY x 1","BALL & SPRING ASSY","JD113014",1,1,50,"CHASSIS-FOOTREST",null,null,4,"AS (Assembly,Sub-Assy)"]
[null,null,null,"JU113037/02;1-PIN (Design) x 1","PIN","JU113037",2,1,30,"CHASSIS-FOOTREST",null,null,3,"BA (Bar or Turned components)"]
[null,null,null,"30141031/04;1-RING O x 1","RING O",30141031,4,1,40,"CHASSIS-FOOTREST",null,null,3,"OS + OR (Oil Seals and O Rings)"]
[null,null,null,"LDB00065/00;1-WASHER PLAIN-ID8.5XOD 18XTHK 1.6 x 1","WASHER PLAIN-ID8.5XOD 18XTHK 1.6","LDB00065",0,1,50,"CHASSIS-FOOTREST",null,null,3,"HW (Hardware includes nuts,washers)"]
[null,null,null,"KHAC2518/01;1-PIN COTTER-DIA. 2.5XL 18 x 1","PIN COTTER-DIA. 2.5XL 18","KHAC2518",1,1,60,"CHASSIS-FOOTREST",null,null,3,"HW (Hardware includes nuts,washers)"]
[null,null,null,"JU113044/01;1-PLATE LOCK UPPER x 1","PLATE LOCK UPPER","JU113044",1,1,70,"CHASSIS-FOOTREST",null,null,3,"PL (Plastic Components)"]
[null,null,null,"JU113045/01;1-PLATE LOCK LOWER x 1","PLATE LOCK LOWER","JU113045",1,1,80,"CHASSIS-FOOTREST",null,null,3,"PL (Plastic Components)"]
[null,null,null,"JP113090/00;1-GUARD HEEL PILLION RH (Design) x 1","GUARD HEEL PILLION RH","JP113090",0,1,90,"CHASSIS-FOOTREST",null,null,3,"PL (Plastic Components)"]
[null,null,null,"JH181262/01;1-COLLAR x 2","COLLAR","JH181262",1,2,100,"CHASSIS-FOOTREST",null,null,3,"BA (Bar or Turned components)"]
[null,null,null,"LAC00115/01;1-BOLT SOCKET-M6X1XL18XBLKXPRECOAT x 2","BOLT SOCKET-M6X1XL18XBLKXPRECOAT","LAC00115",1,2,110,"CHASSIS-FOOTREST",null,null,3,"HW (Hardware includes nuts,washers)"]
[null,null,null,"LAC00045/00;1-BOLT SOCKET-M8X1.25XL20XPRE-COAT x 8","BOLT SOCKET-M8X1.25XL20XPRE-COAT","LAC00045",0,8,50,null,null,null,2,"HW (Hardware includes nuts,washers)"]
[null,null,null,"LAD00278/00;1-BOLT FLANGED M6X1 x 1","BOLT FLANGED M6X1","LAD00278",0,1,60,null,null,null,2,"HW (Hardware includes nuts,washers)"]
[null,null,null,"JP121158/00.00;1-ASSEMBLY SCHEME SUSPENSION (Design) x 1","ASSEMBLY SCHEME SUSPENSION","JP121158",0,1,80,null,null,null,1,"AS (Assembly,Sub-Assy)"]
[null,null,null,"JP121159/00;1-INSTALL FORK FRONT (Design) x 1","INSTALL FORK FRONT","JP121159",0,1,10,"SUSPENSION-REAR SUSPENSION",null,null,2,"AS (Assembly,Sub-Assy)"]
[null,null,null,"JP121160/00;1-FORK FRONT (Design) x 1","FORK FRONT","JP121160",0,1,10,"SUSPENSION-FRONT SUSP (INCLUDING FRONT BRAKE )",null,null,3,"PR (Proprietary Components)"]
[null,null,null,"JP121161/00;1-LEG ASSEMBLY LH (Design) x 1","LEG ASSEMBLY LH","JP121161",0,1,10,"SUSPENSION-FRONT SUSP (INCLUDING FRONT BRAKE )",null,null,4,"PR (Proprietary Components)"]
[null,null,null,"JP121148/01;1-CLAMP AXLE LH x 1","CLAMP AXLE LH","JP121148",1,1,10,"SUSPENSION-FRONT SUSP (INCLUDING FRONT BRAKE )",null,null,5,"PR (Proprietary Components)"]
[null,null,null,"JG121028/01;1-FORK FRONT DUST COVER x 1","FORK FRONT DUST COVER","JG121028",1,1,20,"SUSPENSION-FRONT SUSP (INCLUDING FRONT BRAKE )",null,null,5,"PR (Proprietary Components)"]
[null,null,null,"JP121045/01;2-OIL PACKED FOR SINGLE LEG x 420","OIL FORK FRONT","JP121045",1,420,30,"SUSPENSION-FRONT SUSP (INCLUDING FRONT BRAKE )",null,null,5,"PR (Proprietary Components)"]
[null,null,null,"JU121009/00;1-CIRCLIP x 1","CIRCLIP","JU121009",0,1,40,"SUSPENSION-FRONT SUSP (INCLUDING FRONT BRAKE )",null,null,5,"PR (Proprietary Components)"]
[null,null,null,"JP121040/00;1-GUIDE BUSH UPPER x 1","GUIDE BUSH UPPER","JP121040",0,1,50,"SUSPENSION-FRONT SUSP (INCLUDING FRONT BRAKE )",null,null,5,"PR (Proprietary Components)"]
[null,null,null,"JP121041/00;1-GUIDE BUSH LOWER x 1","GUIDE BUSH LOWER","JP121041",0,1,60,"SUSPENSION-FRONT SUSP (INCLUDING FRONT BRAKE )",null,null,5,"PR (Proprietary Components)"]
[null,null,null,"LDB00036/00;1-WASHER PLAIN-ID45XOD 52.5XTHK1.5 x 1","WASHER PLAIN-ID45XOD 52.5XTHK1.5","LDB00036",0,1,70,"SUSPENSION-FRONT SUSP (INCLUDING FRONT BRAKE )",null,null,5,"HW (Hardware includes nuts,washers)"]
[null,null,null,"LAC00126/00;1-BOLT SOCKET-M10X1.5XL 25XBRIGHT x 1","BOLT SOCKET-M10X1.5XL 25XBRIGHT","LAC00126",0,1,80,"SUSPENSION-FRONT SUSP (INCLUDING FRONT BRAKE )",null,null,5,"HW (Hardware includes nuts,washers)"]
[null,null,null,"JP121162/00;1-LEG ASSEMBLY RH (Design) x 1","LEG ASSEMBLY RH","JP121162",0,1,20,"SUSPENSION-FRONT SUSP (INCLUDING FRONT BRAKE )",null,null,4,"PR (Proprietary Components)"]
[null,null,null,"JP121149/01;1-CLAMP AXLE RH x 1","CLAMP AXLE RH","JP121149",1,1,10,"SUSPENSION-FRONT SUSP (INCLUDING FRONT BRAKE )",null,null,5,"PR (Proprietary Components)"]
[null,null,null,"JG121028/01;1-FORK FRONT DUST COVER x 1","FORK FRONT DUST COVER","JG121028",1,1,20,"SUSPENSION-FRONT SUSP (INCLUDING FRONT BRAKE )",null,null,5,"PR (Proprietary Components)"]
[null,null,null,"JP121045/01;2-OIL PACKED FOR SINGLE LEG x 420","OIL FORK FRONT","JP121045",1,420,30,"SUSPENSION-FRONT SUSP (INCLUDING FRONT BRAKE )",null,null,5,"PR (Proprietary Components)"]
[null,null,null,"JU121009/00;1-CIRCLIP x 1","CIRCLIP","JU121009",0,1,40,"SUSPENSION-FRONT SUSP (INCLUDING FRONT BRAKE )",null,null,5,"PR (Proprietary Components)"]
[null,null,null,"JP121040/00;1-GUIDE BUSH UPPER x 1","GUIDE BUSH UPPER","JP121040",0,1,50,"SUSPENSION-FRONT SUSP (INCLUDING FRONT BRAKE )",null,null,5,"PR (Proprietary Components)"]
[null,null,null,"JP121041/00;1-GUIDE BUSH LOWER x 1","GUIDE BUSH LOWER","JP121041",0,1,60,"SUSPENSION-FRONT SUSP (INCLUDING FRONT BRAKE )",null,null,5,"PR (Proprietary Components)"]
[null,null,null,"LDB00036/00;1-WASHER PLAIN-ID45XOD 52.5XTHK1.5 x 1","WASHER PLAIN-ID45XOD 52.5XTHK1.5","LDB00036",0,1,70,"SUSPENSION-FRONT SUSP (INCLUDING FRONT BRAKE )",null,null,5,"HW (Hardware includes nuts,washers)"]
[null,null,null,"LAC00126/00;1-BOLT SOCKET-M10X1.5XL 25XBRIGHT x 1","BOLT SOCKET-M10X1.5XL 25XBRIGHT","LAC00126",0,1,80,"SUSPENSION-FRONT SUSP (INCLUDING FRONT BRAKE )",null,null,5,"HW (Hardware includes nuts,washers)"]
[null,null,null,"JY121011/02;1-BOLT SOCKET-M8X1.25XL30XCL8.8XBL x 6","BOLT SOCKET-M8X1.25XL30XCL8.8XBL","JY121011",2,6,30,"SUSPENSION-FRONT SUSP (INCLUDING FRONT BRAKE )",null,null,4,"HW (Hardware includes nuts,washers)"]
[null,null,null,"JP121147/00;1-BRACKET ASSEMBLY UNDER (Design) x 1","BRACKET ASSEMBLY UNDER","JP121147",0,1,40,"SUSPENSION-FRONT SUSP (INCLUDING FRONT BRAKE )",null,null,4,"PR (Proprietary Components)"]
[null,null,null,"JG151024/02;1-WASHER PLAIN x 1","WASHER PLAIN","JG151024",2,1,10,"SUSPENSION-FRONT SUSP (INCLUDING FRONT BRAKE )",null,null,5,"HW (Hardware includes nuts,washers)"]
[null,null,null,"DG181004/00;1-SEAL-OIL (Design) x 1","SEAL-OIL","DG181004",0,1,20,"SUSPENSION-FRONT SUSP (INCLUDING FRONT BRAKE )",null,null,5,"PR (Proprietary Components)"]
[null,null,null,"JY121128/02;1-TUBE STEERING (Design) x 1","TUBE STEERING","JY121128",2,1,30,"SUSPENSION-FRONT SUSP (INCLUDING FRONT BRAKE )",null,null,5,"BTP (Build To Print)"]
[null,null,null,"DG181005/02;1-BEARING CONE x 1","BEARING CONE","DG181005",2,1,40,"SUSPENSION-FRONT SUSP (INCLUDING FRONT BRAKE )",null,null,5,"PR (Proprietary Components)"]
[null,null,null,"JP121115/01;1-BRACKET UNDER (Design) x 1","BRACKET UNDER","JP121115",1,1,50,"SUSPENSION-FRONT SUSP (INCLUDING FRONT BRAKE )",null,null,5,"PR (Proprietary Components)"]
[null,null,null,"DK181050/02;1-CAGE BEARING STEERING TOP (Design) x 1","CAGE BEARING STEERING TOP","DK181050",2,1,20,"SUSPENSION-FRONT SUSP (INCLUDING FRONT BRAKE )",null,null,3,"PL (Plastic Components)"]
[null,null,null,"KMAA0800/00;1-BALL STEEL x 19","BALL STEEL","KMAA0800",0,19,10,"STEERING-HANDLE BAR/ STEERING COLUMN",null,null,4,"BR (Bearings)"]
[null,null,null,"DG181045/02;1-BEARING CONE UPPER x 1","BEARING CONE UPPER","DG181045",2,1,30,"SUSPENSION-FRONT SUSP (INCLUDING FRONT BRAKE )",null,null,3,"FO (Forging Route)"]
[null,null,null,"DK181076/04;1-CUP STEERING x 1","CUP STEERING","DK181076",4,1,40,"SUSPENSION-FRONT SUSP (INCLUDING FRONT BRAKE )",null,null,3,"PL (Plastic Components)"]
[null,null,null,"DK181075/04;1-NUT STEERING (Design) x 1","NUT STEERING","DK181075",4,1,50,"SUSPENSION-FRONT SUSP (INCLUDING FRONT BRAKE )",null,null,3,"BA (Bar or Turned components)"]
[null,null,null,"JG121015/01;1-PLUG STEERING TUBE x 1","PLUG STEERING TUBE","JG121015",1,1,60,"SUSPENSION-FRONT SUSP (INCLUDING FRONT BRAKE )",null,null,3,"RU (Rubber Components)"]
[null,null,null,"DG181046/04;1-RACE BEARING UPPER x 1","RACE BEARING UPPER","DG181046",4,1,70,"SUSPENSION-FRONT SUSP (INCLUDING FRONT BRAKE )",null,null,3,"FO (Forging Route)"]
[null,null,null,"DG181047/03;1-RACE BEARING LOWER x 1","RACE BEARING LOWER","DG181047",3,1,80,"SUSPENSION-FRONT SUSP (INCLUDING FRONT BRAKE )",null,null,3,"FO (Forging Route)"]
[null,null,null,"LBU00050/02;1-SCREW BUTTON HEAD-M6X1XL9XPRECOAT (Design) x 2","SCREW BUTTON HEAD STEP M6X1","LBU00050",2,2,90,"WHEEL & BRAKE-BRAKE SYSTEM",null,null,3,"HW (Hardware includes nuts,washers)"]
[null,null,null,"LZB00009/00;1-GREASE -LIMAPLEX HTX 3 x 10","GREASE -LIMAPLEX HTX 3","LZB00009",0,10,100,"SUSPENSION-FRONT SUSP (INCLUDING FRONT BRAKE )",null,null,3,"HW1 (Oil,Grease,Coolant,Sealant)"]
[null,null,null,"JP121142/00;1-HOLDER INDICATOR FRONT LH (Design) x 1","HOLDER INDICATOR FRONT LH","JP121142",0,1,110,"ELECTRICAL/ELECTRONICS VEHICLE-LIGHTS",null,null,3,"PL (Plastic Components)"]
[null,null,null,"JR171006/01;1-INSERT M5 x 1","INSERT M5","JR171006",1,1,10,"SUSPENSION-FRONT SUSP (INCLUDING FRONT BRAKE )",null,null,4,"PR (Proprietary Components)"]
[null,null,null,"JP121143/00;1-HOLDER INDICATOR FRONT RH (Design) x 1","HOLDER INDICATOR FRONT RH","JP121143",0,1,120,"ELECTRICAL/ELECTRONICS VEHICLE-LIGHTS",null,null,3,"PL (Plastic Components)"]
[null,null,null,"JR171006/01;1-INSERT M5 x 1","INSERT M5","JR171006",1,1,10,"SUSPENSION-FRONT SUSP (INCLUDING FRONT BRAKE )",null,null,4,"PR (Proprietary Components)"]
[null,null,null,"LBU00184/00;2-SCREW BUTTON HEAD STEP M5X0.8 x 2","SCREW BUTTON HEAD STEP M5X0.8","LBU00184",0,2,130,"SUSPENSION-FRONT SUSP (INCLUDING FRONT BRAKE )",null,null,3,"HW (Hardware includes nuts,washers)"]
[null,null,null,"LDA00041/02;1-WASHER PLAIN x 2","WASHER PLAIN","LDA00041",2,2,140,"SUSPENSION-FRONT SUSP (INCLUDING FRONT BRAKE )",null,null,3,"PL (Plastic Components)"]
[null,null,null,"DK181051/03;1-CAGE BEARING STEERING BOTTOM (Design) x 1","CAGE BEARING STEERING BOTTOM","DK181051",3,1,150,"SUSPENSION-FRONT SUSP (INCLUDING FRONT BRAKE )",null,null,3,"PL (Plastic Components)"]
[null,null,null,"KMAA0800/00;1-BALL STEEL x 20","BALL STEEL","KMAA0800",0,20,10,"STEERING-HANDLE BAR/ STEERING COLUMN",null,null,4,"BR (Bearings)"]
[null,null,null,"JP131887/00;1-GUIDE CABLE (Design) x 1","GUIDE CABLE","JP131887",0,1,160,"SUSPENSION-FRONT SUSP (INCLUDING FRONT BRAKE )",null,null,3,"PL (Plastic Components)"]
[null,null,null,"JP401018/01;1-INDICATOR FRONT LH (Design) x 1","INDICATOR FRONT LH","JP401018",1,1,170,"SUSPENSION-FRONT SUSP (INCLUDING FRONT BRAKE )",null,null,3,"EE (Electrical, Electronics)"]
[null,null,null,"JP401019/01;1-INDICATOR FRONT RH (Design) x 1","INDICATOR FRONT RH","JP401019",1,1,180,"SUSPENSION-FRONT SUSP (INCLUDING FRONT BRAKE )",null,null,3,"EE (Electrical, Electronics)"]
[null,null,null,"KCBK1006/00;1-NUT HEX THIN-M10X1.25XHT. 6XBLK x 2","NUT HEX THIN-M10X1.25XHT. 6XBLK","KCBK1006",0,2,190,"SUSPENSION-FRONT SUSP (INCLUDING FRONT BRAKE )",null,null,3,"HW (Hardware includes nuts,washers)"]
[null,null,null,"KDFB1018/01;1-WASHER TOOTHED INTERNAL x 2","WASHER TOOTHED INTERNAL","KDFB1018",1,2,200,"SUSPENSION-FRONT SUSP (INCLUDING FRONT BRAKE )",null,null,3,"HW (Hardware includes nuts,washers)"]
[null,null,null,"KDAA1018/01;1-WASHER PLAIN x 2","WASHER_PLAIN_SMALL","KDAA1018",1,2,210,"SUSPENSION-FRONT SUSP (INCLUDING FRONT BRAKE )",null,null,3,"HW (Hardware includes nuts,washers)"]
[null,null,null,"JP122055/00.00;1-INSTALL SHOCKABSORBER (Design) x 1","INSTALL SHOCKABSORBER","JP122055",0,1,20,"SUSPENSION-REAR SUSPENSION",null,null,2,"AS (Assembly,Sub-Assy)"]
[null,null,null,"LZE00009/00;1-SEALANT -LOCTITE 620 (Design) x 1","SEALANT -LOCTITE 620","LZE00009",0,1,10,"SUSPENSION-REAR SUSPENSION",null,null,3,"HW1 (Oil,Grease,Coolant,Sealant)"]
[null,null,null,"JP122056/00;1-SHOCKABSORBER REAR x 1","SHOCKABSORBER REAR","JP122056",0,1,50,"SUSPENSION-REAR SUSPENSION",null,null,3,"PR (Proprietary Components)"]
[null,null,null,"JP122057/00;1-BUSH x 1","BUSH","JP122057",0,1,60,null,null,null,3,"BA (Bar or Turned components)"]
[null,null,null,"LAC00200/00;1-BOLT SOCKET M10X1.25 x 1","BOLT SOCKET M10X1.25","LAC00200",0,1,70,null,null,null,3,"HW (Hardware includes nuts,washers)"]
[null,null,null,"LAC00201/00;1-BOLT SOCKET M10X1.25 x 1","BOLT SOCKET M10X1.25","LAC00201",0,1,80,null,null,null,3,"HW (Hardware includes nuts,washers)"]
[null,null,null,"JP122046/00.02;1-INSTALL ARM SWING (Design) x 1","INSTALL ARM SWING","JP122046",0.02,1,30,"SUSPENSION-FRONT SUSP (INCLUDING FRONT BRAKE )",null,null,2,"AS (Assembly,Sub-Assy)"]
[null,null,null,"JP122049/00.01;1-ASSEMBLY ARM SWING (Design) x 1","ASSEMBLY ARM SWING","JP122049",0.01,1,10,"SUSPENSION-REAR SUSPENSION",null,null,3,"AS (Assembly,Sub-Assy)"]
[null,null,null,"JP122033/00.04;1-ARM SWING (Design) x 1","ARM SWING","JP122033",0.04,1,10,"SUSPENSION-REAR SUSPENSION",null,null,4,"CA + M/C (Casting and Machined)"]
[null,null,null,"JP122058/00.00;1-BUSH x 1","BUSH","JP122058",0,1,20,"SUSPENSION-REAR SUSPENSION",null,null,4,"PR (Proprietary Components)"]
[null,null,null,"JG122026/02;1-WASHER PLAIN x 2","WASHER PLAIN","JG122026",2,2,30,"SUSPENSION-REAR SUSPENSION",null,null,4,"HW (Hardware includes nuts,washers)"]
[null,null,null,"JG122012/01;1-OIL SEAL x 2","OIL SEAL","JG122012",1,2,40,"SUSPENSION-REAR SUSPENSION",null,null,4,"OS + OR (Oil Seals and O Rings)"]
[null,null,null,"JG122011/02;1-BUSH x 2","BUSH","JG122011",2,2,50,"SUSPENSION-REAR SUSPENSION",null,null,4,"BA (Bar or Turned components)"]
[null,null,null,"JG122010/00;1-COLLAR x 1","COLLAR","JG122010",0,1,60,"SUSPENSION-REAR SUSPENSION",null,null,4,"BA (Bar or Turned components)"]
[null,null,null,"DG171018/02;1-BEARING-NEEDLE x 1","BEARING-NEEDLE","DG171018",2,1,70,"SUSPENSION-REAR SUSPENSION",null,null,4,"BR (Bearings)"]
[null,null,null,"JP122059/00.00;1-SEAL OIL x 2","SEAL OIL","JP122059",0,2,80,"SUSPENSION-REAR SUSPENSION",null,null,4,"OS + OR (Oil Seals and O Rings)"]
[null,null,null,"JP122053/00.00;1-SLEEVE x 1","SLEEVE","JP122053",0,1,90,"SUSPENSION-REAR SUSPENSION",null,null,4,"BA (Bar or Turned components)"]
[null,null,null,"JP122047/00;1-SLIDER CHAIN x 1","SLIDER CHAIN","JP122047",0,1,100,"SUSPENSION-REAR SUSPENSION",null,null,4,"PL (Plastic Components)"]
[null,null,null,"LBU00148/00;1-SCREW SOCKET STEP M6X1 x 3","SCREW SOCKET STEP M6X1","LBU00148",0,3,110,"SUSPENSION-REAR SUSPENSION",null,null,4,"HW (Hardware includes nuts,washers)"]
[null,null,null,"LBU00158/00;1-SCREW SOCKET STEP M6X1 x 1","SCREW SOCKET STEP M6X1","LBU00158",0,1,120,"SUSPENSION-REAR SUSPENSION",null,null,4,"HW (Hardware includes nuts,washers)"]
[null,null,null,"JP131883/00.02;1-GUIDE CABLE x 1","GUIDE CABLE","JP131883",0.02,1,20,"SUSPENSION-REAR SUSPENSION",null,null,3,"PL (Plastic Components)"]
[null,null,null,"39070311/01;1-WASHER - PLAIN x 1","WASHER - PLAIN",39070311,1,1,30,"SUSPENSION-REAR SUSPENSION",null,null,3,"HW (Hardware includes nuts,washers)"]
[null,null,null,"JP181745/00.03;1-COVER CHAIN OUTER (Design) x 1","COVER CHAIN OUTER","JP181745",0.03,1,40,"SUSPENSION-REAR SUSPENSION",null,null,3,"PL (Plastic Components)"]
[null,null,null,"JP181746/00.02;1-COVER CHAIN (Design) x 1","COVER CHAIN","JP181746",0.02,1,50,"SUSPENSION-REAR SUSPENSION",null,null,3,"PL (Plastic Components)"]
[null,null,null,"LBU00148/00;1-SCREW SOCKET STEP M6X1 x 4","SCREW SOCKET STEP M6X1","LBU00148",0,4,60,"SUSPENSION-REAR SUSPENSION",null,null,3,"HW (Hardware includes nuts,washers)"]
[null,null,null,"LBU00158/00;1-SCREW SOCKET STEP M6X1 x 2","SCREW SOCKET STEP M6X1","LBU00158",0,2,70,"SUSPENSION-REAR SUSPENSION",null,null,3,"HW (Hardware includes nuts,washers)"]
[null,null,null,"JG122033/02;1-SPACER x 2","SPACER","JG122033",2,2,80,"SUSPENSION-REAR SUSPENSION",null,null,3,"SM (Sheet Metal & Fabricated Parts)"]
[null,null,null,"JP122060/00.01;1-SHAFT ARM SWING x 1","SHAFT ARM SWING","JP122060",0.01,1,90,"SUSPENSION-REAR SUSPENSION",null,null,3,"HW (Hardware includes nuts,washers)"]
[null,null,null,"LCG00019/00;3-NUT HEX FLANGE-M14X1.5XHT10 x 2","NUT HEX FLANGE-M14X1.5XHT.10","LCG00019",0,2,100,"SUSPENSION-REAR SUSPENSION",null,null,3,"HW (Hardware includes nuts,washers)"]
[null,null,null,"JG122007/05;1-CHAIN ADJUSTER RH x 2","CHAIN ADJUSTER RH","JG122007",5,2,110,"SUSPENSION-REAR SUSPENSION",null,null,3,"CA + M/C (Casting and Machined)"]
[null,null,null,"LAA00007/00;1-BOLT HEX M10 X 1.25 X 50 x 2","BOLT HEX M10 X 1.25 X 50","LAA00007",0,2,120,"SUSPENSION-REAR SUSPENSION",null,null,3,"HW (Hardware includes nuts,washers)"]
[null,null,null,"LCG00003/02;1-NUT FLANGED M10 X 1.25 x 2","NUT FLANGED M10 X 1.25","LCG00003",2,2,130,"SUSPENSION-REAR SUSPENSION",null,null,3,"HW (Hardware includes nuts,washers)"]
[null,null,null,"JP151068/00.03;1-INSTALL HANDLEBAR (Design) x 1","INSTALL HANDLEBAR","JP151068",0.03,1,90,null,null,null,1,"AS (Assembly,Sub-Assy)"]
[null,null,null,"JP151052/00;1-BRACKET UPPER x 1","BRACKET UPPER","JP151052",0,1,10,"STEERING-HANDLE BAR/ STEERING COLUMN",null,null,2,"FO (Forging Route)"]
[null,null,null,"JG151012/02;1-COLLAR x 4","COLLAR","JG151012",2,4,20,"STEERING-HANDLE BAR/ STEERING COLUMN",null,null,2,"RU (Rubber Components)"]
[null,null,null,"JG151021/02;2-SPACER TUBE x 2","SPACER TUBE","JG151021",2,2,30,"STEERING-HANDLE BAR/ STEERING COLUMN",null,null,2,"TU (Tubes)"]
[null,null,null,"JG151013/02;1-WASHER CUP x 4","WASHER CUP","JG151013",2,4,40,"STEERING-HANDLE BAR/ STEERING COLUMN",null,null,2,"SM (Sheet Metal & Fabricated Parts)"]
[null,null,null,"JP151073/00.05;1-HOLDER HANDLE LOWER x 2","HOLDER HANDLE LOWER","JP151073",0.05,2,50,"STEERING-HANDLE BAR/ STEERING COLUMN",null,null,2,"CA + M/C (Casting and Machined)"]
[null,null,null,"LAC00004/03;1-BOLT SOCKET M10X1.25 x 2","BOLT SOCKET M10X1.25","LAC00004",3,2,60,"STEERING-HANDLE BAR/ STEERING COLUMN",null,null,2,"HW (Hardware includes nuts,washers)"]
[null,null,null,"LCH00001/01;1-NUT NYLOC-M10X1.25XHT.11XCL6XBRT x 2","NUT NYLOC-M10X1.25XHT.11XCL6XBRT","LCH00001",1,2,70,"STEERING-HANDLE BAR/ STEERING COLUMN",null,null,2,"HW (Hardware includes nuts,washers)"]
[null,null,null,"JP151063/00.04;1-HANDLEBAR (UGDesignView) x 1","HANDLEBAR","JP151063",0.04,1,80,"STEERING-HANDLE BAR/ STEERING COLUMN",null,null,2,"TU (Tubes)"]
[null,null,null,"JG151043/02;1-HOLDER HANDLEBAR TOP x 2","HOLDER HANDLEBAR TOP","JG151043",2,2,90,"STEERING-HANDLE BAR/ STEERING COLUMN",null,null,2,"CA + M/C (Casting and Machined)"]
[null,null,null,"LAC00111/00;1-BOLT SOCKET-M8X1.25XL 29XBLACK x 4","BOLT SOCKET-M8X1.25XL 29XBLACK","LAC00111",0,4,100,"STEERING-HANDLE BAR/ STEERING COLUMN",null,null,2,"HW (Hardware includes nuts,washers)"]
[null,null,null,"JP161005/03;1-ASSEMBLY LEVER-HOLDER LH (Design) x 1","ASSEMBLY LEVER-HOLDER LH","JP161005",3,1,110,"STEERING-HANDLE BAR/ STEERING COLUMN",null,null,2,"AS (Assembly,Sub-Assy)"]
[null,null,null,"JL161014/02;1-HOLDER LEVER LH x 1","HOLDER LEVER LH","JL161014",2,1,10,"CONTROLS-CONTROL LEVER & PEDAL",null,null,3,"EE (Electrical, Electronics)"]
[null,null,null,"JZ161028/01;1-LEVER PIVOT BOLT (Design) x 1","LEVER PIVOT BOLT","JZ161028",1,1,60,"CONTROLS-CONTROL LEVER & PEDAL",null,null,3,"EE (Electrical, Electronics)"]
[null,null,null,"DD191147/02;1-ADJUSTER SCREW x 1","ADJUSTER SCREW","DD191147",2,1,70,"CONTROLS-CONTROL LEVER & PEDAL",null,null,3,"EE (Electrical, Electronics)"]
[null,null,null,"39118415/05;1-NUT NYLOC M5X0.8 x 1","NUT NYLOC M5X0.8",39118415,5,1,80,"CONTROLS-CONTROL LEVER & PEDAL",null,null,3,"HW (Hardware includes nuts,washers)"]
[null,null,null,"30191017/04;1-NUT ROUND M8X1.25 (Design) x 1","NUT ROUND M8X1.25",30191017,4,1,90,"CONTROLS-CONTROL LEVER & PEDAL",null,null,3,"HW (Hardware includes nuts,washers)"]
[null,null,null,"JY401404/00;1-SWITCH CLUTCH x 1","SWITCH CLUTCH","JY401404",0,1,100,"CONTROLS-CONTROL LEVER & PEDAL",null,null,3,"EE (Electrical, Electronics)"]
[null,null,null,"LBU00012/01;1-SCREW PAN CROSS M3X0.5 x 2","SCREW PAN CROSS M3X0.5","LBU00012",1,2,110,"CONTROLS-CONTROL LEVER & PEDAL",null,null,3,"EE (Electrical, Electronics)"]
[null,null,null,"KADT0625/00;1-BOLT FLANGED M6X1 x 1","BOLT FLANGED M6X1","KADT0625",0,1,120,"CONTROLS-CONTROL LEVER & PEDAL",null,null,3,"HW (Hardware includes nuts,washers)"]
[null,null,null,"JY161008/02;1-LEVER ASSEMBLY CLUTCH (Design) x 1","LEVER ASSEMBLY CLUTCH","JY161008",2,1,130,"CONTROLS-CONTROL LEVER & PEDAL",null,null,3,"EE (Electrical, Electronics)"]
[null,null,null,"JY161020/03;1-CAM LEVER CLUTCH (Design) x 1","CAM LEVER CLUTCH","JY161020",3,1,20,"CONTROLS-CONTROL LEVER & PEDAL",null,null,4,"EE (Electrical, Electronics)"]
[null,null,null,"JP161010/01;1-SLEEVE (Design) x 1","SLEEVE","JP161010",1,1,10,"CONTROLS-CONTROL LEVER & PEDAL",null,null,5,"EE (Electrical, Electronics)"]
[null,null,null,"JY161003/02;1-LEVER CLUTCH ADJUSTABLE x 1","LEVER CLUTCH ADJUSTABLE","JY161003",2,1,30,"CONTROLS-CONTROL LEVER & PEDAL",null,null,4,"EE (Electrical, Electronics)"]
[null,null,null,"JY161019/02;1-CAM LEVER CLUTCH (Design) x 1","CAM LEVER CLUTCH","JY161019",2,1,40,"CONTROLS-CONTROL LEVER & PEDAL",null,null,4,"EE (Electrical, Electronics)"]
[null,null,null,"KDBF0512/00;1-WASHER PLAIN-ID5.5XOD12XT0.8XBLK x 1","WASHER PLAIN-ID5.5XOD12XT0.8XBLK","KDBF0512",0,1,50,"CONTROLS-CONTROL LEVER & PEDAL",null,null,4,"HW (Hardware includes nuts,washers)"]
[null,null,null,"JY161012/01;1-SLEEVE CAM LEVER PIVOT (Design) x 1","SLEEVE CAM LEVER PIVOT","JY161012",1,1,130,"CONTROLS-CONTROL LEVER & PEDAL",null,null,4,"EE (Electrical, Electronics)"]
[null,null,null,"LEA00001/01;1-CIRCLIP EXTERNAL-ID5.6XT 0.7XBLK (Design) x 1","CIRCLIP EXTERNAL-ID5.6XT 0.7XBLK","LEA00001",1,1,140,"CONTROLS-CONTROL LEVER & PEDAL",null,null,4,"HW (Hardware includes nuts,washers)"]
[null,null,null,"JY161011/01;1-SPRING RETURN MAIN LEVER (Design) x 1","SPRING RETURN MAIN LEVER","JY161011",1,1,150,"CONTROLS-CONTROL LEVER & PEDAL",null,null,4,"EE (Electrical, Electronics)"]
[null,null,null,"JY161015/00;1-WASHER CAM SPRING x 1","WASHER CAM SPRING","JY161015",0,1,160,"CONTROLS-CONTROL LEVER & PEDAL",null,null,4,"EE (Electrical, Electronics)"]
[null,null,null,"JP151064/00.04;1-GRIP LH (UGDesignView) x 1","GRIP LH","JP151064",0.04,1,120,"STEERING-HANDLE BAR/ STEERING COLUMN",null,null,2,"PL (Plastic Components)"]
[null,null,null,"DK181043/00;1-HANDLE BAR WEIGHT (Design) x 2","HANDLE BAR WEIGHT","DK181043",0,2,140,"STEERING-HANDLE BAR/ STEERING COLUMN",null,null,2,"BA (Bar or Turned components)"]
[null,null,null,"KACJ0655/00;1-BOLT SOCKET-M6X1XL55XCL8.8XBLACK x 2","BOLT SOCKET M6X1","KACJ0655",0,2,150,"STEERING-HANDLE BAR/ STEERING COLUMN",null,null,2,"HW (Hardware includes nuts,washers)"]
[null,null,null,"JY121011/02;1-BOLT SOCKET-M8X1.25XL30XCL8.8XBL x 2","BOLT SOCKET-M8X1.25XL30XCL8.8XBL","JY121011",2,2,160,"STEERING-HANDLE BAR/ STEERING COLUMN",null,null,2,"HW (Hardware includes nuts,washers)"]
[null,null,null,"JY151011/03;1-BOLT FLANGED-M16X1.5XL33XPRECOAT x 1","BOLT FLANGED M16X1.5","JY151011",3,1,170,"STEERING-HANDLE BAR/ STEERING COLUMN",null,null,2,"HW (Hardware includes nuts,washers)"]
[null,null,null,"LZC00001/00;1-ADHESIVE-FEVICOL PL10 x 3.3","ADHESIVE-FEVICOL PL10","LZC00001",0,3.3,190,"STEERING-HANDLE BAR/ STEERING COLUMN",null,null,2,"HW1 (Oil,Grease,Coolant,Sealant)"]
[null,null,null,"LZC00006/00;1-ADHESIVE -FEVICOL HARDNER C x 0.3","ADHESIVE -FEVICOL HARDNER C","LZC00006",0,0.3,200,"STEERING-HANDLE BAR/ STEERING COLUMN",null,null,2,"HW1 (Oil,Grease,Coolant,Sealant)"]
[null,null,null,"JP403865/00.01;1-ASSEMBLY SCHEME ELECTRICAL (Design) x 1","ASSEMBLY SCHEME ELECTRICAL","JP403865",0.01,1,100,null,null,null,1,"AS (Assembly,Sub-Assy)"]
[null,null,null,"JP401430/00.01;1-INSTALL SWITCH CONTROL (Design) x 1","INSTALL SWITCH CONTROL","JP401430",0.01,1,90,"ELECTRICAL/ELECTRONICS VEHICLE-SWITCHES",null,null,2,"AS (Assembly,Sub-Assy)"]
[null,null,null,"JP401416/00;1-SWITCH CONTROL RH (Design) x 1","SWITCH CONTROL RH","JP401416",0,1,30,"ELECTRICAL/ELECTRONICS VEHICLE-SWITCHES",null,null,3,"EE (Electrical, Electronics)"]
[null,null,null,"60110096/00;1-CON-HSG 6-P F SLD SLOT NAT 90 x 1","CON-HSG 6-P F SLD SLOT NAT 90",60110096,0,1,10,"ELECTRICAL/ELECTRONICS VEHICLE-SWITCHES",null,null,4,"EE (Electrical, Electronics)"]
[null,null,null,"JP151062/00;1-GRIP ASSEMBLY RH (Design) x 1","GRIP ASSEMBLY RH","JP151062",0,1,20,"ELECTRICAL/ELECTRONICS VEHICLE-SWITCHES",null,null,4,"AS (Assembly,Sub-Assy)"]
[null,null,null,"JP151066/00;1-GRIP RH (Design) x 1","GRIP RH","JP151066",0,1,10,"STEERING-HANDLE BAR/ STEERING COLUMN",null,null,5,"PL (Plastic Components)"]
[null,null,null,"JP151065/00;1-PIPE THROTTLE (Design) x 1","PIPE THROTTLE","JP151065",0,1,20,"STEERING-HANDLE BAR/ STEERING COLUMN",null,null,5,"PL (Plastic Components)"]
[null,null,null,"60110099/00;1-CON-HSG 6-P M SLD SLOT B 90 (Design) x 1","CON-HSG 6-P M SLD SLOT B 90",60110099,0,1,30,"ELECTRICAL/ELECTRONICS VEHICLE-SWITCHES",null,null,4,"EE (Electrical, Electronics)"]
[null,null,null,"JP401417/00;1-SWITCH CONTROL LH (Design) x 1","SWITCH CONTROL LH","JP401417",0,1,40,"ELECTRICAL/ELECTRONICS VEHICLE-SWITCHES",null,null,3,"EE (Electrical, Electronics)"]
[null,null,null,"60110083/00;1-CON-HSG 4-P M SLD SLOT B 90 x 1","CON-HSG 4-P M SLD SLOT B 90",60110083,0,1,10,"ELECTRICAL/ELECTRONICS VEHICLE-SWITCHES",null,null,4,"EE (Electrical, Electronics)"]
[null,null,null,"JG402278/00;1-CONNECTOR MALE 12 POLE SEALED x 1","CONNECTOR MALE 12 POLE SEALED","JG402278",0,1,20,"ELECTRICAL/ELECTRONICS VEHICLE-SWITCHES",null,null,4,"EE (Electrical, Electronics)"]
[null,null,null,"JP401810/00.01;1-INSTALL BATTERY (Design) x 1","INSTALL BATTERY","JP401810",0.01,1,100,"ELECTRICAL/ELECTRONICS VEHICLE-BATTERY",null,null,2,"AS (Assembly,Sub-Assy)"]
[null,null,null,"JP113871/00.01;1-DAMPER BATTERY x 1","DAMPER BATTERY","JP113871",0.01,1,10,"ELECTRICAL/ELECTRONICS VEHICLE-BATTERY",null,null,3,"RU (Rubber Components)"]
[null,null,null,"JG401800/04;1-12V 8AH VRLA BATTERY x 1","BATTERY","JG401800",4,1,20,"ELECTRICAL/ELECTRONICS VEHICLE-BATTERY",null,null,3,"EE (Electrical, Electronics)"]
[null,null,null,"JP403605/00.01;1-INSTALL SENSOR SPEED (Design) x 1","INSTALL SENSOR SPEED","JP403605",0.01,1,110,"ELECTRICAL/ELECTRONICS VEHICLE-SENSOR",null,null,2,"AS (Assembly,Sub-Assy)"]
[null,null,null,"KAED0616/01;1-BOLT FLANGED M6X1 x 2","BOLT FLANGED M6X1","KAED0616",1,2,10,"ELECTRICAL/ELECTRONICS VEHICLE-SENSOR",null,null,3,"HW (Hardware includes nuts,washers)"]
[null,null,null,"JP403606/00.00;1-SENSOR ASSEMBLY SPEED FRONT (Design) x 1","SENSOR ASSEMBLY SPEED FRONT","JP403606",0,1,20,"ELECTRICAL/ELECTRONICS VEHICLE-SENSOR",null,null,3,"AS (Assembly,Sub-Assy)"]
[null,null,null,"DK201164/01;1-SENSOR SPEED WHEEL (Design) x 1","SENSOR SPEED WHEEL","DK201164",1,1,10,"ELECTRICAL/ELECTRONICS VEHICLE-SENSOR",null,null,4,"EE (Electrical, Electronics)"]
[null,null,null,"JG403603/02;1-CLAMP SENSOR CABLE HOLDING x 3","CLAMP SENSOR CABLE HOLDING","JG403603",2,3,20,"ELECTRICAL/ELECTRONICS VEHICLE-SENSOR",null,null,4,"PL (Plastic Components)"]
[null,null,null,"JD402215/00;1-BAND x 2","BAND","JD402215",0,2,30,"ELECTRICAL/ELECTRONICS VEHICLE-SENSOR",null,null,4,"PL (Plastic Components)"]
[null,null,null,"JP403607/00.00;1-SENSOR ASSEMBLY SPEED REAR (Design) x 1","SENSOR ASSEMBLY SPEED REAR","JP403607",0,1,30,"ELECTRICAL/ELECTRONICS VEHICLE-SENSOR",null,null,3,"AS (Assembly,Sub-Assy)"]
[null,null,null,"JG403603/02;1-CLAMP SENSOR CABLE HOLDING x 1","CLAMP SENSOR CABLE HOLDING","JG403603",2,1,10,"ELECTRICAL/ELECTRONICS VEHICLE-SENSOR",null,null,4,"PL (Plastic Components)"]
[null,null,null,"JG113858/00;1-CLAMP FOR BRAKE HOSE x 1","CLAMP FOR BRAKE HOSE","JG113858",0,1,20,"ELECTRICAL/ELECTRONICS VEHICLE-SENSOR",null,null,4,"PL (Plastic Components)"]
[null,null,null,"DK201164/01;1-SENSOR SPEED WHEEL (Design) x 1","SENSOR SPEED WHEEL","DK201164",1,1,30,"ELECTRICAL/ELECTRONICS VEHICLE-SENSOR",null,null,4,"EE (Electrical, Electronics)"]
[null,null,null,"JD402215/00;1-BAND x 1","BAND","JD402215",0,1,40,"ELECTRICAL/ELECTRONICS VEHICLE-SENSOR",null,null,4,"PL (Plastic Components)"]
[null,null,null,"JP351477/00.01;1-INSTALL ECU (Design) x 1","INSTALL ECU","JP351477",0.01,1,120,"ELECTRICAL/ELECTRONICS VEHICLE-BATTERY",null,null,2,"AS (Assembly,Sub-Assy)"]
[null,null,null,"JP351478/00.00;1-ECU EMS ASSEMBLY (Design) x 1","ECU EMS ASSEMBLY","JP351478",0,1,10,"ELECTRICAL/ELECTRONICS ENGINE-ENGINE CONTROL UNIT",null,null,3,"AS (Assembly,Sub-Assy)"]
[null,null,null,"JP351479/00.00;1-ECU EMS x 1","ECU EMS","JP351479",0,1,10,"ELECTRICAL/ELECTRONICS ENGINE-ENGINE CONTROL UNIT",null,null,4,"EE (Electrical, Electronics)"]
[null,null,null,"JP351480/00.00;1-SOFTWARE CONTAINER ECU x 1","SOFTWARE CONTAINER ECU","JP351480",0,1,20,"ELECTRICAL/ELECTRONICS ENGINE-ENGINE CONTROL UNIT",null,null,4,"EE (Electrical, Electronics)"]
[null,null,null,"JP351481/00.00;1-LABEL ECU x 1","LABEL ECU","JP351481",0,1,30,"ELECTRICAL/ELECTRONICS ENGINE-ENGINE CONTROL UNIT",null,null,4,"LA (Label)"]
[null,null,null,"JP402288/00.01;1-INSTALL HARNESS (Design) x 1","INSTALL HARNESS","JP402288",0.01,1,130,"ELECTRICAL/ELECTRONICS VEHICLE-WIRING HARNESS",null,null,2,"AS (Assembly,Sub-Assy)"]
[null,null,null,"JP402268/00;1-HARNESS WIRING (Design) x 1","HARNESS WIRING","JP402268",0,1,10,null,null,null,3,"EE (Electrical, Electronics)"]
[null,null,null,"JP402264/00;1-GROMMET x 1","GROMMET","JP402264",0,1,10,"ELECTRICAL/ELECTRONICS VEHICLE-WIRING HARNESS",null,null,4,"RU (Rubber Components)"]
[null,null,null,"JY402251/00;1-CAP HARNESS ECU x 2","CAP HARNESS ECU","JY402251",0,2,40,"ELECTRICAL/ELECTRONICS VEHICLE-WIRING HARNESS",null,null,4,"EE (Electrical, Electronics)"]
[null,null,null,"JP402295/00;1-CONNECTOR FEMALE 6 POLE x 1","CONNECTOR FEMALE 6 POLE","JP402295",0,1,50,"ELECTRICAL/ELECTRONICS VEHICLE-WIRING HARNESS",null,null,4,"EE (Electrical, Electronics)"]
[null,null,null,"JP402294/00;1-TERMINAL RING x 2","TERMINAL RING","JP402294",0,2,60,"ELECTRICAL/ELECTRONICS VEHICLE-WIRING HARNESS",null,null,4,"EE (Electrical, Electronics)"]
[null,null,null,"JP402246/00;1-CAP SENSOR ETB x 1","CAP SENSOR ETB","JP402246",0,1,80,"ELECTRICAL/ELECTRONICS VEHICLE-WIRING HARNESS",null,null,4,"RU (Rubber Components)"]
[null,null,null,"JU402230/00;1-CAP TMAP SENSOR x 2","CAP TMAP SENSOR","JU402230",0,2,90,"ELECTRICAL/ELECTRONICS VEHICLE-WIRING HARNESS",null,null,4,"EE (Electrical, Electronics)"]
[null,null,null,"DT402208/02;1-FUSE BOX ASSY/BLADE FUSE - SEALED (Design) x 1","FUSE BOX ASSY/BLADE FUSE - SEALED","DT402208",2,1,120,"ELECTRICAL/ELECTRONICS VEHICLE-WIRING HARNESS",null,null,4,"EE (Electrical, Electronics)"]
[null,null,null,"JG402228/00;2-FUSE_MINI_10A (BLADE TYPE) x 7","FUSE_MINI_10A (BLADE TYPE)","JG402228",0,7,130,"ELECTRICAL/ELECTRONICS VEHICLE-WIRING HARNESS",null,null,4,"EE (Electrical, Electronics)"]
[null,null,null,"JG402229/00;1-FUSE 15A x 6","FUSE 15A","JG402229",0,6,140,"ELECTRICAL/ELECTRONICS VEHICLE-WIRING HARNESS",null,null,4,"EE (Electrical, Electronics)"]
[null,null,null,"JG402230/00;1-FUSE 30A x 1","FUSE 30A","JG402230",0,1,150,"ELECTRICAL/ELECTRONICS VEHICLE-WIRING HARNESS",null,null,4,"EE (Electrical, Electronics)"]
[null,null,null,"JG402284/00;1-FUSE 20A x 2","FUSE 20A","JG402284",0,2,160,"ELECTRICAL/ELECTRONICS VEHICLE-WIRING HARNESS",null,null,4,"EE (Electrical, Electronics)"]
[null,null,null,"JD402217/00;1-STRAP CABLE (Design) x 1","STRAP CABLE","JD402217",0,1,170,"ELECTRICAL/ELECTRONICS VEHICLE-WIRING HARNESS",null,null,4,"HW3 (Standard Clamps For Plastic,EE Fastening)"]
[null,null,null,"JD402216/00;2-BAND 300MM x 5","BAND 300MM","JD402216",0,5,180,"ELECTRICAL/ELECTRONICS VEHICLE-WIRING HARNESS",null,null,4,"HW3 (Standard Clamps For Plastic,EE Fastening)"]
[null,null,null,"JN402207/01;1-HARNESS RUBBER BOOT x 1","HARNESS RUBBER BOOT","JN402207",1,1,190,"ELECTRICAL/ELECTRONICS VEHICLE-WIRING HARNESS",null,null,4,"EE (Electrical, Electronics)"]
[null,null,null,"JP402315/00;1-CAP BATTERY POSITIVE (Design) x 1","CAP BATTERY POSITIVE","JP402315",0,1,200,"ELECTRICAL/ELECTRONICS VEHICLE-WIRING HARNESS",null,null,4,"RU (Rubber Components)"]
[null,null,null,"JY402285/00;1-CONNECTOR MALE 3 POLE SEALED (Design) x 1","CONNECTOR MALE 3 POLE SEALED","JY402285",0,1,210,"ELECTRICAL/ELECTRONICS VEHICLE-WIRING HARNESS",null,null,4,"EE (Electrical, Electronics)"]
[null,null,null,"JY402286/00;1-CONNECTOR MALE 2 POLE SEALED (Design) x 1","CONNECTOR MALE 2 POLE SEALED","JY402286",0,1,220,"ELECTRICAL/ELECTRONICS VEHICLE-WIRING HARNESS",null,null,4,"EE (Electrical, Electronics)"]
[null,null,null,"JY402287/00;1-CONNECTOR MALE 4 POLE SEALED (Design) x 1","CONNECTOR MALE 4 POLE SEALED","JY402287",0,1,230,"ELECTRICAL/ELECTRONICS VEHICLE-WIRING HARNESS",null,null,4,"EE (Electrical, Electronics)"]
[null,null,null,"JP402266/00;1-GROMMET x 1","GROMMET","JP402266",0,1,240,"ELECTRICAL/ELECTRONICS VEHICLE-WIRING HARNESS",null,null,4,"RU (Rubber Components)"]
[null,null,null,"JP402221/01;1-CABLE EARTH ABS (Design) x 1","CABLE EARTH ABS","JP402221",1,1,40,null,null,null,3,"EE (Electrical, Electronics)"]
[null,null,null,"JY402245/00;2-TERMINAL RING BRASS 0.8 6.5(2.0 - 4.0MM2) x 2","TERMINAL RING BRASS 0.8 6.5(2.0 - 4.0MM2)","JY402245",0,2,10,"ELECTRICAL/ELECTRONICS VEHICLE-WIRING HARNESS",null,null,4,"EE (Electrical, Electronics)"]
[null,null,null,"JP402218/01;1-PIGTAIL OIL PRESSURE SWITCH MY17 (Design) x 1","PIGTAIL OIL PRESSURE SWITCH MY17","JP402218",1,1,50,null,null,null,3,"EE (Electrical, Electronics)"]
[null,null,null,"JG402241/02;1-CAP SWITCH PRESSURE OIL (Design) x 1","CAP SWITCH PRESSURE OIL","JG402241",2,1,10,"ELECTRICAL/ELECTRONICS VEHICLE-WIRING HARNESS",null,null,4,"RU (Rubber Components)"]
[null,null,null,"JY402235/00;1-PIGTAIL PH-3 FUEL PUMP (Design) x 1","PIGTAIL PH-3 FUEL PUMP","JY402235",0,1,70,null,null,null,3,"EE (Electrical, Electronics)"]
[null,null,null,"KADD0612/01;1-BOLT FLANGED M6X1 x 1","BOLT FLANGED M6X1","KADD0612",1,1,130,null,null,null,3,"HW (Hardware includes nuts,washers)"]
[null,null,null,"LDF00001/02;1-WASHER TOOTHED-ID 6.4XOD11XT 0.7 x 2","WASHER TOOTHED-ID 6.4XOD11XT 0.7","LDF00001",2,2,140,null,null,null,3,"HW (Hardware includes nuts,washers)"]
[null,null,null,"JY402246/01;1-PIGTAIL COOLANT TEMP SENSOR RC MY16 (Design) x 1","PIGTAIL COOLANT TEMP SENSOR RC MY16","JY402246",1,1,150,null,null,null,3,"EE (Electrical, Electronics)"]
[null,null,null,"JD402212/01;1-BAND(LENGTH 200MM) x 9","BAND(LENGTH 200MM)","JD402212",1,9,160,null,null,null,3,"EE (Electrical, Electronics)"]
[null,null,null,"JD402216/00;2-BAND 300MM x 5","BAND 300MM","JD402216",0,5,170,null,null,null,3,"HW3 (Standard Clamps For Plastic,EE Fastening)"]
[null,null,null,"PA402204/00;1-BAND(LENGTH 110MM) (Design) x 1","BAND(LENGTH 110MM)","PA402204",0,1,180,null,null,null,3,"HW3 (Standard Clamps For Plastic,EE Fastening)"]
[null,null,null,"JD402217/00;1-STRAP CABLE (Design) x 8","STRAP CABLE","JD402217",0,8,190,null,null,null,3,"HW3 (Standard Clamps For Plastic,EE Fastening)"]
[null,null,null,"JP402301/00.00;1-CABLE EARTH (UGDesignView) x 1","CABLE EARTH","JP402301",0,1,200,null,null,null,3,"EE (Electrical, Electronics)"]
[null,null,null,"JG402256/00;1-TERMINAL RING BRASS FOR M10 x 1","TERMINAL RING BRASS FOR M10","JG402256",0,1,10,null,null,null,4,"EE (Electrical, Electronics)"]
[null,null,null,"JU402214/01;3-TERMINAL BATTERY x 1","TERMINAL BATTERY","JU402214",1,1,20,null,null,null,4,"EE (Electrical, Electronics)"]
[null,null,null,"JY402236/00;2-TERMINAL RING M6 (8-15 SQ.MM) (Design) x 1","TERMINAL RING M6 (8-15 SQ.MM)","JY402236",0,1,30,null,null,null,4,"EE (Electrical, Electronics)"]
[null,null,null,"JP402304/00.00;1-CABLE RELAY-MOTOR STARTER (Design) x 1","CABLE RELAY-MOTOR STARTER","JP402304",0,1,210,null,null,null,3,"EE (Electrical, Electronics)"]
[null,null,null,"JY402250/00;1-CAP STARTER MOTOR WITH DRAIN HOLE x 1","CAP MOTOR STARTER","JY402250",0,1,10,"ELECTRICAL/ELECTRONICS VEHICLE-WIRING HARNESS",null,null,4,"EE (Electrical, Electronics)"]
[null,null,null,"60111717/01;1-CAP STR RLY ROUND_SLOT BLACK x 1","CAP STR RLY ROUND_SLOT BLACK",60111717,1,1,20,"ELECTRICAL/ELECTRONICS VEHICLE-WIRING HARNESS",null,null,4,"EE (Electrical, Electronics)"]
[null,null,null,"JY402236/00;2-TERMINAL RING M6 (8-15 SQ.MM) (Design) x 2","TERMINAL RING M6 (8-15 SQ.MM)","JY402236",0,2,30,"ELECTRICAL/ELECTRONICS VEHICLE-WIRING HARNESS",null,null,4,"EE (Electrical, Electronics)"]
[null,null,null,"JP401602/00.01;1-INSTALL UNIT ELECTRICAL (Design) x 1","INSTALL UNIT ELECTRICAL","JP401602",0.01,1,140,"ELECTRICAL/ELECTRONICS VEHICLE-VEHICLE CONTROL UNIT",null,null,2,"AS (Assembly,Sub-Assy)"]
[null,null,null,"JP403002/01;1-DAMPER RELAY STARTER x 1","DAMPER RELAY STARTER","JP403002",1,1,10,"ELECTRICAL/ELECTRONICS VEHICLE-HORN",null,null,3,"RU (Rubber Components)"]
[null,null,null,"KADD0814/01;1-BOLT FLANGED M8X1.25 x 1","BOLT FLANGED M8X1.25","KADD0814",1,1,20,"ELECTRICAL/ELECTRONICS VEHICLE-HORN",null,null,3,"HW (Hardware includes nuts,washers)"]
[null,null,null,"JP401603/00.00;1-HORN x 1","HORN","JP401603",0,1,30,"ELECTRICAL/ELECTRONICS VEHICLE-HORN",null,null,3,"EE (Electrical, Electronics)"]
[null,null,null,"JL403000/01;1-RELAY INTERLOCK x 5","RELAY INTERLOCK","JL403000",1,5,40,"ELECTRICAL/ELECTRONICS VEHICLE-HORN",null,null,3,"EE (Electrical, Electronics)"]
[null,null,null,"JP403000/05;1-RELAY STARTER x 1","RELAY STARTER","JP403000",5,1,50,"ELECTRICAL/ELECTRONICS VEHICLE-HORN",null,null,3,"EE (Electrical, Electronics)"]
[null,null,null,"JP402428/00.01;1-INSTALL SPEEDOMETER (Design) x 1","INSTALL SPEEDOMETER","JP402428",0.01,1,150,"ELECTRICAL/ELECTRONICS VEHICLE-BATTERY",null,null,2,"AS (Assembly,Sub-Assy)"]
[null,null,null,"JP151070/00.04;1-HOLDER SPEEDOMETER LOWER (Design) x 1","HOLDER SPEEDOMETER LOWER","JP151070",0.04,1,10,"PANEL AND TRIM-COVER",null,null,3,"PL (Plastic Components)"]
[null,null,null,"JU171017/00;1-INSERT x 3","INSERT","JU171017",0,3,10,null,null,null,4,"BA (Bar or Turned components)"]
[null,null,null,"JY171037/00;1-GROMMET TANK COVER MTG x 4","GROMMET TANK COVER MTG","JY171037",0,4,20,"PANEL AND TRIM-COVER",null,null,3,"RU (Rubber Components)"]
[null,null,null,"JP113832/01;1-COLLAR TFT SPEEDO SMALL x 4","COLLAR","JP113832",1,4,30,"PANEL AND TRIM-COVER",null,null,3,"BA (Bar or Turned components)"]
[null,null,null,"JW181229/02;4- WASHER PLAIN ID5.5 X OD18 X T 1 X BL x 4","WASHER PLAIN ID5.5 X OD18 X T 1 X BL","JW181229",2,4,40,"PANEL AND TRIM-COVER",null,null,3,"HW (Hardware includes nuts,washers)"]
[null,null,null,"JP402418/00.01;1-SPEEDOMETER x 1","SPEEDOMETER","JP402418",0.01,1,50,"PANEL AND TRIM-COVER",null,null,3,"EE (Electrical, Electronics)"]
[null,null,null,"LBU00060/00;1-SCREW BUTTON HD-M5X0.8XL18XBLACK x 4","SCREW BUTTON HEAD M5X0.8","LBU00060",0,4,60,"PANEL AND TRIM-COVER",null,null,3,"HW (Hardware includes nuts,washers)"]
[null,null,null,"JP151071/00.05;1-HOLDER SPEEDOMETER UPPER (Design) x 1","HOLDER SPEEDOMETER UPPER","JP151071",0.05,1,70,"PANEL AND TRIM-COVER",null,null,3,"PL (Plastic Components)"]
[null,null,null,"JR171005/02;1-INSERT M6 (Design) x 1","INSERT M6","JR171005",2,1,10,"PANEL AND TRIM-HANDLE BAR ASSEMBLY",null,null,4,"PR (Proprietary Components)"]
[null,null,null,"KDAB0611/01;1-WASHER PLAIN SMALL-6.5X11.5XT0.8 x 1","WASHER PLAIN SMALL-6.5X11.5XT0.8","KDAB0611",1,1,80,"PANEL AND TRIM-COVER",null,null,3,"HW (Hardware includes nuts,washers)"]
[null,null,null,"KACA0616/01;1-BOLT Socket head M6X1 x 1","BOLT SOCKET M6X1","KACA0616",1,1,90,"PANEL AND TRIM-COVER",null,null,3,"HW (Hardware includes nuts,washers)"]
[null,null,null,"JP402005/00.01;1-INSTALL UNIT ELECTRONIC (Design) x 1","INSTALL UNIT ELECTRONIC","JP402005",0.01,1,160,"ELECTRICAL/ELECTRONICS VEHICLE-REGULATOR,RECTIFIER,CDI, FLASHER",null,null,2,"AS (Assembly,Sub-Assy)"]
[null,null,null,"JP403401/00.00;1-SOCKET CHARGER USB x 1","SOCKET CHARGER USB","JP403401",0,1,70,"ELECTRICAL/ELECTRONICS VEHICLE-ADD ON GADGETS",null,null,3,"EE (Electrical, Electronics)"]
[null,null,null,"AA201382/02;1-UNIT TRANSIL x 1","UNIT TRANSIL","AA201382",2,1,80,"ELECTRICAL/ELECTRONICS VEHICLE-REGULATOR,RECTIFIER,CDI, FLASHER",null,null,3,"EE (Electrical, Electronics)"]
[null,null,null,"JU402001/00;1-REGULATOR x 1","REGULATOR","JU402001",0,1,90,"ELECTRICAL/ELECTRONICS VEHICLE-REGULATOR,RECTIFIER,CDI, FLASHER",null,null,3,"EE (Electrical, Electronics)"]
[null,null,null,"39167504/00;1-BOLT FLANGED M6X28 x 2","BOLT FLANGED M6X28",39167504,0,2,100,"ELECTRICAL/ELECTRONICS VEHICLE-REGULATOR,RECTIFIER,CDI, FLASHER",null,null,3,"HW (Hardware includes nuts,washers)"]
[null,null,null,"JG351811/00;1-SENSOR LEAN ANGLE x 1","SENSOR LEAN ANGLE","JG351811",0,1,110,"ELECTRICAL/ELECTRONICS VEHICLE-SENSOR",null,null,3,"EE (Electrical, Electronics)"]
[null,null,null,"KADF0618/00;1-BOLT FLANGED M6X1 x 2","BOLT FLANGED M6X1","KADF0618",0,2,120,"ELECTRICAL/ELECTRONICS VEHICLE-SENSOR",null,null,3,"HW (Hardware includes nuts,washers)"]
[null,null,null,"JP501093/00.02;1-ASSEMBLY SCHEME ENGINE (Design) x 1","ASSEMBLY SCHEME ENGINE","JP501093",0.02,1,110,null,null,null,1,"AS (Assembly,Sub-Assy)"]
[null,null,null,"JP501060/00;1-ENGINE ASSEMBLY (Design) x 1","ENGINE ASSEMBLY","JP501060",0,1,10,"ENGINE ASSEMBLY-ENGINE ASSEMBLY",null,null,2,"AS (Assembly,Sub-Assy)"]
[null,null,null,"JP511019/00;1-ASSEMBLY HEAD CYLINDER (Design) x 1","ASSEMBLY HEAD CYLINDER","JP511019",0,1,10,"ENGINE ASSEMBLY-ENGINE ASSEMBLY",null,null,3,"AS (Assembly,Sub-Assy)"]
[null,null,null,"JP511020/00;1-HEAD CYLINDER-HOLDER CAMSHAFT (Design) x 1","HEAD CYLINDER-HOLDER CAMSHAFT","JP511020",0,1,10,"CYLINDER HEAD ASSEMBLY-CYLINDER HEAD",null,null,4,"AS (Assembly,Sub-Assy)"]
[null,null,null,"JP511048/03;1-HEAD CYLINDER (Design) x 1","HEAD CYLINDER","JP511048",3,1,10,"CYLINDER HEAD ASSEMBLY-CYLINDER HEAD",null,null,5,"CA + M/C (Casting and Machined)"]
[null,null,null,"JP511060/00;1-GUIDE VALVE x 4","GUIDE VALVE","JP511060",0,4,10,"CYLINDER HEAD ASSEMBLY-CYLINDER HEAD",null,null,6,"SI (Sinetered Components)"]
[null,null,null,"JY511020/00;1-VALVE SEAT INTAKE x 2","VALVE SEAT INTAKE","JY511020",0,2,20,"CYLINDER HEAD ASSEMBLY-CYLINDER HEAD",null,null,6,"SI (Sinetered Components)"]
[null,null,null,"JY511003/01;1-SEAT VALVE EXHAUST x 2","SEAT VALVE EXHAUST","JY511003",1,2,30,"CYLINDER HEAD ASSEMBLY-CYLINDER HEAD",null,null,6,"SI (Sinetered Components)"]
[null,null,null,"JP511022/01;1-HOLDER CAMSHAFT x 1","HOLDER CAMSHAFT","JP511022",1,1,20,"CYLINDER HEAD ASSEMBLY-CYLINDER HEAD",null,null,5,"CA + M/C (Casting and Machined)"]
[null,null,null,"JP511025/00;1-GUIDE CHAIN TOP x 1","GUIDE CHAIN TOP","JP511025",0,1,30,"CYLINDER HEAD ASSEMBLY-CYLINDER HEAD",null,null,5,"PL (Plastic Components)"]
[null,null,null,"39168606/00;1-HOLLOW DOWEL PIN (Design) x 2","HOLLOW DOWEL PIN",39168606,0,2,40,"CYLINDER HEAD ASSEMBLY-CYLINDER HEAD",null,null,5,"HW (Hardware includes nuts,washers)"]
[null,null,null,"KAED0635/01;1-BOLT FLANGED M6X1 x 4","BOLT FLANGED M6X1","KAED0635",1,4,50,"CYLINDER HEAD ASSEMBLY-CYLINDER HEAD",null,null,5,"HW (Hardware includes nuts,washers)"]
[null,null,null,"KAEQ0640/01;1-BOLT FLANGED M6X1 x 2","BOLT FLANGED M6X1","KAEQ0640",1,2,60,"CYLINDER HEAD ASSEMBLY-CYLINDER HEAD",null,null,5,"HW (Hardware includes nuts,washers)"]
[null,null,null,"KAEG0645/01;1-BOLT FLANGED M6X1 x 2","BOLT FLANGED M6X1","KAEG0645",1,2,70,"CYLINDER HEAD ASSEMBLY-CYLINDER HEAD",null,null,5,"HW (Hardware includes nuts,washers)"]
[null,null,null,"JG541021/06;1-NOZZLE JET OIL x 4","NOZZLE JET OIL","JG541021",6,4,20,null,null,null,4,"FO (Forging Route)"]
[null,null,null,"JE511052/08;1-NOZZLE x 1","NOZZLE","JE511052",8,1,30,null,null,null,4,"BA (Bar or Turned components)"]
[null,null,null,"LJA00001/00;1-RING 0 x 2","RING 0","LJA00001",0,2,40,"CYLINDER HEAD ASSEMBLY-CYLINDER HEAD",null,null,4,"OS + OR (Oil Seals and O Rings)"]
[null,null,null,"JY511068/00;1-SLEEVE SPARK PLUG x 1","SLEEVE SPARK PLUG","JY511068",0,1,50,"CYLINDER HEAD ASSEMBLY-CYLINDER HEAD",null,null,4,"BA (Bar or Turned components)"]
[null,null,null,"JG351400/05;1-SENSOR TEMPERATURE (Design) x 1","SENSOR TEMPERATURE","JG351400",5,1,60,"CYLINDER HEAD ASSEMBLY-CYLINDER HEAD",null,null,4,"EE (Electrical, Electronics)"]
[null,null,null,"39269920/01;1-RING O x 1","RING O",39269920,1,1,10,"ELECTRICAL/ELECTRONICS VEHICLE-SENSOR",null,null,5,"OS + OR (Oil Seals and O Rings)"]
[null,null,null,"DK101225/04;1-SWITCH PRESSURE OIL (Design) x 1","SWITCH PRESSURE OIL","DK101225",4,1,70,"CYLINDER HEAD ASSEMBLY-CYLINDER HEAD",null,null,4,"EE (Electrical, Electronics)"]
[null,null,null,"DK101340/01;1-'O' RING (OIL COOLER PIPE) (Design) x 1","'O' RING (OIL COOLER PIPE)","DK101340",1,1,10,"ELECTRICAL/ELECTRONICS ENGINE-SENSOR",null,null,5,"OS + OR (Oil Seals and O Rings)"]
[null,null,null,"CB101009/00;1-SEAL VALVE STEM x 4","SEAL VALVE STEM","CB101009",0,4,80,"CYLINDER HEAD ASSEMBLY-VALVE TRAIN",null,null,4,"OS + OR (Oil Seals and O Rings)"]
[null,null,null,"JY511221/02;1-VALVE INTAKE x 2","VALVE INTAKE","JY511221",2,2,90,"CYLINDER HEAD ASSEMBLY-VALVE TRAIN",null,null,4,"PR (Proprietary Components)"]
[null,null,null,"DT511270/02;1-VALVE EXHAUST x 2","VALVE EXHAUST","DT511270",2,2,100,"CYLINDER HEAD ASSEMBLY-VALVE TRAIN",null,null,4,"PR (Proprietary Components)"]
[null,null,null,"JY511223/02;1-SEAT VALVE SPRING x 4","SEAT VALVE SPRING","JY511223",2,4,110,"CYLINDER HEAD ASSEMBLY-VALVE TRAIN",null,null,4,"PR (Proprietary Components)"]
[null,null,null,"JY511224/01;1-SPRING VALVE OUTER x 4","SPRING VALVE OUTER","JY511224",1,4,120,"CYLINDER HEAD ASSEMBLY-VALVE TRAIN",null,null,4,"SP (Springs)"]
[null,null,null,"JY511236/01;1-SPRING VALVE INNER x 4","SPRING VALVE INNER","JY511236",1,4,130,"CYLINDER HEAD ASSEMBLY-VALVE TRAIN",null,null,4,"SP (Springs)"]
[null,null,null,"JY511225/02;1-RETAINER VALVE SPRING x 4","RETAINER VALVE SPRING","JY511225",2,4,140,"CYLINDER HEAD ASSEMBLY-VALVE TRAIN",null,null,4,"FO (Forging Route)"]
[null,null,null,"JY511231/03;1-SHIM x 4","SHIM","JY511231",3,4,150,"CYLINDER HEAD ASSEMBLY-VALVE TRAIN",null,null,4,"FO (Forging Route)"]
[null,null,null,"CB101022/01;1-COTTER VALVE x 8","COTTER VALVE","CB101022",1,8,160,"CYLINDER HEAD ASSEMBLY-VALVE TRAIN",null,null,4,"HW (Hardware includes nuts,washers)"]
[null,null,null,"JU511204/08;1-ROCKER ARM x 3","ROCKER ARM","JU511204",8,3,170,"CYLINDER HEAD ASSEMBLY-VALVE TRAIN",null,null,4,"FO (Forging Route)"]
[null,null,null,"JY511212/07;1-ROCKER ARM DECOMP x 1","ROCKER ARM DECOMP","JY511212",7,1,180,"CYLINDER HEAD ASSEMBLY-VALVE TRAIN",null,null,4,"FO (Forging Route)"]
[null,null,null,"JY511226/03;1-SHAFT ROCKER ARM x 2","SHAFT ROCKER ARM","JY511226",3,2,190,"CYLINDER HEAD ASSEMBLY-VALVE TRAIN",null,null,4,"FO (Forging Route)"]
[null,null,null,"JG511016/02;1-PLUG x 2","PLUG","JG511016",2,2,200,"CYLINDER HEAD ASSEMBLY-VALVE TRAIN",null,null,4,"HW (Hardware includes nuts,washers)"]
[null,null,null,"39102121/03;1-RING - O x 2","RING - O",39102121,3,2,210,"CYLINDER HEAD ASSEMBLY-VALVE TRAIN",null,null,4,"OS + OR (Oil Seals and O Rings)"]
[null,null,null,"JP511201/00;1-CAMSHAFT ASSEMBLY INTAKE (Design) x 1","CAMSHAFT ASSEMBLY INTAKE","JP511201",0,1,220,"CYLINDER HEAD ASSEMBLY-VALVE TRAIN",null,null,4,"AS (Assembly,Sub-Assy)"]
[null,null,null,"JP511202/01;1-CAMSHAFT INTAKE x 1","CAMSHAFT INTAKE","JP511202",1,1,10,"CYLINDER HEAD ASSEMBLY-VALVE TRAIN",null,null,5,"FO (Forging Route)"]
[null,null,null,"JP511203/00;1-SPROCKET CAMSHAFT x 1","SPROCKET CAMSHAFT","JP511203",0,1,20,"CYLINDER HEAD ASSEMBLY-VALVE TRAIN",null,null,5,"PR (Proprietary Components)"]
[null,null,null,"LAC00144/02;1-BOLT SOCKET STEP M10X1 x 1","BOLT SOCKET STEP M10X1","LAC00144",2,1,30,"CYLINDER HEAD ASSEMBLY-VALVE TRAIN",null,null,5,"HW (Hardware includes nuts,washers)"]
[null,null,null,"DH101756/01;1-ADHESIVE LOCTITE 243 x 0.1","ADHESIVE LOCTITE 243","DH101756",1,0.1,40,"CYLINDER HEAD ASSEMBLY-VALVE TRAIN",null,null,5,"HW1 (Oil,Grease,Coolant,Sealant)"]
[null,null,null,"JY571016/01;1-OIL x 0.1","OIL ENGINE 10W50","JY571016",1,0.1,50,"CYLINDER HEAD ASSEMBLY-VALVE TRAIN",null,null,5,"HW1 (Oil,Grease,Coolant,Sealant)"]
[null,null,null,"JP511204/00;1-CAMSHAFT ASSEMBLY EXHAUST (Design) x 1","CAMSHAFT ASSEMBLY EXHAUST","JP511204",0,1,230,"CYLINDER HEAD ASSEMBLY-VALVE TRAIN",null,null,4,"AS (Assembly,Sub-Assy)"]
[null,null,null,"JP511205/01;1-CAMSHAFT EXHAUST x 1","CAMSHAFT EXHAUST","JP511205",1,1,10,"CYLINDER HEAD ASSEMBLY-VALVE TRAIN",null,null,5,"FO (Forging Route)"]
[null,null,null,"JP511203/00;1-SPROCKET CAMSHAFT x 1","SPROCKET CAMSHAFT","JP511203",0,1,20,"CYLINDER HEAD ASSEMBLY-VALVE TRAIN",null,null,5,"PR (Proprietary Components)"]
[null,null,null,"LAC00144/02;1-BOLT SOCKET STEP M10X1 x 1","BOLT SOCKET STEP M10X1","LAC00144",2,1,30,"CYLINDER HEAD ASSEMBLY-VALVE TRAIN",null,null,5,"HW (Hardware includes nuts,washers)"]
[null,null,null,"JY511213/06;1-FLYWEIGHT x 1","FLYWEIGHT","JY511213",6,1,40,"CYLINDER HEAD ASSEMBLY-VALVE TRAIN",null,null,5,"IC (Investment Casting)"]
[null,null,null,"JY511214/01;1-SPRING DECOMP x 1","SPRING COMPRESSION","JY511214",1,1,50,"CYLINDER HEAD ASSEMBLY-VALVE TRAIN",null,null,5,"SP (Springs)"]
[null,null,null,"JY511215/01;1-PIN DECOMP x 1","PIN DECOMP","JY511215",1,1,60,"CYLINDER HEAD ASSEMBLY-VALVE TRAIN",null,null,5,"BA (Bar or Turned components)"]
[null,null,null,"JY511259/00;1-RETAINER SPRING DECOMP x 1","RETAINER SPRING DECOMP","JY511259",0,1,70,"CYLINDER HEAD ASSEMBLY-VALVE TRAIN",null,null,5,"BA (Bar or Turned components)"]
[null,null,null,"LAE00021/01;1-BOLT FLANGED M6X1 x 1","BOLT FLANGED M6X1","LAE00021",1,1,80,"CYLINDER HEAD ASSEMBLY-VALVE TRAIN",null,null,5,"HW (Hardware includes nuts,washers)"]
[null,null,null,"JY511217/07;1-PIN PIVOT DECOMP x 1","PIN PIVOT DECOMP","JY511217",7,1,90,"CYLINDER HEAD ASSEMBLY-VALVE TRAIN",null,null,5,"BA (Bar or Turned components)"]
[null,null,null,"DH101756/01;1-ADHESIVE LOCTITE 243 x 0.1","ADHESIVE LOCTITE 243","DH101756",1,0.1,100,"CYLINDER HEAD ASSEMBLY-VALVE TRAIN",null,null,5,"HW1 (Oil,Grease,Coolant,Sealant)"]
[null,null,null,"JY571016/01;1-OIL x 0.1","OIL ENGINE 10W50","JY571016",1,0.1,110,"CYLINDER HEAD ASSEMBLY-VALVE TRAIN",null,null,5,"HW1 (Oil,Grease,Coolant,Sealant)"]
[null,null,null,"JG511046/03;1-BOLT STUD M8X1.25 x 2","BOLT STUD M8X1.25","JG511046",3,2,240,"CYLINDER HEAD ASSEMBLY-CYLINDER HEAD",null,null,4,"HW (Hardware includes nuts,washers)"]
[null,null,null,"LZB00007/00;1-GREASE -MOLYGRAPH BRB 30 x 1","GREASE -MOLYGRAPH BRB 30","LZB00007",0,1,250,"CYLINDER HEAD ASSEMBLY-CYLINDER HEAD",null,null,4,"HW1 (Oil,Grease,Coolant,Sealant)"]
[null,null,null,"LZA00002/00;1-OIL -ENGINE SAE20W50 DTSI 10000 x 5","OIL -ENGINE SAE20W50 DTSI 10000","LZA00002",0,5,260,"CYLINDER HEAD ASSEMBLY-CYLINDER HEAD",null,null,4,"HW1 (Oil,Grease,Coolant,Sealant)"]
[null,null,null,"31101239/00;1-SEALANT THREAD x 0.3","SEALANT THREAD",31101239,0,0.3,270,"CYLINDER HEAD ASSEMBLY-CYLINDER HEAD",null,null,4,"HW1 (Oil,Grease,Coolant,Sealant)"]
[null,null,null,"JL601237/00;3-THERMOSTAT x 1","THERMOSTAT","JL601237",0,1,20,"ENGINE ASSEMBLY-ENGINE ASSEMBLY",null,null,3,"PR (Proprietary Components)"]
[null,null,null,"JL511029/03;1-COVER THERMOSTAT x 1","COVER THERMOSTAT","JL511029",3,1,30,"ENGINE ASSEMBLY-ENGINE ASSEMBLY",null,null,3,"CA + M/C (Casting and Machined)"]
[null,null,null,"KAEW0620/00;1-BOLT FLANGED M6X1 x 2","BOLT FLANGED M6X1","KAEW0620",0,2,40,"ENGINE ASSEMBLY-ENGINE ASSEMBLY",null,null,3,"HW (Hardware includes nuts,washers)"]
[null,null,null,"LCG00006/00;1-NUT HEX FLANGED M8*1.25 (Design) x 2","NUT HEX FLANGED M8*1.25","LCG00006",0,2,50,"ENGINE ASSEMBLY-ENGINE ASSEMBLY",null,null,3,"HW (Hardware includes nuts,washers)"]
[null,null,null,"LAD00141/03;1-BOLT FLANGED-M6X1XL 46XSTEPPED x 1","BOLT FLANGED-M6X1XL 46XSTEPPED","LAD00141",3,1,90,"ENGINE ASSEMBLY-ENGINE ASSEMBLY",null,null,3,"HW (Hardware includes nuts,washers)"]
[null,null,null,"JG511021/02;1-WASHER (Design) x 1","WASHER","JG511021",2,1,100,"ENGINE ASSEMBLY-ENGINE ASSEMBLY",null,null,3,"RU (Rubber Components)"]
[null,null,null,"JP511023/00;1-GASKET HEAD CYLINDER (Design) x 1","GASKET HEAD CYLINDER","JP511023",0,1,110,"ENGINE ASSEMBLY-ENGINE ASSEMBLY",null,null,3,"GA (Gaskets,Paper,Steel,Liquid,Asbestos)"]
[null,null,null,"LAC00032/00;1-BOLT SOCKET HEAD M10 x 4","BOLT SOCKET HEAD M10","LAC00032",0,4,120,"ENGINE ASSEMBLY-ENGINE ASSEMBLY",null,null,3,"HW (Hardware includes nuts,washers)"]
[null,null,null,"LDA00014/01;1-WASHER PLAIN x 4","WASHER PLAIN","LDA00014",1,4,130,"ENGINE ASSEMBLY-ENGINE ASSEMBLY",null,null,3,"HW (Hardware includes nuts,washers)"]
[null,null,null,"JY511074/01;1-GASKET SLEEVE SPARK PLUG (Design) x 1","GASKET SLEEVE SPARK PLUG","JY511074",1,1,140,"ENGINE ASSEMBLY-ENGINE ASSEMBLY",null,null,3,"RU (Rubber Components)"]
[null,null,null,"JP511024/00;1-GASKET COVER HEAD CYLINDER (Design) x 1","GASKET COVER HEAD CYLINDER","JP511024",0,1,150,"ENGINE ASSEMBLY-ENGINE ASSEMBLY",null,null,3,"RU (Rubber Components)"]
[null,null,null,"JP511018/01;1-COVER HEAD CYLINDER (Design) x 1","COVER HEAD CYLINDER","JP511018",1,1,160,"ENGINE ASSEMBLY-ENGINE ASSEMBLY",null,null,3,"CA + M/C (Casting and Machined)"]
[null,null,null,"JP511057/01;1-PIPE BREATHER x 1","PIPE BREATHER","JP511057",1,1,170,"ENGINE ASSEMBLY-ENGINE ASSEMBLY",null,null,3,"PL (Plastic Components)"]
[null,null,null,"KJAB1224/01;1-O RING x 1","O RING","KJAB1224",1,1,180,"ENGINE ASSEMBLY-ENGINE ASSEMBLY",null,null,3,"OS + OR (Oil Seals and O Rings)"]
[null,null,null,"JL511137/00;1-PLATE STOPPER x 1","PLATE STOPPER","JL511137",0,1,190,"ENGINE ASSEMBLY-ENGINE ASSEMBLY",null,null,3,"SM (Sheet Metal & Fabricated Parts)"]
[null,null,null,"LAE00017/01;1-BOLT FLANGED M6X1 (Design) x 1","BOLT FLANGED M6X1","LAE00017",1,1,200,"ENGINE ASSEMBLY-ENGINE ASSEMBLY",null,null,3,"HW (Hardware includes nuts,washers)"]
[null,null,null,"JG511022/00;1-BOLT SPECIAL (Design) x 4","BOLT SPECIAL","JG511022",0,4,210,"ENGINE ASSEMBLY-ENGINE ASSEMBLY",null,null,3,"HW (Hardware includes nuts,washers)"]
[null,null,null,"JP511073/00;1-WASHER SEAL (Design) x 4","WASHER SEAL","JP511073",0,4,220,"ENGINE ASSEMBLY-ENGINE ASSEMBLY",null,null,3,"RU (Rubber Components)"]
[null,null,null,"JP511224/00;1-CHAIN x 1","CHAIN","JP511224",0,1,230,"ENGINE ASSEMBLY-ENGINE ASSEMBLY",null,null,3,"PR (Proprietary Components)"]
[null,null,null,"JP511235/00;1-TENSIONER CHAIN x 1","TENSIONER CHAIN","JP511235",0,1,240,"ENGINE ASSEMBLY-ENGINE ASSEMBLY",null,null,3,"PR (Proprietary Components)"]
[null,null,null,"39266921/00;1-O-RING (Design) x 1","O-RING",39266921,0,1,250,"ENGINE ASSEMBLY-ENGINE ASSEMBLY",null,null,3,"OS + OR (Oil Seals and O Rings)"]
[null,null,null,"JG511270/01;1-BOLT FLANGED M6X1 (Design) x 1","BOLT FLANGED M6X1","JG511270",1,1,260,"ENGINE ASSEMBLY-ENGINE ASSEMBLY",null,null,3,"HW (Hardware includes nuts,washers)"]
[null,null,null,"CS101128/00;1-GASKET (Design) x 1","GASKET","CS101128",0,1,270,"ENGINE ASSEMBLY-ENGINE ASSEMBLY",null,null,3,"GA (Gaskets,Paper,Steel,Liquid,Asbestos)"]
[null,null,null,"KAEW0620/00;1-BOLT FLANGED M6X1 x 2","BOLT FLANGED M6X1","KAEW0620",0,2,280,"ENGINE ASSEMBLY-ENGINE ASSEMBLY",null,null,3,"HW (Hardware includes nuts,washers)"]
[null,null,null,"JY351205/01;1-SPARK PLUG x 1","SPARK PLUG","JY351205",1,1,290,"ENGINE ASSEMBLY-ENGINE ASSEMBLY",null,null,3,"EE (Electrical, Electronics)"]
[null,null,null,"JP351209/00;1-GROMMET PLUG SPARK x 1","GROMMET PLUG SPARK","JP351209",0,1,300,"ENGINE ASSEMBLY-ENGINE ASSEMBLY",null,null,3,"RU (Rubber Components)"]
[null,null,null,"JP351214/00;1-COIL ASSEMBLY IGNITION (Design) x 1","COIL ASSEMBLY IGNITION","JP351214",0,1,310,"ENGINE ASSEMBLY-ENGINE ASSEMBLY",null,null,3,"EE (Electrical, Electronics)"]
[null,null,null,"JP351207/01;1-COIL IGNITION (Design) x 1","COIL IGNITION","JP351207",1,1,10,"ELECTRICAL/ELECTRONICS ENGINE-CDI/HT COIL/SPARK PLUG",null,null,4,"EE (Electrical, Electronics)"]
[null,null,null,"DD111012/03;1-GROMMET H.T. CABLE x 1","GROMMET H.T. CABLE","DD111012",3,1,15,"ELECTRICAL/ELECTRONICS ENGINE-CDI/HT COIL/SPARK PLUG",null,null,4,"EE (Electrical, Electronics)"]
[null,null,null,"JY351200/00;1-CAP SPARK PLUG x 1","CAP SPARK PLUG","JY351200",0,1,20,"ELECTRICAL/ELECTRONICS ENGINE-CDI/HT COIL/SPARK PLUG",null,null,4,"EE (Electrical, Electronics)"]
[null,null,null,"JY351203/00;1-GROMMET SPARK PLUG CAP x 1","GROMMET SPARK PLUG CAP","JY351203",0,1,30,"ELECTRICAL/ELECTRONICS ENGINE-CDI/HT COIL/SPARK PLUG",null,null,4,"EE (Electrical, Electronics)"]
[null,null,null,"JP521000/02;1-BLOCK CYLINDER (Design) x 1","BLOCK CYLINDER","JP521000",2,1,320,"ENGINE ASSEMBLY-ENGINE ASSEMBLY",null,null,3,"CA + M/C (Casting and Machined)"]
[null,null,null,"39218106/01;1-PIN DOWEL DIA 14 (Design) x 2","PIN DOWEL DIA 14",39218106,1,2,330,"ENGINE ASSEMBLY-ENGINE ASSEMBLY",null,null,3,"HW (Hardware includes nuts,washers)"]
[null,null,null,"JP521001/00;1-GASKET BLOCK CYLINDER (Design) x 1","GASKET BLOCK CYLINDER","JP521001",0,1,340,"ENGINE ASSEMBLY-ENGINE ASSEMBLY",null,null,3,"GA (Gaskets,Paper,Steel,Liquid,Asbestos)"]
[null,null,null,"JP531000/00;2-ASSEMBLY CRANKSHAFT (Design) x 1","ASSEMBLY CRANKSHAFT","JP531000",0,1,350,"ENGINE ASSEMBLY-ENGINE ASSEMBLY",null,null,3,"AS (Assembly,Sub-Assy)"]
[null,null,null,"JP531001/00;2-CRANKSHAFT ASSEMBLY (Design) x 1","CRANKSHAFT ASSEMBLY","JP531001",0,1,10,"CRANK TRAIN-CRANK SHAFT ASSEMBLY",null,null,4,"AS (Assembly,Sub-Assy)"]
[null,null,null,"JP531002/01;1-CRANKSHAFT x 1","CRANKSHAFT","JP531002",1,1,10,"CRANK TRAIN-CRANK SHAFT ASSEMBLY",null,null,5,"FO (Forging Route)"]
[null,null,null,"CB101213/00;1-BALL STEEL 7/32 x 1","BALL STEEL 7/32","CB101213",0,1,20,"CRANK TRAIN-CRANK SHAFT ASSEMBLY",null,null,5,"BR (Bearings)"]
[null,null,null,"JP531202/00;2-GEAR BALANCER DRIVE x 1","GEAR BALANCER DRIVE","JP531202",0,1,30,"CRANK TRAIN-CRANK SHAFT ASSEMBLY",null,null,5,"FO (Forging Route)"]
[null,null,null,"JP531003/00;1-CONROD ASSEMBLY (Design) x 1","CONROD ASSEMBLY","JP531003",0,1,20,"CRANK TRAIN-CRANK SHAFT ASSEMBLY",null,null,4,"AS (Assembly,Sub-Assy)"]
[null,null,null,"JP531004/00;2-CONROD x 1","CONROD","JP531004",0,1,10,"CRANK TRAIN-CRANK SHAFT ASSEMBLY",null,null,5,"FO (Forging Route)"]
[null,null,null,"JY531046/02;1-BUSH PISTON PIN x 1","BUSH PISTON PIN","JY531046",2,1,20,"CRANK TRAIN-CRANK SHAFT ASSEMBLY",null,null,5,"PR (Proprietary Components)"]
[null,null,null,"LAD00251/01;1-BOLT HEXALOBULAR FLANGED M9X1 x 2","BOLT HEXALOBULAR FLANGED M9X1","LAD00251",1,2,30,"CRANK TRAIN-CRANK SHAFT ASSEMBLY",null,null,5,"HW (Hardware includes nuts,washers)"]
[null,null,null,"JY531027/02;1-BUSH BIG END x 2","BUSH BIG END","JY531027",2,2,30,"CRANK TRAIN-CRANK SHAFT ASSEMBLY",null,null,4,"PR (Proprietary Components)"]
[null,null,null,"KFAB4050/01;1-KEY WOODRUFF x 1","KEY WOODRUFF","KFAB4050",1,1,360,"ENGINE ASSEMBLY-ENGINE ASSEMBLY",null,null,3,"FO (Forging Route)"]
[null,null,null,"JY531026/02;1-SPROCKET CRANKSHAFT x 1","SPROCKET CRANKSHAFT","JY531026",2,1,370,"ENGINE ASSEMBLY-ENGINE ASSEMBLY",null,null,3,"FO (Forging Route)"]
[null,null,null,"JP551200/01;1-GEAR PRIMARY DRIVE x 1","GEAR PRIMARY DRIVE","JP551200",1,1,380,"ENGINE ASSEMBLY-ENGINE ASSEMBLY",null,null,3,"FO (Forging Route)"]
[null,null,null,"LFB00001/00;1-KEY SUNK-WD4XHT4XL12XPHOSPHATISE x 1","KEY SUNK-WD4XHT4XL12XPHOSPHATISE","LFB00001",0,1,390,"ENGINE ASSEMBLY-ENGINE ASSEMBLY",null,null,3,"FO (Forging Route)"]
[null,null,null,"LDA00072/00;1-WASHER PLAIN x 1","WASHER PLAIN","LDA00072",0,1,400,"ENGINE ASSEMBLY-ENGINE ASSEMBLY",null,null,3,"FO (Forging Route)"]
[null,null,null,"LCG00022/01;1-NUT HEX FL-M16X1.5XHT.10XPRECOAT x 1","NUT HEX FL-M16X1.5XHT.10XPRECOAT","LCG00022",1,1,410,"ENGINE ASSEMBLY-ENGINE ASSEMBLY",null,null,3,"HW (Hardware includes nuts,washers)"]
[null,null,null,"JP531011/00;1-BOLT ASSEMBLY (Design) x 1","BOLT ASSEMBLY","JP531011",0,1,420,"ENGINE ASSEMBLY-ENGINE ASSEMBLY",null,null,3,"AS (Assembly,Sub-Assy)"]
[null,null,null,"LAD00254/00;3-BOLT BANJO M12X1.5 x 1","BOLT BANJO M12X1.5","LAD00254",0,1,10,"CRANK TRAIN-CRANK SHAFT ASSEMBLY",null,null,4,"HW (Hardware includes nuts,washers)"]
[null,null,null,"PD531053/01;1-NOZZLE x 1","NOZZLE","PD531053",1,1,20,"CRANK TRAIN-CRANK SHAFT ASSEMBLY",null,null,4,"BA (Bar or Turned components)"]
[null,null,null,"LDB00105/00;1-WASHER PLAIN x 1","WASHER PLAIN","LDB00105",0,1,430,"ENGINE ASSEMBLY-ENGINE ASSEMBLY",null,null,3,"FO (Forging Route)"]
[null,null,null,"JY521214/04;1-PISTON ASSLY CPL (Design) x 1","PISTON ASSLY CPL","JY521214",4,1,440,"ENGINE ASSEMBLY-ENGINE ASSEMBLY",null,null,3,"PR (Proprietary Components)"]
[null,null,null,"JY521215/06;1-PISTON x 1","PISTON","JY521215",6,1,10,"CYLINDER BLOCK PISTON-PISTON ASSEMBLY",null,null,4,"PR (Proprietary Components)"]
[null,null,null,"JY521216/02;1-RING PISTON TOP x 1","RING PISTON TOP","JY521216",2,1,20,"CYLINDER BLOCK PISTON-PISTON ASSEMBLY",null,null,4,"PR (Proprietary Components)"]
[null,null,null,"JY521217/01;1-RING PISTON SECOND x 1","RING PISTON SECOND","JY521217",1,1,30,"CYLINDER BLOCK PISTON-PISTON ASSEMBLY",null,null,4,"PR (Proprietary Components)"]
[null,null,null,"JY521218/02;1-RING PISTON OIL x 1","RING PISTON OIL","JY521218",2,1,40,"CYLINDER BLOCK PISTON-PISTON ASSEMBLY",null,null,4,"PR (Proprietary Components)"]
[null,null,null,"JY521219/01;1-PIN PISTON x 1","PIN PISTON","JY521219",1,1,50,"CYLINDER BLOCK PISTON-PISTON ASSEMBLY",null,null,4,"PR (Proprietary Components)"]
[null,null,null,"JY521220/00;1-RING SNAP x 2","RING SNAP","JY521220",0,2,60,"CYLINDER BLOCK PISTON-PISTON ASSEMBLY",null,null,4,"PR (Proprietary Components)"]
[null,null,null,"JY521223/02;1-PISTON ASSLY CPL (Design) x 1","PISTON ASSEMBLY","JY521223",2,1,445,"ENGINE ASSEMBLY-ENGINE ASSEMBLY",null,null,3,"PR (Proprietary Components)"]
[null,null,null,"JY521224/01;1-PISTON (Design) x 1","PISTON","JY521224",1,1,10,"CYLINDER BLOCK PISTON-PISTON ASSEMBLY",null,null,4,"PR (Proprietary Components)"]
[null,null,null,"JF521215/03;1-RING PISTON TOP x 1","RING PISTON TOP","JF521215",3,1,20,"CYLINDER BLOCK PISTON-PISTON ASSEMBLY",null,null,4,"PR (Proprietary Components)"]
[null,null,null,"JY521238/01;1-2ND PISTON RING x 1","RING PISTON SECOND","JY521238",1,1,30,"CYLINDER BLOCK PISTON-PISTON ASSEMBLY",null,null,4,"PR (Proprietary Components)"]
[null,null,null,"JF521213/02;1-RING PISTON OIL x 1","RING PISTON OIL","JF521213",2,1,40,"CYLINDER BLOCK PISTON-PISTON ASSEMBLY",null,null,4,"PR (Proprietary Components)"]
[null,null,null,"JY521237/00;1-PISTON PIN x 1","PISTON PIN","JY521237",0,1,50,"CYLINDER BLOCK PISTON-PISTON ASSEMBLY",null,null,4,"PR (Proprietary Components)"]
[null,null,null,"JF521300/02;1-CIRCLIP PISTON PIN x 2","CIRCLIP PISTON PIN","JF521300",2,2,60,"CYLINDER BLOCK PISTON-PISTON ASSEMBLY",null,null,4,"PR (Proprietary Components)"]
[null,null,null,"JP541010/00;1-CRANKCASE ASSEMBLY LH (Design) x 1","CRANKCASE ASSEMBLY LH","JP541010",0,1,450,"ENGINE ASSEMBLY-ENGINE ASSEMBLY",null,null,3,"AS (Assembly,Sub-Assy)"]
[null,null,null,"JP541011/02;1-CRANKCASE LH (Design) x 1","CRANKCASE LH","JP541011",2,1,10,"CRANKCASE /COVERS-CRANKCASE",null,null,4,"CA + M/C (Casting and Machined)"]
[null,null,null,"JY541023/00;1-BUSH CRANKSHAFT x 1","BUSH CRANKSHAFT","JY541023",0,1,10,"CRANKCASE /COVERS-CRANKCASE",null,null,5,"BR (Bearings)"]
[null,null,null,"JP541024/02;1-BUSH BIMETALLIC x 1","BUSH BIMETALLIC","JP541024",2,1,20,"CRANKCASE /COVERS-CRANKCASE",null,null,5,"BR (Bearings)"]
[null,null,null,"JP541015/00;1-PLUG SEAL DIA 8 x 3","PLUG SEAL DIA 8","JP541015",0,3,20,"CRANKCASE /COVERS-CRANKCASE",null,null,4,"HW (Hardware includes nuts,washers)"]
[null,null,null,"JC101077/00;1-PLUG TAPER x 1","PLUG TAPER","JC101077",0,1,30,"CRANKCASE /COVERS-CRANKCASE",null,null,4,"BA (Bar or Turned components)"]
[null,null,null,"JP541014/00;1-PLUG SEAL DIA 6 x 1","PLUG SEAL DIA 6","JP541014",0,1,40,"CRANKCASE /COVERS-CRANKCASE",null,null,4,"HW (Hardware includes nuts,washers)"]
[null,null,null,"JG541074/01;1-OIL NOZZLE x 1","OIL NOZZLE","JG541074",1,1,50,"CRANKCASE /COVERS-CRANKCASE",null,null,4,"BA (Bar or Turned components)"]
[null,null,null,"JY541007/00;1-NOZZLE JET OIL x 1","NOZZLE JET OIL","JY541007",0,1,60,"CRANKCASE /COVERS-CRANKCASE",null,null,4,"BA (Bar or Turned components)"]
[null,null,null,"JY541054/00;1-PLATE STOPPER x 1","PLATE STOPPER","JY541054",0,1,70,"CRANKCASE /COVERS-CRANKCASE",null,null,4,"SM (Sheet Metal & Fabricated Parts)"]
[null,null,null,"LBB00012/01;1-SCREW PAN CROSS-M6X1XL10XPRECOAT x 1","SCREW PAN CROSS-M6X1XL10XPRECOAT","LBB00012",1,1,80,"CRANKCASE /COVERS-CRANKCASE",null,null,4,"HW (Hardware includes nuts,washers)"]
[null,null,null,"LPB00020/00;1-BEARING BALL ID15XOD42XT13XC3L x 1","BEARING BALL ID15XOD42XT13XC3L","LPB00020",0,1,90,"CRANKCASE /COVERS-CRANKCASE",null,null,4,"BR (Bearings)"]
[null,null,null,"JP551013/00;1-BEARING ROLLER x 1","BEARING ROLLER","JP551013",0,1,100,"CRANKCASE /COVERS-CRANKCASE",null,null,4,"BR (Bearings)"]
[null,null,null,"JP541037/00;2-SEAL OIL x 1","SEAL OIL","JP541037",0,1,110,"CRANKCASE /COVERS-CRANKCASE",null,null,4,"OS + OR (Oil Seals and O Rings)"]
[null,null,null,"JP351805/00;2-SENSOR INDICATOR GEAR x 1","SENSOR INDICATOR GEAR","JP351805",0,1,120,"CRANKCASE /COVERS-CRANKCASE",null,null,4,"EE (Electrical, Electronics)"]
[null,null,null,"KJAA2024/01;1-O RING x 1","O RING","KJAA2024",1,1,130,"CRANKCASE /COVERS-CRANKCASE",null,null,4,"OS + OR (Oil Seals and O Rings)"]
[null,null,null,"JN181033/01;1-BOLT FLANG-M5X0.8XL16XBRXPRECOAT x 2","BOLT FLANG-M5X0.8XL16XBRXPRECOAT","JN181033",1,2,140,"CRANKCASE /COVERS-CRANKCASE",null,null,4,"HW (Hardware includes nuts,washers)"]
[null,null,null,"JG351024/00;1-SENSOR ASSEMBLY PICK UP (Design) x 1","SENSOR ASSEMBLY PICK UP","JG351024",0,1,150,"CRANKCASE /COVERS-CRANKCASE",null,null,4,"AS (Assembly,Sub-Assy)"]
[null,null,null,"JG351012/05;1-SENSOR PICK UP x 1","SENSOR PICK UP","JG351012",5,1,10,"ELECTRICAL/ELECTRONICS ENGINE-MAGNETO/ROTOR/STATOR/ALTERNATOR",null,null,5,"EE (Electrical, Electronics)"]
[null,null,null,"JG351001/00;1-GROMMET G x 1","GROMMET G","JG351001",0,1,20,"ELECTRICAL/ELECTRONICS ENGINE-MAGNETO/ROTOR/STATOR/ALTERNATOR",null,null,5,"RU (Rubber Components)"]
[null,null,null,"JG351014/00;1-GROMMET N x 1","GROMMET N","JG351014",0,1,30,"ELECTRICAL/ELECTRONICS ENGINE-MAGNETO/ROTOR/STATOR/ALTERNATOR",null,null,5,"RU (Rubber Components)"]
[null,null,null,"LAE00010/04;1-BOLT FLANGED M5X0.8 x 2","BOLT FLANGED M5X0.8","LAE00010",4,2,160,"CRANKCASE /COVERS-CRANKCASE",null,null,4,"HW (Hardware includes nuts,washers)"]
[null,null,null,"39256220/00;1-NEEDLE ROLLER BRG. (Design) x 1","NEEDLE ROLLER BRG.",39256220,0,1,170,"CRANKCASE /COVERS-CRANKCASE",null,null,4,"BR (Bearings)"]
[null,null,null,"39104319/02;1-SEAL - OIL x 1","SEAL - OIL",39104319,2,1,180,"CRANKCASE /COVERS-CRANKCASE",null,null,4,"OS + OR (Oil Seals and O Rings)"]
[null,null,null,"JY541038/00;1-BUSH x 1","BUSH","JY541038",0,1,190,"CRANKCASE /COVERS-CRANKCASE",null,null,4,"BR (Bearings)"]
[null,null,null,"JY541077/00;1-PIPE BREATHER x 1","PIPE BREATHER","JY541077",0,1,200,"CRANKCASE /COVERS-CRANKCASE",null,null,4,"FO (Forging Route)"]
[null,null,null,"LZB00007/00;1-GREASE -MOLYGRAPH BRB 30 x 1.8","GREASE -MOLYGRAPH BRB 30","LZB00007",0,1.8,230,"CRANKCASE /COVERS-CRANKCASE",null,null,4,"HW1 (Oil,Grease,Coolant,Sealant)"]
[null,null,null,"31101239/00;1-SEALANT THREAD x 0.25","SEALANT THREAD",31101239,0,0.25,240,"CRANKCASE /COVERS-CRANKCASE",null,null,4,"HW1 (Oil,Grease,Coolant,Sealant)"]
[null,null,null,"JY541039/00;1-SPRING x 1","SPRING","JY541039",0,1,460,"ENGINE ASSEMBLY-ENGINE ASSEMBLY",null,null,3,"SP (Springs)"]
[null,null,null,"LAE00001/01;1-BOLT FLANGED-M8X1.25XL20XPRECOAT x 1","BOLT FLANGED-M8X1.25XL20XPRECOAT","LAE00001",1,1,470,"ENGINE ASSEMBLY-ENGINE ASSEMBLY",null,null,3,"HW (Hardware includes nuts,washers)"]
[null,null,null,"39244811/00;1-PLAIN WASHER x 1","PLAIN WASHER",39244811,0,1,480,"ENGINE ASSEMBLY-ENGINE ASSEMBLY",null,null,3,"HW (Hardware includes nuts,washers)"]
[null,null,null,"39218106/01;1-PIN DOWEL DIA 14 (Design) x 4","PIN DOWEL DIA 14",39218106,1,4,490,"ENGINE ASSEMBLY-ENGINE ASSEMBLY",null,null,3,"HW (Hardware includes nuts,washers)"]
[null,null,null,"39099906/05;1-PIN DOWEL-OIL PUMP (Design) x 2","PIN DOWEL-OIL PUMP",39099906,5,2,500,"ENGINE ASSEMBLY-ENGINE ASSEMBLY",null,null,3,"HW (Hardware includes nuts,washers)"]
[null,null,null,"KAEQ0630/00;1-BOLT FLANGED M6X1 x 2","BOLT FLANGED M6X1","KAEQ0630",0,2,510,"ENGINE ASSEMBLY-ENGINE ASSEMBLY",null,null,3,"HW (Hardware includes nuts,washers)"]
[null,null,null,"KAEQ0635/01;1-BOLT FLANGED M6X1 x 4","BOLT FLANGED M6X1","KAEQ0635",1,4,520,"ENGINE ASSEMBLY-ENGINE ASSEMBLY",null,null,3,"HW (Hardware includes nuts,washers)"]
[null,null,null,"KAEQ0670/00;1-BOLT FLANGED M6X1 x 6","BOLT FLANGED M6X1","KAEQ0670",0,6,530,"ENGINE ASSEMBLY-ENGINE ASSEMBLY",null,null,3,"HW (Hardware includes nuts,washers)"]
[null,null,null,"JY541019/00;2-RETAINER GEAR STARTER (Design) x 1","RETAINER GEAR STARTER","JY541019",0,1,540,"ENGINE ASSEMBLY-ENGINE ASSEMBLY",null,null,3,"HW (Hardware includes nuts,washers)"]
[null,null,null,"LAE00049/00;2-BOLT FLANGE-M6X1XL14XBRTXPRECOAT x 1","BOLT FLANGE-M6X1XL14XBRTXPRECOAT","LAE00049",0,1,550,"ENGINE ASSEMBLY-ENGINE ASSEMBLY",null,null,3,"HW (Hardware includes nuts,washers)"]
[null,null,null,"JG541071/01;2-LIQUID SEALANT (LOCTITE 5910) (Design) x 1","LIQUID SEALANT (LOCTITE 5910)","JG541071",1,1,560,"ENGINE ASSEMBLY-ENGINE ASSEMBLY",null,null,3,"HW1 (Oil,Grease,Coolant,Sealant)"]
[null,null,null,"JP541012/00;1-CRANKCASE ASSEMBLY RH (Design) x 1","CRANKCASE ASSEMBLY RH","JP541012",0,1,570,"ENGINE ASSEMBLY-ENGINE ASSEMBLY",null,null,3,"AS (Assembly,Sub-Assy)"]
[null,null,null,"JP541013/01;1-CRANKCASE RH (Design) x 1","CRANKCASE RH","JP541013",1,1,10,"CRANKCASE /COVERS-CRANKCASE",null,null,4,"CA + M/C (Casting and Machined)"]
[null,null,null,"JY541023/00;1-BUSH CRANKSHAFT x 1","BUSH CRANKSHAFT","JY541023",0,1,10,"CRANKCASE /COVERS-CRANKCASE",null,null,5,"BR (Bearings)"]
[null,null,null,"JP541024/02;1-BUSH BIMETALLIC x 1","BUSH BIMETALLIC","JP541024",2,1,20,"CRANKCASE /COVERS-CRANKCASE",null,null,5,"BR (Bearings)"]
[null,null,null,"JY541034/02;1-BUSH x 1","BUSH","JY541034",2,1,20,"CRANKCASE /COVERS-CRANKCASE",null,null,4,"SI (Sinetered Components)"]
[null,null,null,"JP541015/00;1-PLUG SEAL DIA 8 x 2","PLUG SEAL DIA 8","JP541015",0,2,30,"CRANKCASE /COVERS-CRANKCASE",null,null,4,"HW (Hardware includes nuts,washers)"]
[null,null,null,"PD541118/00;1-PLUG x 2","PLUG","PD541118",0,2,40,"CRANKCASE /COVERS-CRANKCASE",null,null,4,"HW (Hardware includes nuts,washers)"]
[null,null,null,"JP541014/00;1-PLUG SEAL DIA 6 x 1","PLUG SEAL DIA 6","JP541014",0,1,50,"CRANKCASE /COVERS-CRANKCASE",null,null,4,"HW (Hardware includes nuts,washers)"]
[null,null,null,"39186420/02;1-BALL BEARING-20X52X15 x 1","BALL BEARING-20X52X15",39186420,2,1,60,"CRANKCASE /COVERS-CRANKCASE",null,null,4,"BR (Bearings)"]
[null,null,null,"LPB00019/00;1-BEARING BALL ID17XOD47XT14XC3L x 1","BEARING BALL ID17XOD47XT14XC3L","LPB00019",0,1,70,"CRANKCASE /COVERS-CRANKCASE",null,null,4,"BR (Bearings)"]
[null,null,null,"39260120/01;1-BEARING BALL (Design) x 1","BEARING BALL",39260120,1,1,80,"CRANKCASE /COVERS-CRANKCASE",null,null,4,"BR (Bearings)"]
[null,null,null,"39256220/00;1-NEEDLE ROLLER BRG. (Design) x 1","NEEDLE ROLLER BRG.",39256220,0,1,90,"CRANKCASE /COVERS-CRANKCASE",null,null,4,"BR (Bearings)"]
[null,null,null,"JY541047/02;1-STOPPER I/P SHAFT BEARING x 2","STOPPER I/P SHAFT BEARING","JY541047",2,2,100,"CRANKCASE /COVERS-CRANKCASE",null,null,4,"HW (Hardware includes nuts,washers)"]
[null,null,null,"AA101437/01;1-BOLT FLANGED M6X1 x 2","BOLT FLANGED M6X1","AA101437",1,2,110,"CRANKCASE /COVERS-CRANKCASE",null,null,4,"HW (Hardware includes nuts,washers)"]
[null,null,null,"JL601010/00;3-WATER SEAL_DOUBLE LIP x 1","WATER SEAL_DOUBLE LIP","JL601010",0,1,120,"CRANKCASE /COVERS-CRANKCASE",null,null,4,"OS + OR (Oil Seals and O Rings)"]
[null,null,null,"JG601007/03;1-SEAL OIL x 1","SEAL OIL","JG601007",3,1,130,"CRANKCASE /COVERS-CRANKCASE",null,null,4,"OS + OR (Oil Seals and O Rings)"]
[null,null,null,"JY541038/00;1-BUSH x 1","BUSH","JY541038",0,1,140,"CRANKCASE /COVERS-CRANKCASE",null,null,4,"BR (Bearings)"]
[null,null,null,"JP511206/00;1-GUIDE CHAIN SLACK SIDE x 1","GUIDE CHAIN SLACK SIDE","JP511206",0,1,150,"CRANKCASE /COVERS-CRANKCASE",null,null,4,"PL (Plastic Components)"]
[null,null,null,"DH101392/02;1-BOLT SOCKET-M6X1XL 24XPRECOAT (Design) x 1","BOLT SOCKET-M6X1XL 24XPRECOAT","DH101392",2,1,160,"CRANKCASE /COVERS-CRANKCASE",null,null,4,"HW (Hardware includes nuts,washers)"]
[null,null,null,"JG561009/05;1-STOPPER DRUM COMP (Design) x 1","STOPPER DRUM COMP","JG561009",5,1,170,"CRANKCASE /COVERS-CRANKCASE",null,null,4,"HW (Hardware includes nuts,washers)"]
[null,null,null,"JG561223/02;1-STOPPER DRUM x 1","STOPPER DRUM","JG561223",2,1,10,"CRANKCASE /COVERS-CRANKCASE",null,null,5,"SM (Sheet Metal & Fabricated Parts)"]
[null,null,null,"JG561227/02;1-ROLLER STOPPER DRUM x 1","ROLLER STOPPER DRUM","JG561227",2,1,20,"CRANKCASE /COVERS-CRANKCASE",null,null,5,"BA (Bar or Turned components)"]
[null,null,null,"DG101272/01;1-RIVET x 1","RIVET","DG101272",1,1,30,"CRANKCASE /COVERS-CRANKCASE",null,null,5,"FO (Forging Route)"]
[null,null,null,"LDB00050/00;1-WASHER PLAIN-ID 6XOD 14XTHK 1.2 x 1","WASHER PLAIN-ID 6XOD 14XTHK 1.2","LDB00050",0,1,180,"CRANKCASE /COVERS-CRANKCASE",null,null,4,"HW (Hardware includes nuts,washers)"]
[null,null,null,"JG561205/01;1-WASHER DRUM STOPPER (Design) x 1","WASHER DRUM STOPPER","JG561205",1,1,190,"CRANKCASE /COVERS-CRANKCASE",null,null,4,"HW (Hardware includes nuts,washers)"]
[null,null,null,"JG561204/01;1-BOLT STOPPER DRUM (Design) x 1","BOLT STOPPER DRUM","JG561204",1,1,200,"CRANKCASE /COVERS-CRANKCASE",null,null,4,"HW (Hardware includes nuts,washers)"]
[null,null,null,"JU561204/00;1-SPRING TORSION x 1","SPRING TORSION","JU561204",0,1,210,"CRANKCASE /COVERS-CRANKCASE",null,null,4,"SP (Springs)"]
[null,null,null,"DP101191/03;1-BOLT SHIFTER (Design) x 1","BOLT SHIFTER","DP101191",3,1,220,"CRANKCASE /COVERS-CRANKCASE",null,null,4,"HW (Hardware includes nuts,washers)"]
[null,null,null,"LAE00001/01;1-BOLT FLANGED-M8X1.25XL20XPRECOAT x 1","BOLT FLANGED-M8X1.25XL20XPRECOAT","LAE00001",1,1,230,"CRANKCASE /COVERS-CRANKCASE",null,null,4,"HW (Hardware includes nuts,washers)"]
[null,null,null,"LZB00008/00;2-GREASE -PETAMO GHY 441 x 1.8","GREASE -PETAMO GHY 441","LZB00008",0,1.8,240,"CRANKCASE /COVERS-CRANKCASE",null,null,4,"HW1 (Oil,Grease,Coolant,Sealant)"]
[null,null,null,"JY571027/01;1-STRAINER EVACUATION ASSLY (Design) x 1","STRAINER EVACUATION ASSLY","JY571027",1,1,580,"ENGINE ASSEMBLY-ENGINE ASSEMBLY",null,null,3,"AS (Assembly,Sub-Assy)"]
[null,null,null,"JY571008/01;1-STRAINER EVACAUTION x 1","STRAINER EVACAUTION","JY571008",1,1,10,"LUBRICATION SYSTEM-OIL PUMP",null,null,4,"PL (Plastic Components)"]
[null,null,null,"LJA00002/00;1-O RING FOR E - 20 x 2","O RING FOR E - 20","LJA00002",0,2,20,"LUBRICATION SYSTEM-OIL PUMP",null,null,4,"OS + OR (Oil Seals and O Rings)"]
[null,null,null,"JY571009/01;1-CAP STRAINER EVACUATION x 1","CAP STRAINER EVACUATION","JY571009",1,1,30,"LUBRICATION SYSTEM-OIL PUMP",null,null,4,"BA (Bar or Turned components)"]
[null,null,null,"LJA00006/00;1-RING O - ID 12.5XSECT. DIA. 2 x 1","RING O - ID 12.5XSECT. DIA. 2","LJA00006",0,1,40,"LUBRICATION SYSTEM-OIL PUMP",null,null,4,"OS + OR (Oil Seals and O Rings)"]
[null,null,null,"JY541039/00;1-SPRING x 1","SPRING","JY541039",0,1,590,"ENGINE ASSEMBLY-ENGINE ASSEMBLY",null,null,3,"SP (Springs)"]
[null,null,null,"JY541044/00;1-JET x 1","JET","JY541044",0,1,600,"ENGINE ASSEMBLY-ENGINE ASSEMBLY",null,null,3,"BA (Bar or Turned components)"]
[null,null,null,"JY541057/00;1-RAIL OIL x 1","RAIL OIL","JY541057",0,1,610,"ENGINE ASSEMBLY-ENGINE ASSEMBLY",null,null,3,"PL (Plastic Components)"]
[null,null,null,"KJAC0719/00;1-O RING x 1","O RING","KJAC0719",0,1,620,"ENGINE ASSEMBLY-ENGINE ASSEMBLY",null,null,3,"OS + OR (Oil Seals and O Rings)"]
[null,null,null,"JY541255/02;1-JET OIL x 1","JET OIL","JY541255",2,1,630,"ENGINE ASSEMBLY-ENGINE ASSEMBLY",null,null,3,"BA (Bar or Turned components)"]
[null,null,null,"LAE00001/01;1-BOLT FLANGED-M8X1.25XL20XPRECOAT x 1","BOLT FLANGED-M8X1.25XL20XPRECOAT","LAE00001",1,1,640,"ENGINE ASSEMBLY-ENGINE ASSEMBLY",null,null,3,"HW (Hardware includes nuts,washers)"]
[null,null,null,"JP511207/00;1-GUIDE CHAIN TIGHT SIDE x 1","GUIDE CHAIN TIGHT SIDE","JP511207",0,1,650,"ENGINE ASSEMBLY-ENGINE ASSEMBLY",null,null,3,"PL (Plastic Components)"]
[null,null,null,"LAC00107/00;1-BOLT SOCKET-M6X1XL102XBRTXSTEPED x 2","BOLT SOCKET STEP M6X1","LAC00107",0,2,660,"ENGINE ASSEMBLY-ENGINE ASSEMBLY",null,null,3,"HW (Hardware includes nuts,washers)"]
[null,null,null,"LDA00015/01;1-WASHER PLAIN x 2","WASHER PLAIN","LDA00015",1,2,670,"ENGINE ASSEMBLY-ENGINE ASSEMBLY",null,null,3,"HW (Hardware includes nuts,washers)"]
[null,null,null,"KAED0670/01;1-BOLT FLANGED M6X1 x 4","BOLT FLANGED M6X1","KAED0670",1,4,680,"ENGINE ASSEMBLY-ENGINE ASSEMBLY",null,null,3,"HW (Hardware includes nuts,washers)"]
[null,null,null,"KAEQ0635/01;1-BOLT FLANGED M6X1 x 1","BOLT FLANGED M6X1","KAEQ0635",1,1,690,"ENGINE ASSEMBLY-ENGINE ASSEMBLY",null,null,3,"HW (Hardware includes nuts,washers)"]
[null,null,null,"JP541227/01;1-COVER ASSEMBLY CLUTCH (Design) x 1","COVER ASSEMBLY CLUTCH","JP541227",1,1,700,"ENGINE ASSEMBLY-ENGINE ASSEMBLY",null,null,3,"AS (Assembly,Sub-Assy)"]
[null,null,null,"JP541228/01;1-COVER CLUTCH (Design) x 1","COVER CLUTCH","JP541228",1,1,10,"CRANKCASE /COVERS-COVERS",null,null,4,"CA + M/C (Casting and Machined)"]
[null,null,null,"JG541021/06;1-NOZZLE JET OIL x 2","NOZZLE JET OIL","JG541021",6,2,20,"CRANKCASE /COVERS-COVERS",null,null,4,"FO (Forging Route)"]
[null,null,null,"39199020/01;1-BEARING NEEDLE x 2","BEARING NEEDLE",39199020,1,2,30,"CRANKCASE /COVERS-COVERS",null,null,4,"BR (Bearings)"]
[null,null,null,"39104119/02;1-SEAL OIL (Design) x 1","SEAL OIL",39104119,2,1,40,"CRANKCASE /COVERS-COVERS",null,null,4,"OS + OR (Oil Seals and O Rings)"]
[null,null,null,"JY541034/02;1-BUSH x 1","BUSH","JY541034",2,1,50,"CRANKCASE /COVERS-COVERS",null,null,4,"SI (Sinetered Components)"]
[null,null,null,"JP551409/00;1-SHAFT ASSEMBLY CLUTCH (Design) x 1","SHAFT ASSEMBLY CLUTCH","JP551409",0,1,60,"CRANKCASE /COVERS-COVERS",null,null,4,"AS (Assembly,Sub-Assy)"]
[null,null,null,"JP551410/00;1-SHAFT CLUTCH x 1","SHAFT CLUTCH","JP551410",0,1,10,"TRANSMISSION-CLUTCH",null,null,5,"FO (Forging Route)"]
[null,null,null,"JY541252/00;1-LEVER CLUTCH RELEASE x 1","LEVER CLUTCH RELEASE","JY541252",0,1,20,"TRANSMISSION-CLUTCH",null,null,5,"SM (Sheet Metal & Fabricated Parts)"]
[null,null,null,"JU551001/00;1-HOLDER x 1","HOLDER","JU551001",0,1,30,"TRANSMISSION-CLUTCH",null,null,5,"SM (Sheet Metal & Fabricated Parts)"]
[null,null,null,"DH101232/01;1-RIVET x 1","RIVET","DH101232",1,1,40,"TRANSMISSION-CLUTCH",null,null,5,"FO (Forging Route)"]
[null,null,null,"PD541264/03;1-SPRING x 1","SPRING","PD541264",3,1,70,"CRANKCASE /COVERS-COVERS",null,null,4,"SP (Springs)"]
[null,null,null,"JG541230/02;1-CAP OIL FILLING x 1","CAP OIL FILLING","JG541230",2,1,80,"CRANKCASE /COVERS-COVERS",null,null,4,"PL (Plastic Components)"]
[null,null,null,"KJAA1424/01;1-O RING x 1","O RING","KJAA1424",1,1,90,"CRANKCASE /COVERS-COVERS",null,null,4,"OS + OR (Oil Seals and O Rings)"]
[null,null,null,"JZ541268/01;1-WINDOW GAUGE OIL x 1","WINDOW GAUGE OIL","JZ541268",1,1,100,"CRANKCASE /COVERS-COVERS",null,null,4,"RU (Rubber Components)"]
[null,null,null,"JZ541269/00;1-CIRCLIP x 1","CIRCLIP","JZ541269",0,1,110,"CRANKCASE /COVERS-COVERS",null,null,4,"WF (Wire Forms)"]
[null,null,null,"JP351803/02;1-SENSOR LEVER GEAR SHIFT x 1","SENSOR LEVER GEAR SHIFT","JP351803",2,1,120,"CRANKCASE /COVERS-COVERS",null,null,4,"EE (Electrical, Electronics)"]
[null,null,null,"LJA00004/01;1-STRAINER O RING x 1","STRAINER O RING","LJA00004",1,1,130,"CRANKCASE /COVERS-COVERS",null,null,4,"OS + OR (Oil Seals and O Rings)"]
[null,null,null,"LAD00232/00;1-BOLT FL-M5X0.8XL14XDACROXPRECOAT x 2","BOLT FL-M5X0.8XL14XDACROXPRECOAT","LAD00232",0,2,140,"CRANKCASE /COVERS-COVERS",null,null,4,"HW (Hardware includes nuts,washers)"]
[null,null,null,"LZB00007/00;1-GREASE -MOLYGRAPH BRB 30 x 0.5","GREASE -MOLYGRAPH BRB 30","LZB00007",0,0.5,150,"CRANKCASE /COVERS-COVERS",null,null,4,"HW1 (Oil,Grease,Coolant,Sealant)"]
[null,null,null,"JP551406/00;1-ROD PULL x 1","ROD PULL","JP551406",0,1,710,"ENGINE ASSEMBLY-ENGINE ASSEMBLY",null,null,3,"FO (Forging Route)"]
[null,null,null,"39099906/05;1-PIN DOWEL-OIL PUMP (Design) x 2","PIN DOWEL-OIL PUMP",39099906,5,2,720,"ENGINE ASSEMBLY-ENGINE ASSEMBLY",null,null,3,"HW (Hardware includes nuts,washers)"]
[null,null,null,"JP541235/00;1-GASKET COVER CLUTCH (Design) x 1","GASKET COVER CLUTCH","JP541235",0,1,730,"ENGINE ASSEMBLY-ENGINE ASSEMBLY",null,null,3,"GA (Gaskets,Paper,Steel,Liquid,Asbestos)"]
[null,null,null,"KAEQ0635/01;1-BOLT FLANGED M6X1 x 10","BOLT FLANGED M6X1","KAEQ0635",1,10,740,"ENGINE ASSEMBLY-ENGINE ASSEMBLY",null,null,3,"HW (Hardware includes nuts,washers)"]
[null,null,null,"39166511/00;1-PLAIN WASHER (NON FERROUS) x 1","PLAIN WASHER (NON FERROUS)",39166511,0,1,750,"ENGINE ASSEMBLY-ENGINE ASSEMBLY",null,null,3,"HW (Hardware includes nuts,washers)"]
[null,null,null,"JP551222/00;1-BRACKET CABLE CLUTCH (Design) x 1","BRACKET CABLE CLUTCH","JP551222",0,1,760,"ENGINE ASSEMBLY-ENGINE ASSEMBLY",null,null,3,"SM (Sheet Metal & Fabricated Parts)"]
[null,null,null,"JP541229/01;1-COVER ASSEMBLY MAGNETO (Design) x 1","COVER ASSEMBLY MAGNETO","JP541229",1,1,770,"ENGINE ASSEMBLY-ENGINE ASSEMBLY",null,null,3,"AS (Assembly,Sub-Assy)"]
[null,null,null,"JP541230/01;1-COVER MAGNETO (Design) x 1","COVER MAGNETO","JP541230",1,1,10,"CRANKCASE /COVERS-COVERS",null,null,4,"CA + M/C (Casting and Machined)"]
[null,null,null,"JY541206/00;1-CAP CRANK CENTRE x 1","CAP CRANK CENTRE","JY541206",0,1,20,"CRANKCASE /COVERS-COVERS",null,null,4,"PL (Plastic Components)"]
[null,null,null,"LJA00007/00;1-RING O - ID 24XSECT. DIA. 2.5 x 1","RING O - ID 24XSECT. DIA. 2.5","LJA00007",0,1,30,"CRANKCASE /COVERS-COVERS",null,null,4,"OS + OR (Oil Seals and O Rings)"]
[null,null,null,"JL541245/02;1-CAP TDC FINDER x 1","CAP TDC FINDER","JL541245",2,1,40,"CRANKCASE /COVERS-COVERS",null,null,4,"PL (Plastic Components)"]
[null,null,null,"30101195/01;1-O-RING(15.8X2.4) x 1","O-RING(15.8X2.4)",30101195,1,1,50,"CRANKCASE /COVERS-COVERS",null,null,4,"OS + OR (Oil Seals and O Rings)"]
[null,null,null,"JP351012/00;1-MAGNETO ASSEMBLY (Design) x 1","MAGNETO ASSEMBLY","JP351012",0,1,780,"ENGINE ASSEMBLY-ENGINE ASSEMBLY",null,null,3,"EE (Electrical, Electronics)"]
[null,null,null,"JP351027/00;1-ASSEMBLY ROTOR (Design) x 1","ASSEMBLY ROTOR","JP351027",0,1,10,"ELECTRICAL/ELECTRONICS ENGINE-MAGNETO/ROTOR/STATOR/ALTERNATOR",null,null,4,"EE (Electrical, Electronics)"]
[null,null,null,"JP351014/00;1-ROTOR ASSEMBLY (Design) x 1","ROTOR ASSEMBLY","JP351014",0,1,10,"ELECTRICAL/ELECTRONICS ENGINE-MAGNETO/ROTOR/STATOR/ALTERNATOR",null,null,5,"EE (Electrical, Electronics)"]
[null,null,null,"JP351015/00;1-BUSH MAGNETO (Design) x 1","BUSH MAGNETO","JP351015",0,1,10,"ELECTRICAL/ELECTRONICS ENGINE-MAGNETO/ROTOR/STATOR/ALTERNATOR",null,null,6,"EE (Electrical, Electronics)"]
[null,null,null,"JG351019/03;1-BODY STARTER CLUTCH x 1","BODY STARTER CLUTCH","JG351019",3,1,20,"ELECTRICAL/ELECTRONICS ENGINE-MAGNETO/ROTOR/STATOR/ALTERNATOR",null,null,5,"EE (Electrical, Electronics)"]
[null,null,null,"JY551402/00;1-CLUTCH ONE WAY ASSLY x 1","CLUTCH ONE WAY ASSLY","JY551402",0,1,30,"ELECTRICAL/ELECTRONICS ENGINE-MAGNETO/ROTOR/STATOR/ALTERNATOR",null,null,5,"EE (Electrical, Electronics)"]
[null,null,null,"LDF00001/02;1-WASHER TOOTHED-ID 6.4XOD11XT 0.7 x 4","WASHER TOOTHED-ID 6.4XOD11XT 0.7","LDF00001",2,4,40,"ELECTRICAL/ELECTRONICS ENGINE-MAGNETO/ROTOR/STATOR/ALTERNATOR",null,null,5,"HW (Hardware includes nuts,washers)"]
[null,null,null,"DH101389/02;1-BOLT SOCKET-M6X1XL 20XCL 12.9 (Design) x 4","BOLT SOCKET-M6X1XL 20XCL 12.9","DH101389",2,4,50,"ELECTRICAL/ELECTRONICS ENGINE-MAGNETO/ROTOR/STATOR/ALTERNATOR",null,null,5,"HW (Hardware includes nuts,washers)"]
[null,null,null,"JP351023/01;1-STATOR ASSEMBLY (Design) x 1","STATOR ASSEMBLY","JP351023",1,1,60,"ELECTRICAL/ELECTRONICS ENGINE-MAGNETO/ROTOR/STATOR/ALTERNATOR",null,null,4,"EE (Electrical, Electronics)"]
[null,null,null,"JL351057/00;1-GROMMET M (Design) x 1","GROMMET M","JL351057",0,1,10,"ELECTRICAL/ELECTRONICS ENGINE-MAGNETO/ROTOR/STATOR/ALTERNATOR",null,null,5,"EE (Electrical, Electronics)"]
[null,null,null,"JG351014/00;1-GROMMET N x 1","GROMMET N","JG351014",0,1,20,"ELECTRICAL/ELECTRONICS ENGINE-MAGNETO/ROTOR/STATOR/ALTERNATOR",null,null,5,"RU (Rubber Components)"]
[null,null,null,"JP541236/00;1-BRACKET MAGNETO x 1","BRACKET MAGNETO","JP541236",0,1,790,"ENGINE ASSEMBLY-ENGINE ASSEMBLY",null,null,3,"SM (Sheet Metal & Fabricated Parts)"]
[null,null,null,"LAE00016/01;1-BOLT FLANGED M5X0.8X6L-PRECOATED (Design) x 1","BOLT FLANGED M5X0.8X6L-PRECOATED","LAE00016",1,1,800,"ENGINE ASSEMBLY-ENGINE ASSEMBLY",null,null,3,"HW (Hardware includes nuts,washers)"]
[null,null,null,"DK101284/05;1-BOLT SOCKET-M5X0.8XL 34XPRECOAT x 3","BOLT SOCKET-M5X0.8XL 34XPRECOAT","DK101284",5,3,810,"ENGINE ASSEMBLY-ENGINE ASSEMBLY",null,null,3,"HW (Hardware includes nuts,washers)"]
[null,null,null,"39099906/05;1-PIN DOWEL-OIL PUMP (Design) x 2","PIN DOWEL-OIL PUMP",39099906,5,2,820,"ENGINE ASSEMBLY-ENGINE ASSEMBLY",null,null,3,"HW (Hardware includes nuts,washers)"]
[null,null,null,"JP541237/00;1-GASKET COVER MAGNETO (Design) x 1","GASKET COVER MAGNETO","JP541237",0,1,830,"ENGINE ASSEMBLY-ENGINE ASSEMBLY",null,null,3,"GA (Gaskets,Paper,Steel,Liquid,Asbestos)"]
[null,null,null,"KAEQ0635/01;1-BOLT FLANGED M6X1 x 9","BOLT FLANGED M6X1","KAEQ0635",1,9,840,"ENGINE ASSEMBLY-ENGINE ASSEMBLY",null,null,3,"HW (Hardware includes nuts,washers)"]
[null,null,null,"JP531200/00;1-BALANCER ASSEMBLY (Design) x 1","BALANCER ASSEMBLY","JP531200",0,1,850,"ENGINE ASSEMBLY-ENGINE ASSEMBLY",null,null,3,"AS (Assembly,Sub-Assy)"]
[null,null,null,"JP531201/00;1-BALANCER x 1","BALANCER","JP531201",0,1,10,"CRANK TRAIN-BALANCER",null,null,4,"FO (Forging Route)"]
[null,null,null,"JP531203/00;1-GEAR BALANCER DRIVEN x 1","GEAR BALANCER DRIVEN","JP531203",0,1,20,"CRANK TRAIN-BALANCER",null,null,4,"FO (Forging Route)"]
[null,null,null,"JG531229/02;1-RING O x 1","RING O","JG531229",2,1,30,"CRANK TRAIN-BALANCER",null,null,4,"OS + OR (Oil Seals and O Rings)"]
[null,null,null,"JL531203/02;1-SLEEVE BALANCER DRIVEN x 1","SLEEVE BALANCER DRIVEN","JL531203",2,1,40,"CRANK TRAIN-BALANCER",null,null,4,"BA (Bar or Turned components)"]
[null,null,null,"JG601005/03;1-DOME NUT (Design) x 1","DOME NUT","JG601005",3,1,860,"ENGINE ASSEMBLY-ENGINE ASSEMBLY",null,null,3,"HW (Hardware includes nuts,washers)"]
[null,null,null,"JP551403/00;1-CLUTCH ASSEMBLY (Design) x 1","CLUTCH ASSEMBLY","JP551403",0,1,870,"ENGINE ASSEMBLY-ENGINE ASSEMBLY",null,null,3,"PR (Proprietary Components)"]
[null,null,null,"JP551404/00;1-HOUSING ASSEMBLY CLUTCH (Design) x 1","HOUSING ASSEMBLY CLUTCH","JP551404",0,1,10,"TRANSMISSION-CLUTCH",null,null,4,"PR (Proprietary Components)"]
[null,null,null,"JP551221/01;1-GEAR ASSEMBLY PRIMARY DRIVEN (Design) x 1","GEAR ASSEMBLY PRIMARY DRIVEN","JP551221",1,1,10,"TRANSMISSION-CLUTCH",null,null,5,"AS (Assembly,Sub-Assy)"]
[null,null,null,"JP551217/01;1-GEAR PRIMARY DRIVEN x 1","GEAR PRIMARY DRIVEN","JP551217",1,1,10,"TRANSMISSION-CLUTCH",null,null,6,"FO (Forging Route)"]
[null,null,null,"TA551405/00;1-BUSH BIMETALLIC x 1","BUSH BIMETALLIC","TA551405",0,1,20,"TRANSMISSION-CLUTCH",null,null,6,"BR (Bearings)"]
[null,null,null,"JF551414/00;4-OUTER CLUTCH (Design) x 1","OUTER CLUTCH","JF551414",0,1,20,"TRANSMISSION-CLUTCH",null,null,5,"PR (Proprietary Components)"]
[null,null,null,"JY551425/00;1-RIVET x 3","RIVET","JY551425",0,3,30,"TRANSMISSION-CLUTCH",null,null,5,"PR (Proprietary Components)"]
[null,null,null,"JY551431/00;1-PLATE DRIVEN GEAR SIDE (Design) x 1","PLATE DRIVEN GEAR SIDE","JY551431",0,1,40,"TRANSMISSION-CLUTCH",null,null,5,"PR (Proprietary Components)"]
[null,null,null,"JY551414/00;2-SEAT DISK SPRING x 1","SEAT DISK SPRING","JY551414",0,1,50,"TRANSMISSION-CLUTCH",null,null,5,"PR (Proprietary Components)"]
[null,null,null,"JY551410/00;2-SPRING DISK x 2","SPRING DISK","JY551410",0,2,60,"TRANSMISSION-CLUTCH",null,null,5,"PR (Proprietary Components)"]
[null,null,null,"JF551415/00;1-DAMPER SPRING x 6","DAMPER SPRING","JF551415",0,6,70,"TRANSMISSION-CLUTCH",null,null,5,"PR (Proprietary Components)"]
[null,null,null,"JP551405/00;1-PLATE ASSEMBLY CLUTCH (Design) x 1","PLATE ASSEMBLY CLUTCH","JP551405",0,1,20,"TRANSMISSION-CLUTCH",null,null,4,"PR (Proprietary Components)"]
[null,null,null,"JY551435/00;1-CLUTCH CENTER x 1","CLUTCH CENTER","JY551435",0,1,10,"TRANSMISSION-CLUTCH",null,null,5,"PR (Proprietary Components)"]
[null,null,null,"JY551436/00;1-PLATE A CLUTCH x 5","PLATE A CLUTCH","JY551436",0,5,20,"TRANSMISSION-CLUTCH",null,null,5,"PR (Proprietary Components)"]
[null,null,null,"JY551437/00;1-PLATE B CLUTCH x 1","PLATE B CLUTCH","JY551437",0,1,30,"TRANSMISSION-CLUTCH",null,null,5,"PR (Proprietary Components)"]
[null,null,null,"JY551420/00;1-DISC FRICTION - C x 3","DISC FRICTION - C","JY551420",0,3,40,"TRANSMISSION-CLUTCH",null,null,5,"PR (Proprietary Components)"]
[null,null,null,"JY551438/00;1-PLATE CLUTCH PRESSURE x 1","PLATE CLUTCH PRESSURE","JY551438",0,1,50,"TRANSMISSION-CLUTCH",null,null,5,"PR (Proprietary Components)"]
[null,null,null,"JY551440/00;1-SEAT SPRING x 3","SEAT SPRING","JY551440",0,3,60,"TRANSMISSION-CLUTCH",null,null,5,"PR (Proprietary Components)"]
[null,null,null,"JY551441/00;1-SPRING JUDDER x 1","SPRING JUDDER","JY551441",0,1,70,"TRANSMISSION-CLUTCH",null,null,5,"PR (Proprietary Components)"]
[null,null,null,"JY551442/00;1-SPRING SEAT JUDDER x 1","SPRING SEAT JUDDER","JY551442",0,1,80,"TRANSMISSION-CLUTCH",null,null,5,"PR (Proprietary Components)"]
[null,null,null,"JY551443/00;1-PLATE STOPPER x 1","PLATE STOPPER","JY551443",0,1,90,"TRANSMISSION-CLUTCH",null,null,5,"PR (Proprietary Components)"]
[null,null,null,"LAD00166/00;1-BOLT FLANGED-M6X1XL35XCL 8.8XBRT x 3","BOLT FLANGED-M6X1XL35XCL 8.8XBRT","LAD00166",0,3,100,"TRANSMISSION-CLUTCH",null,null,5,"HW (Hardware includes nuts,washers)"]
[null,null,null,"JP551407/00;1-COLLAR x 1","COLLAR","JP551407",0,1,880,"ENGINE ASSEMBLY-ENGINE ASSEMBLY",null,null,3,"BA (Bar or Turned components)"]
[null,null,null,"JY551403/00;1-CLUTCH WASHER x 1","CLUTCH WASHER","JY551403",0,1,890,"ENGINE ASSEMBLY-ENGINE ASSEMBLY",null,null,3,"BA (Bar or Turned components)"]
[null,null,null,"JY551019/00;1-WASHER PLAIN x 1","WASHER PLAIN","JY551019",0,1,900,"ENGINE ASSEMBLY-ENGINE ASSEMBLY",null,null,3,"BA (Bar or Turned components)"]
[null,null,null,"DG101275/01;1-WASHER CONICAL x 1","WASHER CONICAL","DG101275",1,1,910,"ENGINE ASSEMBLY-ENGINE ASSEMBLY",null,null,3,"HW (Hardware includes nuts,washers)"]
[null,null,null,"LCG00022/01;1-NUT HEX FL-M16X1.5XHT.10XPRECOAT x 1","NUT HEX FL-M16X1.5XHT.10XPRECOAT","LCG00022",1,1,920,"ENGINE ASSEMBLY-ENGINE ASSEMBLY",null,null,3,"HW (Hardware includes nuts,washers)"]
[null,null,null,"LPA00004/00;1-BEARING BALL-ID 15XOD 28XTHK 7 x 1","BEARING BALL ID15XOD28XT7","LPA00004",0,1,930,"ENGINE ASSEMBLY-ENGINE ASSEMBLY",null,null,3,"BR (Bearings)"]
[null,null,null,"JP551000/01;1-SHAFT ASSEMBLY INPUT (Design) x 1","SHAFT ASSEMBLY INPUT","JP551000",1,1,940,"ENGINE ASSEMBLY-ENGINE ASSEMBLY",null,null,3,"AS (Assembly,Sub-Assy)"]
[null,null,null,"JP551001/01;1-SHAFT INPUT x 1","SHAFT INPUT","JP551001",1,1,10,"TRANSMISSION-SHAFT",null,null,4,"FO (Forging Route)"]
[null,null,null,"JE511052/08;1-NOZZLE x 1","NOZZLE","JE511052",8,1,20,"TRANSMISSION-GEARS",null,null,4,"BA (Bar or Turned components)"]
[null,null,null,"JP551203/02;1-GEAR FIFTH DRIVE x 1","GEAR FIFTH DRIVE","JP551203",2,1,30,"TRANSMISSION-GEARS",null,null,4,"FO (Forging Route)"]
[null,null,null,"JP551004/00;1-BUSH FIFTH DRIVE x 1","BUSH FIFTH DRIVE","JP551004",0,1,40,"TRANSMISSION-SHAFT",null,null,4,"FO (Forging Route)"]
[null,null,null,"JY551214/00;1-CIRCLIP EXTERNAL I/P SHAFT x 2","CIRCLIP EXTERNAL I/P SHAFT","JY551214",0,2,50,"TRANSMISSION-SHAFT",null,null,4,"HW (Hardware includes nuts,washers)"]
[null,null,null,"JP551202/01;1-GEAR THIRD-FOURTH DRIVE x 1","GEAR THIRD-FOURTH DRIVE","JP551202",1,1,60,"TRANSMISSION-GEARS",null,null,4,"FO (Forging Route)"]
[null,null,null,"JP551204/02;1-GEAR SIXTH DRIVE x 1","GEAR SIXTH DRIVE","JP551204",2,1,70,"TRANSMISSION-GEARS",null,null,4,"FO (Forging Route)"]
[null,null,null,"JP551005/01;1-BUSH x 1","BUSH","JP551005",1,1,80,"TRANSMISSION-SHAFT",null,null,4,"FO (Forging Route)"]
[null,null,null,"JY551228/00;1-GEAR 2ND DRIVE x 1","GEAR 2ND DRIVE","JY551228",0,1,90,"TRANSMISSION-GEARS",null,null,4,"FO (Forging Route)"]
[null,null,null,"JY551215/01;1-WASHER THRUST 2ND DRIVE x 1","WASHER THRUST 2ND DRIVE","JY551215",1,1,100,"TRANSMISSION-SHAFT",null,null,4,"HW (Hardware includes nuts,washers)"]
[null,null,null,"JY571016/01;1-OIL x 5","OIL ENGINE 10W50","JY571016",1,5,110,"LUBRICATION SYSTEM-OIL PUMP",null,null,4,"HW1 (Oil,Grease,Coolant,Sealant)"]
[null,null,null,"JP551002/02;1-ASSEMBLY SHAFT OUTPUT (Design) x 1","ASSEMBLY SHAFT OUTPUT","JP551002",2,1,950,"ENGINE ASSEMBLY-ENGINE ASSEMBLY",null,null,3,"AS (Assembly,Sub-Assy)"]
[null,null,null,"JP551008/02;1-SHAFT ASSEMBLY OUTPUT (Design) x 1","SHAFT ASSEMBLY OUTPUT","JP551008",2,1,10,"TRANSMISSION-SHAFT",null,null,4,"AS (Assembly,Sub-Assy)"]
[null,null,null,"JP551003/02;1-SHAFT OUTPUT x 1","SHAFT OUTPUT","JP551003",2,1,10,"TRANSMISSION-GEARS",null,null,5,"FO (Forging Route)"]
[null,null,null,"JL551000/00;1-PLUG SHAFT INPUT x 1","PLUG SHAFT INPUT","JL551000",0,1,20,"TRANSMISSION-GEARS",null,null,5,"SM (Sheet Metal & Fabricated Parts)"]
[null,null,null,"JE511052/08;1-NOZZLE x 1","NOZZLE","JE511052",8,1,30,"TRANSMISSION-GEARS",null,null,5,"BA (Bar or Turned components)"]
[null,null,null,"31101239/00;1-SEALANT THREAD x 0.02","SEALANT THREAD",31101239,0,0.02,40,"TRANSMISSION-GEARS",null,null,5,"HW1 (Oil,Grease,Coolant,Sealant)"]
[null,null,null,"JP551006/00;1-BUSH SECOND DRIVEN x 1","BUSH SECOND DRIVEN","JP551006",0,1,20,"TRANSMISSION-GEARS",null,null,4,"FO (Forging Route)"]
[null,null,null,"JP551205/01;1-GEAR SECOND DRIVEN x 1","GEAR SECOND DRIVEN","JP551205",1,1,30,"TRANSMISSION-SHAFT",null,null,4,"FO (Forging Route)"]
[null,null,null,"JP551209/02;1-GEAR SIXTH DRIVEN x 1","GEAR SIXTH DRIVEN","JP551209",2,1,40,"TRANSMISSION-SHAFT",null,null,4,"FO (Forging Route)"]
[null,null,null,"JP551207/01;1-GEAR FOURTH DRIVEN x 1","GEAR FOURTH DRIVEN","JP551207",1,1,50,"TRANSMISSION-GEARS",null,null,4,"FO (Forging Route)"]
[null,null,null,"TA551018/00;1-WASHER PLAIN x 1","WASHER PLAIN","TA551018",0,1,60,"TRANSMISSION-SHAFT",null,null,4,"HW (Hardware includes nuts,washers)"]
[null,null,null,"JP551007/00;1-BUSH THIRD DRIVEN x 1","BUSH THIRD DRIVEN","JP551007",0,1,70,"TRANSMISSION-GEARS",null,null,4,"FO (Forging Route)"]
[null,null,null,"JP551206/01;1-GEAR THIRD DRIVEN x 1","GEAR THIRD DRIVEN","JP551206",1,1,80,"TRANSMISSION-GEARS",null,null,4,"FO (Forging Route)"]
[null,null,null,"JY551218/01;1-CIRCLIP EXTERNAL x 1","CIRCLIP EXTERNAL","JY551218",1,1,90,"TRANSMISSION-SHAFT",null,null,4,"HW (Hardware includes nuts,washers)"]
[null,null,null,"JP551208/02;1-GEAR FIFTH DRIVEN x 1","GEAR FIFTH DRIVEN","JP551208",2,1,100,"TRANSMISSION-GEARS",null,null,4,"FO (Forging Route)"]
[null,null,null,"JY551205/05;1-BUSH x 1","BUSH","JY551205",5,1,110,"TRANSMISSION-GEARS",null,null,4,"BA (Bar or Turned components)"]
[null,null,null,"JY551232/03;1-GEAR 1ST DRIVEN x 1","GEAR 1ST DRIVEN","JY551232",3,1,120,"TRANSMISSION-SHAFT",null,null,4,"FO (Forging Route)"]
[null,null,null,"LDB00085/00;1-WASHER PLAIN x 1","WASHER PLAIN","LDB00085",0,1,130,"TRANSMISSION-GEARS",null,null,4,"HW (Hardware includes nuts,washers)"]
[null,null,null,"JY571016/01;1-OIL x 5","OIL ENGINE 10W50","JY571016",1,5,140,"LUBRICATION SYSTEM-OIL PUMP",null,null,4,"HW1 (Oil,Grease,Coolant,Sealant)"]
[null,null,null,"39101421/02;1-O RING (ID20.8*2.4) x 1","O RING (ID20.8*2.4)",39101421,2,1,960,"ENGINE ASSEMBLY-ENGINE ASSEMBLY",null,null,3,"OS + OR (Oil Seals and O Rings)"]
[null,null,null,"JP551009/01;1-COLLAR SPROCKET x 1","COLLAR SPROCKET","JP551009",1,1,970,"ENGINE ASSEMBLY-ENGINE ASSEMBLY",null,null,3,"FO (Forging Route)"]
[null,null,null,"JY551029/01;1-SPROCKET DRIVE x 1","SPROCKET DRIVE","JY551029",1,1,980,"ENGINE ASSEMBLY-ENGINE ASSEMBLY",null,null,3,"PR (Proprietary Components)"]
[null,null,null,"JP551223/00;1-WASHER x 1","WASHER","JP551223",0,1,990,"ENGINE ASSEMBLY-ENGINE ASSEMBLY",null,null,3,"SM (Sheet Metal & Fabricated Parts)"]
[null,null,null,"LCG00033/01;1-NUT HEX FLANGED M18X1.5 x 1","NUT HEX FLANGED M18X1.5","LCG00033",1,1,1000,"ENGINE ASSEMBLY-ENGINE ASSEMBLY",null,null,3,"HW (Hardware includes nuts,washers)"]
[null,null,null,"JP561000/00;1-DRUM GEAR SHIFT x 1","DRUM GEAR SHIFT","JP561000",0,1,1010,"ENGINE ASSEMBLY-ENGINE ASSEMBLY",null,null,3,"CA + M/C (Casting and Machined)"]
[null,null,null,"39260607/01;1-PIN DOWEL DIA 4 (Design) x 1","PIN DOWEL DIA 4",39260607,1,1,1020,"ENGINE ASSEMBLY-ENGINE ASSEMBLY",null,null,3,"HW (Hardware includes nuts,washers)"]
[null,null,null,"JP561203/00;1-GUIDE GEAR SHIFT x 1","GUIDE GEAR SHIFT","JP561203",0,1,1030,"ENGINE ASSEMBLY-ENGINE ASSEMBLY",null,null,3,"SI (Sinetered Components)"]
[null,null,null,"JG561010/02;1-SPACER-GUIDE GEAR SHIFT (Design) x 1","SPACER-GUIDE GEAR SHIFT","JG561010",2,1,1040,"ENGINE ASSEMBLY-ENGINE ASSEMBLY",null,null,3,"BA (Bar or Turned components)"]
[null,null,null,"DH101389/02;1-BOLT SOCKET-M6X1XL 20XCL 12.9 (Design) x 1","BOLT SOCKET-M6X1XL 20XCL 12.9","DH101389",2,1,1050,"ENGINE ASSEMBLY-ENGINE ASSEMBLY",null,null,3,"HW (Hardware includes nuts,washers)"]
[null,null,null,"JY561004/00;1-SHAFT INPUT GEAR SHIFT FORK x 1","SHAFT INPUT GEAR SHIFT FORK","JY561004",0,1,1080,"ENGINE ASSEMBLY-ENGINE ASSEMBLY",null,null,3,"FO (Forging Route)"]
[null,null,null,"JF561001/01;1-SHAFT OUTPUT FORK SHIFT x 1","SHAFT OUTPUT FORK SHIFT","JF561001",1,1,1090,"ENGINE ASSEMBLY-ENGINE ASSEMBLY",null,null,3,"FO (Forging Route)"]
[null,null,null,"JP561204/01;1-ASSEMBLY LEVER GEAR SHIFT (Design) x 1","ASSEMBLY LEVER GEAR SHIFT","JP561204",1,1,1100,"ENGINE ASSEMBLY-ENGINE ASSEMBLY",null,null,3,"AS (Assembly,Sub-Assy)"]
[null,null,null,"JP561205/01;1-SHAFT ASSEMBLY GEAR SHIFT (Design) x 1","SHAFT ASSEMBLY GEAR SHIFT","JP561205",1,1,10,"GEAR SHIFT MECHANISM-LEVER GEAR SHIFT",null,null,4,"AS (Assembly,Sub-Assy)"]
[null,null,null,"JP561206/01;1-SHAFT CHANGE x 1","SHAFT CHANGE","JP561206",1,1,10,"GEAR SHIFT MECHANISM-LEVER GEAR SHIFT",null,null,5,"FO (Forging Route)"]
[null,null,null,"JP561211/00;1-GUIDE PLATE x 1","GUIDE PLATE","JP561211",0,1,20,"GEAR SHIFT MECHANISM-LEVER GEAR SHIFT",null,null,5,"SM (Sheet Metal & Fabricated Parts)"]
[null,null,null,"JG561214/04;1-PAWL ASSEMBLY (Design) x 1","PAWL ASSEMBLY","JG561214",4,1,20,"GEAR SHIFT MECHANISM-LEVER GEAR SHIFT",null,null,4,"SM (Sheet Metal & Fabricated Parts)"]
[null,null,null,"JG561207/04;1-PAWL x 1","PAWL","JG561207",4,1,10,"GEAR SHIFT MECHANISM-LEVER GEAR SHIFT",null,null,5,"SM (Sheet Metal & Fabricated Parts)"]
[null,null,null,"JG561213/01;1-PIVOT PIN-PAWL x 1","PIVOT PIN-PAWL","JG561213",1,1,20,"GEAR SHIFT MECHANISM-LEVER GEAR SHIFT",null,null,5,"BA (Bar or Turned components)"]
[null,null,null,"JG561215/00;1-COMPRESSION SPRING x 1","COMPRESSION SPRING","JG561215",0,1,30,"GEAR SHIFT MECHANISM-LEVER GEAR SHIFT",null,null,4,"SP (Springs)"]
[null,null,null,"JG561218/02;1-TORSION SPRING (FINAL CONFG) x 1","TORSION SPRING","JG561218",2,1,40,"GEAR SHIFT MECHANISM-LEVER GEAR SHIFT",null,null,4,"SP (Springs)"]
[null,null,null,"JG561217/00;1-BUSH-TORSION SPRING x 1","BUSH-TORSION SPRING","JG561217",0,1,50,"GEAR SHIFT MECHANISM-LEVER GEAR SHIFT",null,null,4,"PL (Plastic Components)"]
[null,null,null,"JG561216/01;1-WASHER 14X30X1.5 (Design) x 1","WASHER 14X30X1.5","JG561216",1,1,1110,"ENGINE ASSEMBLY-ENGINE ASSEMBLY",null,null,3,"HW (Hardware includes nuts,washers)"]
[null,null,null,"JP601000/01;1-COVER PUMP WATER (Design) x 1","COVER PUMP WATER","JP601000",1,1,1120,"ENGINE ASSEMBLY-ENGINE ASSEMBLY",null,null,3,"CA + M/C (Casting and Machined)"]
[null,null,null,"JP601003/01;1-SEAL COVER PUMP WATER x 1","SEAL COVER PUMP WATER","JP601003",1,1,1130,"ENGINE ASSEMBLY-ENGINE ASSEMBLY",null,null,3,"OS + OR (Oil Seals and O Rings)"]
[null,null,null,"39260607/01;1-PIN DOWEL DIA 4 (Design) x 2","PIN DOWEL DIA 4",39260607,1,2,1140,"ENGINE ASSEMBLY-ENGINE ASSEMBLY",null,null,3,"HW (Hardware includes nuts,washers)"]
[null,null,null,"KAEW0625/00;1-BOLT FLANGED M6X1 x 5","BOLT FLANGED M6X1","KAEW0625",0,5,1150,"ENGINE ASSEMBLY-ENGINE ASSEMBLY",null,null,3,"HW (Hardware includes nuts,washers)"]
[null,null,null,"39166511/00;1-PLAIN WASHER (NON FERROUS) x 1","PLAIN WASHER (NON FERROUS)",39166511,0,1,1160,"ENGINE ASSEMBLY-ENGINE ASSEMBLY",null,null,3,"HW (Hardware includes nuts,washers)"]
[null,null,null,"LAE00048/02;1-BOLT FLANGED M6X1 x 1","BOLT FLANGED M6X1","LAE00048",2,1,1170,"ENGINE ASSEMBLY-ENGINE ASSEMBLY",null,null,3,"HW (Hardware includes nuts,washers)"]
[null,null,null,"JU601001/00;3-ROTOR PUMP WATER (Design) x 1","ROTOR PUMP WATER","JU601001",0,1,1180,"ENGINE ASSEMBLY-ENGINE ASSEMBLY",null,null,3,"PL (Plastic Components)"]
[null,null,null,"JG601025/00;1-INSERT x 1","INSERT","JG601025",0,1,10,"COOLING SYSTEM-PUMP",null,null,4,"BA (Bar or Turned components)"]
[null,null,null,"JY571016/01;1-OIL x 1.8","OIL ENGINE 10W50","JY571016",1,1.8,1190,"LUBRICATION SYSTEM-OIL PUMP",null,null,3,"HW1 (Oil,Grease,Coolant,Sealant)"]
[null,null,null,"JP571005/00;1-PISTON VALVE PRESSURE RELIEF x 1","PISTON VALVE PRESSURE RELIEF","JP571005",0,1,1200,"LUBRICATION SYSTEM-OIL PUMP",null,null,3,"BA (Bar or Turned components)"]
[null,null,null,"JE571013/00;1-SPRING OIL PUMP PRV K16B UG x 1","SPRING OIL PUMP PRV K16B UG","JE571013",0,1,1210,"LUBRICATION SYSTEM-OIL PUMP",null,null,3,"SP (Springs)"]
[null,null,null,"39144525/00;1-RING SEALING x 1","RING SEALING",39144525,0,1,1220,"LUBRICATION SYSTEM-OIL PUMP",null,null,3,"OS + OR (Oil Seals and O Rings)"]
[null,null,null,"LAC00160/00;1-BOLT SOCKET M16X1.5 x 1","BOLT SOCKET M16X1.5","LAC00160",0,1,1230,"LUBRICATION SYSTEM-OIL PUMP",null,null,3,"HW (Hardware includes nuts,washers)"]
[null,null,null,"JY571019/02;1-ROTOR OIL PUMP INNER x 1","ROTOR PUMP OIL INNER","JY571019",2,1,1240,"LUBRICATION SYSTEM-OIL PUMP",null,null,3,"SI (Sinetered Components)"]
[null,null,null,"JY571002/02;1-ROTOR OIL PUMP OUTER x 1","ROTOR PUMP OIL OUTER","JY571002",2,1,1250,"LUBRICATION SYSTEM-OIL PUMP",null,null,3,"SI (Sinetered Components)"]
[null,null,null,"LHD00001/00;1-PIN PARALLEL x 3","PIN PARALLEL","LHD00001",0,3,1260,"LUBRICATION SYSTEM-OIL PUMP",null,null,3,"HW (Hardware includes nuts,washers)"]
[null,null,null,"JP571002/00;1-SHAFT PUMP OIL x 1","SHAFT PUMP OIL","JP571002",0,1,1270,"LUBRICATION SYSTEM-OIL PUMP",null,null,3,"BA (Bar or Turned components)"]
[null,null,null,"LDA00017/00;1-WASHER PLAIN x 2","WASHER PLAIN","LDA00017",0,2,1300,"LUBRICATION SYSTEM-OIL PUMP",null,null,3,"SM (Sheet Metal & Fabricated Parts)"]
[null,null,null,"KEAB1010/01;1-CIRCLIP EXTERNAL x 2","CIRCLIP EXTERNAL","KEAB1010",1,2,1310,"LUBRICATION SYSTEM-OIL PUMP",null,null,3,"HW (Hardware includes nuts,washers)"]
[null,null,null,"39168606/00;1-HOLLOW DOWEL PIN (Design) x 2","HOLLOW DOWEL PIN",39168606,0,2,1330,"LUBRICATION SYSTEM-OIL PUMP",null,null,3,"HW (Hardware includes nuts,washers)"]
[null,null,null,"JY571020/02;1-ROTOR EVAC PUMP INNER x 1","ROTOR EVAC PUMP INNER","JY571020",2,1,1340,"LUBRICATION SYSTEM-OIL PUMP",null,null,3,"SI (Sinetered Components)"]
[null,null,null,"JY571007/02;1-ROTOR EVACUATION PUMP OUTER x 1","ROTOR EVACUATION PUMP OUTER","JY571007",2,1,1350,"LUBRICATION SYSTEM-OIL PUMP",null,null,3,"SI (Sinetered Components)"]
[null,null,null,"KAEW0620/00;1-BOLT FLANGED M6X1 x 3","BOLT FLANGED M6X1","KAEW0620",0,3,1360,"LUBRICATION SYSTEM-OIL PUMP",null,null,3,"HW (Hardware includes nuts,washers)"]
[null,null,null,"JY571030/00;1-MESH STRAINER ASSLY (Design) x 1","MESH STRAINER ASSLY","JY571030",0,1,1370,"LUBRICATION SYSTEM-OIL PUMP",null,null,3,"AS (Assembly,Sub-Assy)"]
[null,null,null,"JY571031/00;1-MESH STRAINER (Design) x 1","MESH STRAINER","JY571031",0,1,10,"LUBRICATION SYSTEM-OIL PUMP",null,null,4,"PL (Plastic Components)"]
[null,null,null,"JA541047/00;1-MAGNET STRAINER x 1","MAGNET STRAINER","JA541047",0,1,10,"LUBRICATION SYSTEM-OIL PUMP",null,null,5,"EE (Electrical, Electronics)"]
[null,null,null,"LJA00004/01;1-STRAINER O RING x 1","STRAINER O RING","LJA00004",1,1,20,"LUBRICATION SYSTEM-OIL PUMP",null,null,4,"OS + OR (Oil Seals and O Rings)"]
[null,null,null,"JA541048/00;1-STRAINER CAP WITH O-RING (Design) x 1","STRAINER CAP WITH O-RING","JA541048",0,1,1380,"LUBRICATION SYSTEM-OIL PUMP",null,null,3,"AS (Assembly,Sub-Assy)"]
[null,null,null,"JA541021/04;1-CAP STRAINER x 1","CAP STRAINER","JA541021",4,1,10,"LUBRICATION SYSTEM-OIL PUMP",null,null,4,"CA + M/C (Casting and Machined)"]
[null,null,null,"59210023/00;1-O-RING x 1","O-RING",59210023,0,1,20,"LUBRICATION SYSTEM-OIL PUMP",null,null,4,"OS + OR (Oil Seals and O Rings)"]
[null,null,null,"JG571014/00;1-OIL FILTER (Design) x 1","OIL FILTER","JG571014",0,1,1390,"LUBRICATION SYSTEM-OIL PUMP",null,null,3,"PL (Plastic Components)"]
[null,null,null,"JP571013/00;1-CAP ASSEMBLY FILTER OIL (Design) x 1","CAP ASSEMBLY FILTER OIL","JP571013",0,1,1400,"LUBRICATION SYSTEM-OIL PUMP",null,null,3,"AS (Assembly,Sub-Assy)"]
[null,null,null,"JP571006/02;1-CAP FILTER OIL (Design) x 1","CAP FILTER OIL","JP571006",2,1,10,"CRANKCASE /COVERS-CRANKCASE",null,null,4,"CA + M/C (Casting and Machined)"]
[null,null,null,"BA102003/01;1-PLUG - OIL HOLE (Design) x 1","PLUG - OIL HOLE","BA102003",1,1,20,"CRANKCASE /COVERS-CRANKCASE",null,null,4,"CA + M/C (Casting and Machined)"]
[null,null,null,"31101239/00;1-SEALANT THREAD x 0.15","SEALANT THREAD",31101239,0,0.15,30,"CRANKCASE /COVERS-CRANKCASE",null,null,4,"HW1 (Oil,Grease,Coolant,Sealant)"]
[null,null,null,"JY541055/00;1-GASKET CAP FILTER OIL (Design) x 1","GASKET CAP FILTER OIL","JY541055",0,1,1410,"LUBRICATION SYSTEM-OIL PUMP",null,null,3,"GA (Gaskets,Paper,Steel,Liquid,Asbestos)"]
[null,null,null,"KADD0525/00;1-BOLT FLANGED M5X0.8 x 3","BOLT FLANGED M5X0.8","KADD0525",0,3,1420,"LUBRICATION SYSTEM-OIL PUMP",null,null,3,"HW (Hardware includes nuts,washers)"]
[null,null,null,"JP621200/00;1-GEAR ASSEMBLY CLUTCH STARTER (Design) x 1","GEAR ASSEMBLY CLUTCH STARTER","JP621200",0,1,1430,"ELECTRICAL/ELECTRONICS ENGINE-STARTER MOTOR",null,null,3,"AS (Assembly,Sub-Assy)"]
[null,null,null,"JP621201/00;1-GEAR CLUTCH STARTER x 1","GEAR CLUTCH STARTER","JP621201",0,1,10,"STARTING MECHANISM-STARTER MOTOR GEAR TRAIN",null,null,4,"FO (Forging Route)"]
[null,null,null,"EC153018/00;1-BEARING ROLLER x 1","BEARING ROLLER","EC153018",0,1,20,"STARTING MECHANISM-STARTER MOTOR GEAR TRAIN",null,null,4,"BR (Bearings)"]
[null,null,null,"JP551218/00;1-GEAR ASSEMBLY STARTER COUNTER I (Design) x 1","GEAR ASSEMBLY STARTER COUNTER I","JP551218",0,1,1440,"ELECTRICAL/ELECTRONICS ENGINE-STARTER MOTOR",null,null,3,"AS (Assembly,Sub-Assy)"]
[null,null,null,"JP551219/00;1-SHAFT STARTER COUNTER I x 1","SHAFT STARTER COUNTER I","JP551219",0,1,10,"STARTING MECHANISM-STARTER MOTOR GEAR TRAIN",null,null,4,"FO (Forging Route)"]
[null,null,null,"JY551223/01;1-GEAR STARTER COUNTER 1 DRIVEN x 1","GEAR STARTER COUNTER 1 DRIVEN","JY551223",1,1,20,"STARTING MECHANISM-STARTER MOTOR GEAR TRAIN",null,null,4,"FO (Forging Route)"]
[null,null,null,"JY621414/00;1-PAD FRICTION x 2","PAD FRICTION","JY621414",0,2,30,"STARTING MECHANISM-STARTER MOTOR GEAR TRAIN",null,null,4,"PR (Proprietary Components)"]
[null,null,null,"JY621412/02;1-WASHER PLAIN x 2","WASHER PLAIN","JY621412",2,2,40,"STARTING MECHANISM-STARTER MOTOR GEAR TRAIN",null,null,4,"HW (Hardware includes nuts,washers)"]
[null,null,null,"LDH00001/03;3-WASHER CONICAL-ID22.6XOD48XT1.8 x 2","WASHER CONICAL-ID22.6XOD48XT1.8","LDH00001",3,2,50,"STARTING MECHANISM-STARTER MOTOR GEAR TRAIN",null,null,4,"HW (Hardware includes nuts,washers)"]
[null,null,null,"JY621405/00;1-SHIM (Design) x 1","SHIM","JY621405",0,1,60,"STARTING MECHANISM-STARTER MOTOR GEAR TRAIN",null,null,4,"HW (Hardware includes nuts,washers)"]
[null,null,null,"BF551027/00;1-RING SNAP INPUT (Design) x 1","RING SNAP INPUT","BF551027",0,1,70,"STARTING MECHANISM-STARTER MOTOR GEAR TRAIN",null,null,4,"HW (Hardware includes nuts,washers)"]
[null,null,null,"JP551220/00;1-GEAR STARTER COUNTER II x 1","GEAR STARTER COUNTER II","JP551220",0,1,1450,"ELECTRICAL/ELECTRONICS ENGINE-STARTER MOTOR",null,null,3,"FO (Forging Route)"]
[null,null,null,"DK101185/00;1-WASHER PIVOT BOLT (Design) x 1","WASHER PIVOT BOLT","DK101185",0,1,1460,"ELECTRICAL/ELECTRONICS ENGINE-STARTER MOTOR",null,null,3,"HW (Hardware includes nuts,washers)"]
[null,null,null,"KAED0825/01;1-BOLT FLANGED M8X1.25 x 1","BOLT FLANGED M8X1.25","KAED0825",1,1,1470,"ELECTRICAL/ELECTRONICS ENGINE-STARTER MOTOR",null,null,3,"HW (Hardware includes nuts,washers)"]
[null,null,null,"JP351601/00;2-MOTOR STARTER (Design) x 1","MOTOR STARTER","JP351601",0,1,1480,"ELECTRICAL/ELECTRONICS ENGINE-STARTER MOTOR",null,null,3,"EE (Electrical, Electronics)"]
[null,null,null,"KADD0622/01;1-BOLT FLANGED M6X1 x 2","BOLT FLANGED M6X1","KADD0622",1,2,1490,"ELECTRICAL/ELECTRONICS ENGINE-STARTER MOTOR",null,null,3,"HW (Hardware includes nuts,washers)"]
[null,null,null,"JP581400/01;1-PIPE INTAKE (Design) x 1","PIPE INTAKE","JP581400",1,1,1500,"INTAKE SYSTEM-INTAKE MANIFOLD",null,null,3,"RU (Rubber Components)"]
[null,null,null,"JY581021/01;1-INSULATOR (Design) x 1","INSULATOR","JY581021",1,1,10,"INTAKE SYSTEM-INTAKE MANIFOLD",null,null,4,"PL (Plastic Components)"]
[null,null,null,"PF581418/01;1-INSERT INTAKE PIPE x 3","INSERT INTAKE PIPE","PF581418",1,3,10,"INTAKE SYSTEM-INTAKE MANIFOLD",null,null,5,"BA (Bar or Turned components)"]
[null,null,null,"JY581404/00;2-O RING INTAKE PIPE x 1","O RING INTAKE PIPE","JY581404",0,1,1510,"INTAKE SYSTEM-INTAKE MANIFOLD",null,null,3,"OS + OR (Oil Seals and O Rings)"]
[null,null,null,"LBC00003/01;1-SCREW CSK CROSS M6X1 x 3","SCREW CSK CROSS M6X1","LBC00003",1,3,1520,"INTAKE SYSTEM-INTAKE MANIFOLD",null,null,3,"HW (Hardware includes nuts,washers)"]
[null,null,null,"JP591245/00.03;1-INSTALL SILENCER (Design) x 1","INSTALL SILENCER","JP591245",0.03,1,20,"EXHAUST SYSTEM-DEFAULT",null,null,2,"AS (Assembly,Sub-Assy)"]
[null,null,null,"JP591236/00.00;1-SILENCER ASSEMBLY (Design) x 1","SILENCER ASSEMBLY","JP591236",0,1,10,"EXHAUST SYSTEM-DEFAULT",null,null,3,"AS (Assembly,Sub-Assy)"]
[null,null,null,"JP591196/02;1-PIPE ASSEMBLY A (Design) x 1","PIPE ASSEMBLY A","JP591196",2,1,10,"EXHAUST SYSTEM-DEFAULT",null,null,4,"SM (Sheet Metal & Fabricated Parts)"]
[null,null,null,"JP591209/00;1-MOUTH PIECE x 1","MOUTH PIECE","JP591209",0,1,10,"EXHAUST SYSTEM-DEFAULT",null,null,5,"SM (Sheet Metal & Fabricated Parts)"]
[null,null,null,"JP591246/01;1-FLANGE EXHAUST x 1","FLANGE EXHAUST","JP591246",1,1,20,"EXHAUST SYSTEM-DEFAULT",null,null,5,"SM (Sheet Metal & Fabricated Parts)"]
[null,null,null,"JP591198/01;1-PIPE A x 1","PIPE A","JP591198",1,1,30,"EXHAUST SYSTEM-DEFAULT",null,null,5,"SM (Sheet Metal & Fabricated Parts)"]
[null,null,null,"JP591244/01;1-BUSH SENSOR OXYGEN x 1","BUSH SENSOR OXYGEN","JP591244",1,1,40,"EXHAUST SYSTEM-DEFAULT",null,null,5,"IC (Investment Casting)"]
[null,null,null,"JP591199/01;1-CONNECTOR CATALYST x 1","CONNECTOR CATALYST","JP591199",1,1,50,"EXHAUST SYSTEM-DEFAULT",null,null,5,"SM (Sheet Metal & Fabricated Parts)"]
[null,null,null,"JP591098/00;1-SPACER x 1","SPACER","JP591098",0,1,60,"EXHAUST SYSTEM-DEFAULT",null,null,5,"SM (Sheet Metal & Fabricated Parts)"]
[null,null,null,"JL591390/00;1-CATALYST CONVERTER (Design) x 1","CATALYST","JL591390",0,1,70,"EXHAUST SYSTEM-DEFAULT",null,null,5,"PR (Proprietary Components)"]
[null,null,null,"JP591104/00;1-SUBSTRATE x 1","SUBSTRATE","JP591104",0,1,10,"EXHAUST SYSTEM-DEFAULT",null,null,6,"PR (Proprietary Components)"]
[null,null,null,"JP591200/02;1-COVER CATALYST x 1","COVER CATALYST","JP591200",2,1,80,"EXHAUST SYSTEM-DEFAULT",null,null,5,"SM (Sheet Metal & Fabricated Parts)"]
[null,null,null,"JP591201/00;1-PIPE B x 1","PIPE B","JP591201",0,1,90,"EXHAUST SYSTEM-DEFAULT",null,null,5,"SM (Sheet Metal & Fabricated Parts)"]
[null,null,null,"JP591203/00;1-CONNECTOR CATALYST II x 1","CONNECTOR CATALYST II","JP591203",0,1,100,"EXHAUST SYSTEM-DEFAULT",null,null,5,"SM (Sheet Metal & Fabricated Parts)"]
[null,null,null,"JP591289/00;1-BUSH SENSOR OXYGEN x 1","BUSH SENSOR OXYGEN","JP591289",0,1,105,"EXHAUST SYSTEM-DEFAULT",null,null,5,"SM (Sheet Metal & Fabricated Parts)"]
[null,null,null,"JY591413/00;1-SPACER x 1","SPACER","JY591413",0,1,110,"EXHAUST SYSTEM-DEFAULT",null,null,5,"SM (Sheet Metal & Fabricated Parts)"]
[null,null,null,"JP591215/00;1-CATALYST (Design) x 1","CATALYST","JP591215",0,1,120,"EXHAUST SYSTEM-DEFAULT",null,null,5,"PR (Proprietary Components)"]
[null,null,null,"JF591210/01;1-SUBSTRATE x 1","SUBSTRATE","JF591210",1,1,10,"EXHAUST SYSTEM-DEFAULT",null,null,6,"PR (Proprietary Components)"]
[null,null,null,"JP591015/04;1-SPACER (Design) x 1","SPACER","JP591015",4,1,130,"EXHAUST SYSTEM-DEFAULT",null,null,5,"SM (Sheet Metal & Fabricated Parts)"]
[null,null,null,"JF591242/00;1-GASKET EXHAUST x 1","GASKET EXHAUST","JF591242",0,1,20,"EXHAUST SYSTEM-DEFAULT",null,null,4,"GA (Gaskets,Paper,Steel,Liquid,Asbestos)"]
[null,null,null,"JP591012/06;1-CLAMP (Design) x 1","CLAMP","JP591012",6,1,30,"EXHAUST SYSTEM-DEFAULT",null,null,4,"HW2 (Band Clamp,Screw Clamp)"]
[null,null,null,"JG591089/01;1-NUT WELD SQUARE M8X1.25 x 1","NUT WELD SQUARE M8X1.25","JG591089",1,1,10,"EXHAUST SYSTEM-DEFAULT",null,null,5,"HW (Hardware includes nuts,washers)"]
[null,null,null,"LAD00236/01;1-BOLT FLANGED M8X1.25 x 1","BOLT FLANGED M8X1.25","LAD00236",1,1,20,"EXHAUST SYSTEM-DEFAULT",null,null,5,"HW (Hardware includes nuts,washers)"]
[null,null,null,"LDB00120/02;1-WASHER PLAIN x 1","WASHER PLAIN","LDB00120",2,1,30,"EXHAUST SYSTEM-DEFAULT",null,null,5,"HW (Hardware includes nuts,washers)"]
[null,null,null,"LZC00011/00;1-ADHESIVE -LOCTITE C5-A COPR BASE x 0.5","ADHESIVE -LOCTITE C5-A COPR BASE","LZC00011",0,0.5,40,"EXHAUST SYSTEM-DEFAULT",null,null,5,"HW1 (Oil,Grease,Coolant,Sealant)"]
[null,null,null,"JP591195/00;1-MUFFLER ASSEMBLY (Design) x 1","MUFFLER ASSEMBLY","JP591195",0,1,40,"EXHAUST SYSTEM-DEFAULT",null,null,4,"SM (Sheet Metal & Fabricated Parts)"]
[null,null,null,"JP591014/03;1-CONNECTOR SLOTTED I (Design) x 1","CONNECTOR SHELL LH","JP591014",3,1,10,"EXHAUST SYSTEM-DEFAULT",null,null,5,"SM (Sheet Metal & Fabricated Parts)"]
[null,null,null,"JP591227/01;1-SHELL RH (Design) x 1","SHELL RH","JP591227",1,1,20,"EXHAUST SYSTEM-DEFAULT",null,null,5,"SM (Sheet Metal & Fabricated Parts)"]
[null,null,null,"JP591234/00;1-PIPE ASSEMBLY TRANSFER (Design) x 1","PIPE ASSEMBLY TRANSFER","JP591234",0,1,30,"EXHAUST SYSTEM-DEFAULT",null,null,5,"SM (Sheet Metal & Fabricated Parts)"]
[null,null,null,"JP591237/00;1-PLATE GUIDE x 1","PLATE GUIDE","JP591237",0,1,10,"EXHAUST SYSTEM-DEFAULT",null,null,6,"SM (Sheet Metal & Fabricated Parts)"]
[null,null,null,"JP591228/00;1-BAFFLE A x 1","BAFFLE A","JP591228",0,1,20,"EXHAUST SYSTEM-DEFAULT",null,null,6,"SM (Sheet Metal & Fabricated Parts)"]
[null,null,null,"JP591229/00;1-BAFFLE B x 1","BAFFLE B","JP591229",0,1,30,"EXHAUST SYSTEM-DEFAULT",null,null,6,"SM (Sheet Metal & Fabricated Parts)"]
[null,null,null,"JP591230/00;1-PIPE C x 1","PIPE C","JP591230",0,1,40,"EXHAUST SYSTEM-DEFAULT",null,null,6,"SM (Sheet Metal & Fabricated Parts)"]
[null,null,null,"JP591231/01;1-PIPE TAIL x 1","PIPE TAIL","JP591231",1,1,50,"EXHAUST SYSTEM-DEFAULT",null,null,6,"SM (Sheet Metal & Fabricated Parts)"]
[null,null,null,"JP591197/00;1-BRACKET PIPE C x 1","BRACKET PIPE C","JP591197",0,1,60,"EXHAUST SYSTEM-DEFAULT",null,null,6,"SM (Sheet Metal & Fabricated Parts)"]
[null,null,null,"JP591000/00;1-BAFFLE x 1","BAFFLE","JP591000",0,1,70,"EXHAUST SYSTEM-DEFAULT",null,null,6,"SM (Sheet Metal & Fabricated Parts)"]
[null,null,null,"JP591232/01;1-SHELL LH x 1","SHELL LH","JP591232",1,1,40,"EXHAUST SYSTEM-DEFAULT",null,null,5,"SM (Sheet Metal & Fabricated Parts)"]
[null,null,null,"JP591233/00;1-REINFORCEMENT PLATE x 1","REINFORCEMENT PLATE","JP591233",0,1,50,"EXHAUST SYSTEM-DEFAULT",null,null,5,"SM (Sheet Metal & Fabricated Parts)"]
[null,null,null,"JP591226/01;1-BRACKET UPPER LH (Design) x 1","BRACKET UPPER LH","JP591226",1,1,60,"EXHAUST SYSTEM-DEFAULT",null,null,5,"SM (Sheet Metal & Fabricated Parts)"]
[null,null,null,"LCM00005/00;1-NUT WELD SQUARE-M6 X 1 X HT. 5 x 1","NUT WELD SQUARE-M6 X 1 X HT. 5","LCM00005",0,1,10,"EXHAUST SYSTEM-DEFAULT",null,null,6,"HW (Hardware includes nuts,washers)"]
[null,null,null,"JP591235/01;1-BRACKET UPPER RH (Design) x 1","BRACKET UPPER RH","JP591235",1,1,70,"EXHAUST SYSTEM-DEFAULT",null,null,5,"SM (Sheet Metal & Fabricated Parts)"]
[null,null,null,"LCM00005/00;1-NUT WELD SQUARE-M6 X 1 X HT. 5 x 1","NUT WELD SQUARE-M6 X 1 X HT. 5","LCM00005",0,1,10,"EXHAUST SYSTEM-DEFAULT",null,null,6,"HW (Hardware includes nuts,washers)"]
[null,null,null,"JP591224/01;1-BRACKET LOWER RH (Design) x 1","BRACKET LOWER RH","JP591224",1,1,80,"EXHAUST SYSTEM-DEFAULT",null,null,5,"SM (Sheet Metal & Fabricated Parts)"]
[null,null,null,"LCM00009/01;1-NUT WELD SQUARE M8X1.25 (Design) x 1","NUT WELD SQUARE M8X1.25","LCM00009",1,1,10,"EXHAUST SYSTEM-DEFAULT",null,null,6,"HW (Hardware includes nuts,washers)"]
[null,null,null,"JP591225/01;1-BRACKET LOWER LH (Design) x 1","BRACKET LOWER LH","JP591225",1,1,90,"EXHAUST SYSTEM-DEFAULT",null,null,5,"SM (Sheet Metal & Fabricated Parts)"]
[null,null,null,"JP591220/01;1-BRACKET REAR RH (Design) x 1","BRACKET REAR RH","JP591220",1,1,100,"EXHAUST SYSTEM-DEFAULT",null,null,5,"SM (Sheet Metal & Fabricated Parts)"]
[null,null,null,"JL591165/01;1-DAMPER SILENCER MOUNTING LOWER x 2","DAMPER SILENCER MOUNTING LOWER","JL591165",1,2,20,"EXHAUST SYSTEM-DEFAULT",null,null,3,"RU (Rubber Components)"]
[null,null,null,"JL591156/04;1-SLEEVE TOP x 4","SLEEVE TOP","JL591156",4,4,30,"EXHAUST SYSTEM-DEFAULT",null,null,3,"SM (Sheet Metal & Fabricated Parts)"]
[null,null,null,"JG113837/01;1-BOLT FLANGED M6X1 x 2","BOLT FLANGED M6X1","JG113837",1,2,40,"EXHAUST SYSTEM-DEFAULT",null,null,3,"HW (Hardware includes nuts,washers)"]
[null,null,null,"JY591245/01;1-COLLAR x 4","COLLAR","JY591245",1,4,50,"EXHAUST SYSTEM-DEFAULT",null,null,3,"BA (Bar or Turned components)"]
[null,null,null,"JY591246/01;1-DAMPER MUFFLER x 2","DAMPER MUFFLER","JY591246",1,2,60,"EXHAUST SYSTEM-DEFAULT",null,null,3,"RU (Rubber Components)"]
[null,null,null,"KADD0835/01;1-BOLT FLANGED M8X1.25 x 2","BOLT FLANGED M8X1.25","KADD0835",1,2,70,"EXHAUST SYSTEM-DEFAULT",null,null,3,"HW (Hardware includes nuts,washers)"]
[null,null,null,"TA591205/00;1-NUT CLIP M8 (Design) x 1","NUT CLIP M8","TA591205",0,1,80,"EXHAUST SYSTEM-DEFAULT",null,null,3,"SM (Sheet Metal & Fabricated Parts)"]
[null,null,null,"KCNB0806/00;1-NUT WELD HEX x 1","NUT WELD HEX","KCNB0806",0,1,10,"EXHAUST SYSTEM-DEFAULT",null,null,4,"HW (Hardware includes nuts,washers)"]
[null,null,null,"TA591206/00;1-GASKET EXHAUST x 1","GASKET EXHAUST","TA591206",0,1,90,"EXHAUST SYSTEM-DEFAULT",null,null,3,"GA (Gaskets,Paper,Steel,Liquid,Asbestos)"]
[null,null,null,"LCG00006/00;1-NUT HEX FLANGED M8*1.25 (Design) x 2","NUT HEX FLANGED M8*1.25","LCG00006",0,2,100,"EXHAUST SYSTEM-DEFAULT",null,null,3,"HW (Hardware includes nuts,washers)"]
[null,null,null,"JP591114/02;1-SENSOR OXYGEN x 2","SENSOR OXYGEN","JP591114",2,2,110,"EXHAUST SYSTEM-DEFAULT",null,null,3,"EE (Electrical, Electronics)"]
[null,null,null,"JP581100/00;1-INSTALL SYSTEM INTAKE (Design) x 1","INSTALL SYSTEM INTAKE","JP581100",0,1,30,"INTAKE SYSTEM-AIR FILTER",null,null,2,"AS (Assembly,Sub-Assy)"]
[null,null,null,"JP581075/01;1-FILTER ASSEMBLY AIR (Design) x 1","FILTER ASSEMBLY AIR","JP581075",1,1,10,"INTAKE SYSTEM-AIR FILTER",null,null,3,"AS (Assembly,Sub-Assy)"]
[null,null,null,"JP581077/01;1-COVER SIDE (Design) x 1","COVER SIDE","JP581077",1,1,10,"INTAKE SYSTEM-AIR FILTER",null,null,4,"PL (Plastic Components)"]
[null,null,null,"JP581046/00;1-INSERT CAP COVER TOP x 6","INSERT CAP COVER TOP","JP581046",0,6,10,"INTAKE SYSTEM-AIR FILTER",null,null,5,"BA (Bar or Turned components)"]
[null,null,null,"JP581080/00;1-SEAL COVER SIDE x 1","SEAL COVER SIDE","JP581080",0,1,20,"INTAKE SYSTEM-AIR FILTER",null,null,4,"RU (Rubber Components)"]
[null,null,null,"JP581087/02;1-BOX ASSEMBLY FILTER AIR (Design) x 1","BOX ASSEMBLY FILTER AIR","JP581087",2,1,30,"INTAKE SYSTEM-AIR FILTER",null,null,4,"PL (Plastic Components)"]
[null,null,null,"JP581078/02;1-COVER LH (Design) x 1","COVER LH","JP581078",2,1,10,"INTAKE SYSTEM-AIR FILTER",null,null,5,"PL (Plastic Components)"]
[null,null,null,"JG581075/01;1-INSERT x 6","INSERT","JG581075",1,6,10,"INTAKE SYSTEM-AIR FILTER",null,null,6,"BA (Bar or Turned components)"]
[null,null,null,"JP581083/02;1-SEPARATOR x 1","SEPARATOR","JP581083",2,1,20,"INTAKE SYSTEM-AIR FILTER",null,null,5,"PL (Plastic Components)"]
[null,null,null,"JP581079/02;1-COVER RH (Design) x 1","COVER RH","JP581079",2,1,30,"INTAKE SYSTEM-AIR FILTER",null,null,5,"PL (Plastic Components)"]
[null,null,null,"JP581067/01;1-INSERT x 1","INSERT","JP581067",1,1,10,"INTAKE SYSTEM-AIR FILTER",null,null,6,"CA + M/C (Casting and Machined)"]
[null,null,null,"JG581075/01;1-INSERT x 4","INSERT","JG581075",1,4,20,"INTAKE SYSTEM-AIR FILTER",null,null,6,"BA (Bar or Turned components)"]
[null,null,null,"JP581093/01;1-BOX BREATHER x 1","BOX BREATHER","JP581093",1,1,40,"INTAKE SYSTEM-AIR FILTER",null,null,5,"PL (Plastic Components)"]
[null,null,null,"JP581076/00;1-ELEMENT FILTER AIR x 1","ELEMENT FILTER AIR","JP581076",0,1,40,"INTAKE SYSTEM-AIR FILTER",null,null,4,"PL (Plastic Components)"]
[null,null,null,"LBU00072/00;1-SCREW BUTTON HEAD-M6X1XL 16XBRT x 6","SCREW BUTTON HEAD-M6X1XL 16XBRT","LBU00072",0,6,50,"INTAKE SYSTEM-AIR FILTER",null,null,4,"HW (Hardware includes nuts,washers)"]
[null,null,null,"JP581081/00;1-TUBE CONNECTING x 1","TUBE CONNECTING","JP581081",0,1,60,"INTAKE SYSTEM-AIR FILTER",null,null,4,"RU (Rubber Components)"]
[null,null,null,"JP581099/00;1-GROMMET DUCT (Design) x 1","GROMMET DUCT","JP581099",0,1,70,"INTAKE SYSTEM-AIR FILTER",null,null,4,"RU (Rubber Components)"]
[null,null,null,"JP581090/00;1-DUCT INTAKE (Design) x 1","DUCT INTAKE","JP581090",0,1,80,"INTAKE SYSTEM-AIR FILTER",null,null,4,"PL (Plastic Components)"]
[null,null,null,"JP581091/00;1-DUCT INTAKE LH x 1","DUCT INTAKE LH","JP581091",0,1,10,"INTAKE SYSTEM-AIR FILTER",null,null,5,"PL (Plastic Components)"]
[null,null,null,"JP581092/00;1-DUCT INTAKE RH x 1","DUCT INTAKE RH","JP581092",0,1,20,"INTAKE SYSTEM-AIR FILTER",null,null,5,"PL (Plastic Components)"]
[null,null,null,"LZC00016/00;1-ADHESIVE -THREE BOND 1521B x 8","ADHESIVE -THREE BOND 1521B","LZC00016",0,8,30,"INTAKE SYSTEM-AIR FILTER",null,null,5,"HW1 (Oil,Grease,Coolant,Sealant)"]
[null,null,null,"JP581089/01;1-PIPE ASSEMBLY OIL (Design) x 1","PIPE ASSEMBLY OIL","JP581089",1,1,90,"INTAKE SYSTEM-AIR FILTER",null,null,4,"AS (Assembly,Sub-Assy)"]
[null,null,null,"JP581098/01;1-PIPE OIL x 1","PIPE OIL","JP581098",1,1,10,"INTAKE SYSTEM-AIR FILTER",null,null,5,"RU (Rubber Components)"]
[null,null,null,"JG581056/01;1-CLAMP (BREATHER TUBE) x 2","CLAMP (BREATHER TUBE)","JG581056",1,2,20,"INTAKE SYSTEM-AIR FILTER",null,null,5,"WF (Wire Forms)"]
[null,null,null,"JP581088/01;1-PIPE ASSEMBLY BREATHER (Design) x 1","PIPE ASSEMBLY BREATHER","JP581088",1,1,100,"INTAKE SYSTEM-AIR FILTER",null,null,4,"AS (Assembly,Sub-Assy)"]
[null,null,null,"JP581097/01;1-PIPE BREATHER x 1","PIPE BREATHER","JP581097",1,1,10,"INTAKE SYSTEM-AIR FILTER",null,null,5,"RU (Rubber Components)"]
[null,null,null,"JG581056/01;1-CLAMP (BREATHER TUBE) x 2","CLAMP (BREATHER TUBE)","JG581056",1,2,20,"INTAKE SYSTEM-AIR FILTER",null,null,5,"WF (Wire Forms)"]
[null,null,null,"JP581103/02;1-PIPE ASSEMBLY DRAIN (Design) x 1","PIPE ASSEMBLY DRAIN","JP581103",2,1,110,"INTAKE SYSTEM-AIR FILTER",null,null,4,"AS (Assembly,Sub-Assy)"]
[null,null,null,"JP581102/02;1-PIPE DRAIN x 1","PIPE DRAIN","JP581102",2,1,10,"INTAKE SYSTEM-AIR FILTER",null,null,5,"RU (Rubber Components)"]
[null,null,null,"DS121126/01;1-PLUG x 1","PLUG","DS121126",1,1,20,"INTAKE SYSTEM-AIR FILTER",null,null,5,"PL (Plastic Components)"]
[null,null,null,"DG121002/02;1-CLAMP (HOSE C'CASE BREATHER) x 2","CLAMP (HOSE C'CASE BREATHER)","DG121002",2,2,30,"INTAKE SYSTEM-AIR FILTER",null,null,5,"HW (Hardware includes nuts,washers)"]
[null,null,null,"JG351805/01;1-SENSOR TMAP x 1","SENSOR TMAP","JG351805",1,1,120,"INTAKE SYSTEM-AIR FILTER",null,null,4,"PR (Proprietary Components)"]
[null,null,null,"LBU00045/02;1-SCREW BUTTON HD-M6X1XL10XPRECOAT x 1","SCREW BUTTON HD-M6X1XL10XPRECOAT","LBU00045",2,1,130,"INTAKE SYSTEM-AIR FILTER",null,null,4,"HW (Hardware includes nuts,washers)"]
[null,null,null,"JG581058/02;1-BUSH SILENT x 2","BUSH SILENT","JG581058",2,2,140,"INTAKE SYSTEM-AIR FILTER",null,null,4,"RU (Rubber Components)"]
[null,null,null,"JP581019/00;1-RUBBER DAMPER x 1","RUBBER DAMPER","JP581019",0,1,150,"INTAKE SYSTEM-AIR FILTER",null,null,4,"RU (Rubber Components)"]
[null,null,null,"LZC00016/00;1-ADHESIVE -THREE BOND 1521B x 3","ADHESIVE -THREE BOND 1521B","LZC00016",0,3,160,"INTAKE SYSTEM-AIR FILTER",null,null,4,"HW1 (Oil,Grease,Coolant,Sealant)"]
[null,null,null,"JU171606/01;1-VALVE PURGE x 1","VALVE PURGE","JU171606",1,1,20,"INTAKE SYSTEM-AIR FILTER",null,null,3,"EE (Electrical, Electronics)"]
[null,null,null,"JP581104/01;1-BRACKET VALVE PURGE x 1","BRACKET VALVE PURGE","JP581104",1,1,30,"INTAKE SYSTEM-AIR FILTER",null,null,3,"SM (Sheet Metal & Fabricated Parts)"]
[null,null,null,"KCGD0606/01;1-NUT HEX FLANGED x 1","NUT HEX FLANGED","KCGD0606",1,1,40,"INTAKE SYSTEM-AIR FILTER",null,null,3,"HW (Hardware includes nuts,washers)"]
[null,null,null,"LBU00045/02;1-SCREW BUTTON HD-M6X1XL10XPRECOAT x 1","SCREW BUTTON HD-M6X1XL10XPRECOAT","LBU00045",2,1,50,"INTAKE SYSTEM-AIR FILTER",null,null,3,"HW (Hardware includes nuts,washers)"]
[null,null,null,"JP581101/01;1-BRACKET FILTER AIR x 1","BRACKET FILTER AIR","JP581101",1,1,60,"INTAKE SYSTEM-AIR FILTER",null,null,3,"SM (Sheet Metal & Fabricated Parts)"]
[null,null,null,"KACF0610/02;1-BOLT SOCKET M6X1 x 2","BOLT SOCKET M6X1","KACF0610",2,2,70,"INTAKE SYSTEM-AIR FILTER",null,null,3,"HW (Hardware includes nuts,washers)"]
[null,null,null,"JG181265/02;1-WASHER PLAIN x 2","WASHER PLAIN","JG181265",2,2,80,"INTAKE SYSTEM-AIR FILTER",null,null,3,"HW (Hardware includes nuts,washers)"]
[null,null,null,"JG581058/02;1-BUSH SILENT x 1","BUSH SILENT","JG581058",2,1,90,"INTAKE SYSTEM-AIR FILTER",null,null,3,"RU (Rubber Components)"]
[null,null,null,"DJ181065/03;1-CLIP NUT M6 (Design) x 2","CLIP NUT M6","DJ181065",3,2,100,"INTAKE SYSTEM-AIR FILTER",null,null,3,"EE (Electrical, Electronics)"]
[null,null,null,"KCNB0605/00;1-NUT WELD HEX x 1","NUT WELD HEX","KCNB0605",0,1,10,"PANEL AND TRIM-COVER",null,null,4,"HW (Hardware includes nuts,washers)"]
[null,null,null,"JY113821/04;1-SCREW BUTTON HEAD-M6X1XL12XBLACK x 2","SCREW BUTTON HEAD-M6X1XL12XBLACK","JY113821",4,2,110,"INTAKE SYSTEM-AIR FILTER",null,null,3,"HW (Hardware includes nuts,washers)"]
[null,null,null,"JU181278/01;1-GROMMET x 1","GROMMET","JU181278",1,1,120,"INTAKE SYSTEM-AIR FILTER",null,null,3,"RU (Rubber Components)"]
[null,null,null,"JY581405/02;1-CLAMP INTAKE PIPE x 2","CLAMP","JY581405",2,2,130,"INTAKE SYSTEM-AIR FILTER",null,null,3,"HW (Hardware includes nuts,washers)"]
[null,null,null,"KADD0612/01;1-BOLT FLANGED M6X1 x 2","BOLT FLANGED M6X1","KADD0612",1,2,140,"INTAKE SYSTEM-AIR FILTER",null,null,3,"HW (Hardware includes nuts,washers)"]
[null,null,null,"LDB00026/01;1-WASHER PLAIN x 2","WASHER PLAIN","LDB00026",1,2,150,"INTAKE SYSTEM-AIR FILTER",null,null,3,"HW (Hardware includes nuts,washers)"]
[null,null,null,"JP611227/00;1-BODY THROTTLE ASSEMBLY (Design) x 1","BODY THROTTLE ASSEMBLY","JP611227",0,1,160,"INTAKE SYSTEM-CARBURETTOR",null,null,3,"PR (Proprietary Components)"]
[null,null,null,"JY611217/01;1-BODY THROTTLE ELECTRONIC (Design) x 1","BODY THROTTLE ELECTRONIC","JY611217",1,1,10,"FUEL INJECTION SYSTEM-THROTTLE BODY",null,null,4,"PR (Proprietary Components)"]
[null,null,null,"JP611003/00;1-INJECTOR x 1","INJECTOR","JP611003",0,1,20,"FUEL INJECTION SYSTEM-THROTTLE BODY",null,null,4,"EE (Electrical, Electronics)"]
[null,null,null,"JG611006/00;2-INJECTOR CLIP x 1","INJECTOR CLIP","JG611006",0,1,30,"FUEL INJECTION SYSTEM-THROTTLE BODY",null,null,4,"PR (Proprietary Components)"]
[null,null,null,"JU611002/00;1-CAP INJECTOR x 1","CAP INJECTOR","JU611002",0,1,40,"FUEL INJECTION SYSTEM-THROTTLE BODY",null,null,4,"PR (Proprietary Components)"]
[null,null,null,"JP351801/00;1-SENSOR PRESSURE x 1","SENSOR PRESSURE","JP351801",0,1,50,"FUEL INJECTION SYSTEM-THROTTLE BODY",null,null,4,"EE (Electrical, Electronics)"]
[null,null,null,"JP351211/00;1-INSTALL UNIT ELECTRICAL ENGINE (Design) x 1","INSTALL UNIT ELECTRICAL ENGINE","JP351211",0,1,40,"ELECTRICAL/ELECTRONICS ENGINE-CDI/HT COIL/SPARK PLUG",null,null,2,"AS (Assembly,Sub-Assy)"]
[null,null,null,"JP351214/00;1-COIL ASSEMBLY IGNITION (Design) x 1","COIL ASSEMBLY IGNITION","JP351214",0,1,10,"ELECTRICAL/ELECTRONICS ENGINE-CDI/HT COIL/SPARK PLUG",null,null,3,"EE (Electrical, Electronics)"]
[null,null,null,"JP351207/01;1-COIL IGNITION (Design) x 1","COIL IGNITION","JP351207",1,1,10,"ELECTRICAL/ELECTRONICS ENGINE-CDI/HT COIL/SPARK PLUG",null,null,4,"EE (Electrical, Electronics)"]
[null,null,null,"DD111012/03;1-GROMMET H.T. CABLE x 1","GROMMET H.T. CABLE","DD111012",3,1,15,"ELECTRICAL/ELECTRONICS ENGINE-CDI/HT COIL/SPARK PLUG",null,null,4,"EE (Electrical, Electronics)"]
[null,null,null,"JY351200/00;1-CAP SPARK PLUG x 1","CAP SPARK PLUG","JY351200",0,1,20,"ELECTRICAL/ELECTRONICS ENGINE-CDI/HT COIL/SPARK PLUG",null,null,4,"EE (Electrical, Electronics)"]
[null,null,null,"JY351203/00;1-GROMMET SPARK PLUG CAP x 1","GROMMET SPARK PLUG CAP","JY351203",0,1,30,"ELECTRICAL/ELECTRONICS ENGINE-CDI/HT COIL/SPARK PLUG",null,null,4,"EE (Electrical, Electronics)"]
[null,null,null,"KAED0622/01;1-BOLT FLANGED M6X1 x 2","BOLT FLANGED M6X1","KAED0622",1,2,20,"ELECTRICAL/ELECTRONICS ENGINE-CDI/HT COIL/SPARK PLUG",null,null,3,"HW (Hardware includes nuts,washers)"]
[null,null,null,"KDDB0612/02;1-WASHER SPRING THIN x 1","WASHER SPRING THIN","KDDB0612",2,1,30,"ELECTRICAL/ELECTRONICS ENGINE-CDI/HT COIL/SPARK PLUG",null,null,3,"HW (Hardware includes nuts,washers)"]
[null,null,null,"LCL00002/01;1-NUT FLANGED-M6X1XHT. 6XCL 4XBRT x 1","NUT HEX FLANGED M6X1","LCL00002",1,1,40,"ELECTRICAL/ELECTRONICS ENGINE-CDI/HT COIL/SPARK PLUG",null,null,3,"HW (Hardware includes nuts,washers)"]
[null,null,null,"JP141007/00.00;1-INSTALL CHAIN DRIVE (Design) x 1","INSTALL CHAIN DRIVE","JP141007",0,1,50,"DRIVE LINE-CHAIN AND SPROKET",null,null,2,"AS (Assembly,Sub-Assy)"]
[null,null,null,"JY551240/02;1-SPROCKET DRIVE x 1","SPROCKET DRIVE","JY551240",2,1,10,null,null,null,3,"PR (Proprietary Components)"]
[null,null,null,"JP551223/00;1-WASHER x 1","WASHER","JP551223",0,1,20,null,null,null,3,"SM (Sheet Metal & Fabricated Parts)"]
[null,null,null,"LCG00033/00;1-NUT HEX FLANGED M18X1.5 x 1","NUT HEX FLANGED M18X1.5","LCG00033",0,1,30,null,null,null,3,"HW (Hardware includes nuts,washers)"]
[null,null,null,"JP141004/00.01;1-CHAIN x 1","CHAIN","JP141004",0.01,1,40,null,null,null,3,"PR (Proprietary Components)"]
[null,null,null,"JG601020/02;2-COOLANT x 1","COOLANT","JG601020",2,1,60,"COOLING SYSTEM-RADIATOR",null,null,2,"HW1 (Oil,Grease,Coolant,Sealant)"]
[null,null,null,"JP601252/00.01;1-INSTALL SYSTEM COOLING (Design) x 1","INSTALL SYSTEM COOLING","JP601252",0.01,1,70,"COOLING SYSTEM-RADIATOR",null,null,2,"AS (Assembly,Sub-Assy)"]
[null,null,null,"JP601248/00.06;1-RADIATOR ASSEMBLY (Design) x 1","RADIATOR ASSEMBLY","JP601248",0.06,1,10,"COOLING SYSTEM-RADIATOR",null,null,3,"PR (Proprietary Components)"]
[null,null,null,"JP601249/00.05;1-RADIATOR (Design) x 1","RADIATOR","JP601249",0.05,1,10,"COOLING SYSTEM-RADIATOR",null,null,4,"PR (Proprietary Components)"]
[null,null,null,"JG601235/00;2-PRESSURE CAP RADIATOR x 1","PRESSURE CAP RADIATOR","JG601235",0,1,20,null,null,null,4,"PR (Proprietary Components)"]
[null,null,null,"JG601250/02;1-FAN RADIATOR x 2","FAN RADIATOR","JG601250",2,2,30,null,null,null,4,"PR (Proprietary Components)"]
[null,null,null,"JP601263/00.01;1-GROMMET x 2","GROMMET","JP601263",0.01,2,20,"COOLING SYSTEM-RADIATOR",null,null,3,"RU (Rubber Components)"]
[null,null,null,"JP601264/00.01;1-COLLAR x 4","COLLAR","JP601264",0.01,4,30,"COOLING SYSTEM-RADIATOR",null,null,3,"BA (Bar or Turned components)"]
[null,null,null,"KADD0625/01;1-BOLT FLANGED M6X1 x 2","BOLT FLANGED M6X1","KADD0625",1,2,40,"COOLING SYSTEM-RADIATOR",null,null,3,"HW (Hardware includes nuts,washers)"]
[null,null,null,"JY601227/01;1-BUSH SILENT_RAD MTG x 2","BUSH SILENT","JY601227",1,2,50,"COOLING SYSTEM-RADIATOR",null,null,3,"RU (Rubber Components)"]
[null,null,null,"LDB00072/00;1-WASHER PLAIN-ID6.5XOD16XTHK1XBLK x 2","WASHER PLAIN-ID6.5XOD16XTHK1XBLK","LDB00072",0,2,60,"COOLING SYSTEM-RADIATOR",null,null,3,"HW (Hardware includes nuts,washers)"]
[null,null,null,"KDDB0612/02;1-WASHER SPRING THIN x 2","WASHER SPRING THIN","KDDB0612",2,2,70,"COOLING SYSTEM-RADIATOR",null,null,3,"HW (Hardware includes nuts,washers)"]
[null,null,null,"LCG00029/01;1-NUT HEX FLANGED M6X1 x 2","NUT HEX FLANGED M6X1","LCG00029",1,2,80,"COOLING SYSTEM-RADIATOR",null,null,3,"HW (Hardware includes nuts,washers)"]
[null,null,null,"JP181753/00.03;1-SHROUD RADIATOR (Design) x 1","SHROUD RADIATOR","JP181753",0.03,1,90,"COOLING SYSTEM-RADIATOR",null,null,3,"PL (Plastic Components)"]
[null,null,null,"JL181256/02;1-GROMMET FOR RADIATOR COWL (Design) x 1","GROMMET FOR RADIATOR COWL","JL181256",2,1,100,"COOLING SYSTEM-RADIATOR",null,null,3,"RU (Rubber Components)"]
[null,null,null,"JG181255/01;1-BOLT FLANGED STEP M6X1 x 1","BOLT FLANGED STEP M6X1","JG181255",1,1,110,"COOLING SYSTEM-RADIATOR",null,null,3,"HW (Hardware includes nuts,washers)"]
[null,null,null,"JG591088/00;1-CLIP NUT M6 (Design) x 1","CLIP NUT M6","JG591088",0,1,120,"COOLING SYSTEM-RADIATOR",null,null,3,"SM (Sheet Metal & Fabricated Parts)"]
[null,null,null,"JP601255/00.03;1-PIPE COOLANT x 1","PIPE COOLANT","JP601255",0.03,1,130,"COOLING SYSTEM-RADIATOR",null,null,3,"RU (Rubber Components)"]
[null,null,null,"JP601256/00.03;1-PIPE COOLANT (Design) x 1","PIPE COOLANT","JP601256",0.03,1,140,"COOLING SYSTEM-RADIATOR",null,null,3,"RU (Rubber Components)"]
[null,null,null,"JG601234/00;1-CLAMP DIA 23 x 2","CLAMP DIA 23","JG601234",0,2,150,"COOLING SYSTEM-RADIATOR",null,null,3,"HW2 (Band Clamp,Screw Clamp)"]
[null,null,null,"JL601221/00;1-CLAMP COOLANT PIPE x 2","CLAMP COOLANT PIPE","JL601221",0,2,160,"COOLING SYSTEM-RADIATOR",null,null,3,"HW2 (Band Clamp,Screw Clamp)"]
[null,null,null,"KADD0610/01;1-BOLT FLANGED M6X1 x 3","BOLT FLANGED M6X1","KADD0610",1,3,170,"COOLING SYSTEM-RADIATOR",null,null,3,"HW (Hardware includes nuts,washers)"]
[null,null,null,"JP601259/00.00;1-TANK ASSEMBLY EXPANSION (Design) x 1","TANK ASSEMBLY EXPANSION","JP601259",0,1,180,"COOLING SYSTEM-RADIATOR",null,null,3,"AS (Assembly,Sub-Assy)"]
[null,null,null,"<> x 1",null,null,null,1,10,"COOLING SYSTEM-RADIATOR",null,null,4]
[null,null,null,"JG601230/01;1-EXPANSION TANK O RING x 1","EXPANSION TANK O RING","JG601230",1,1,20,"COOLING SYSTEM-RADIATOR",null,null,4,"OS + OR (Oil Seals and O Rings)"]
[null,null,null,"JG601211/02;1-CAP EXPANSION TANK x 1","CAP EXPANSION TANK","JG601211",2,1,30,"COOLING SYSTEM-RADIATOR",null,null,4,"PL (Plastic Components)"]
[null,null,null,"JP601261/00.00;1-PIPE COOLANT (Design) x 1","PIPE COOLANT","JP601261",0,1,40,"COOLING SYSTEM-RADIATOR",null,null,4,"RU (Rubber Components)"]
[null,null,null,"JP601260/00.00;1-PIPE DRAIN (Design) x 1","PIPE DRAIN","JP601260",0,1,50,"COOLING SYSTEM-RADIATOR",null,null,4,"RU (Rubber Components)"]
[null,null,null,"JG171029/01;1-CLAMP x 2","CLAMP","JG171029",1,2,60,"COOLING SYSTEM-RADIATOR",null,null,4,"HW2 (Band Clamp,Screw Clamp)"]
[null,null,null,"JL171101/02;1-CLAMP BAND SPRING x 1","CLAMP BAND SPRING","JL171101",2,1,190,"COOLING SYSTEM-RADIATOR",null,null,3,"HW2 (Band Clamp,Screw Clamp)"]
[null,null,null,"JG181250/01;1-BOLT FLANGED STEP M6X1 x 1","BOLT FLANGED STEP M6X1","JG181250",1,1,200,"COOLING SYSTEM-RADIATOR",null,null,3,"HW (Hardware includes nuts,washers)"]
[null,null,null,"JG601257/00;1-STRAP-CLIP SWIVEL x 2","STRAP-CLIP SWIVEL","JG601257",0,2,210,"COOLING SYSTEM-RADIATOR",null,null,3,"HW3 (Standard Clamps For Plastic,EE Fastening)"]

{"sheet":"Sheet2","index":1,"n_rows":113,"n_cols":12,"rows_kept":113,"cut":false,"hidden":false,"merged":[]}
["BOM Line","Item Name","Item Id","Revision","Quantity","Find No.","LOCATOR","REMARKS","Item Revision Definition Configuration Used","Level","Category"]
["30191017/04;1-NUT ROUND M8X1.25 (Design) x 1","NUT ROUND M8X1.25",30191017,4,1,90,"CONTROLS-CONTROL LEVER & PEDAL",null,null,3,"HW (Hardware includes nuts,washers)",{"$f":"VLOOKUP(C2,Sheet3!$A$2:$A$87,1,0)","v":{"$error":"#N/A"}}]
["39118415/05;1-NUT NYLOC M5X0.8 x 1","NUT NYLOC M5X0.8",39118415,5,1,80,"CONTROLS-CONTROL LEVER & PEDAL",null,null,3,"HW (Hardware includes nuts,washers)",{"$f":"VLOOKUP(C3,Sheet3!$A$2:$A$87,1,0)","v":{"$error":"#N/A"}}]
["39167504/00;1-BOLT FLANGED M6X28 x 2","BOLT FLANGED M6X28",39167504,0,2,100,"ELECTRICAL/ELECTRONICS VEHICLE-REGULATOR,RECTIFIER,CDI, FLASHER",null,null,3,"HW (Hardware includes nuts,washers)",{"$f":"VLOOKUP(C4,Sheet3!$A$2:$A$87,1,0)","v":39167504}]
["DH101389/02;1-BOLT SOCKET-M6X1XL 20XCL 12.9 (Design) x 1","BOLT SOCKET-M6X1XL 20XCL 12.9","DH101389",2,1,1050,"ENGINE ASSEMBLY-ENGINE ASSEMBLY",null,null,3,"HW (Hardware includes nuts,washers)",{"$f":"VLOOKUP(C5,Sheet3!$A$2:$A$87,1,0)","v":{"$error":"#N/A"}}]
["DK101284/05;1-BOLT SOCKET-M5X0.8XL 34XPRECOAT x 3","BOLT SOCKET-M5X0.8XL 34XPRECOAT","DK101284",5,3,810,"ENGINE ASSEMBLY-ENGINE ASSEMBLY",null,null,3,"HW (Hardware includes nuts,washers)",{"$f":"VLOOKUP(C6,Sheet3!$A$2:$A$87,1,0)","v":{"$error":"#N/A"}}]
["DK101386/03;1-BOLT SOCKET M8X1 (Design) x 1","BOLT SOCKET M8X1","DK101386",3,1,30,"ACCESSORIES-GUARD",null,null,3,"HW (Hardware includes nuts,washers)",{"$f":"VLOOKUP(C7,Sheet3!$A$2:$A$87,1,0)","v":"DK101386"}]
["JG113207/01;1-BOLT x 1","BOLT","JG113207",1,1,40,"CHASSIS-STAND",null,null,3,"HW (Hardware includes nuts,washers)",{"$f":"VLOOKUP(C8,Sheet3!$A$2:$A$87,1,0)","v":"JG113207"}]
["JG113837/01;1-BOLT FLANGED M6X1 x 2","BOLT FLANGED M6X1","JG113837",1,2,40,"EXHAUST SYSTEM-DEFAULT",null,null,3,"HW (Hardware includes nuts,washers)",{"$f":"VLOOKUP(C9,Sheet3!$A$2:$A$87,1,0)","v":"JG113837"}]
["JG181250/01;1-BOLT FLANGED STEP M6X1 x 1","BOLT FLANGED STEP M6X1","JG181250",1,1,200,"COOLING SYSTEM-RADIATOR",null,null,3,"HW (Hardware includes nuts,washers)",{"$f":"VLOOKUP(C10,Sheet3!$A$2:$A$87,1,0)","v":"JG181250"}]
["JG181255/01;1-BOLT FLANGED STEP M6X1 x 1","BOLT FLANGED STEP M6X1","JG181255",1,1,110,"COOLING SYSTEM-RADIATOR",null,null,3,"HW (Hardware includes nuts,washers)",{"$f":"VLOOKUP(C11,Sheet3!$A$2:$A$87,1,0)","v":"JG181255"}]
["JG511022/00;1-BOLT SPECIAL (Design) x 4","BOLT SPECIAL","JG511022",0,4,210,"ENGINE ASSEMBLY-ENGINE ASSEMBLY",null,null,3,"HW (Hardware includes nuts,washers)",{"$f":"VLOOKUP(C12,Sheet3!$A$2:$A$87,1,0)","v":{"$error":"#N/A"}}]
["JG511270/01;1-BOLT FLANGED M6X1 (Design) x 1","BOLT FLANGED M6X1","JG511270",1,1,260,"ENGINE ASSEMBLY-ENGINE ASSEMBLY",null,null,3,"HW (Hardware includes nuts,washers)",{"$f":"VLOOKUP(C13,Sheet3!$A$2:$A$87,1,0)","v":{"$error":"#N/A"}}]
["JG601005/03;1-DOME NUT (Design) x 1","DOME NUT","JG601005",3,1,860,"ENGINE ASSEMBLY-ENGINE ASSEMBLY",null,null,3,"HW (Hardware includes nuts,washers)",{"$f":"VLOOKUP(C14,Sheet3!$A$2:$A$87,1,0)","v":{"$error":"#N/A"}}]
["JP122060/00.01;1-SHAFT ARM SWING x 1","SHAFT ARM SWING","JP122060",0.01,1,90,"SUSPENSION-REAR SUSPENSION",null,null,3,"HW (Hardware includes nuts,washers)",{"$f":"VLOOKUP(C15,Sheet3!$A$2:$A$87,1,0)","v":"JP122060"}]
["JR113803/00.00;1-BOLT SPECIAL M5 X 14L x 4","SCREW BUTTON HEAD STEP M5X0.8","JR113803",0,4,210,null,null,null,3,"HW (Hardware includes nuts,washers)",{"$f":"VLOOKUP(C16,Sheet3!$A$2:$A$87,1,0)","v":{"$error":"#N/A"}}]
["JY113025/00;1-BOLT CHANGE LEVER (Design) x 1","BOLT CHANGE LEVER","JY113025",0,1,30,"CHASSIS-FOOTREST",null,null,3,"HW (Hardware includes nuts,washers)",{"$f":"VLOOKUP(C17,Sheet3!$A$2:$A$87,1,0)","v":{"$error":"#N/A"}}]
["JY113821/04;1-SCREW BUTTON HEAD-M6X1XL12XBLACK x 6","SCREW BUTTON HEAD-M6X1XL12XBLACK","JY113821",4,6,80,"PANEL AND TRIM-COVER",null,null,3,"HW (Hardware includes nuts,washers)",{"$f":"VLOOKUP(C18,Sheet3!$A$2:$A$87,1,0)","v":"JY113821"}]
["JY121011/02;1-BOLT SOCKET-M8X1.25XL30XCL8.8XBL x 2","BOLT SOCKET-M8X1.25XL30XCL8.8XBL","JY121011",2,2,160,"STEERING-HANDLE BAR/ STEERING COLUMN",null,null,2,"HW (Hardware includes nuts,washers)",{"$f":"VLOOKUP(C19,Sheet3!$A$2:$A$87,1,0)","v":"JY121011"}]
["JY151011/03;1-BOLT FLANGED-M16X1.5XL33XPRECOAT x 1","BOLT FLANGED M16X1.5","JY151011",3,1,170,"STEERING-HANDLE BAR/ STEERING COLUMN",null,null,2,"HW (Hardware includes nuts,washers)",{"$f":"VLOOKUP(C20,Sheet3!$A$2:$A$87,1,0)","v":"JY151011"}]
["JY541019/00;2-RETAINER GEAR STARTER (Design) x 1","RETAINER GEAR STARTER","JY541019",0,1,540,"ENGINE ASSEMBLY-ENGINE ASSEMBLY",null,null,3,"HW (Hardware includes nuts,washers)",{"$f":"VLOOKUP(C21,Sheet3!$A$2:$A$87,1,0)","v":{"$error":"#N/A"}}]
["KACA0614/01;1-BOLT SOCKET x 4","BOLT SOCKET M6X1","KACA0614",1,4,80,"CHASSIS-ENGINE MOUNTING",null,null,3,"HW (Hardware includes nuts,washers)",{"$f":"VLOOKUP(C22,Sheet3!$A$2:$A$87,1,0)","v":"KACA0614"}]
["KACA0616/01;1-BOLT Socket head M6X1 x 1","BOLT SOCKET M6X1","KACA0616",1,1,90,"PANEL AND TRIM-COVER",null,null,3,"HW (Hardware includes nuts,washers)",{"$f":"VLOOKUP(C23,Sheet3!$A$2:$A$87,1,0)","v":"KACA0616"}]
["KACA0625/02;1-BOLT SOCKET M6X1 x 1","BOLT SOCKET M6X1","KACA0625",2,1,130,"CHASSIS-FOOTREST",null,null,3,"HW (Hardware includes nuts,washers)",{"$f":"VLOOKUP(C24,Sheet3!$A$2:$A$87,1,0)","v":{"$error":"#N/A"}}]
["KACA0820/01;1-Bolt-Socket-KAC ST-A Dia-08 L-20 x 4","BOLT SOCKET M8X1.25","KACA0820",1,4,50,"CHASSIS-ENGINE MOUNTING",null,null,3,"HW (Hardware includes nuts,washers)",{"$f":"VLOOKUP(C25,Sheet3!$A$2:$A$87,1,0)","v":"KACA0820"}]
["KACA0825/01;1-Bolt-Socket-KAC ST-A Dia-08 L-25 x 4","BOLT SOCKET M8X1.25","KACA0825",1,4,90,"CHASSIS-ENGINE MOUNTING",null,null,3,"HW (Hardware includes nuts,washers)",{"$f":"VLOOKUP(C26,Sheet3!$A$2:$A$87,1,0)","v":"KACA0825"}]
["KACF0610/02;1-BOLT SOCKET M6X1 x 2","BOLT SOCKET M6X1","KACF0610",2,2,70,"INTAKE SYSTEM-AIR FILTER",null,null,3,"HW (Hardware includes nuts,washers)",{"$f":"VLOOKUP(C27,Sheet3!$A$2:$A$87,1,0)","v":"KACF0610"}]
["KACF0612/01;1-BOLT SOCKET M6X1 x 2","BOLT SOCKET M6X1","KACF0612",1,2,170,null,null,null,3,"HW (Hardware includes nuts,washers)",{"$f":"VLOOKUP(C28,Sheet3!$A$2:$A$87,1,0)","v":{"$error":"#N/A"}}]
["KACJ0655/00;1-BOLT SOCKET-M6X1XL55XCL8.8XBLACK x 2","BOLT SOCKET M6X1","KACJ0655",0,2,150,"STEERING-HANDLE BAR/ STEERING COLUMN",null,null,2,"HW (Hardware includes nuts,washers)",{"$f":"VLOOKUP(C29,Sheet3!$A$2:$A$87,1,0)","v":"KACJ0655"}]
["KADA0512/01;1-BOLT FLANGED M5X0.8 x 4","BOLT FLANGED M5X0.8","KADA0512",1,4,20,"ELECTRICAL/ELECTRONICS VEHICLE-LIGHTS",null,null,3,"HW (Hardware includes nuts,washers)",{"$f":"VLOOKUP(C30,Sheet3!$A$2:$A$87,1,0)","v":"KADA0512"}]
["KADA0612/01;1-BOLT FLANGED M6X1 x 1","BOLT FLANGED M6X1","KADA0612",1,1,130,"CHASSIS-FRAME FITTINGS",null,null,3,"HW (Hardware includes nuts,washers)",{"$f":"VLOOKUP(C31,Sheet3!$A$2:$A$87,1,0)","v":"KADA0612"}]
["KADA0614/01;1-BOLT FLANGED M6X1 x 4","BOLT FLANGED M6X1","KADA0614",1,4,20,"PANEL AND TRIM-FENDER & FLAP",null,null,3,"HW (Hardware includes nuts,washers)",{"$f":"VLOOKUP(C32,Sheet3!$A$2:$A$87,1,0)","v":"KADA0614"}]
["KADA1030/01;1-BOLT FLANGED M10X1.25 x 2","BOLT FLANGED M10X1.25","KADA1030",1,2,30,"CHASSIS-FRAME FITTINGS",null,null,3,"HW (Hardware includes nuts,washers)",{"$f":"VLOOKUP(C33,Sheet3!$A$2:$A$87,1,0)","v":{"$error":"#N/A"}}]
["KADD0525/00;1-BOLT FLANGED M5X0.8 x 3","BOLT FLANGED M5X0.8","KADD0525",0,3,1420,"LUBRICATION SYSTEM-OIL PUMP",null,null,3,"HW (Hardware includes nuts,washers)",{"$f":"VLOOKUP(C34,Sheet3!$A$2:$A$87,1,0)","v":{"$error":"#N/A"}}]
["KADD0610/01;1-BOLT FLANGED M6X1 x 3","BOLT FLANGED M6X1","KADD0610",1,3,170,"COOLING SYSTEM-RADIATOR",null,null,3,"HW (Hardware includes nuts,washers)",{"$f":"VLOOKUP(C35,Sheet3!$A$2:$A$87,1,0)","v":"KADD0610"}]
["KADD0612/01;1-BOLT FLANGED M6X1 x 1","BOLT FLANGED M6X1","KADD0612",1,1,130,null,null,null,3,"HW (Hardware includes nuts,washers)",{"$f":"VLOOKUP(C36,Sheet3!$A$2:$A$87,1,0)","v":"KADD0612"}]
["KADD0622/01;1-BOLT FLANGED M6X1 x 2","BOLT FLANGED M6X1","KADD0622",1,2,1490,"ELECTRICAL/ELECTRONICS ENGINE-STARTER MOTOR",null,null,3,"HW (Hardware includes nuts,washers)",{"$f":"VLOOKUP(C37,Sheet3!$A$2:$A$87,1,0)","v":{"$error":"#N/A"}}]
["KADD0625/01;1-BOLT FLANGED M6X1 x 2","BOLT FLANGED M6X1","KADD0625",1,2,40,"COOLING SYSTEM-RADIATOR",null,null,3,"HW (Hardware includes nuts,washers)",{"$f":"VLOOKUP(C38,Sheet3!$A$2:$A$87,1,0)","v":"KADD0625"}]
["KADD0690/00;1-BOLT FLANGED M6X1 x 1","BOLT FLANGED M6X1","KADD0690",0,1,120,"FUEL SYSTEM-FUEL TANK",null,null,3,"HW (Hardware includes nuts,washers)",{"$f":"VLOOKUP(C39,Sheet3!$A$2:$A$87,1,0)","v":"KADD0690"}]
["KADD0814/01;1-BOLT FLANGED M8X1.25 x 1","BOLT FLANGED M8X1.25","KADD0814",1,1,20,"ELECTRICAL/ELECTRONICS VEHICLE-HORN",null,null,3,"HW (Hardware includes nuts,washers)",{"$f":"VLOOKUP(C40,Sheet3!$A$2:$A$87,1,0)","v":"KADD0814"}]
["KADD0835/01;1-BOLT FLANGED M8X1.25 x 2","BOLT FLANGED M8X1.25","KADD0835",1,2,70,"EXHAUST SYSTEM-DEFAULT",null,null,3,"HW (Hardware includes nuts,washers)",{"$f":"VLOOKUP(C41,Sheet3!$A$2:$A$87,1,0)","v":"KADD0835"}]
["KADF0618/00;1-BOLT FLANGED M6X1 x 3","BOLT FLANGED M6X1","KADF0618",0,3,110,"CHASSIS-FRAME FITTINGS",null,null,3,"HW (Hardware includes nuts,washers)",{"$f":"VLOOKUP(C42,Sheet3!$A$2:$A$87,1,0)","v":"KADF0618"}]
["KADF0845/00;1-BOLT FLANGED M8X1.25 x 1","BOLT FLANGED M8X1.25","KADF0845",0,1,10,"ACCESSORIES-GUARD",null,null,3,"HW (Hardware includes nuts,washers)",{"$f":"VLOOKUP(C43,Sheet3!$A$2:$A$87,1,0)","v":"KADF0845"}]
["KADT0625/00;1-BOLT FLANGED M6X1 x 1","BOLT FLANGED M6X1","KADT0625",0,1,120,"CONTROLS-CONTROL LEVER & PEDAL",null,null,3,"HW (Hardware includes nuts,washers)",{"$f":"VLOOKUP(C44,Sheet3!$A$2:$A$87,1,0)","v":{"$error":"#N/A"}}]
["KAEA0616/01;1-BOLT FLANGED M6X1 x 2","BOLT FLANGED M6X1","KAEA0616",1,2,50,"PANEL AND TRIM-COVER",null,null,3,"HW (Hardware includes nuts,washers)",{"$f":"VLOOKUP(C45,Sheet3!$A$2:$A$87,1,0)","v":"KAEA0616"}]
["KAED0616/01;1-BOLT FLANGED M6X1 x 2","BOLT FLANGED M6X1","KAED0616",1,2,10,"ELECTRICAL/ELECTRONICS VEHICLE-SENSOR",null,null,3,"HW (Hardware includes nuts,washers)",{"$f":"VLOOKUP(C46,Sheet3!$A$2:$A$87,1,0)","v":"KAED0616"}]
["KAED0622/01;1-BOLT FLANGED M6X1 x 2","BOLT FLANGED M6X1","KAED0622",1,2,20,"ELECTRICAL/ELECTRONICS ENGINE-CDI/HT COIL/SPARK PLUG",null,null,3,"HW (Hardware includes nuts,washers)",{"$f":"VLOOKUP(C47,Sheet3!$A$2:$A$87,1,0)","v":"KAED0622"}]
["KAED0670/01;1-BOLT FLANGED M6X1 x 4","BOLT FLANGED M6X1","KAED0670",1,4,680,"ENGINE ASSEMBLY-ENGINE ASSEMBLY",null,null,3,"HW (Hardware includes nuts,washers)",{"$f":"VLOOKUP(C48,Sheet3!$A$2:$A$87,1,0)","v":{"$error":"#N/A"}}]
["KAED0825/01;1-BOLT FLANGED M8X1.25 x 1","BOLT FLANGED M8X1.25","KAED0825",1,1,1470,"ELECTRICAL/ELECTRONICS ENGINE-STARTER MOTOR",null,null,3,"HW (Hardware includes nuts,washers)",{"$f":"VLOOKUP(C49,Sheet3!$A$2:$A$87,1,0)","v":{"$error":"#N/A"}}]
["KAEQ0630/00;1-BOLT FLANGED M6X1 x 2","BOLT FLANGED M6X1","KAEQ0630",0,2,510,"ENGINE ASSEMBLY-ENGINE ASSEMBLY",null,null,3,"HW (Hardware includes nuts,washers)",{"$f":"VLOOKUP(C50,Sheet3!$A$2:$A$87,1,0)","v":{"$error":"#N/A"}}]
["KAEQ0635/01;1-BOLT FLANGED M6X1 x 4","BOLT FLANGED M6X1","KAEQ0635",1,4,520,"ENGINE ASSEMBLY-ENGINE ASSEMBLY",null,null,3,"HW (Hardware includes nuts,washers)",{"$f":"VLOOKUP(C51,Sheet3!$A$2:$A$87,1,0)","v":{"$error":"#N/A"}}]
["KAEQ0670/00;1-BOLT FLANGED M6X1 x 6","BOLT FLANGED M6X1","KAEQ0670",0,6,530,"ENGINE ASSEMBLY-ENGINE ASSEMBLY",null,null,3,"HW (Hardware includes nuts,washers)",{"$f":"VLOOKUP(C52,Sheet3!$A$2:$A$87,1,0)","v":{"$error":"#N/A"}}]
["KAEW0620/00;1-BOLT FLANGED M6X1 x 2","BOLT FLANGED M6X1","KAEW0620",0,2,40,"ENGINE ASSEMBLY-ENGINE ASSEMBLY",null,null,3,"HW (Hardware includes nuts,washers)",{"$f":"VLOOKUP(C53,Sheet3!$A$2:$A$87,1,0)","v":{"$error":"#N/A"}}]
["KAEW0625/00;1-BOLT FLANGED M6X1 x 5","BOLT FLANGED M6X1","KAEW0625",0,5,1150,"ENGINE ASSEMBLY-ENGINE ASSEMBLY",null,null,3,"HW (Hardware includes nuts,washers)",{"$f":"VLOOKUP(C54,Sheet3!$A$2:$A$87,1,0)","v":{"$error":"#N/A"}}]
["KBBA0510/00;1-SCREW PAN CROSS M5X0.8 x 4","SCREW PAN CROSS M5X0.8","KBBA0510",0,4,70,"PANEL AND TRIM-COVER",null,null,3,"HW (Hardware includes nuts,washers)",{"$f":"VLOOKUP(C55,Sheet3!$A$2:$A$87,1,0)","v":"KBBA0510"}]
["KCAC0605/01;1-NUT HEX M6X1 x 2","NUT HEX M6X1","KCAC0605",1,2,110,null,null,null,3,"HW (Hardware includes nuts,washers)",{"$f":"VLOOKUP(C56,Sheet3!$A$2:$A$87,1,0)","v":"KCAC0605"}]
["KCEA0605/01;2-NUT DOME CAP SINGLE PIECE-M6 X 1 x 1","NUT DOME CAP SINGLE PIECE-M6 X 1","KCEA0605",1,1,100,"PANEL AND TRIM-COVER",null,null,3,"HW (Hardware includes nuts,washers)",{"$f":"VLOOKUP(C57,Sheet3!$A$2:$A$87,1,0)","v":"KCEA0605"}]
["KCGD0606/01;1-NUT HEX FLANGED x 1","NUT HEX FLANGED","KCGD0606",1,1,40,"INTAKE SYSTEM-AIR FILTER",null,null,3,"HW (Hardware includes nuts,washers)",{"$f":"VLOOKUP(C58,Sheet3!$A$2:$A$87,1,0)","v":"KCGD0606"}]
["KCGD1010/01;1-NUT HEX FLANGED x 1","NUT HEX FLANGED","KCGD1010",1,1,110,"CHASSIS-ENGINE MOUNTING",null,null,3,"HW (Hardware includes nuts,washers)",{"$f":"VLOOKUP(C59,Sheet3!$A$2:$A$87,1,0)","v":"KCGD1010"}]
["KHAC2518/01;1-PIN COTTER-DIA. 2.5XL 18 x 1","PIN COTTER-DIA. 2.5XL 18","KHAC2518",1,1,80,"CHASSIS-FOOTREST",null,null,3,"HW (Hardware includes nuts,washers)",{"$f":"VLOOKUP(C60,Sheet3!$A$2:$A$87,1,0)","v":{"$error":"#N/A"}}]
["LAA00007/00;1-BOLT HEX M10 X 1.25 X 50 x 2","BOLT HEX M10 X 1.25 X 50","LAA00007",0,2,120,"SUSPENSION-REAR SUSPENSION",null,null,3,"HW (Hardware includes nuts,washers)",{"$f":"VLOOKUP(C61,Sheet3!$A$2:$A$87,1,0)","v":"LAA00007"}]
["LAA00030/00;1-BOLT -M6X1XL30XCL8.8XBLXSHEAR HD x 1","BOLT -M6X1XL30XCL8.8XBLXSHEAR HD","LAA00030",0,1,30,"ACCESSORIES-LOCKS",null,null,3,"HW (Hardware includes nuts,washers)",{"$f":"VLOOKUP(C62,Sheet3!$A$2:$A$87,1,0)","v":"LAA00030"}]
["LAA00073/02;1-BOLT STEP M6X1 x 2","BOLT STEP M6X1","LAA00073",2,2,100,null,null,null,3,"HW (Hardware includes nuts,washers)",{"$f":"VLOOKUP(C63,Sheet3!$A$2:$A$87,1,0)","v":"LAA00073"}]
["LAC00004/03;1-BOLT SOCKET M10X1.25 x 2","BOLT SOCKET M10X1.25","LAC00004",3,2,60,"STEERING-HANDLE BAR/ STEERING COLUMN",null,null,2,"HW (Hardware includes nuts,washers)",{"$f":"VLOOKUP(C64,Sheet3!$A$2:$A$87,1,0)","v":"LAC00004"}]
["LAC00008/03;1-SCREW BUTTON HEAD-M6X1XL20XBLACK x 8","SCREW BUTTON HEAD-M6X1","LAC00008",3,8,130,"PANEL AND TRIM-COVER",null,null,3,"HW (Hardware includes nuts,washers)",{"$f":"VLOOKUP(C65,Sheet3!$A$2:$A$87,1,0)","v":"LAC00008"}]
["LAC00011/03;1-BOLT SOCKET M5X0.8 x 2","BOLT SOCKET M5X0.8","LAC00011",3,2,40,null,null,null,3,"HW (Hardware includes nuts,washers)",{"$f":"VLOOKUP(C66,Sheet3!$A$2:$A$87,1,0)","v":"LAC00011"}]
["LAC00032/00;1-BOLT SOCKET HEAD M10 x 4","BOLT SOCKET HEAD M10","LAC00032",0,4,120,"ENGINE ASSEMBLY-ENGINE ASSEMBLY",null,null,3,"HW (Hardware includes nuts,washers)",{"$f":"VLOOKUP(C67,Sheet3!$A$2:$A$87,1,0)","v":{"$error":"#N/A"}}]
["LAC00035/01;1-BOLT SOCKET M8X1.25 (Design) x 4","BOLT SOCKET M8X1.25","LAC00035",1,4,30,"ACCESSORIES-CARRIER & HAND HOLD",null,null,3,"HW (Hardware includes nuts,washers)",{"$f":"VLOOKUP(C68,Sheet3!$A$2:$A$87,1,0)","v":"LAC00035"}]
["LAC00045/00;1-BOLT SOCKET-M8X1.25XL20XPRE-COAT x 8","BOLT SOCKET-M8X1.25XL20XPRE-COAT","LAC00045",0,8,50,null,null,null,2,"HW (Hardware includes nuts,washers)",{"$f":"VLOOKUP(C69,Sheet3!$A$2:$A$87,1,0)","v":"LAC00045"}]
["LAC00054/04;1-BOLT SOCKET-M6X1XL16XBLKXFL.HEAD x 4","BOLT SOCKET-M6X1XL16XBLKXFL.HEAD","LAC00054",4,4,60,"COOLING SYSTEM-RADIATOR",null,null,3,"HW (Hardware includes nuts,washers)",{"$f":"VLOOKUP(C70,Sheet3!$A$2:$A$87,1,0)","v":"LAC00054"}]
["LAC00107/00;1-BOLT SOCKET-M6X1XL102XBRTXSTEPED x 2","BOLT SOCKET STEP M6X1","LAC00107",0,2,660,"ENGINE ASSEMBLY-ENGINE ASSEMBLY",null,null,3,"HW (Hardware includes nuts,washers)",{"$f":"VLOOKUP(C71,Sheet3!$A$2:$A$87,1,0)","v":{"$error":"#N/A"}}]
["LAC00111/00;1-BOLT SOCKET-M8X1.25XL 29XBLACK x 4","BOLT SOCKET-M8X1.25XL 29XBLACK","LAC00111",0,4,100,"STEERING-HANDLE BAR/ STEERING COLUMN",null,null,2,"HW (Hardware includes nuts,washers)",{"$f":"VLOOKUP(C72,Sheet3!$A$2:$A$87,1,0)","v":"LAC00111"}]
["LAC00115/01;1-BOLT SOCKET-M6X1XL18XBLKXPRECOAT x 2","BOLT SOCKET-M6X1XL18XBLKXPRECOAT","LAC00115",1,2,110,"CHASSIS-FOOTREST",null,null,3,"HW (Hardware includes nuts,washers)",{"$f":"VLOOKUP(C73,Sheet3!$A$2:$A$87,1,0)","v":{"$error":"#N/A"}}]
["LAC00160/00;1-BOLT SOCKET M16X1.5 x 1","BOLT SOCKET M16X1.5","LAC00160",0,1,1230,"LUBRICATION SYSTEM-OIL PUMP",null,null,3,"HW (Hardware includes nuts,washers)",{"$f":"VLOOKUP(C74,Sheet3!$A$2:$A$87,1,0)","v":{"$error":"#N/A"}}]
["LAC00172/00;1-BOLT SOCKET M10X1.25 x 1","BOLT SOCKET M10X1.25","LAC00172",0,1,40,"CHASSIS-FRAME FITTINGS",null,null,3,"HW (Hardware includes nuts,washers)",{"$f":"VLOOKUP(C75,Sheet3!$A$2:$A$87,1,0)","v":{"$error":"#N/A"}}]
["LAC00188/00;1-BOLT SOCKET STEP M6X1 (Design) x 2","BOLT SOCKET STEP M6X1","LAC00188",0,2,170,"PANEL AND TRIM-COVER",null,null,3,"HW (Hardware includes nuts,washers)",{"$f":"VLOOKUP(C76,Sheet3!$A$2:$A$87,1,0)","v":"LAC00188"}]
["LAC00200/00;1-BOLT SOCKET M10X1.25 x 1","BOLT SOCKET M10X1.25","LAC00200",0,1,70,null,null,null,3,"HW (Hardware includes nuts,washers)",{"$f":"VLOOKUP(C77,Sheet3!$A$2:$A$87,1,0)","v":"LAC00200"}]
["LAC00201/00;1-BOLT SOCKET M10X1.25 x 1","BOLT SOCKET M10X1.25","LAC00201",0,1,80,null,null,null,3,"HW (Hardware includes nuts,washers)",{"$f":"VLOOKUP(C78,Sheet3!$A$2:$A$87,1,0)","v":"LAC00201"}]
["LAD00006/01;1-BOLT FL-M10X1.25XL110XCL10.9XBRIGHT x 2","BOLT FL-M10X1.25XL110XCL10.9XBRIGHT","LAD00006",1,2,120,"CHASSIS-ENGINE MOUNTING",null,null,3,"HW (Hardware includes nuts,washers)",{"$f":"VLOOKUP(C79,Sheet3!$A$2:$A$87,1,0)","v":"LAD00006"}]
["LAD00141/03;1-BOLT FLANGED-M6X1XL 46XSTEPPED x 1","BOLT FLANGED-M6X1XL 46XSTEPPED","LAD00141",3,1,90,"ENGINE ASSEMBLY-ENGINE ASSEMBLY",null,null,3,"HW (Hardware includes nuts,washers)",{"$f":"VLOOKUP(C80,Sheet3!$A$2:$A$87,1,0)","v":{"$error":"#N/A"}}]
["LAD00154/02;1-BOLT FLANGE-M6X1XL 12.8XBRTXSTEP x 6","BOLT FLANGE-M6X1XL 12.8XBRTXSTEP","LAD00154",2,6,40,"FUEL SYSTEM-FUEL TANK",null,null,3,"HW (Hardware includes nuts,washers)",{"$f":"VLOOKUP(C81,Sheet3!$A$2:$A$87,1,0)","v":{"$error":"#N/A"}}]
["LAD00246/02;1-BOLT FLANGED M10X1.25 x 1","BOLT FLANGED M10X1.25","LAD00246",2,1,100,"CHASSIS-ENGINE MOUNTING",null,null,3,"HW (Hardware includes nuts,washers)",{"$f":"VLOOKUP(C82,Sheet3!$A$2:$A$87,1,0)","v":"LAD00246"}]
["LAD00278/00;1-BOLT FLANGED M6X1 x 1","BOLT FLANGED M6X1","LAD00278",0,1,60,null,null,null,2,"HW (Hardware includes nuts,washers)",{"$f":"VLOOKUP(C83,Sheet3!$A$2:$A$87,1,0)","v":"LAD00278"}]
["LAE00001/01;1-BOLT FLANGED-M8X1.25XL20XPRECOAT x 1","BOLT FLANGED-M8X1.25XL20XPRECOAT","LAE00001",1,1,470,"ENGINE ASSEMBLY-ENGINE ASSEMBLY",null,null,3,"HW (Hardware includes nuts,washers)",{"$f":"VLOOKUP(C84,Sheet3!$A$2:$A$87,1,0)","v":{"$error":"#N/A"}}]
["LAE00016/01;1-BOLT FLANGED M5X0.8X6L-PRECOATED (Design) x 1","BOLT FLANGED M5X0.8X6L-PRECOATED","LAE00016",1,1,800,"ENGINE ASSEMBLY-ENGINE ASSEMBLY",null,null,3,"HW (Hardware includes nuts,washers)",{"$f":"VLOOKUP(C85,Sheet3!$A$2:$A$87,1,0)","v":{"$error":"#N/A"}}]
["LAE00017/01;1-BOLT FLANGED M6X1 (Design) x 1","BOLT FLANGED M6X1","LAE00017",1,1,200,"ENGINE ASSEMBLY-ENGINE ASSEMBLY",null,null,3,"HW (Hardware includes nuts,washers)",{"$f":"VLOOKUP(C86,Sheet3!$A$2:$A$87,1,0)","v":{"$error":"#N/A"}}]
["LAE00048/02;1-BOLT FLANGED M6X1 x 1","BOLT FLANGED M6X1","LAE00048",2,1,1170,"ENGINE ASSEMBLY-ENGINE ASSEMBLY",null,null,3,"HW (Hardware includes nuts,washers)",{"$f":"VLOOKUP(C87,Sheet3!$A$2:$A$87,1,0)","v":{"$error":"#N/A"}}]
["LAE00049/00;2-BOLT FLANGE-M6X1XL14XBRTXPRECOAT x 1","BOLT FLANGE-M6X1XL14XBRTXPRECOAT","LAE00049",0,1,550,"ENGINE ASSEMBLY-ENGINE ASSEMBLY",null,null,3,"HW (Hardware includes nuts,washers)",{"$f":"VLOOKUP(C88,Sheet3!$A$2:$A$87,1,0)","v":{"$error":"#N/A"}}]
["LBC00003/01;1-SCREW CSK CROSS M6X1 x 3","SCREW CSK CROSS M6X1","LBC00003",1,3,1520,"INTAKE SYSTEM-INTAKE MANIFOLD",null,null,3,"HW (Hardware includes nuts,washers)",{"$f":"VLOOKUP(C89,Sheet3!$A$2:$A$87,1,0)","v":{"$error":"#N/A"}}]
["LBR00010/00;1-SCREW TPNG PAN CRS-DIA3.5XL10XBL (Design) x 1","SCREW TPNG PAN CRS-DIA3.5XL10XBL","LBR00010",0,1,70,"CHASSIS-FRAME FITTINGS",null,null,3,"HW (Hardware includes nuts,washers)",{"$f":"VLOOKUP(C90,Sheet3!$A$2:$A$87,1,0)","v":"LBR00010"}]
["LBU00015/00;1-SCREW -TRUSS-M5X0.8XL30XTAPEREND x 2","SCREW -TRUSS-M5X0.8XL30XTAPEREND","LBU00015",0,2,210,null,null,null,3,"HW (Hardware includes nuts,washers)",{"$f":"VLOOKUP(C91,Sheet3!$A$2:$A$87,1,0)","v":"LBU00015"}]
["LBU00042/01;1-SCREW BUTTON HEAD-M6X1XL10XBLACK x 2","SCREW BUTTON HEAD-M6X1XL10XBLACK","LBU00042",1,2,140,"CHASSIS-STAND",null,null,3,"HW (Hardware includes nuts,washers)",{"$f":"VLOOKUP(C92,Sheet3!$A$2:$A$87,1,0)","v":"LBU00042"}]
["LBU00045/02;1-SCREW BUTTON HD-M6X1XL10XPRECOAT x 1","SCREW BUTTON HD-M6X1XL10XPRECOAT","LBU00045",2,1,50,"INTAKE SYSTEM-AIR FILTER",null,null,3,"HW (Hardware includes nuts,washers)",{"$f":"VLOOKUP(C93,Sheet3!$A$2:$A$87,1,0)","v":"LBU00045"}]
["LBU00050/02;1-SCREW BUTTON HEAD-M6X1XL9XPRECOAT (Design) x 6","SCREW BUTTON HEAD STEP M6X1","LBU00050",2,6,20,"PANEL AND TRIM-FENDER & FLAP",null,null,3,"HW (Hardware includes nuts,washers)",{"$f":"VLOOKUP(C94,Sheet3!$A$2:$A$87,1,0)","v":"LBU00050"}]
["LBU00056/00;1-SCREW BUTTON HEAD-M6X1XL 10XBRT x 1","SCREW BUTTON HEAD-M6X1XL 10XBRT","LBU00056",0,1,150,"CHASSIS-FRAME FITTINGS",null,null,3,"HW (Hardware includes nuts,washers)",{"$f":"VLOOKUP(C95,Sheet3!$A$2:$A$87,1,0)","v":{"$error":"#N/A"}}]
["LBU00059/01;1-SCREW BUTTON HD-M6X1XL13XSTEPPED x 4","SCREW BUTTON HD-M6X1XL13XSTEPPED","LBU00059",1,4,80,null,null,null,3,"HW (Hardware includes nuts,washers)",{"$f":"VLOOKUP(C96,Sheet3!$A$2:$A$87,1,0)","v":"LBU00059"}]
["LBU00060/00;1-SCREW BUTTON HD-M5X0.8XL18XBLACK x 4","SCREW BUTTON HEAD M5X0.8","LBU00060",0,4,60,"PANEL AND TRIM-COVER",null,null,3,"HW (Hardware includes nuts,washers)",{"$f":"VLOOKUP(C97,Sheet3!$A$2:$A$87,1,0)","v":"LBU00060"}]
["LBU00065/00;1-SCREW TRUSS-M5X0.8XL14XCL4.8XBLK x 2","SCREW TRUSS-M5X0.8XL14XCL4.8XBLK","LBU00065",0,2,230,null,null,null,3,"HW (Hardware includes nuts,washers)",{"$f":"VLOOKUP(C98,Sheet3!$A$2:$A$87,1,0)","v":"LBU00065"}]
["LBU00091/01;1-SCREW BUTN HD-M5X0.8XL10XBLKXSTEP (Design) x 2","SCREW BUTN HD-M5X0.8XL10XBLKXSTEP","LBU00091",1,2,160,"PANEL AND TRIM-COVER",null,null,3,"HW (Hardware includes nuts,washers)",{"$f":"VLOOKUP(C99,Sheet3!$A$2:$A$87,1,0)","v":"LBU00091"}]
["LBU00113/00;1-SCREW BUTTON HEAD STEP M5X0.8 (Design) x 2","SCREW BUTTON HEAD STEP M5X0.8","LBU00113",0,2,110,"PANEL AND TRIM-PANEL",null,null,3,"HW (Hardware includes nuts,washers)",{"$f":"VLOOKUP(C100,Sheet3!$A$2:$A$87,1,0)","v":"LBU00113"}]
["LBU00134/03;1-SCREW BUTTON HEAD M6X1 (Design) x 6","SCREW BUTTON HEAD M6X1","LBU00134",3,6,120,"PANEL AND TRIM-COVER",null,null,3,"HW (Hardware includes nuts,washers)",{"$f":"VLOOKUP(C101,Sheet3!$A$2:$A$87,1,0)","v":"LBU00134"}]
["LBU00148/00;1-SCREW SOCKET STEP M6X1 x 4","SCREW SOCKET STEP M6X1","LBU00148",0,4,60,"SUSPENSION-REAR SUSPENSION",null,null,3,"HW (Hardware includes nuts,washers)",{"$f":"VLOOKUP(C102,Sheet3!$A$2:$A$87,1,0)","v":"LBU00148"}]
["LBU00155/00;1-SCREW BUTTON HEAD STEP M6X1 (Design) x 4","SCREW BUTTON HEAD STEP M6X1","LBU00155",0,4,40,"CHASSIS-FRAME FITTINGS",null,null,3,"HW (Hardware includes nuts,washers)",{"$f":"VLOOKUP(C103,Sheet3!$A$2:$A$87,1,0)","v":"LBU00155"}]
["LBU00158/00;1-SCREW SOCKET STEP M6X1 x 2","SCREW SOCKET STEP M6X1","LBU00158",0,2,70,"SUSPENSION-REAR SUSPENSION",null,null,3,"HW (Hardware includes nuts,washers)",{"$f":"VLOOKUP(C104,Sheet3!$A$2:$A$87,1,0)","v":"LBU00158"}]
["LCG00003/02;1-NUT FLANGED M10 X 1.25 x 2","NUT FLANGED M10 X 1.25","LCG00003",2,2,130,"SUSPENSION-REAR SUSPENSION",null,null,3,"HW (Hardware includes nuts,washers)",{"$f":"VLOOKUP(C105,Sheet3!$A$2:$A$87,1,0)","v":"LCG00003"}]
["LCG00006/00;1-NUT HEX FLANGED M8*1.25 (Design) x 2","NUT HEX FLANGED M8*1.25","LCG00006",0,2,50,"ENGINE ASSEMBLY-ENGINE ASSEMBLY",null,null,3,"HW (Hardware includes nuts,washers)",{"$f":"VLOOKUP(C106,Sheet3!$A$2:$A$87,1,0)","v":"LCG00006"}]
["LCG00019/00;3-NUT HEX FLANGE-M14X1.5XHT10 x 2","NUT HEX FLANGE-M14X1.5XHT.10","LCG00019",0,2,100,"SUSPENSION-REAR SUSPENSION",null,null,3,"HW (Hardware includes nuts,washers)",{"$f":"VLOOKUP(C107,Sheet3!$A$2:$A$87,1,0)","v":"LCG00019"}]
["LCG00022/01;1-NUT HEX FL-M16X1.5XHT.10XPRECOAT x 1","NUT HEX FL-M16X1.5XHT.10XPRECOAT","LCG00022",1,1,410,"ENGINE ASSEMBLY-ENGINE ASSEMBLY",null,null,3,"HW (Hardware includes nuts,washers)",{"$f":"VLOOKUP(C108,Sheet3!$A$2:$A$87,1,0)","v":{"$error":"#N/A"}}]
["LCG00029/01;1-NUT HEX FLANGED M6X1 x 2","NUT HEX FLANGED M6X1","LCG00029",1,2,80,"COOLING SYSTEM-RADIATOR",null,null,3,"HW (Hardware includes nuts,washers)",{"$f":"VLOOKUP(C109,Sheet3!$A$2:$A$87,1,0)","v":"LCG00029"}]
["LCG00033/01;1-NUT HEX FLANGED M18X1.5 x 1","NUT HEX FLANGED M18X1.5","LCG00033",1,1,1000,"ENGINE ASSEMBLY-ENGINE ASSEMBLY",null,null,3,"HW (Hardware includes nuts,washers)",{"$f":"VLOOKUP(C110,Sheet3!$A$2:$A$87,1,0)","v":"LCG00033"}]
["LCH00001/01;1-NUT NYLOC-M10X1.25XHT.11XCL6XBRT x 1","NUT NYLOC-M10X1.25XHT.11XCL6XBRT","LCH00001",1,1,50,"CHASSIS-STAND",null,null,3,"HW (Hardware includes nuts,washers)",{"$f":"VLOOKUP(C111,Sheet3!$A$2:$A$87,1,0)","v":"LCH00001"}]
["LCL00002/01;1-NUT FLANGED-M6X1XHT. 6XCL 4XBRT x 1","NUT HEX FLANGED M6X1","LCL00002",1,1,40,"ELECTRICAL/ELECTRONICS ENGINE-CDI/HT COIL/SPARK PLUG",null,null,3,"HW (Hardware includes nuts,washers)",{"$f":"VLOOKUP(C112,Sheet3!$A$2:$A$87,1,0)","v":"LCL00002"}]
["LHD00001/00;1-PIN PARALLEL x 3","PIN PARALLEL","LHD00001",0,3,1260,"LUBRICATION SYSTEM-OIL PUMP",null,null,3,"HW (Hardware includes nuts,washers)",{"$f":"VLOOKUP(C113,Sheet3!$A$2:$A$87,1,0)","v":{"$error":"#N/A"}}]

{"sheet":"Sheet3","index":2,"n_rows":87,"n_cols":3,"rows_kept":87,"cut":false,"hidden":false,"merged":[]}
["ITEM NO.","MOD"]
["LAC00200",0,{"$f":"VLOOKUP(A2,Sheet2!C66:$C$113,1,0)","v":"LAC00200"}]
["LAC00201",0,{"$f":"VLOOKUP(A3,Sheet2!C67:$C$113,1,0)","v":"LAC00201"}]
["LBU00148",0,{"$f":"VLOOKUP(A4,Sheet2!C$113:$C121,1,0)","v":{"$error":"#N/A"}}]
["LAA00007",0,{"$f":"VLOOKUP(A5,Sheet2!C97:$C$113,1,0)","v":{"$error":"#N/A"}}]
["LBU00158",0,{"$f":"VLOOKUP(A6,Sheet2!C96:$C$113,1,0)","v":"LBU00158"}]
["LCG00003",2,{"$f":"VLOOKUP(A7,Sheet2!C37:$C$113,1,0)","v":"LCG00003"}]
["JP122060",0.01,{"$f":"VLOOKUP(A8,Sheet2!C38:$C$113,1,0)","v":{"$error":"#N/A"}}]
["LCG00019",0,{"$f":"VLOOKUP(A9,Sheet2!C105:$C$113,1,0)","v":"LCG00019"}]
["LBU00050",2,{"$f":"VLOOKUP(A10,Sheet2!C$113:$C120,1,0)","v":{"$error":"#N/A"}}]
["LBU00082",1,{"$f":"VLOOKUP(A11,Sheet2!C52:$C$113,1,0)","v":{"$error":"#N/A"}}]
["LAC00111",0,{"$f":"VLOOKUP(A12,Sheet2!C58:$C$113,1,0)","v":"LAC00111"}]
["LCH00001",1,{"$f":"VLOOKUP(A13,Sheet2!C49:$C$113,1,0)","v":"LCH00001"}]
["JY121011",2,{"$f":"VLOOKUP(A14,Sheet2!C14:$C$113,1,0)","v":"JY121011"}]
["LAC00004",3,{"$f":"VLOOKUP(A15,Sheet2!C41:$C$113,1,0)","v":"LAC00004"}]
["KACJ0655",0,{"$f":"VLOOKUP(A16,Sheet2!C42:$C$113,1,0)","v":{"$error":"#N/A"}}]
["JY151011",3,{"$f":"VLOOKUP(A17,Sheet2!C$113:$C169,1,0)","v":{"$error":"#N/A"}}]
["LCG00033",0,{"$f":"VLOOKUP(A18,Sheet2!C$113:$C173,1,0)","v":{"$error":"#N/A"}}]
["KADD0835",1,{"$f":"VLOOKUP(A19,Sheet2!C$113:$C174,1,0)","v":{"$error":"#N/A"}}]
["JG113837",1,{"$f":"VLOOKUP(A20,Sheet2!C$113:$C176,1,0)","v":{"$error":"#N/A"}}]
["LCG00006",0,{"$f":"VLOOKUP(A21,Sheet2!C$113:$C177,1,0)","v":{"$error":"#N/A"}}]
["JY113821",4,{"$f":"VLOOKUP(A22,Sheet2!C$113:$C178,1,0)","v":{"$error":"#N/A"}}]
["KACF0610",1,{"$f":"VLOOKUP(A23,Sheet2!C23:$C$113,1,0)","v":"KACF0610"}]
["KADD0612",1,{"$f":"VLOOKUP(A24,Sheet2!C28:$C$113,1,0)","v":"KADD0612"}]
["KCGD0606",1,{"$f":"VLOOKUP(A25,Sheet2!C32:$C$113,1,0)","v":"KCGD0606"}]
["LBU00045",2,{"$f":"VLOOKUP(A26,Sheet2!C$113:$C197,1,0)","v":{"$error":"#N/A"}}]
["JG561009",5,{"$f":"VLOOKUP(A27,Sheet2!C$113:$C198,1,0)","v":{"$error":"#N/A"}}]
["KADD0610",1,{"$f":"VLOOKUP(A28,Sheet2!C$113:$C199,1,0)","v":{"$error":"#N/A"}}]
["JG181250",1,{"$f":"VLOOKUP(A29,Sheet2!C$113:$C200,1,0)","v":{"$error":"#N/A"}}]
["LCG00029",1,{"$f":"VLOOKUP(A30,Sheet2!C70:$C$113,1,0)","v":"LCG00029"}]
["KADD0625",1,{"$f":"VLOOKUP(A31,Sheet2!C$113:$C205,1,0)","v":{"$error":"#N/A"}}]
["JG181255",1,{"$f":"VLOOKUP(A32,Sheet2!C$113:$C206,1,0)","v":{"$error":"#N/A"}}]
["LCL00002",1,{"$f":"VLOOKUP(A33,Sheet2!C$113:$C210,1,0)","v":{"$error":"#N/A"}}]
["KAED0622",1,{"$f":"VLOOKUP(A34,Sheet2!C$113:$C211,1,0)","v":{"$error":"#N/A"}}]
["KAED0616",1,{"$f":"VLOOKUP(A35,Sheet2!C$113:$C207,1,0)","v":{"$error":"#N/A"}}]
["KADF0618",0,{"$f":"VLOOKUP(A36,Sheet2!C$113:$C208,1,0)","v":{"$error":"#N/A"}}]
[39167504,0,{"$f":"VLOOKUP(A37,Sheet2!C$113:$C209,1,0)","v":{"$error":"#N/A"}}]
["KADD0814",1,{"$f":"VLOOKUP(A38,Sheet2!C$113:$C212,1,0)","v":{"$error":"#N/A"}}]
["KACA0616",1,{"$f":"VLOOKUP(A39,Sheet2!C99:$C$113,1,0)","v":{"$error":"#N/A"}}]
["LBU00060",0,{"$f":"VLOOKUP(A40,Sheet2!C100:$C$113,1,0)","v":{"$error":"#N/A"}}]
["LAC00045",0,{"$f":"VLOOKUP(A41,Sheet2!C101:$C$113,1,0)","v":{"$error":"#N/A"}}]
["LAD00278",0,{"$f":"VLOOKUP(A42,Sheet2!C102:$C$113,1,0)","v":{"$error":"#N/A"}}]
["LAC00008",3,{"$f":"VLOOKUP(A43,Sheet2!C103:$C$113,1,0)","v":{"$error":"#N/A"}}]
["LAA00030",0,{"$f":"VLOOKUP(A44,Sheet2!C104:$C$113,1,0)","v":{"$error":"#N/A"}}]
["LAC00035",1,{"$f":"VLOOKUP(A45,Sheet2!C43:$C$113,1,0)","v":"LAC00035"}]
["LBU00042",1,{"$f":"VLOOKUP(A46,Sheet2!C44:$C$113,1,0)","v":"LBU00042"}]
["JG113207",1,{"$f":"VLOOKUP(A47,Sheet2!C26:$C$113,1,0)","v":{"$error":"#N/A"}}]
["DK101386",3,{"$f":"VLOOKUP(A48,Sheet2!C33:$C$113,1,0)","v":{"$error":"#N/A"}}]
["KADF0845",0,{"$f":"VLOOKUP(A49,Sheet2!C$113:$C153,1,0)","v":{"$error":"#N/A"}}]
["KACA0840",1,{"$f":"VLOOKUP(A50,Sheet2!C$113:$C154,1,0)","v":{"$error":"#N/A"}}]
["KACA0850",1,{"$f":"VLOOKUP(A51,Sheet2!C$113:$C155,1,0)","v":{"$error":"#N/A"}}]
["JG131031",6,{"$f":"VLOOKUP(A52,Sheet2!C$113:$C156,1,0)","v":{"$error":"#N/A"}}]
["LAD00079",2,{"$f":"VLOOKUP(A53,Sheet2!C$113:$C192,1,0)","v":{"$error":"#N/A"}}]
["KCGF0505",0,{"$f":"VLOOKUP(A54,Sheet2!C$113:$C193,1,0)","v":{"$error":"#N/A"}}]
["LAD00077",1,{"$f":"VLOOKUP(A55,Sheet2!C$113:$C195,1,0)","v":{"$error":"#N/A"}}]
["KCGF0606",0,{"$f":"VLOOKUP(A56,Sheet2!C$113:$C196,1,0)","v":{"$error":"#N/A"}}]
["KAED0614",1,{"$f":"VLOOKUP(A57,Sheet2!C$113:$C133,1,0)","v":{"$error":"#N/A"}}]
["LAE00054",0,{"$f":"VLOOKUP(A58,Sheet2!C$113:$C134,1,0)","v":{"$error":"#N/A"}}]
["KHAA2015",1,{"$f":"VLOOKUP(A59,Sheet2!C$113:$C135,1,0)","v":{"$error":"#N/A"}}]
["JG131224",3,{"$f":"VLOOKUP(A60,Sheet2!C$113:$C136,1,0)","v":{"$error":"#N/A"}}]
["DH171019",0,{"$f":"VLOOKUP(A61,Sheet2!C50:$C$113,1,0)","v":{"$error":"#N/A"}}]
["LAC00011",3,{"$f":"VLOOKUP(A62,Sheet2!C51:$C$113,1,0)","v":"LAC00011"}]
["LBU00155",0,{"$f":"VLOOKUP(A63,Sheet2!C55:$C$113,1,0)","v":"LBU00155"}]
["LBR00010",0,{"$f":"VLOOKUP(A64,Sheet2!C45:$C$113,1,0)","v":"LBR00010"}]
["LAC00054",4,{"$f":"VLOOKUP(A65,Sheet2!C46:$C$113,1,0)","v":"LAC00054"}]
["KADA0614",1,{"$f":"VLOOKUP(A66,Sheet2!C75:$C$113,1,0)","v":{"$error":"#N/A"}}]
["KAEA0616",1,{"$f":"VLOOKUP(A67,Sheet2!C56:$C$113,1,0)","v":{"$error":"#N/A"}}]
["LAA00073",2,{"$f":"VLOOKUP(A68,Sheet2!C57:$C$113,1,0)","v":"LAA00073"}]
["KCAC0605",1,{"$f":"VLOOKUP(A69,Sheet2!C$113:$C194,1,0)","v":{"$error":"#N/A"}}]
["LBU00059",1,{"$f":"VLOOKUP(A70,Sheet2!C68:$C$113,1,0)","v":"LBU00059"}]
["KADA0512",1,{"$f":"VLOOKUP(A71,Sheet2!C69:$C$113,1,0)","v":{"$error":"#N/A"}}]
["LBU00015",0,{"$f":"VLOOKUP(A72,Sheet2!C35:$C$113,1,0)","v":"LBU00015"}]
["LBU00091",1,{"$f":"VLOOKUP(A73,Sheet2!C36:$C$113,1,0)","v":"LBU00091"}]
["LAC00188",0,{"$f":"VLOOKUP(A74,Sheet2!C64:$C$113,1,0)","v":"LAC00188"}]
["LBU00065",0,{"$f":"VLOOKUP(A75,Sheet2!C65:$C$113,1,0)","v":"LBU00065"}]
["LBU00134",3,{"$f":"VLOOKUP(A76,Sheet2!C98:$C$113,1,0)","v":"LBU00134"}]
["LBU00113",0,{"$f":"VLOOKUP(A77,Sheet2!C$113:$C143,1,0)","v":{"$error":"#N/A"}}]
["KCEA0605",1,{"$f":"VLOOKUP(A78,Sheet2!C$113:$C144,1,0)","v":{"$error":"#N/A"}}]
["KBBA0510",0,{"$f":"VLOOKUP(A79,Sheet2!C$113:$C114,1,0)","v":{"$error":"#N/A"}}]
["KADA0612",1,{"$f":"VLOOKUP(A80,Sheet2!C62:$C$113,1,0)","v":{"$error":"#N/A"}}]
["KADD0690",0,{"$f":"VLOOKUP(A81,Sheet2!C63:$C$113,1,0)","v":{"$error":"#N/A"}}]
["KACA0614",1,{"$f":"VLOOKUP(A82,Sheet2!C60:$C$113,1,0)","v":{"$error":"#N/A"}}]
["LAD00246",2,{"$f":"VLOOKUP(A83,Sheet2!C61:$C$113,1,0)","v":"LAD00246"}]
["LAD00006",1,{"$f":"VLOOKUP(A84,Sheet2!C$113:$C188,1,0)","v":{"$error":"#N/A"}}]
["KCGD1010",1,{"$f":"VLOOKUP(A85,Sheet2!C$113:$C189,1,0)","v":{"$error":"#N/A"}}]
["KACA0820",1,{"$f":"VLOOKUP(A86,Sheet2!C$113:$C190,1,0)","v":{"$error":"#N/A"}}]
["KACA0825",1,{"$f":"VLOOKUP(A87,Sheet2!C$113:$C191,1,0)","v":{"$error":"#N/A"}}]